Workbook

Sheet START

Sheet Instructions
D2: 2020
X4: Yes
X5: No
W7: Type of Entities Range:
X8: Parent Municipality
X9: Consolidated Information
W17: MTREF Range: | X17: 2008
X18: 2009
X19: 2010
X20: 2011
X21: 2012
X22: 2013
X23: 2014
X24: 2015
X25: 2016
X26: 2017
X27: 2018
X28: 2019
X29: 2020
X30: 2021
X31: 2022
W33: MTREF Linked: | X33: 12
W34: MTREF: | X34: =INDEX(X17:X31,X33,1) -> 2019
W36: Fin Year: | X36: =MTREF&"/"&RIGHT(MTREF,2)+1 -> 2019/20

Sheet Template names (hidden)
A1: Common sheet headings
A2: Head1 | B2: =HLOOKUP(MTREF,Headings,2) -> 2017/18 | C2: Prior year -1
A3: Head1A | B3: =HLOOKUP(MTREF,Headings,3) -> 2016/17 | C3: Prior year -2
A4: Head1B | B4: =HLOOKUP(MTREF,Headings,4) -> 2015/16 | C4: Prior year -3
A5: Head2 | B5: =HLOOKUP(MTREF,Headings,5) -> Current Year 2018/19 | C5: Year in which budget is being prepared
A6: Head2A | B6: =HLOOKUP(MTREF,Headings,6) -> 2018/19 | C6: Year in which budget is being prepared
A7: Head3 | B7: =HLOOKUP(MTREF,Headings,7) -> 2019/20 Medium Term Revenue & Expenditure Framework | C7: MTREF name
A8: Head4 | B8: LTFS | C8: Long term financial strategy
A9: Head5 | B9: Audited Outcome
A10: Head5A | B10: Outcome
A11: Head5B | B11: Pre-audit outcome
A12: Head6 | B12: Original Budget
A13: Head7 | B13: Adjusted Budget
A14: Head8 | B14: Full Year Forecast
A15: Head9 | B15: =HLOOKUP(MTREF,Headings,8) -> Budget Year 2019/20 | C15: 1st year of MTREF | D15: Year1
A16: Head10 | B16: =HLOOKUP(MTREF,Headings,9) -> Budget Year +1 2020/21 | C16: 2nd year of MTREF | D16: Year2
A17: Head11 | B17: =HLOOKUP(MTREF,Headings,10) -> Budget Year +2 2021/22 | C17: 3rd year of MTREF | D17: Year3
A18: Head12 | B18: =HLOOKUP(MTREF,Headings,11) -> Forecast 2022/23 | C18: 1st yr of long term forecast | D18: Year4
A19: Head13 | B19: =HLOOKUP(MTREF,Headings,12) -> Forecast 2023/24 | C19: Next yr of long term forecast | D19: Year5
A20: Head14 | B20: =HLOOKUP(MTREF,Headings,13) -> Forecast 2024/25 | C20: Next yr of long term forecast | D20: Year6
A21: Head15 | B21: =HLOOKUP(MTREF,Headings,14) -> Forecast 2025/26 | C21: Next yr of long term forecast | D21: Year7
A22: Head16 | B22: =HLOOKUP(MTREF,Headings,15) -> Forecast 2026/27 | C22: Next yr of long term forecast | D22: Year8
A23: Head17 | B23: =HLOOKUP(MTREF,Headings,16) -> Forecast 2027/28 | C23: Next yr of long term forecast | D23: Year9
A24: Head18 | B24: =HLOOKUP(MTREF,Headings,17) -> Forecast 2028/29 | C24: Next yr of long term forecast | D24: Year10
A25: Head19 | B25: =HLOOKUP(MTREF,Headings,18) -> Forecast 2029/30 | C25: Next yr of long term forecast | D25: Year11
A26: Head20 | B26: =HLOOKUP(MTREF,Headings,19) -> Forecast 2030/31 | C26: Next yr of long term forecast | D26: Year12
A27: Head21 | B27: =HLOOKUP(MTREF,Headings,20) -> Forecast 2031/32 | C27: Next yr of long term forecast | D27: Year13
A28: Head22 | B28: =HLOOKUP(MTREF,Headings,21) -> Forecast 2032/33 | C28: Next yr of long term forecast | D28: Year14
A29: Head23 | B29: =HLOOKUP(MTREF,Headings,22) -> Forecast 2033/34 | C29: Next yr of long term forecast | D29: Year15
A30: Head24 | B30: Description
A31: Head25
A32: Head26 | B32: Vote Description
A33: Head27 | B33: Ref
A34: Head27a | B34: References
A35: Head28 | B35: Surplus/(Deficit) for the year | D35: Result
A36: Head29 | B36: =HLOOKUP(MTREF,Headings,23) -> Annual target 2019/20
A37: Head30 | B37: =HLOOKUP(MTREF,Headings,24) -> Revised target 2019/20
A38: Head31 | B38: Quarter ended 30 September
A39: Head32 | B39: Quarter ended 31 December
A40: Head33 | B40: Quarter ended 31 March
A41: Head34 | B41: Quarter ended 30 June
A42: Head35 | B42: Variance explanation
A43: Head36 | B43: YTD Actual 31 Dec
A44: Head37 | B44: YTD Budget 31 Dec
A45: Head38 | B45: Monthly actual
A46: Head39 | B46: YTD actual
A47: Head40 | B47: YTD budget
A48: Head41 | B48: YTD variance
A49: Head42 | B49: Surplus/ (Deficit) for the yr/period
A50: Head43 | B50: =Head3&" Summary" -> 2019/20 Medium Term Revenue & Expenditure Framework Summary
A51: Head44 | B51: 2001 Census
A52: Head45 | B52: 2011 Census
A53: Head46 | B53: - Adjustments Budget - January 2007
A54: Head47 | B54: Previous target year to complete
A55: Head48 | B55: Present value
A56: Head49
A57: Head50 | B57: Other Adjusts.
A58: Head51 | B58: Accum. Funds
A59: Head52 | B59: Multi-year capital
A60: Head53 | B60: Unfore. Unavoid.
A61: Head54 | B61: Prior Adjusted
A62: Head55 | B62: Nat. or Prov. Govt
A63: Head56 | B63: Total Adjusts.
A64: SFPerf1 | B64: Budgeted Financial Performance
A65: SFPerf2 | B65: Forecast Financial Performance
A66: SFPos1 | B66: Budgeted Financial Position
A67: SFPos2 | B67: Forecast Financial Position
A68: Cash1 | B68: Budget Cash Flow
A69: Cash2 | B69: Forecast Cash Flow
A70: RandM | B70: Expenditure includes repairs & maintenance of R'000
A71: Depart1 | B71: Department 1 - | D71: DEP1
A72: Depart2 | B72: Department 2 - | D72: DEP2
A73: Depart3 | B73: Department 3 - | D73: DEP3
A74: Depart4 | B74: Department 4 - | D74: DEP4
A75: Depart5 | B75: Department 5 - | D75: DEP5
A76: Depart6 | B76: Department 6 - | D76: DEP6
A77: Depart7 | B77: Department 7 - | D77: DEP7
A78: Depart8 | B78: Department 8 - | D78: DEP8
A79: Depart9 | B79: Department 9 - | D79: DEP9
A80: Depart10 | B80: Department 10 - | D80: DEP10
A81: Depart11 | B81: Department 11 - | D81: DEP11
A82: Depart12 | B82: Department 12 - | D82: DEP12
A83: Depart13 | B83: Department 13 - | D83: DEP13
A84: Depart14 | B84: Department 14 - | D84: DEP14
A87: Base year of forecast column selection names
A88: Choose | B88: ACT
B89: APP
B90: ADJ
A92: Standard nomenclature
A93: Muni | B93: ='Lookup and lists'!B28 -> LIM331 Greater Giyani
A94: Municipal Entities | B94: 2 | C94: Type of report: | D94: 1
A95: =IF((MuniEntities=1)*(MuniType=2),"YES","NO") -> NO | B95: Does this municipality have entities (consolidated budget and entity budgets required)? YES/NO
A96: Entity 1 | B96: (Pty) Ltd Example 1 - Municipal entity - | D96: Ent1
A97: Entity 2 | B97: (Pty) Ltd Example 2 - Municipal entity - | D97: Ent2
A98: Entity 3 | B98: Municipal Entity Example 3 | D98: Ent3
A99: Budget approval tables | C99: Chart x-ref | D99: Sch/Tab/Ch | E99: Alternative for municipalities without entities | F99: Alternative for municipalities without entities
B100: =IF(Consolques="YES",E100,F100) -> Table A1 Budget Summary | D100: Table A1 | E100: =D100&"Consolidated Budget Summary" -> Table A1 Consolidated Budget Summary | F100: =D100&"Budget Summary" -> Table A1 Budget Summary
B101: Table A2 Budgeted Financial Performance (revenue and expenditure by functional classification) | C101: Charts 5, 6 | D101: Table A2 | E101: =D101&"Consolidated Budgeted Financial Performance (revenue and expenditure by functional classification)" -> Table A2 Consolidated Budgeted Financial Performance (revenue and expenditure by functional classification) | F101: =D101&"Budgeted Financial Performance (revenue and expenditure by functional classification)" -> Table A2 Budgeted Financial Performance (revenue and expenditure by functional classification)
B102: Table A3 Budgeted Financial Performance (revenue and expenditure by municipal vote) | D102: Table A3 | E102: =D102&"Consolidated Budgeted Financial Performance (revenue and expenditure by municipal vote)" -> Table A3 Consolidated Budgeted Financial Performance (revenue and expenditure by municipal vote) | F102: =D102&"Budgeted Financial Performance (revenue and expenditure by municipal vote)" -> Table A3 Budgeted Financial Performance (revenue and expenditure by municipal vote)
B103: Table A4 Budgeted Financial Performance (revenue and expenditure) | C103: Charts 1, 2, 3, 4 | D103: Table A4 | E103: =D103&"Consolidated Budgeted Financial Performance (revenue and expenditure)" -> Table A4 Consolidated Budgeted Financial Performance (revenue and expenditure) | F103: =D103&"Budgeted Financial Performance (revenue and expenditure)" -> Table A4 Budgeted Financial Performance (revenue and expenditure)
B104: Table A5 Budgeted Capital Expenditure by vote, functional classification and funding | C104: Charts 7, 8, 9, 10, 20 | D104: Table A5 | E104: =D104&"Consolidated Budgeted Capital Expenditure by vote, functional classification and funding" -> Table A5 Consolidated Budgeted Capital Expenditure by vote, functional classification and funding | F104: =D104&"Budgeted Capital Expenditure by vote, functional classification and funding" -> Table A5 Budgeted Capital Expenditure by vote, functional classification and funding
B105: Table A6 Budgeted Financial Position | D105: Table A6 | E105: =D105&"Consolidated Budgeted Financial Position" -> Table A6 Consolidated Budgeted Financial Position | F105: =D105&"Budgeted Financial Position" -> Table A6 Budgeted Financial Position
B106: Table A7 Budgeted Cash Flows | D106: Table A7 | E106: =D106&"Consolidated Budgeted Cash Flows" -> Table A7 Consolidated Budgeted Cash Flows | F106: =D106&"Budgeted Cash Flows" -> Table A7 Budgeted Cash Flows
B107: Table A8 Cash backed reserves/accumulated surplus reconciliation | D107: Table A8 | E107: =D107&"Consolidated Cash backed reserves/accumulated surplus reconciliation" -> Table A8 Consolidated Cash backed reserves/accumulated surplus reconciliation | F107: =D107&"Cash backed reserves/accumulated surplus reconciliation" -> Table A8 Cash backed reserves/accumulated surplus reconciliation
B108: Table A9 Asset Management | D108: Table A9 | E108: =D108&"Consolidated Asset Management" -> Table A9 Consolidated Asset Management | F108: =D108&"Asset Management" -> Table A9 Asset Management
B109: Table A10 Basic service delivery measurement | D109: Table A10 | E109: =D109&"Consolidated basic service delivery measurement" -> Table A10 Consolidated basic service delivery measurement | F109: =D109&"Basic service delivery measurement" -> Table A10 Basic service delivery measurement
A110: Supportinging Tables to the Budget Approval Tables | C110: =$C$99 -> Chart x-ref | D110: =$D$99 -> Sch/Tab/Ch
A111: Supporting Table SA1 | B111: =A111&" Supportinging detail to 'Budgeted Financial Performance'" -> Supporting Table SA1 Supportinging detail to 'Budgeted Financial Performance'
A112: Supporting Table SA2 | B112: =IF(Consolques="YES",E112,F112) -> Supporting Table SA2 Matrix Financial Performance Budget (revenue source/expenditure type and dept.) | E112: =A112&"Consolidated Matrix Financial Performance Budget (revenue source/expenditure type & dept.)" -> Supporting Table SA2 Consolidated Matrix Financial Performance Budget (revenue source/expenditure type & dept.) | F112: =A112&"Matrix Financial Performance Budget (revenue source/expenditure type and dept.)" -> Supporting Table SA2 Matrix Financial Performance Budget (revenue source/expenditure type and dept.)
A113: Supporting Table SA3 | B113: =A113&"Supportinging detail to 'Budgeted Financial Position'" -> Supporting Table SA3 Supportinging detail to 'Budgeted Financial Position'
A114: Supporting Table SA4 | B114: =A114&"Reconciliation of IDP strategic objectives and budget (revenue)" -> Supporting Table SA4 Reconciliation of IDP strategic objectives and budget (revenue) | C114: Chart 11
A115: Supporting Table SA5 | B115: =A115&"Reconciliation of IDP strategic objectives and budget (operating expenditure)" -> Supporting Table SA5 Reconciliation of IDP strategic objectives and budget (operating expenditure) | C115: Chart 12
A116: Supporting Table SA6 | B116: =A116&"Reconciliation of IDP strategic objectives and budget (capital expenditure)" -> Supporting Table SA6 Reconciliation of IDP strategic objectives and budget (capital expenditure) | C116: Chart 13
A117: Supporting Table SA7 | B117: =A117&" Measureable performance objectives" -> Supporting Table SA7 Measureable performance objectives
A118: Supporting Table SA8 | B118: =A118&" Performance indicators and benchmarks" -> Supporting Table SA8 Performance indicators and benchmarks | C118: Chts 15-19
A119: Supporting Table SA9 | B119: =A119&" Social, economic and demographic statistics and assumptions" -> Supporting Table SA9 Social, economic and demographic statistics and assumptions
A120: Supporting Table SA10 | B120: =A120&" Funding measurement" -> Supporting Table SA10 Funding measurement | C120: Chart 14
A121: Supporting Table SA11 | B121: =A121&" Property rates summary" -> Supporting Table SA11 Property rates summary
A122: Supporting Table SA12a | B122: =A122&" Property rates by category (current year)" -> Supporting Table SA12a Property rates by category (current year)
A123: Supporting Table SA12b | B123: =A123&" Property rates by category (budget year)" -> Supporting Table SA12b Property rates by category (budget year)
A124: Supporting Table SA13a | B124: =A124&" Service Tariffs by category" -> Supporting Table SA13a Service Tariffs by category
A125: Supporting Table SA13b | B125: =A125&" Service Tariffs by category - explanatory" -> Supporting Table SA13b Service Tariffs by category - explanatory
A126: Supporting Table SA14 | B126: =A126&" Household bills" -> Supporting Table SA14 Household bills
A127: Supporting Table SA15 | B127: =A127&" Investment particulars by type" -> Supporting Table SA15 Investment particulars by type
A128: Supporting Table SA16 | B128: =A128&" Investment particulars by maturity" -> Supporting Table SA16 Investment particulars by maturity
A129: Supporting Table SA17 | B129: =A129&" Borrowing" -> Supporting Table SA17 Borrowing
A130: Supporting Table SA18 | B130: =A130&" Transfers and grant receipts" -> Supporting Table SA18 Transfers and grant receipts
A131: Supporting Table SA19 | B131: =A131&" Expenditure on transfers and grant programme" -> Supporting Table SA19 Expenditure on transfers and grant programme
A132: Supporting Table SA20 | B132: =A132&" Reconciliation of transfers, grant receipts and unspent funds" -> Supporting Table SA20 Reconciliation of transfers, grant receipts and unspent funds
A133: Supporting Table SA21 | B133: =A133&" Transfers and grants made by the municipality" -> Supporting Table SA21 Transfers and grants made by the municipality
A134: Supporting Table SA22 | B134: =A134&" Summary councillor and staff benefits" -> Supporting Table SA22 Summary councillor and staff benefits
A135: Supporting Table SA23 | B135: =A135&" Salaries, allowances & benefits (political office bearers/councillors/senior managers)" -> Supporting Table SA23 Salaries, allowances & benefits (political office bearers/councillors/senior managers)
A136: Supporting Table SA24 | B136: =A136&" Summary of personnel numbers" -> Supporting Table SA24 Summary of personnel numbers
A137: Supporting Table SA25 | B137: =IF(Consolques="YES",E137,F137) -> Supporting Table SA25 Budgeted monthly revenue and expenditure | E137: =A137&" Consolidated budgeted monthly revenue and expenditure" -> Supporting Table SA25 Consolidated budgeted monthly revenue and expenditure | F137: =A137&" Budgeted monthly revenue and expenditure" -> Supporting Table SA25 Budgeted monthly revenue and expenditure
A138: Supporting Table SA26 | B138: Supporting Table SA26 Budgeted monthly revenue and expenditure (municipal vote) | E138: =A138&" Consolidated budgeted monthly revenue and expenditure (municipal vote)" -> Supporting Table SA26 Consolidated budgeted monthly revenue and expenditure (municipal vote) | F138: =A138&" Budgeted monthly revenue and expenditure (municipal vote)" -> Supporting Table SA26 Budgeted monthly revenue and expenditure (municipal vote)
A139: Supporting Table SA27 | B139: Supporting Table SA27 Budgeted monthly revenue and expenditure (functional classification) | E139: =A139&" Consolidated budgeted monthly revenue and expenditure (functional classification)" -> Supporting Table SA27 Consolidated budgeted monthly revenue and expenditure (functional classification) | F139: =A139&" Budgeted monthly revenue and expenditure (functional classification)" -> Supporting Table SA27 Budgeted monthly revenue and expenditure (functional classification)
A140: Supporting Table SA28 | B140: Supporting Table SA28 Budgeted monthly capital expenditure (municipal vote) | E140: =A140&" Consolidated budgeted monthly capital expenditure (municipal vote)" -> Supporting Table SA28 Consolidated budgeted monthly capital expenditure (municipal vote) | F140: =A140&" Budgeted monthly capital expenditure (municipal vote)" -> Supporting Table SA28 Budgeted monthly capital expenditure (municipal vote)
A141: Supporting Table SA29 | B141: Supporting Table SA29 Budgeted monthly capital expenditure (functional classification) | E141: =A141&" Consolidated budgeted monthly capital expenditure (functional classification)" -> Supporting Table SA29 Consolidated budgeted monthly capital expenditure (functional classification) | F141: =A141&" Budgeted monthly capital expenditure (functional classification)" -> Supporting Table SA29 Budgeted monthly capital expenditure (functional classification)
A142: Supporting Table SA30 | B142: Supporting Table SA30 Budgeted monthly cash flow | E142: =A142&" Consolidated budgeted monthly cash flow" -> Supporting Table SA30 Consolidated budgeted monthly cash flow | F142: =A142&" Budgeted monthly cash flow" -> Supporting Table SA30 Budgeted monthly cash flow
A143: Supporting Table SA31 | B143: NOT REQUIRED - municipality does not have entities | E143: =A143&" Aggregated entity budget" -> Supporting Table SA31 Aggregated entity budget | F143: NOT REQUIRED - municipality does not have entities
A144: Supporting Table SA32 | B144: =A144&" List of external mechanisms" -> Supporting Table SA32 List of external mechanisms
A145: Supporting Table SA33 | B145: =A145&" Contracts having future budgetary implications" -> Supporting Table SA33 Contracts having future budgetary implications
A146: Supporting Table SA34a | B146: =IF(Consolques="YES",E146,F146) -> Supporting Table SA34a Capital expenditure on new assets by asset class | E146: =A146&" Consolidated capital expenditure on new assets by asset class" -> Supporting Table SA34a Consolidated capital expenditure on new assets by asset class | F146: =A146&" Capital expenditure on new assets by asset class" -> Supporting Table SA34a Capital expenditure on new assets by asset class
A147: Supporting Table SA34b | B147: Supporting Table SA34b Capital expenditure on the renewal of existing assets by asset class | E147: =A147&" Consolidated capital expenditure on the renewal of existing assets by asset class" -> Supporting Table SA34b Consolidated capital expenditure on the renewal of existing assets by asset class | F147: =A147&" Capital expenditure on the renewal of existing assets by asset class" -> Supporting Table SA34b Capital expenditure on the renewal of existing assets by asset class
A148: Supporting Table SA34c | B148: Supporting Table SA34c Repairs and maintenance expenditure by asset class | E148: =A148&" Consolidated repairs and maintenance by asset class" -> Supporting Table SA34c Consolidated repairs and maintenance by asset class | F148: =A148&" Repairs and maintenance expenditure by asset class" -> Supporting Table SA34c Repairs and maintenance expenditure by asset class
A149: Supporting Table SA34d | B149: =IF(Consolques="YES",E149,F149) -> Supporting Table SA34d Depreciation by asset class | E149: =A149&" Consolidated Depreciation by asset class" -> Supporting Table SA34d Consolidated Depreciation by asset class | F149: =A149&" Depreciation by asset class" -> Supporting Table SA34d Depreciation by asset class
A150: Supporting Table SA34e | B150: =IF(Consolques="YES",E150,F150) -> Supporting Table SA34e Capital expenditure on the upgrading of existing assets by asset class | E150: =A150&" Consolidated capital expenditure on the upgrading of existing assets by asset class" -> Supporting Table SA34e Consolidated capital expenditure on the upgrading of existing assets by asset class | F150: =A150&" Capital expenditure on the upgrading of existing assets by asset class" -> Supporting Table SA34e Capital expenditure on the upgrading of existing assets by asset class
A151: Supporting Table SA35 | B151: Supporting Table SA35 Future financial implications of the capital budget | E151: =A151&" Consolidated future financial implications of the capital budget" -> Supporting Table SA35 Consolidated future financial implications of the capital budget | F151: =A151& " Future financial implications of the capital budget" -> Supporting Table SA35 Future financial implications of the capital budget
A152: Supporting Table SA36 | B152: Supporting Table SA36 Detailed capital budget | E152: =A152&" Consolidated detailed capital budget" -> Supporting Table SA36 Consolidated detailed capital budget | F152: =A152& " Detailed capital budget" -> Supporting Table SA36 Detailed capital budget
A153: Supporting Table SA37 | B153: Supporting Table SA37 Projects delayed from previous financial year/s | E153: =A153&" Consolidated projects delayed from previous financial year/s" -> Supporting Table SA37 Consolidated projects delayed from previous financial year/s | F153: =A153& " Projects delayed from previous financial year/s" -> Supporting Table SA37 Projects delayed from previous financial year/s
A154: Supporting Table SA38 | B154: =IF(Consolques="YES",E154,F154) -> Supporting Table SA38 Detailed operational projects | E154: =A154&" Consolidated detailed operational projects" -> Supporting Table SA38 Consolidated detailed operational projects | F154: =A154& " Detailed operational projects" -> Supporting Table SA38 Detailed operational projects
A156: Budget Charts | B156: Charts | C156: Cross reference
A157: Chart A1 | B157: =A157&"Revenue by Municipal Vote" -> Chart A1 Revenue by Municipal Vote
A158: Chart A2 | B158: =A158&"Expenditure by Municipal Vote" -> Chart A2 Expenditure by Municipal Vote
A159: Chart A3 | B159: =A159&"Revenue by Standard Classification" -> Chart A3 Revenue by Standard Classification | C159: A2
A160: Chart A4 | B160: =A160&"Expenditure by Standard Classification" -> Chart A4 Expenditure by Standard Classification | C160: A2
A161: Chart A5 | B161: =A161&"Revenue by Major Source (refer 'Minor' source for 'Other Revenue' allocation" -> Chart A5 Revenue by Major Source (refer 'Minor' source for 'Other Revenue' allocation | C161: A3
A162: Chart A6 | B162: =A162&"Revenue by Minor Source (Other)" -> Chart A6 Revenue by Minor Source (Other) | C162: A3
A163: Chart A7 | B163: =A163&"Expenditure by Major Type" -> Chart A7 Expenditure by Major Type | C163: A3
A164: Chart A8 | B164: =A164&"Expenditure by Minor Type (Other)" -> Chart A8 Expenditure by Minor Type (Other) | C164: A3
A165: Chart A9 | B165: =A165&"Capital Expenditure by Municipal Vote/Appropriation (Major)" -> Chart A9 Capital Expenditure by Municipal Vote/Appropriation (Major) | C165: A5
A166: Chart A10 | B166: =A166&"Capital Expenditure by Municipal Vote/Appropriation (Minor)" -> Chart A10 Capital Expenditure by Municipal Vote/Appropriation (Minor) | C166: A5
A167: Chart A11 | B167: =A166&"Capital Expenditure by Standard Classification" -> Chart A10 Capital Expenditure by Standard Classification | C167: A5
A168: Chart A12 | B168: =A168&"Capital expenditure performance trend" -> Chart A12 Capital expenditure performance trend | C168: A5
A169: Chart A13 | B169: =A169&"Capital funding by Source" -> Chart A13 Capital funding by Source | C169: A5
A170: Chart A14 | B170: =A170&"Cash flow trend" -> Chart A14 Cash flow trend | C170: A7
A171: Chart A15 | B171: =A171&"IDP Strategic Objective - Revenue" -> Chart A15 IDP Strategic Objective - Revenue | C171: Table A4
A172: Chart A16 | B172: =A172&"IDP Strategic Objective - Expenditure" -> Chart A16 IDP Strategic Objective - Expenditure | C172: Table A5
A173: Chart A17 | B173: =A173&"IDP Strategic Objective - Capital Expenditure" -> Chart A17 IDP Strategic Objective - Capital Expenditure | C173: Table A6
A174: Chart A18 | B174: =A174&"Debt (borrowing to Total Revenue)" -> Chart A18 Debt (borrowing to Total Revenue) | C174: Table A8
A175: Chart A19 | B175: =A175&"Debtors' trend analysis" -> Chart A19 Debtors' trend analysis | C175: Table A8
A176: Chart A20 | B176: =A176&"Distribution losses" -> Chart A20 Distribution losses | C176: Table A8
A177: Chart A21 | B177: =A177&"Borrowed funding of capital expenditure" -> Chart A21 Borrowed funding of capital expenditure | C177: Table A8
A178: Chart A22 | B178: =A178&"Expenditure analysis (% of Revenue)" -> Chart A22 Expenditure analysis (% of Revenue) | C178: Table A8
A179: Chart A23 | B179: =A179&"Increases in service charges" -> Chart A23 Increases in service charges | C179: Table A10

Sheet Lookup and lists (hidden)
A1: Description | B1: 2007 | C1: 2008 | D1: 2009 | E1: 2010 | F1: 2011 | G1: 2012 | H1: 2013 | I1: 2014 | J1: 2015 | K1: 2016 | L1: 2017 | M1: 2018 | N1: 2019 | O1: 2020 | Q1: Lists | Y1: Grants: | Z1: National - opex | AA1: Provincial - opex | AB1: National - capex | AC1: Provincial - capex
A2: ='Template names'!C2 -> Prior year -1 | B2: 2005/06 | C2: 2006/07 | D2: 2007/08 | E2: =E1-2&"/"&RIGHT(E1,2)-1 -> 2008/9 | F2: 2009/10 | G2: 2010/11 | H2: 2011/12 | I2: 2012/13 | J2: 2013/14 | K2: 2014/15 | L2: 2015/16 | M2: 2016/17 | N2: 2017/18 | O2: 2018/19 | Q2: Yes | R2: <1 | S2: <4 | T2: Market | U2: Land & impr. | V2: Yes | W2: Uniform | X2: Yrs | Z2: Local Government Equitable Share | AA2: Health subsidy | AB2: Municipal Infrastructure Grant (MIG) | AC2: Agriculture
A3: ='Template names'!C3 -> Prior year -2 | B3: 2004/05 | C3: 2005/06 | D3: 2006/07 | E3: =E1-3&"/"&RIGHT(E1,2)-2 -> 2007/8 | F3: 2008/9 | G3: 2009/10 | H3: 2010/11 | I3: 2011/12 | J3: 2012/13 | K3: 2013/14 | L3: 2014/15 | M3: 2015/16 | N3: 2016/17 | O3: 2017/18 | Q3: No | R3: 1 | S3: 4 | T3: Dep.Replace | U3: Land only | V3: No | W3: Variable | X3: Mths | Z3: RSC Levy Replacement | AA3: Ambulance subsidy | AB3: Public Transport and Systems | AC3: Education
A4: ='Template names'!C4 -> Prior year -3 | B4: 2003/04 | C4: 2004/05 | D4: 2005/06 | E4: =E1-4&"/"&RIGHT(E1,2)-3 -> 2006/7 | F4: 2007/8 | G4: 2008/9 | H4: 2009/10 | I4: 2010/11 | J4: 2011/12 | K4: 2012/13 | L4: 2013/14 | M4: 2014/15 | N4: 2015/16 | O4: 2016/17 | R4: 2 | S4: 5 | T4: Other | U4: Other | Z4: Finance Management | AA4: Housing | AB4: Rural Transport Services and Infrastructure | AC4: Health
A5: ='Template names'!C5 -> Year in which budget is being prepared | B5: Current Year 2006/07 | C5: Current Year 2007/08 | D5: Current Year 2008/09 | E5: ="Current Year "& E1-1&"/"&RIGHT(E1,2) -> Current Year 2009/10 | F5: Current Year 2010/11 | G5: Current Year 2011/12 | H5: Current Year 2012/13 | I5: Current Year 2013/14 | J5: Current Year 2014/15 | K5: Current Year 2015/16 | L5: Current Year 2016/17 | M5: Current Year 2017/18 | N5: Current Year 2018/19 | O5: Current Year 2019/20 | R5: 3 | S5: 6 | Z5: Municipal Systems Improvement | AA5: Sport and Recreation | AB5: Regional Bulk Infrastructure | AC5: Housing and Local Government
A6: ='Template names'!C6 -> Year in which budget is being prepared | B6: 2006/07 | C6: 2007/08 | D6: 2008/09 | E6: =E1-1&"/"&RIGHT(E1,2) -> 2009/10 | F6: 2010/11 | G6: 2011/12 | H6: 2012/13 | I6: 2013/14 | J6: 2014/15 | K6: 2015/16 | L6: 2016/17 | M6: 2017/18 | N6: 2018/19 | O6: 2019/20 | R6: 4 | S6: 6-10 | Z6: Water Services Operating Subsidy | AB6: Rural Households Infrastructure | AC6: Other Departments
A7: ='Template names'!C7 -> MTREF name | B7: 2007/08 Medium Term Revenue & Expenditure Framework | C7: 2008/09 Medium Term Revenue & Expenditure Framework | D7: 2009/10 Medium Term Revenue & Expenditure Framework | E7: =E1&"/"&RIGHT(E1,2)+1&" Medium Term Revenue & Expenditure Framework" -> 2010/11 Medium Term Revenue & Expenditure Framework | F7: 2011/12 Medium Term Revenue & Expenditure Framework | G7: 2012/13 Medium Term Revenue & Expenditure Framework | H7: 2013/14 Medium Term Revenue & Expenditure Framework | I7: 2014/15 Medium Term Revenue & Expenditure Framework | J7: 2015/16 Medium Term Revenue & Expenditure Framework | K7: 2016/17 Medium Term Revenue & Expenditure Framework | L7: 2017/18 Medium Term Revenue & Expenditure Framework | M7: 2018/19 Medium Term Revenue & Expenditure Framework | N7: 2019/20 Medium Term Revenue & Expenditure Framework | O7: 2020/21 Medium Term Revenue & Expenditure Framework | R7: 5 | S7: >10 | Z7: Energy Efficiency and Demand Management | AB7: Neighbourhood Development Partnership | AC7: Public Works, Roads, Transport
A8: ='Template names'!C15 -> 1st year of MTREF | B8: Budget Year 2007/08 | C8: Budget Year 2008/09 | D8: Budget Year 2009/10 | E8: ="Budget Year "&E1&"/"&RIGHT(E1,2)+1 -> Budget Year 2010/11 | F8: Budget Year 2011/12 | G8: Budget Year 2012/13 | H8: Budget Year 2013/14 | I8: Budget Year 2014/15 | J8: Budget Year 2015/16 | K8: Budget Year 2016/17 | L8: Budget Year 2017/18 | M8: Budget Year 2018/19 | N8: Budget Year 2019/20 | O8: Budget Year 2020/21 | R8: >5 | Z8: Integrated National Electrification Programme | AB8: 2010 FIFA World Cup Stadiums Development | AC8: Sport and Recreation
A9: ='Template names'!C16 -> 2nd year of MTREF | B9: Budget Year +1 2008/09 | C9: Budget Year +1 2009/10 | D9: Budget Year +1 2010/11 | E9: ="Budget Year +1 "&E1+1&"/"&RIGHT(E1,2)+2 -> Budget Year +1 2011/12 | F9: Budget Year +1 2012/13 | G9: Budget Year +1 2013/14 | H9: Budget Year +1 2014/15 | I9: Budget Year +1 2015/16 | J9: Budget Year +1 2016/17 | K9: Budget Year +1 2017/18 | L9: Budget Year +1 2018/19 | M9: Budget Year +1 2019/20 | N9: Budget Year +1 2020/21 | O9: Budget Year +1 2021/22 | Z9: Municipal Drought Relief
A10: ='Template names'!C17 -> 3rd year of MTREF | B10: Budget Year +2 2009/10 | C10: Budget Year +2 2010/11 | D10: Budget Year +2 2011/12 | E10: ="Budget Year +2 "&E1+2&"/"&RIGHT(E1,2)+3 -> Budget Year +2 2012/13 | F10: Budget Year +2 2013/14 | G10: Budget Year +2 2014/15 | H10: Budget Year +2 2015/16 | I10: Budget Year +2 2016/17 | J10: Budget Year +2 2017/18 | K10: Budget Year +2 2018/19 | L10: Budget Year +2 2019/20 | M10: Budget Year +2 2020/21 | N10: Budget Year +2 2021/22 | O10: Budget Year +2 2022/23 | Z10: 2010 FIFA World Cup Operating
A11: ='Template names'!C18 -> 1st yr of long term forecast | B11: Forecast 2010/11 | C11: Forecast 2011/12 | D11: Forecast 2012/13 | E11: ="Forecast "&E1+3&"/"&RIGHT(E1,2)+4 -> Forecast 2013/14 | F11: Forecast 2014/15 | G11: Forecast 2015/16 | H11: Forecast 2016/17 | I11: Forecast 2017/18 | J11: Forecast 2018/19 | K11: Forecast 2019/20 | L11: Forecast 2020/21 | M11: Forecast 2021/22 | N11: Forecast 2022/23 | O11: Forecast 2023/24 | Z11: Electricity Demand Side Management
A12: ='Template names'!C19 -> Next yr of long term forecast | B12: Forecast 2011/12 | C12: Forecast 2012/13 | D12: Forecast 2013/14 | E12: ="Forecast "&E1+4&"/"&RIGHT(E1,2)+5 -> Forecast 2014/15 | F12: Forecast 2015/16 | G12: Forecast 2016/17 | H12: Forecast 2017/18 | I12: Forecast 2018/19 | J12: Forecast 2019/20 | K12: Forecast 2020/21 | L12: Forecast 2021/22 | M12: Forecast 2022/23 | N12: Forecast 2023/24 | O12: Forecast 2024/25 | Z12: EPWP Incentive
A13: ='Template names'!C20 -> Next yr of long term forecast | B13: Forecast 2012/13 | C13: Forecast 2013/14 | D13: Forecast 2014/15 | E13: ="Forecast "&E1+5&"/"&RIGHT(E1,2)+6 -> Forecast 2015/16 | F13: Forecast 2016/17 | G13: Forecast 2017/18 | H13: Forecast 2018/19 | I13: Forecast 2019/20 | J13: Forecast 2020/21 | K13: Forecast 2021/22 | L13: Forecast 2022/23 | M13: Forecast 2023/24 | N13: Forecast 2024/25 | O13: Forecast 2025/26
A14: ='Template names'!C21 -> Next yr of long term forecast | B14: Forecast 2013/14 | C14: Forecast 2014/15 | D14: Forecast 2015/16 | E14: ="Forecast "&E1+6&"/"&RIGHT(E1,2)+7 -> Forecast 2016/17 | F14: Forecast 2017/18 | G14: Forecast 2018/19 | H14: Forecast 2019/20 | I14: Forecast 2020/21 | J14: Forecast 2021/22 | K14: Forecast 2022/23 | L14: Forecast 2023/24 | M14: Forecast 2024/25 | N14: Forecast 2025/26 | O14: Forecast 2026/27 | Z14: Asset Class | AA14: Asset sub-class old | AB14: Asset sub-class | AC14: IUDF | AD14: MTSF
A15: ='Template names'!C22 -> Next yr of long term forecast | B15: Forecast 2014/15 | C15: Forecast 2015/16 | D15: Forecast 2016/17 | E15: ="Forecast "&E1+7&"/"&RIGHT(E1,2)+8 -> Forecast 2017/18 | F15: Forecast 2018/19 | G15: Forecast 2019/20 | H15: Forecast 2020/21 | I15: Forecast 2021/22 | J15: Forecast 2022/23 | K15: Forecast 2023/24 | L15: Forecast 2024/25 | M15: Forecast 2025/26 | N15: Forecast 2026/27 | O15: Forecast 2027/28
A16: ='Template names'!C23 -> Next yr of long term forecast | B16: Forecast 2015/16 | C16: Forecast 2016/17 | D16: Forecast 2017/18 | E16: ="Forecast "&E1+8&"/"&RIGHT(E1,2)+9 -> Forecast 2018/19 | F16: Forecast 2019/20 | G16: Forecast 2020/21 | H16: Forecast 2021/22 | I16: Forecast 2022/23 | J16: Forecast 2023/24 | K16: Forecast 2024/25 | L16: Forecast 2025/26 | M16: Forecast 2026/27 | N16: Forecast 2027/28 | O16: Forecast 2028/29 | Z16: Roads Infrastructure | AA16: Roads, Pavements & Bridges | AB16: Roads | AC16: Spatial integration | AD16: Quality basic education
A17: ='Template names'!C24 -> Next yr of long term forecast | B17: Forecast 2016/17 | C17: Forecast 2017/18 | D17: Forecast 2018/19 | E17: ="Forecast "&E1+9&"/"&RIGHT(E1,2)+10 -> Forecast 2019/20 | F17: Forecast 2020/21 | G17: Forecast 2021/22 | H17: Forecast 2022/23 | I17: Forecast 2023/24 | J17: Forecast 2024/25 | K17: Forecast 2025/26 | L17: Forecast 2026/27 | M17: Forecast 2027/28 | N17: Forecast 2028/29 | O17: Forecast 2029/30 | Z17: Storm water Infrastructure | AA17: Storm water | AB17: Road Structures | AC17: Inclusion and access | AD17: A long and healthy life for all South Africans
A18: ='Template names'!C25 -> Next yr of long term forecast | B18: Forecast 2017/18 | C18: Forecast 2018/19 | D18: Forecast 2019/20 | E18: ="Forecast "&E1+10&"/"&RIGHT(E1,2)+11 -> Forecast 2020/21 | F18: Forecast 2021/22 | G18: Forecast 2022/23 | H18: Forecast 2023/24 | I18: Forecast 2024/25 | J18: Forecast 2025/26 | K18: Forecast 2026/27 | L18: Forecast 2027/28 | M18: Forecast 2028/29 | N18: Forecast 2029/30 | O18: Forecast 2030/31 | Z18: Electrical Infrastructure | AA18: Generation | AB18: Road Furniture | AC18: Growth | AD18: All people in South Africa are and feel safe
A19: ='Template names'!C26 -> Next yr of long term forecast | B19: Forecast 2018/19 | C19: Forecast 2019/20 | D19: Forecast 2020/21 | E19: ="Forecast "&E1+11&"/"&RIGHT(E1,2)+12 -> Forecast 2021/22 | F19: Forecast 2022/23 | G19: Forecast 2023/24 | H19: Forecast 2024/25 | I19: Forecast 2025/26 | J19: Forecast 2026/27 | K19: Forecast 2027/28 | L19: Forecast 2028/29 | M19: Forecast 2029/30 | N19: Forecast 2030/31 | O19: Forecast 2031/32 | Z19: Water Supply Infrastructure | AA19: Transmission & Reticulation | AB19: Capital Spares | AC19: Governance | AD19: Decent employment through inclusive growth
A20: ='Template names'!C27 -> Next yr of long term forecast | B20: Forecast 2019/20 | C20: Forecast 2020/21 | D20: Forecast 2021/22 | E20: ="Forecast "&E1+12&"/"&RIGHT(E1,2)+13 -> Forecast 2022/23 | F20: Forecast 2023/24 | G20: Forecast 2024/25 | H20: Forecast 2025/26 | I20: Forecast 2026/27 | J20: Forecast 2027/28 | K20: Forecast 2028/29 | L20: Forecast 2029/30 | M20: Forecast 2030/31 | N20: Forecast 2031/32 | O20: Forecast 2032/33 | Z20: Sanitation Infrastructure | AA20: Street Lighting | AB20: Drainage Collection | AD20: A skilled and capable workforce to support an inclusive growth path
A21: ='Template names'!C28 -> Next yr of long term forecast | B21: Forecast 2020/21 | C21: Forecast 2021/22 | D21: Forecast 2022/23 | E21: ="Forecast "&E1+13&"/"&RIGHT(E1,2)+14 -> Forecast 2023/24 | F21: Forecast 2024/25 | G21: Forecast 2025/26 | H21: Forecast 2026/27 | I21: Forecast 2027/28 | J21: Forecast 2028/29 | K21: Forecast 2029/30 | L21: Forecast 2030/31 | M21: Forecast 2031/32 | N21: Forecast 2032/33 | O21: Forecast 2033/34 | Z21: Solid Waste Infrastructure | AA21: Dams & Reservoirs | AB21: Storm water Conveyance | AD21: An efficient, competitive and responsive economic infrastructure network
A22: ='Template names'!C29 -> Next yr of long term forecast | B22: Forecast 2021/22 | C22: Forecast 2022/23 | D22: Forecast 2023/24 | E22: ="Forecast "&E1+14&"/"&RIGHT(E1,2)+15 -> Forecast 2024/25 | F22: Forecast 2025/26 | G22: Forecast 2026/27 | H22: Forecast 2027/28 | I22: Forecast 2028/29 | J22: Forecast 2029/30 | K22: Forecast 2030/31 | L22: Forecast 2031/32 | M22: Forecast 2032/33 | N22: Forecast 2033/34 | O22: Forecast 2034/35 | Z22: Rail Infrastructure | AA22: Water purification | AB22: Attenuation | AD22: Vibrant, equitable, sustainable rural communities contributing towards food security for all
A23: Adjustments Budget | B23: Annual target 2007/08 | C23: Annual target 2008/09 | D23: Annual target 2009/10 | E23: ="Annual target " & E1&"/"&RIGHT(E1,2)+1 -> Annual target 2010/11 | F23: Annual target 2011/12 | G23: Annual target 2012/13 | H23: Annual target 2013/14 | I23: Annual target 2014/15 | J23: Annual target 2015/16 | K23: Annual target 2016/17 | L23: Annual target 2017/18 | M23: Annual target 2018/19 | N23: Annual target 2019/20 | O23: Annual target 2020/21 | Z23: Coastal Infrastructure | AA23: Reticulation | AB23: Power Plants | AD23: Sustainable human settlements and improved quality of household life
A24: =A23 -> Adjustments Budget | B24: Revised target 2007/08 | C24: Revised target 2008/09 | D24: Revised target 2009/10 | E24: ="Revised target "& E1&"/"&RIGHT(E1,2)+1 -> Revised target 2010/11 | F24: Revised target 2011/12 | G24: Revised target 2012/13 | H24: Revised target 2013/14 | I24: Revised target 2014/15 | J24: Revised target 2015/16 | K24: Revised target 2016/17 | L24: Revised target 2017/18 | M24: Revised target 2018/19 | N24: Revised target 2019/20 | O24: Revised target 2020/21 | Z24: Information and Communication Infrastructure | AA24: Sewerage purification | AB24: HV Substations | AD24: Responsive, accountable, effective and efficient local government
A25: NOTE: This sheet should not be directly amended - select headings from sheet 'S' | Z25: Community Facilities | AA25: Waste Management | AB25: HV Switching Station | AD25: Protect and enhance our environmental assets and natural resources
Z26: Sport and Recreation Facilities | AA26: Transportation | AB26: HV Transmission Conductors | AD26: Create a better South Africa and contribute to a better Africa and a better world
A27: Name link | B27: 129 | Z27: Heritage assets | AA27: Gas | AB27: MV Substations | AD27: An efficient, effective and development-oriented public service
A28: Name of Muni | B28: =INDEX(B29:B307,B27,1) -> LIM331 Greater Giyani | Z28: Revenue Generating | AA28: Parks & gardens | AB28: MV Switching Stations | AD28: A comprehensive, responsive and sustainable social protection system
B29: Choose name from list | C29: Set name on 'Instructions' sheet | Z29: Non-revenue Generating | AA29: Sportsfields & stadia | AB29: MV Networks | AD29: A diverse, socially cohesive society with a common national identity
B30: BUF Buffalo City | C30: EC EASTERN CAPE | Z30: Operational Buildings | AA30: Swimming pools | AB30: LV Networks
B31: NMA Nelson Mandela Bay | C31: EC EASTERN CAPE | Z31: Housing | AA31: Community halls | AB31: Capital Spares
B32: EC101 Dr Beyers Naude | C32: EC EASTERN CAPE | Z32: Biological or Cultivated Assets | AA32: Libraries | AB32: Dams and Weirs
B33: EC102 Blue Crane Route | C33: EC EASTERN CAPE | Z33: Servitudes | AA33: Recreational facilities | AB33: Boreholes
B34: EC104 Makana | C34: EC EASTERN CAPE | Z34: Licences and Rights | AA34: Fire, safety & emergency | AB34: Reservoirs
B35: EC105 Ndlambe | C35: EC EASTERN CAPE | Z35: Computer Equipment | AA35: Security and policing | AB35: Pump Stations
B36: EC106 Sundays River Valley | C36: EC EASTERN CAPE | Z36: Furniture and Office Equipment | AA36: Buses | AB36: Water Treatment Works
B37: EC108 Kouga | C37: EC EASTERN CAPE | Z37: Machinery and Equipment | AA37: Clinics | AB37: Bulk Mains
B38: EC109 Kou-Kamma | C38: EC EASTERN CAPE | Z38: Transport Assets | AA38: Museums & Art Galleries | AB38: Distribution
B39: DC10 Sarah Baartman | C39: EC EASTERN CAPE | Z39: Land | AA39: Cemeteries | AB39: Distribution Points
B40: EC121 Mbhashe | C40: EC EASTERN CAPE | Z40: Zoo's, Marine and Non-biological Animals | AA40: Social rental housing | AB40: PRV Stations
B41: EC122 Mnquma | C41: EC EASTERN CAPE | AA41: Buildings | AB41: Capital Spares
B42: EC123 Great Kei | C42: EC EASTERN CAPE | AA42: Housing development | AB42: Pump Station
B43: EC124 Amahlathi | C43: EC EASTERN CAPE | AA43: General vehicles | AB43: Reticulation
B44: EC126 Ngqushwa | C44: EC EASTERN CAPE | AA44: Specialised vehicles - Refuse | AB44: Waste Water Treatment Works
B45: EC129 Raymond Mhlaba | C45: EC EASTERN CAPE | AA45: Specialised vehicles - Fire | AB45: Outfall Sewers
B46: DC12 Amathole | C46: EC EASTERN CAPE | AA46: Specialised vehicles - Conservancy | AB46: Toilet Facilities
B47: EC131 Inxuba Yethemba | C47: EC EASTERN CAPE | AA47: Specialised vehicles - Ambulances | AB47: Capital Spares
B48: EC135 Intsika Yethu | C48: EC EASTERN CAPE | AA48: Plant & equipment | AB48: Landfill Sites
B49: EC136 Emalahleni (Ec) | C49: EC EASTERN CAPE | AA49: Computers - hardware/equipment | AB49: Waste Transfer Stations
B50: EC137 Engcobo | C50: EC EASTERN CAPE | AA50: Furniture and other office equipment | AB50: Waste Processing Facilities
B51: EC138 Sakhisizwe | C51: EC EASTERN CAPE | AA51: Abattoirs | AB51: Waste Drop-off Points
B52: EC139 Enoch Mgijima | C52: EC EASTERN CAPE | AA52: Markets | AB52: Waste Separation Facilities
B53: DC13 Chris Hani | C53: EC EASTERN CAPE | AA53: Civic Land and Buildings | AB53: Electricity Generation Facilities
B54: EC141 Elundini | C54: EC EASTERN CAPE | AA54: Other Buildings | AB54: Capital Spares
B55: EC142 Senqu | C55: EC EASTERN CAPE | AA55: Other Land | AB55: Rail Lines
B56: EC145 Walter Sisulu | C56: EC EASTERN CAPE | AA56: Surplus Assets - (Investment or Inventory) | AB56: Rail Structures
B57: DC14 Joe Gqabi | C57: EC EASTERN CAPE | AA57: Computers - software & programming | AB57: Rail Furniture
B58: EC153 Ngquza Hills | C58: EC EASTERN CAPE | AA58: Other | AB58: Drainage Collection
B59: EC154 Port St Johns | C59: EC EASTERN CAPE | AB59: Storm water Conveyance
B60: EC155 Nyandeni | C60: EC EASTERN CAPE | Z60: SA16 - Investments | AB60: Attenuation
B61: EC156 Mhlontlo | C61: EC EASTERN CAPE | Z61: Security | AA61: Interest rate | AB61: MV Substations
B62: EC157 King Sabata Dalindyebo | C62: EC EASTERN CAPE | Z62: Yes | AA62: Fixed | AB62: LV Networks
B63: DC15 O .R. Tambo | C63: EC EASTERN CAPE | Z63: No | AA63: Variable | AB63: Capital Spares
B64: EC441 Matatiele | C64: EC EASTERN CAPE | AB64: Sand Pumps
B65: EC442 Umzimvubu | C65: EC EASTERN CAPE | AB65: Piers
B66: EC443 Mbizana | C66: EC EASTERN CAPE | Z66: SA36, SA37 - Capital projects | AB66: Revetments
B67: EC444 Ntabankulu | C67: EC EASTERN CAPE | Z67: Yes | AB67: Promenades
B68: DC44 Alfred Nzo | C68: EC EASTERN CAPE | Z68: No | AB68: Capital Spares
B69: MAN Mangaung | C69: FS FREE STATE | AB69: Data Centres
B70: FS161 Letsemeng | C70: FS FREE STATE | AB70: Core Layers
B71: FS162 Kopanong | C71: FS FREE STATE | AB71: Distribution Layers
B72: FS163 Mohokare | C72: FS FREE STATE | AB72: Capital Spares
B73: DC16 Xhariep | C73: FS FREE STATE | AB73: Halls
B74: FS181 Masilonyana | C74: FS FREE STATE | AB74: Centres
B75: FS182 Tokologo | C75: FS FREE STATE | AB75: Crèches
B76: FS183 Tswelopele | C76: FS FREE STATE | AB76: Clinics/Care Centres
B77: FS184 Matjhabeng | C77: FS FREE STATE | AB77: Fire/Ambulance Stations
B78: FS185 Nala | C78: FS FREE STATE | AB78: Testing Stations
B79: DC18 Lejweleputswa | C79: FS FREE STATE | AB79: Museums
B80: FS191 Setsoto | C80: FS FREE STATE | AB80: Galleries
B81: FS192 Dihlabeng | C81: FS FREE STATE | AB81: Theatres
B82: FS193 Nketoana | C82: FS FREE STATE | AB82: Libraries
B83: FS194 Maluti-a-Phofung | C83: FS FREE STATE | AB83: Cemeteries/Crematoria
B84: FS195 Phumelela | C84: FS FREE STATE | AB84: Police
B85: FS196 Mantsopa | C85: FS FREE STATE | AB85: Purls
B86: DC19 Thabo Mofutsanyana | C86: FS FREE STATE | AB86: Public Open Space
B87: FS201 Moqhaka | C87: FS FREE STATE | AB87: Nature Reserves
B88: FS203 Ngwathe | C88: FS FREE STATE | AB88: Public Ablution Facilities
B89: FS204 Metsimaholo | C89: FS FREE STATE | AB89: Markets
B90: FS205 Mafube | C90: FS FREE STATE | AB90: Stalls
B91: DC20 Fezile Dabi | C91: FS FREE STATE | AB91: Abattoirs
B92: EKU City of Ekurhuleni | C92: GT GAUTENG | AB92: Airports
B93: JHB City Of Johannesburg | C93: GT GAUTENG | AB93: Taxi Ranks/Bus Terminals
B94: TSH City Of Tshwane | C94: GT GAUTENG | AB94: Capital Spares
B95: GT421 Emfuleni | C95: GT GAUTENG | AB95: Indoor Facilities
B96: GT422 Midvaal | C96: GT GAUTENG | AB96: Outdoor Facilities
B97: GT423 Lesedi | C97: GT GAUTENG | AB97: Capital Spares
B98: DC42 Sedibeng | C98: GT GAUTENG | AB98: Monuments
B99: GT481 Mogale City | C99: GT GAUTENG | AB99: Historic Buildings
B100: GT484 Merafong City | C100: GT GAUTENG | AB100: Works of Art
B101: GT485 Rand West City | C101: GT GAUTENG | AB101: Conservation Areas
B102: DC48 West Rand | C102: GT GAUTENG | AB102: Other Heritage
B103: ETH eThekwini | C103: KZN KWAZULU-NATAL | AB103: Improved Property
B104: KZN212 Umdoni | C104: KZN KWAZULU-NATAL | AB104: Unimproved Property
B105: KZN213 Umzumbe | C105: KZN KWAZULU-NATAL | AB105: Municipal Offices
B106: KZN214 uMuziwabantu | C106: KZN KWAZULU-NATAL | AB106: Pay/Enquiry Points
B107: KZN216 Ray Nkonyeni | C107: KZN KWAZULU-NATAL | AB107: Building Plan Offices
B108: DC21 Ugu | C108: KZN KWAZULU-NATAL | AB108: Workshops
B109: KZN221 uMshwathi | C109: KZN KWAZULU-NATAL | AB109: Yards
B110: KZN222 uMngeni | C110: KZN KWAZULU-NATAL | AB110: Stores
B111: KZN223 Mpofana | C111: KZN KWAZULU-NATAL | AB111: Laboratories
B112: KZN224 Impendle | C112: KZN KWAZULU-NATAL | AB112: Training Centres
B113: KZN225 Msunduzi | C113: KZN KWAZULU-NATAL | AB113: Manufacturing Plant
B114: KZN226 Mkhambathini | C114: KZN KWAZULU-NATAL | AB114: Depots
B115: KZN227 Richmond | C115: KZN KWAZULU-NATAL | AB115: Capital Spares
B116: DC22 uMgungundlovu | C116: KZN KWAZULU-NATAL | AB116: Staff Housing
B117: KZN235 Okhahlamba | C117: KZN KWAZULU-NATAL | AB117: Social Housing
B118: KZN237 Inkosi Langalibalele | C118: KZN KWAZULU-NATAL | AB118: Capital Spares
B119: KZN238 Alfred Duma | C119: KZN KWAZULU-NATAL | AB119: Water Rights
B120: DC23 Uthukela | C120: KZN KWAZULU-NATAL | AB120: Effluent Licenses
B121: KZN241 Endumeni | C121: KZN KWAZULU-NATAL | AB121: Solid Waste Licenses
B122: KZN242 Nquthu | C122: KZN KWAZULU-NATAL | AB122: Computer Software and Applications
B123: KZN244 Msinga | C123: KZN KWAZULU-NATAL | AB123: Load Settlement Software Applications
B124: KZN245 Umvoti | C124: KZN KWAZULU-NATAL | AB124: Unspecified
B125: DC24 Umzinyathi | C125: KZN KWAZULU-NATAL
B126: KZN252 Newcastle | C126: KZN KWAZULU-NATAL
B127: KZN253 Emadlangeni | C127: KZN KWAZULU-NATAL
B128: KZN254 Dannhauser | C128: KZN KWAZULU-NATAL
B129: DC25 Amajuba | C129: KZN KWAZULU-NATAL
B130: KZN261 eDumbe | C130: KZN KWAZULU-NATAL
B131: KZN262 uPhongolo | C131: KZN KWAZULU-NATAL
B132: KZN263 Abaqulusi | C132: KZN KWAZULU-NATAL
B133: KZN265 Nongoma | C133: KZN KWAZULU-NATAL
B134: KZN266 Ulundi | C134: KZN KWAZULU-NATAL
B135: DC26 Zululand | C135: KZN KWAZULU-NATAL
B136: KZN271 Umhlabuyalingana | C136: KZN KWAZULU-NATAL
B137: KZN272 Jozini | C137: KZN KWAZULU-NATAL
B138: KZN275 Mtubatuba | C138: KZN KWAZULU-NATAL
B139: KZN276 Hlabisa Big Five | C139: KZN KWAZULU-NATAL
B140: DC27 Umkhanyakude | C140: KZN KWAZULU-NATAL
B141: KZN281 Mfolozi | C141: KZN KWAZULU-NATAL
B142: KZN282 uMhlathuze | C142: KZN KWAZULU-NATAL
B143: KZN284 uMlalazi | C143: KZN KWAZULU-NATAL
B144: KZN285 Mthonjaneni | C144: KZN KWAZULU-NATAL
B145: KZN286 Nkandla | C145: KZN KWAZULU-NATAL
B146: DC28 King Cetshwayo | C146: KZN KWAZULU-NATAL
B147: KZN291 Mandeni | C147: KZN KWAZULU-NATAL
B148: KZN292 KwaDukuza | C148: KZN KWAZULU-NATAL
B149: KZN293 Ndwedwe | C149: KZN KWAZULU-NATAL
B150: KZN294 Maphumulo | C150: KZN KWAZULU-NATAL
B151: DC29 iLembe | C151: KZN KWAZULU-NATAL
B152: KZN433 Greater Kokstad | C152: KZN KWAZULU-NATAL
B153: KZN434 Ubuhlebezwe | C153: KZN KWAZULU-NATAL
B154: KZN435 Umzimkhulu | C154: KZN KWAZULU-NATAL
B155: KZN436 Dr Nkosazana Dlamini Zuma | C155: KZN KWAZULU-NATAL
B156: DC43 Harry Gwala | C156: KZN KWAZULU-NATAL
B157: LIM331 Greater Giyani | C157: LIM LIMPOPO
B158: LIM332 Greater Letaba | C158: LIM LIMPOPO
B159: LIM333 Greater Tzaneen | C159: LIM LIMPOPO
B160: LIM334 Ba-Phalaborwa | C160: LIM LIMPOPO
B161: LIM335 Maruleng | C161: LIM LIMPOPO
B162: DC33 Mopani | C162: LIM LIMPOPO
B163: LIM341 Musina | C163: LIM LIMPOPO
B164: LIM343 Thulamela | C164: LIM LIMPOPO
B165: LIM344 Makhado | C165: LIM LIMPOPO
B166: LIM345 Collins Chabane | C166: LIM LIMPOPO
B167: DC34 Vhembe | C167: LIM LIMPOPO
B168: LIM351 Blouberg | C168: LIM LIMPOPO
B169: LIM353 Molemole | C169: LIM LIMPOPO
B170: LIM354 Polokwane | C170: LIM LIMPOPO
B171: LIM355 Lepelle-Nkumpi | C171: LIM LIMPOPO
B172: DC35 Capricorn | C172: LIM LIMPOPO
B173: LIM361 Thabazimbi | C173: LIM LIMPOPO
B174: LIM362 Lephalale | C174: LIM LIMPOPO
B175: LIM366 Bela Bela | C175: LIM LIMPOPO
B176: LIM367 Mogalakwena | C176: LIM LIMPOPO
B177: LIM368 Modimolle-Mookgopong | C177: LIM LIMPOPO
B178: DC36 Waterberg | C178: LIM LIMPOPO
B179: LIM471 Ephraim Mogale | C179: LIM LIMPOPO
B180: LIM472 Elias Motsoaledi | C180: LIM LIMPOPO
B181: LIM473 Makhuduthamaga | C181: LIM LIMPOPO
B182: LIM476 Tubatse Fetakgomo | C182: LIM LIMPOPO
B183: DC47 Sekhukhune | C183: LIM LIMPOPO
B184: MP301 Albert Luthuli | C184: MP MPUMALANGA
B185: MP302 Msukaligwa | C185: MP MPUMALANGA
B186: MP303 Mkhondo | C186: MP MPUMALANGA
B187: MP304 Pixley Ka Seme (MP) | C187: MP MPUMALANGA
B188: MP305 Lekwa | C188: MP MPUMALANGA
B189: MP306 Dipaleseng | C189: MP MPUMALANGA
B190: MP307 Govan Mbeki | C190: MP MPUMALANGA
B191: DC30 Gert Sibande | C191: MP MPUMALANGA
B192: MP311 Victor Khanye | C192: MP MPUMALANGA
B193: MP312 Emalahleni (Mp) | C193: MP MPUMALANGA
B194: MP313 Steve Tshwete | C194: MP MPUMALANGA
B195: MP314 Emakhazeni | C195: MP MPUMALANGA
B196: MP315 Thembisile Hani | C196: MP MPUMALANGA
B197: MP316 Dr J.S. Moroka | C197: MP MPUMALANGA
B198: DC31 Nkangala | C198: MP MPUMALANGA
B199: MP321 Thaba Chweu | C199: MP MPUMALANGA
B200: MP324 Nkomazi | C200: MP MPUMALANGA
... 87 more rows

Sheet Org structure
A1: Organisational Structure Votes | C1: Organisational Structure Sub-Votes | E1: Display Sub-Votes
A2: =B2&" - "&C2 -> Vote 1 - Energy sources | B2: Vote 1 | C2: Energy sources
A3: =B13&" - "& C13 -> Vote 2 - Community and social services | B3: 1.1 | C3: 1.1 - Electricity | D3: =CONCATENATE(B3, " - ", C3) -> 1.1 - 1.1 - Electricity | E3: 1.1 - Electricity
A4: =B24&" - "&C24 -> Vote 3 - Finance and administration | B4: 1.2 | C4: 1.2 - Street Lighting and Signal Systems | D4: 1.2 - 1.2 - Street Lighting and Signal Systems | E4: 1.2 - Street Lighting and Signal Systems
A5: =B35&" - "&C35 -> Vote 4 - Planning and development | B5: 1.3 | C5: [Name of sub-vote] | D5: 1.3 - [Name of sub-vote]
A6: =B46&" - "&C46 -> Vote 5 - Executive and council | B6: 1.4 | C6: [Name of sub-vote] | D6: 1.4 - [Name of sub-vote]
A7: =B57&" - "&C57 -> Vote 6 - Internal audit | B7: 1.5 | C7: [Name of sub-vote] | D7: 1.5 - [Name of sub-vote]
A8: =B68&" - "&C68 -> Vote 7 - Road transport | B8: 1.6 | C8: [Name of sub-vote] | D8: 1.6 - [Name of sub-vote]
A9: =B79&" - "&C79 -> Vote 8 - Public safety | B9: 1.7 | C9: [Name of sub-vote] | D9: 1.7 - [Name of sub-vote]
A10: =B90&" - "&C90 -> Vote 9 - Waste management | B10: 1.8 | C10: [Name of sub-vote] | D10: 1.8 - [Name of sub-vote]
A11: =B101&" - "&C101 -> Vote 10 - Sport and recreation | B11: 1.9 | C11: [Name of sub-vote] | D11: 1.9 - [Name of sub-vote]
A12: =B112&" - "&C112 -> Vote 11 - Water management | B12: 1.10 | C12: [Name of sub-vote] | D12: 1.10 - [Name of sub-vote]
A13: =B123&" - "&C123 -> Vote 12 - Waste water management | B13: Vote 2 | C13: Community and social services
A14: =B134&" - "&C134 -> Vote 13 - Housing | B14: 2.1 | C14: 2.1 - Animal Care and Diseases | D14: =CONCATENATE(B14, " - ", C14) -> 2.1 - 2.1 - Animal Care and Diseases | E14: 2.1 - Animal Care and Diseases
A15: =B145&" - "&C145 -> Vote 14 - Finance and administration | B15: 2.2 | C15: 2.2 - Community Halls and Facilities | D15: 2.2 - 2.2 - Community Halls and Facilities | E15: 2.2 - Community Halls and Facilities
A16: =B156&" - "&C156 -> Vote 15 - [NAME OF VOTE 15] | B16: 2.3 | C16: 2.3 - Libraries and Archives | D16: 2.3 - 2.3 - Libraries and Archives | E16: 2.3 - Libraries and Archives
B17: 2.4 | C17: 2.4 - Cemeteries, Funeral Parlours and Crematoriums | D17: 2.4 - 2.4 - Cemeteries, Funeral Parlours and Crematoriums | E17: 2.4 - Cemeteries, Funeral Parlours and Crematoriums
B18: 2.5 | C18: 2.5 - Libraries and Archives | D18: 2.5 - 2.5 - Libraries and Archives | E18: 2.5 - Libraries and Archives
B19: 2.6 | C19: 2.6 - Disaster Management | D19: 2.6 - 2.6 - Disaster Management | E19: 2.6 - Disaster Management
B20: 2.7 | C20: [Name of sub-vote] | D20: 2.7 - [Name of sub-vote]
B21: 2.8 | C21: [Name of sub-vote] | D21: 2.8 - [Name of sub-vote]
B22: 2.9 | C22: [Name of sub-vote] | D22: 2.9 - [Name of sub-vote]
B23: 2.10 | C23: [Name of sub-vote] | D23: 2.10 - [Name of sub-vote]
B24: Vote 3 | C24: Finance and administration
B25: 3.1 | C25: 3.1 - Fleet Management | D25: =CONCATENATE(B25, " - ", C25) -> 3.1 - 3.1 - Fleet Management | E25: 3.1 - Fleet Management
B26: 3.2 | C26: 3.2 - Budget and Treasury Office | D26: 3.2 - 3.2 - Budget and Treasury Office | E26: 3.2 - Budget and Treasury Office
B27: 3.3 | C27: 3.3 - Finance | D27: 3.3 - 3.3 - Finance | E27: 3.3 - Finance
B28: 3.4 | C28: 3.4 - Asset Management | D28: 3.4 - 3.4 - Asset Management | E28: 3.4 - Asset Management
B29: 3.5 | C29: 3.5 - Human Resources | D29: 3.5 - 3.5 - Human Resources | E29: 3.5 - Human Resources
B30: 3.6 | C30: 3.6 - Legal Services | D30: 3.6 - 3.6 - Legal Services | E30: 3.6 - Legal Services
B31: 3.7 | C31: 3.7 - Property Services | D31: 3.7 - 3.7 - Property Services | E31: 3.7 - Property Services
B32: 3.8 | C32: 3.8 - Risk Management | D32: 3.8 - 3.8 - Risk Management | E32: 3.8 - Risk Management
B33: 3.9 | C33: 3.9 - Supply Chain Management | D33: 3.9 - 3.9 - Supply Chain Management | E33: 3.9 - Supply Chain Management
B34: 3.10 | C34: [Name of sub-vote] | D34: 3.10 - [Name of sub-vote]
B35: Vote 4 | C35: Planning and development
B36: 4.1 | C36: 4.1 - Town Planning, Building Regulations and Enforcement, and City Engineer | D36: =CONCATENATE(B36, " - ", C36) -> 4.1 - 4.1 - Town Planning, Building Regulations and Enforcement, and City Engineer | E36: 4.1 - Town Planning, Building Regulations and Enforcement, and City Engineer
B37: 4.2 | C37: 4.2 - Corporate Wide Strategic Planning (IDPs, LEDs) | D37: 4.2 - 4.2 - Corporate Wide Strategic Planning (IDPs, LEDs) | E37: 4.2 - Corporate Wide Strategic Planning (IDPs, LEDs)
B38: 4.3 | C38: 4.3 - Economic Development/Planning | D38: 4.3 - 4.3 - Economic Development/Planning | E38: 4.3 - Economic Development/Planning
B39: 4.4 | C39: 4.4 - Project Management Unit | D39: 4.4 - 4.4 - Project Management Unit | E39: 4.4 - Project Management Unit
B40: 4.5 | C40: [Name of sub-vote] | D40: 4.5 - [Name of sub-vote]
B41: 4.6 | C41: [Name of sub-vote] | D41: 4.6 - [Name of sub-vote]
B42: 4.7 | C42: [Name of sub-vote] | D42: 4.7 - [Name of sub-vote]
B43: 4.8 | C43: [Name of sub-vote] | D43: 4.8 - [Name of sub-vote]
B44: 4.9 | C44: [Name of sub-vote] | D44: 4.9 - [Name of sub-vote]
B45: 4.10 | C45: [Name of sub-vote] | D45: 4.10 - [Name of sub-vote]
B46: Vote 5 | C46: Executive and council
B47: 5.1 | C47: 5.1 - Municipal Manager, Town Secretary and Chief Executive | D47: =CONCATENATE(B47, " - ", C47) -> 5.1 - 5.1 - Municipal Manager, Town Secretary and Chief Executive | E47: 5.1 - Municipal Manager, Town Secretary and Chief Executive
B48: 5.2 | C48: 5.2 - Mayor and Council | D48: 5.2 - 5.2 - Mayor and Council | E48: 5.2 - Mayor and Council
B49: 5.3 | C49: [Name of sub-vote] | D49: 5.3 - [Name of sub-vote]
B50: 5.4 | C50: [Name of sub-vote] | D50: 5.4 - [Name of sub-vote]
B51: 5.5 | C51: [Name of sub-vote] | D51: 5.5 - [Name of sub-vote]
B52: 5.6 | C52: [Name of sub-vote] | D52: 5.6 - [Name of sub-vote]
B53: 5.7 | C53: [Name of sub-vote] | D53: 5.7 - [Name of sub-vote]
B54: 5.8 | C54: [Name of sub-vote] | D54: 5.8 - [Name of sub-vote]
B55: 5.9 | C55: [Name of sub-vote] | D55: 5.9 - [Name of sub-vote]
B56: 5.10 | C56: [Name of sub-vote] | D56: 5.10 - [Name of sub-vote]
B57: Vote 6 | C57: Internal audit
B58: 6.1 | C58: 6.1 - Governance Function | D58: =CONCATENATE(B58, " - ", C58) -> 6.1 - 6.1 - Governance Function | E58: 6.1 - Governance Function
B59: 6.2 | C59: [Name of sub-vote] | D59: 6.2 - [Name of sub-vote]
B60: 6.3 | C60: [Name of sub-vote] | D60: 6.3 - [Name of sub-vote]
B61: 6.4 | C61: [Name of sub-vote] | D61: 6.4 - [Name of sub-vote]
B62: 6.5 | C62: [Name of sub-vote] | D62: 6.5 - [Name of sub-vote]
B63: 6.6 | C63: [Name of sub-vote] | D63: 6.6 - [Name of sub-vote]
B64: 6.7 | C64: [Name of sub-vote] | D64: 6.7 - [Name of sub-vote]
B65: 6.8 | C65: [Name of sub-vote] | D65: 6.8 - [Name of sub-vote]
B66: 6.9 | C66: [Name of sub-vote] | D66: 6.9 - [Name of sub-vote]
B67: 6.10 | C67: [Name of sub-vote] | D67: 6.10 - [Name of sub-vote]
B68: Vote 7 | C68: Road transport
B69: 7.1 | C69: 7.1 - Taxi Ranks | D69: =CONCATENATE(B69, " - ", C69) -> 7.1 - 7.1 - Taxi Ranks | E69: 7.1 - Taxi Ranks
B70: 7.2 | C70: 7.2 - Road and Traffic Regulation | D70: 7.2 - 7.2 - Road and Traffic Regulation | E70: 7.2 - Road and Traffic Regulation
B71: 7.3 | C71: 7.3 - Public Transport | D71: 7.3 - 7.3 - Public Transport | E71: 7.3 - Public Transport
B72: 7.4 | C72: 7.4 - Roads | D72: 7.4 - 7.4 - Roads | E72: 7.4 - Roads
B73: 7.5 | C73: [Name of sub-vote] | D73: 7.5 - [Name of sub-vote]
B74: 7.6 | C74: [Name of sub-vote] | D74: 7.6 - [Name of sub-vote]
B75: 7.7 | C75: [Name of sub-vote] | D75: 7.7 - [Name of sub-vote]
B76: 7.8 | C76: [Name of sub-vote] | D76: 7.8 - [Name of sub-vote]
B77: 7.9 | C77: [Name of sub-vote] | D77: 7.9 - [Name of sub-vote]
B78: 7.10 | C78: [Name of sub-vote] | D78: 7.10 - [Name of sub-vote]
B79: Vote 8 | C79: Public safety
B80: 8.1 | C80: 8.1 - Cleansing | D80: =CONCATENATE(B80, " - ", C80) -> 8.1 - 8.1 - Cleansing | E80: 8.1 - Cleansing
B81: 8.2 | C81: 8.2 - Fencing and Fences | D81: 8.2 - 8.2 - Fencing and Fences | E81: 8.2 - Fencing and Fences
B82: 8.3 | C82: [Name of sub-vote] | D82: 8.3 - [Name of sub-vote]
B83: 8.4 | C83: [Name of sub-vote] | D83: 8.4 - [Name of sub-vote]
B84: 8.5 | C84: [Name of sub-vote] | D84: 8.5 - [Name of sub-vote]
B85: 8.6 | C85: [Name of sub-vote] | D85: 8.6 - [Name of sub-vote]
B86: 8.7 | C86: [Name of sub-vote] | D86: 8.7 - [Name of sub-vote]
B87: 8.8 | C87: [Name of sub-vote] | D87: 8.8 - [Name of sub-vote]
B88: 8.9 | C88: [Name of sub-vote] | D88: 8.9 - [Name of sub-vote]
B89: 8.10 | C89: [Name of sub-vote] | D89: 8.10 - [Name of sub-vote]
B90: Vote 9 | C90: Waste management
B91: 9.1 | C91: 9.1 - Recycling | D91: =CONCATENATE(B91, " - ", C91) -> 9.1 - 9.1 - Recycling | E91: 9.1 - Recycling
B92: 9.2 | C92: 9.2 - Solid Waste Disposal (Landfill Sites) | D92: 9.2 - 9.2 - Solid Waste Disposal (Landfill Sites) | E92: 9.2 - Solid Waste Disposal (Landfill Sites)
B93: 9.3 | C93: 9.3 - Solid Waste Removal | D93: 9.3 - 9.3 - Solid Waste Removal | E93: 9.3 - Solid Waste Removal
B94: 9.4 | C94: [Name of sub-vote] | D94: 9.4 - [Name of sub-vote]
B95: 9.5 | C95: [Name of sub-vote] | D95: 9.5 - [Name of sub-vote]
B96: 9.6 | C96: [Name of sub-vote] | D96: 9.6 - [Name of sub-vote]
B97: 9.7 | C97: [Name of sub-vote] | D97: 9.7 - [Name of sub-vote]
B98: 9.8 | C98: [Name of sub-vote] | D98: 9.8 - [Name of sub-vote]
B99: 9.9 | C99: [Name of sub-vote] | D99: 9.9 - [Name of sub-vote]
B100: 9.10 | C100: [Name of sub-vote] | D100: 9.10 - [Name of sub-vote]
B101: Vote 10 | C101: Sport and recreation
B102: 10.1 | C102: 10.1 - Recreational Facilities | D102: =CONCATENATE(B102, " - ", C102) -> 10.1 - 10.1 - Recreational Facilities | E102: 10.1 - Recreational Facilities
B103: 10.2 | C103: 10.2 - Sports Grounds and Stadiums | D103: 10.2 - 10.2 - Sports Grounds and Stadiums | E103: 10.2 - Sports Grounds and Stadiums
B104: 10.3 | C104: [Name of sub-vote] | D104: 10.3 - [Name of sub-vote]
B105: 10.4 | C105: [Name of sub-vote] | D105: 10.4 - [Name of sub-vote]
B106: 10.5 | C106: [Name of sub-vote] | D106: 10.5 - [Name of sub-vote]
B107: 10.6 | C107: [Name of sub-vote] | D107: 10.6 - [Name of sub-vote]
B108: 10.7 | C108: [Name of sub-vote] | D108: 10.7 - [Name of sub-vote]
B109: 10.8 | C109: [Name of sub-vote] | D109: 10.8 - [Name of sub-vote]
B110: 10.9 | C110: [Name of sub-vote] | D110: 10.9 - [Name of sub-vote]
B111: 10.10 | C111: [Name of sub-vote] | D111: 10.10 - [Name of sub-vote]
B112: Vote 11 | C112: Water management
B113: 11.1 | C113: 11.1 - Water Distribution | D113: =CONCATENATE(B113, " - ", C113) -> 11.1 - 11.1 - Water Distribution | E113: 11.1 - Water Distribution
B114: 11.2 | C114: [Name of sub-vote] | D114: 11.2 - [Name of sub-vote]
B115: 11.3 | C115: [Name of sub-vote] | D115: 11.3 - [Name of sub-vote]
B116: 11.4 | C116: [Name of sub-vote] | D116: 11.4 - [Name of sub-vote]
B117: 11.5 | C117: [Name of sub-vote] | D117: 11.5 - [Name of sub-vote]
B118: 11.6 | C118: [Name of sub-vote] | D118: 11.6 - [Name of sub-vote]
B119: 11.7 | C119: [Name of sub-vote] | D119: 11.7 - [Name of sub-vote]
B120: 11.8 | C120: [Name of sub-vote] | D120: 11.8 - [Name of sub-vote]
B121: 11.9 | C121: [Name of sub-vote] | D121: 11.9 - [Name of sub-vote]
B122: 11.10 | C122: [Name of sub-vote] | D122: 11.10 - [Name of sub-vote]
B123: Vote 12 | C123: Waste water management
B124: 12.1 | C124: 12.1 - Sewerage | D124: =CONCATENATE(B124, " - ", C124) -> 12.1 - 12.1 - Sewerage | E124: 12.1 - Sewerage
B125: 12.2 | C125: [Name of sub-vote] | D125: 12.2 - [Name of sub-vote]
B126: 12.3 | C126: [Name of sub-vote] | D126: 12.3 - [Name of sub-vote]
B127: 12.4 | C127: [Name of sub-vote] | D127: 12.4 - [Name of sub-vote]
B128: 12.5 | C128: [Name of sub-vote] | D128: 12.5 - [Name of sub-vote]
B129: 12.6 | C129: [Name of sub-vote] | D129: 12.6 - [Name of sub-vote]
B130: 12.7 | C130: [Name of sub-vote] | D130: 12.7 - [Name of sub-vote]
B131: 12.8 | C131: [Name of sub-vote] | D131: 12.8 - [Name of sub-vote]
B132: 12.9 | C132: [Name of sub-vote] | D132: 12.9 - [Name of sub-vote]
B133: 12.10 | C133: [Name of sub-vote] | D133: 12.10 - [Name of sub-vote]
B134: Vote 13 | C134: Housing
B135: 13.1 | C135: 13.1 - Housing | D135: =CONCATENATE(B135, " - ", C135) -> 13.1 - 13.1 - Housing | E135: 13.1 - Housing
B136: 13.2 | C136: [Name of sub-vote] | D136: 13.2 - [Name of sub-vote]
B137: 13.3 | C137: [Name of sub-vote] | D137: 13.3 - [Name of sub-vote]
B138: 13.4 | C138: [Name of sub-vote] | D138: 13.4 - [Name of sub-vote]
B139: 13.5 | C139: [Name of sub-vote] | D139: 13.5 - [Name of sub-vote]
B140: 13.6 | C140: [Name of sub-vote] | D140: 13.6 - [Name of sub-vote]
B141: 13.7 | C141: [Name of sub-vote] | D141: 13.7 - [Name of sub-vote]
B142: 13.8 | C142: [Name of sub-vote] | D142: 13.8 - [Name of sub-vote]
B143: 13.9 | C143: [Name of sub-vote] | D143: 13.9 - [Name of sub-vote]
B144: 13.10 | C144: [Name of sub-vote] | D144: 13.10 - [Name of sub-vote]
B145: Vote 14 | C145: Finance and administration
B146: 14.1 | C146: 14.1 - Security Services | D146: =CONCATENATE(B146, " - ", C146) -> 14.1 - 14.1 - Security Services | E146: 14.1 - Security Services
B147: 14.2 | C147: 14.2 - Administrative and Corporate Support | D147: 14.2 - 14.2 - Administrative and Corporate Support | E147: 14.2 - Administrative and Corporate Support
B148: 14.3 | C148: 14.3 - Information Technology | D148: 14.3 - 14.3 - Information Technology | E148: 14.3 - Information Technology
B149: 14.4 | C149: [Name of sub-vote] | D149: 14.4 - [Name of sub-vote]
B150: 14.5 | C150: [Name of sub-vote] | D150: 14.5 - [Name of sub-vote]
B151: 14.6 | C151: [Name of sub-vote] | D151: 14.6 - [Name of sub-vote]
B152: 14.7 | C152: [Name of sub-vote] | D152: 14.7 - [Name of sub-vote]
B153: 14.8 | C153: [Name of sub-vote] | D153: 14.8 - [Name of sub-vote]
B154: 14.9 | C154: [Name of sub-vote] | D154: 14.9 - [Name of sub-vote]
B155: 14.10 | C155: [Name of sub-vote] | D155: 14.10 - [Name of sub-vote]
B156: Vote 15 | C156: [NAME OF VOTE 15]
B157: 15.1 | C157: [Name of sub-vote] | D157: =CONCATENATE(B157, " - ", C157) -> 15.1 - [Name of sub-vote] | E157: 15.1 - [Name of sub-vote]
B158: 15.2 | C158: [Name of sub-vote] | D158: 15.2 - [Name of sub-vote]
B159: 15.3 | C159: [Name of sub-vote] | D159: 15.3 - [Name of sub-vote]
B160: 15.4 | C160: [Name of sub-vote] | D160: 15.4 - [Name of sub-vote]
B161: 15.5 | C161: [Name of sub-vote] | D161: 15.5 - [Name of sub-vote]
B162: 15.6 | C162: [Name of sub-vote] | D162: 15.6 - [Name of sub-vote]
B163: 15.7 | C163: [Name of sub-vote] | D163: 15.7 - [Name of sub-vote]
B164: 15.8 | C164: [Name of sub-vote] | D164: 15.8 - [Name of sub-vote]
B165: 15.9 | C165: [Name of sub-vote] | D165: 15.9 - [Name of sub-vote]
B166: 15.10 | C166: [Name of sub-vote] | D166: 15.10 - [Name of sub-vote]

Sheet Contacts
A1: =muni&" - "&" Contact Information" -> LIM331 Greater Giyani - Contact Information
A3: A. GENERAL INFORMATION
A4: Municipality | B4: ='[3]Template names'!$B$63 -> LIM331 Greater Giyani | C4: =IF(B4="Choose name from List","Set name on 'Instructions' sheet", "") -> 
A6: Grade | B6: 3 | C6: 1 Grade in terms of the Remuneration of Public Office Bearers Act.
A8: Province | B8: =IF(B4>" ",VLOOKUP(B4,'Lookup and lists'!B29:C307,2, FALSE)," ") -> LIM LIMPOPO
A10: Web Address | B10: =[4]Contacts!$B$10 -> www.greatergiyani.gov.za
A12: e-mail Address | B12: =[4]Contacts!$B$12 -> Chaukemm@greatergiyani.gov.za
A14: B. CONTACT INFORMATION
A15: Postal address:
A16: P.O. Box | B16: Private Bag x 9559
A17: City / Town | B17: Giyani
A18: Postal Code | B18: 826
A20: Street address
A21: Building | B21: Greater Giyani Municipality
A22: Street No. & Name | B22: BA 59 CIVIC CENTRE
A23: City / Town | B23: GIYANI
A24: Postal Code | B24: 826
A26: General Contacts
A27: Telephone number | B27: 015 811 5500
A28: Fax number | B28: 015 812 0268
A30: C. POLITICAL LEADERSHIP
A31: Speaker: | C31: Secretary/PA to the Speaker:
A32: ID Number | B32: 7303105337084' | C32: ID Number | D32: 7503031090083
A33: Title | B33: Mr | C33: Title | D33: Mrs
A34: Name | B34: MP HLUGWANI | C34: Name | D34: B S NOVELA
A35: Telephone number | B35: 015 811 5500 | C35: Telephone number | D35: 015 811 5551
A36: Cell number | B36: 083 748 5962 | C36: Cell number | D36: 076 812 6319
A37: Fax number | B37: 015 812 0268 | C37: Fax number | D37: 086 766 9371
A38: E-mail address | B38: hlugwanimp@greatergiyani.gov.za | C38: E-mail address | D38: chabalalasb@greatergiyani.gov.za
A40: Mayor/Executive Mayor: | C40: Secretary/PA to the Mayor/Executive Mayor:
A41: ID Number | B41: 7106020422083 | C41: ID Number | D41: 8506200671087
A42: Title | B42: Mrs | C42: Title | D42: Mrs
A43: Name | B43: BA SHIVAMBU | C43: Name | D43: M H MABASA
A44: Telephone number | B44: 015 811 5500 | C44: Telephone number | D44: 015 811 5500
A45: Cell number | B45: 078 906 1676 | C45: Cell number | D45: 078 698 0156
A46: Fax number | B46: 015 812 0268 | C46: Fax number | D46: 015 812 0268
A47: E-mail address | B47: shivambuba@greatergiyani.gov.za | C47: E-mail address | D47: mabasamh@greatergiyani.gov.za
A49: Deputy Mayor/Executive Mayor: | C49: Secretary/PA to the Deputy Mayor/Executive Mayor:
A50: ID Number | C50: ID Number
A51: Title | C51: Title
A52: Name | C52: Name
A53: Telephone number | C53: Telephone number
A54: Cell number | C54: Cell number
A55: Fax number | C55: Fax number
A56: E-mail address | C56: E-mail address
A58: D. MANAGEMENT LEADERSHIP
A59: Municipal Manager: | C59: Secretary/PA to the Municipal Manager:
A60: ID Number | B60: 751115 5310 088 | C60: ID Number | D60: 800310 0995 089
A61: Title | B61: Mr | C61: Title | D61: Ms
A62: Name | B62: MM CHAUKE | C62: Name | D62: R B NGUNYULE
A63: Telephone number | B63: 015 811 5541 | C63: Telephone number | D63: 015 811 5542
A64: Cell number | B64: 0832756934 | C64: Cell number | D64: 076 812 6020
A65: Fax number | B65: 015 812 0268 | C65: Fax number | D65: 015 812 0268
A66: E-mail address | B66: ChaukeMM@greatergiyani.gov.za | C66: E-mail address | D66: ngunyulerb@greatergiyani.gov.za
A68: Chief Financial Officer | C68: Secretary/PA to the Chief Financial Officer
A69: ID Number | B69: 8704035565083 | C69: ID Number | D69: 8107250771081
A70: Title | B70: Mr | C70: Title | D70: Mrs
A71: Name | B71: NKUNA F | C71: Name | D71: MP Hlengani
A72: Telephone number | B72: 015 811 5612 | C72: Telephone number | D72: 015 811 5594
A73: Cell number | B73: 065 103 1395 | C73: Cell number | D73: 076 522 6432
A74: Fax number | B74: 015 811 0268 | C74: Fax number | D74: 015 812 0622
A75: E-mail address | B75: nkunaf@greatergiyani.gov.za | C75: E-mail address | D75: hlenganimp@greatergiyani.gov.za
A77: Official responsible for submitting financial information | C77: Official responsible for submitting financial information
A78: ID Number | B78: 8209160951082 | C78: ID Number | D78: 8707145666089
A79: Title | B79: Mrs | C79: Title | D79: Mr
A80: Name | B80: N Mashau | C80: Name | D80: M W Maswanganyi
A81: Telephone number | B81: 015 811 5520 | C81: Telephone number | D81: 015 811 5606
A82: Cell number | B82: 076 522 0295 | C82: Cell number | D82: 073 952 2170
A83: Fax number | B83: 086 759 8942 | C83: Fax number | D83: 015 812 0268
A84: E-mail address | B84: mashaun@greatergiyani.gov.za | C84: E-mail address | D84: maswanganyiw@greatergiyani.gov.za
A85: Official responsible for submitting financial information | C85: Official responsible for submitting financial information
A86: ID Number | C86: ID Number
A87: Title | C87: Title
A88: Name | C88: Name
A89: Telephone number | C89: Telephone number
A90: Cell number | C90: Cell number
A91: Fax number | C91: Fax number
A92: E-mail address | C92: E-mail address
A93: Official responsible for submitting financial information | C93: Official responsible for submitting financial information
A94: ID Number | C94: ID Number
A95: Title | C95: Title
A96: Name | C96: Name
A97: Telephone number | C97: Telephone number
A98: Cell number | C98: Cell number
A99: Fax number | C99: Fax number
A100: E-mail address | C100: E-mail address
A101: Official responsible for submitting financial information | C101: Official responsible for submitting financial information
A102: ID Number | C102: ID Number
A103: Title | C103: Title
A104: Name | C104: Name
A105: Telephone number | C105: Telephone number
A106: Cell number | C106: Cell number
A107: Fax number | C107: Fax number
A108: E-mail address | C108: E-mail address
A109: Official responsible for submitting financial information | C109: Official responsible for submitting financial information
A110: ID Number | C110: ID Number
A111: Title | C111: Title
A112: Name | C112: Name
A113: Telephone number | C113: Telephone number
A114: Cell number | C114: Cell number
A115: Fax number | C115: Fax number
A116: E-mail address | C116: E-mail address
A117: Official responsible for submitting financial information | C117: Official responsible for submitting financial information
A118: ID Number | C118: ID Number
A119: Title | C119: Title
A120: Name | C120: Name
A121: Telephone number | C121: Telephone number
A122: Cell number | C122: Cell number
A123: Fax number | C123: Fax number
A124: E-mail address | C124: E-mail address
A125: Official responsible for submitting financial information | C125: Official responsible for submitting financial information
A126: ID Number | C126: ID Number
A127: Title | C127: Title
A128: Name | C128: Name
A129: Telephone number | C129: Telephone number
A130: Cell number | C130: Cell number
A131: Fax number | C131: Fax number
A132: E-mail address | C132: E-mail address
A133: Official responsible for submitting financial information
A134: ID Number
A135: Title
A136: Name
A137: Telephone number
A138: Cell number
A139: Fax number
A140: E-mail address

Sheet A1-Sum
A1: =muni&" - "&Approve1 -> LIM331 Greater Giyani - Table A1 Budget Summary
A2: =desc -> Description | B2: =head1b -> 2015/16 | C2: =head1A -> 2016/17 | D2: =Head1 -> 2017/18 | E2: =Head2 -> Current Year 2018/19 | I2: =Head3 -> 2019/20 Medium Term Revenue & Expenditure Framework
A3: R thousands | B3: =Head5 -> Audited Outcome | C3: =Head5 -> Audited Outcome | D3: =Head5 -> Audited Outcome | E3: =Head6 -> Original Budget | F3: =Head7 -> Adjusted Budget | G3: =Head8 -> Full Year Forecast | H3: =Head5b -> Pre-audit outcome | I3: =Head9 -> Budget Year 2019/20 | J3: =Head10 -> Budget Year +1 2020/21 | K3: =Head11 -> Budget Year +2 2021/22
A4: Financial Performance
A5: Property rates | B5: ='A4-FinPerf RE'!C5 -> 30675862 | C5: ='A4-FinPerf RE'!D5 -> 33865255 | D5: ='A4-FinPerf RE'!E5 -> 35238339 | E5: ='A4-FinPerf RE'!F5 -> 35000000 | F5: ='A4-FinPerf RE'!G5 -> 38000000 | G5: ='A4-FinPerf RE'!H5 -> 38000000 | H5: ='A4-FinPerf RE'!I5 -> 38000000 | I5: ='A4-FinPerf RE'!J5 -> 39976000 | J5: ='A4-FinPerf RE'!K5 -> 42134706 | K5: ='A4-FinPerf RE'!L5 -> 44409977
A6: Service charges | B6: =SUM('A4-FinPerf RE'!C6:C9) -> 4236874 | C6: =SUM('A4-FinPerf RE'!D6:D9) -> 4472542 | D6: =SUM('A4-FinPerf RE'!E6:E9) -> 4594593 | E6: =SUM('A4-FinPerf RE'!F6:F9) -> 4700000 | F6: =SUM('A4-FinPerf RE'!G6:G9) -> 5300000 | G6: =SUM('A4-FinPerf RE'!H6:H9) -> 5300000 | H6: =SUM('A4-FinPerf RE'!I6:I9) -> 5300000 | I6: =SUM('A4-FinPerf RE'!J6:J9) -> 5400000 | J6: =SUM('A4-FinPerf RE'!K6:K9) -> 5450000 | K6: =SUM('A4-FinPerf RE'!L6:L9) -> 5450000
A7: Investment revenue | B7: ='A4-FinPerf RE'!C12 -> 13400970 | C7: ='A4-FinPerf RE'!D12 -> 15174630 | D7: ='A4-FinPerf RE'!E12 -> 11958996 | E7: ='A4-FinPerf RE'!F12 -> 15200000 | F7: ='A4-FinPerf RE'!G12 -> 4880000 | G7: ='A4-FinPerf RE'!H12 -> 4880000 | H7: ='A4-FinPerf RE'!I12 -> 4880000 | I7: ='A4-FinPerf RE'!J12 -> 5000000 | J7: ='A4-FinPerf RE'!K12 -> 5100000 | K7: ='A4-FinPerf RE'!L12 -> 5150000
A8: Transfers recognised - operational | B8: ='A4-FinPerf RE'!C18 -> 226341284 | C8: ='A4-FinPerf RE'!D18 -> 222487633 | D8: ='A4-FinPerf RE'!E18 -> 241319882 | E8: ='A4-FinPerf RE'!F18 -> 270595000 | F8: ='A4-FinPerf RE'!G18 -> 275930566 | G8: ='A4-FinPerf RE'!H18 -> 275930566 | H8: ='A4-FinPerf RE'!I18 -> 275930566 | I8: ='A4-FinPerf RE'!J18 -> 303024000 | J8: ='A4-FinPerf RE'!K18 -> 316807000 | K8: ='A4-FinPerf RE'!L18 -> 345521000
A9: Other own revenue | B9: ='A4-FinPerf RE'!C11+'A4-FinPerf RE'!C13+'A4-FinPerf RE'!C14+'A4-FinPerf RE'!C15+'A4-FinPerf RE'!C16+'A4-FinPerf RE'!C17+'A4-FinPerf RE'!C19+'A4-FinPerf RE'!C20 -> 16494004.05 | C9: ='A4-FinPerf RE'!D11+'A4-FinPerf RE'!D13+'A4-FinPerf RE'!D14+'A4-FinPerf RE'!D15+'A4-FinPerf RE'!D16+'A4-FinPerf RE'!D17+'A4-FinPerf RE'!D19+'A4-FinPerf RE'!D20 -> 13644127 | D9: ='A4-FinPerf RE'!E11+'A4-FinPerf RE'!E13+'A4-FinPerf RE'!E14+'A4-FinPerf RE'!E15+'A4-FinPerf RE'!E16+'A4-FinPerf RE'!E17+'A4-FinPerf RE'!E19+'A4-FinPerf RE'!E20 -> 26805723 | E9: ='A4-FinPerf RE'!F11+'A4-FinPerf RE'!F13+'A4-FinPerf RE'!F14+'A4-FinPerf RE'!F15+'A4-FinPerf RE'!F16+'A4-FinPerf RE'!F17+'A4-FinPerf RE'!F19+'A4-FinPerf RE'!F20 -> 37076330 | F9: ='A4-FinPerf RE'!G11+'A4-FinPerf RE'!G13+'A4-FinPerf RE'!G14+'A4-FinPerf RE'!G15+'A4-FinPerf RE'!G16+'A4-FinPerf RE'!G17+'A4-FinPerf RE'!G19+'A4-FinPerf RE'!G20 -> 12286600 | G9: ='A4-FinPerf RE'!H11+'A4-FinPerf RE'!H13+'A4-FinPerf RE'!H14+'A4-FinPerf RE'!H15+'A4-FinPerf RE'!H16+'A4-FinPerf RE'!H17+'A4-FinPerf RE'!H19+'A4-FinPerf RE'!H20 -> 12286600 | H9: ='A4-FinPerf RE'!I11+'A4-FinPerf RE'!I13+'A4-FinPerf RE'!I14+'A4-FinPerf RE'!I15+'A4-FinPerf RE'!I16+'A4-FinPerf RE'!I17+'A4-FinPerf RE'!I19+'A4-FinPerf RE'!I20 -> 12286600 | I9: ='A4-FinPerf RE'!J11+'A4-FinPerf RE'!J13+'A4-FinPerf RE'!J14+'A4-FinPerf RE'!J15+'A4-FinPerf RE'!J16+'A4-FinPerf RE'!J17+'A4-FinPerf RE'!J19+'A4-FinPerf RE'!J20 -> 22973000 | J9: ='A4-FinPerf RE'!K11+'A4-FinPerf RE'!K13+'A4-FinPerf RE'!K14+'A4-FinPerf RE'!K15+'A4-FinPerf RE'!K16+'A4-FinPerf RE'!K17+'A4-FinPerf RE'!K19+'A4-FinPerf RE'!K20 -> 24428480 | K9: ='A4-FinPerf RE'!L11+'A4-FinPerf RE'!L13+'A4-FinPerf RE'!L14+'A4-FinPerf RE'!L15+'A4-FinPerf RE'!L16+'A4-FinPerf RE'!L17+'A4-FinPerf RE'!L19+'A4-FinPerf RE'!L20 -> 24799480
A10: ='A4-FinPerf RE'!A21 -> Total Revenue (excluding capital transfers and contributions) | B10: =SUM(B5:B9) -> 291148994.1 | C10: 289644187 | D10: 319917533 | E10: 362571330 | F10: 336397166 | G10: 336397166 | H10: 336397166 | I10: 376373000 | J10: 393920186 | K10: 425330457
A11: Employee costs | B11: ='A4-FinPerf RE'!C24 -> 108057434.8 | C11: ='A4-FinPerf RE'!D24 -> 119525379 | D11: ='A4-FinPerf RE'!E24 -> 125313885 | E11: ='A4-FinPerf RE'!F24 -> 151097072 | F11: ='A4-FinPerf RE'!G24 -> 139655039 | G11: ='A4-FinPerf RE'!H24 -> 139655039 | H11: ='A4-FinPerf RE'!I24 -> 139655039 | I11: ='A4-FinPerf RE'!J24 -> 164551022 | J11: ='A4-FinPerf RE'!K24 -> 180024265.2 | K11: ='A4-FinPerf RE'!L24 -> 193364522.1
A12: Remuneration of councillors | B12: ='A4-FinPerf RE'!C25 -> 18273962 | C12: ='A4-FinPerf RE'!D25 -> 19431700 | D12: ='A4-FinPerf RE'!E25 -> 22143882 | E12: ='A4-FinPerf RE'!F25 -> 23856763 | F12: ='A4-FinPerf RE'!G25 -> 22921432 | G12: ='A4-FinPerf RE'!H25 -> 22921432 | H12: ='A4-FinPerf RE'!I25 -> 22921432 | I12: ='A4-FinPerf RE'!J25 -> 23922552.37 | J12: ='A4-FinPerf RE'!K25 -> 25513402.09 | K12: ='A4-FinPerf RE'!L25 -> 27210043.34
A13: Depreciation & asset impairment | B13: ='A4-FinPerf RE'!C27 -> 20361720 | C13: ='A4-FinPerf RE'!D27 -> 38553790 | D13: ='A4-FinPerf RE'!E27 -> 84607767 | E13: ='A4-FinPerf RE'!F27 -> 30000000 | F13: ='A4-FinPerf RE'!G27 -> 30000000 | G13: ='A4-FinPerf RE'!H27 -> 30000000 | H13: ='A4-FinPerf RE'!I27 -> 30000000 | I13: ='A4-FinPerf RE'!J27 -> 30000000 | J13: ='A4-FinPerf RE'!K27 -> 30000000 | K13: ='A4-FinPerf RE'!L27 -> 30000000
A14: Finance charges | B14: ='A4-FinPerf RE'!C28 -> 0 | C14: ='A4-FinPerf RE'!D28 -> 0 | D14: ='A4-FinPerf RE'!E28 -> 111400 | E14: ='A4-FinPerf RE'!F28 -> 0 | F14: ='A4-FinPerf RE'!G28 -> 0 | G14: ='A4-FinPerf RE'!H28 -> 0 | H14: ='A4-FinPerf RE'!I28 -> 0 | I14: ='A4-FinPerf RE'!J28 -> 0 | J14: ='A4-FinPerf RE'!K28 -> 0 | K14: ='A4-FinPerf RE'!L28 -> 0
A15: Materials and bulk purchases | B15: ='A4-FinPerf RE'!C29+'A4-FinPerf RE'!C30 -> 25776515.93 | C15: ='A4-FinPerf RE'!D29+'A4-FinPerf RE'!D30 -> 16265310 | D15: ='A4-FinPerf RE'!E29+'A4-FinPerf RE'!E30 -> 0 | E15: ='A4-FinPerf RE'!F29+'A4-FinPerf RE'!F30 -> 10855118 | F15: ='A4-FinPerf RE'!G29+'A4-FinPerf RE'!G30 -> 4000000 | G15: ='A4-FinPerf RE'!H29+'A4-FinPerf RE'!H30 -> 4000000 | H15: ='A4-FinPerf RE'!I29+'A4-FinPerf RE'!I30 -> 4000000 | I15: ='A4-FinPerf RE'!J29+'A4-FinPerf RE'!J30 -> 9000000 | J15: ='A4-FinPerf RE'!K29+'A4-FinPerf RE'!K30 -> 12000000 | K15: ='A4-FinPerf RE'!L29+'A4-FinPerf RE'!L30 -> 14790000
A16: Transfers and grants | B16: ='A4-FinPerf RE'!C32 -> 0 | C16: ='A4-FinPerf RE'!D32 -> 0 | D16: ='A4-FinPerf RE'!E32 -> 0 | E16: ='A4-FinPerf RE'!F32 -> 0 | F16: ='A4-FinPerf RE'!G32 -> 0 | G16: ='A4-FinPerf RE'!H32 -> 0 | H16: ='A4-FinPerf RE'!I32 -> 0 | I16: ='A4-FinPerf RE'!J32 -> 0 | J16: ='A4-FinPerf RE'!K32 -> 0 | K16: ='A4-FinPerf RE'!L32 -> 0
A17: Other expenditure | B17: ='A4-FinPerf RE'!C26+'A4-FinPerf RE'!C31+'A4-FinPerf RE'!C33+'A4-FinPerf RE'!C34 -> 120358161.1 | C17: ='A4-FinPerf RE'!D26+'A4-FinPerf RE'!D31+'A4-FinPerf RE'!D33+'A4-FinPerf RE'!D34 -> 128918050.3 | D17: ='A4-FinPerf RE'!E26+'A4-FinPerf RE'!E31+'A4-FinPerf RE'!E33+'A4-FinPerf RE'!E34 -> 147982979 | E17: ='A4-FinPerf RE'!F26+'A4-FinPerf RE'!F31+'A4-FinPerf RE'!F33+'A4-FinPerf RE'!F34 -> 136086029 | F17: ='A4-FinPerf RE'!G26+'A4-FinPerf RE'!G31+'A4-FinPerf RE'!G33+'A4-FinPerf RE'!G34 -> 155236256 | G17: ='A4-FinPerf RE'!H26+'A4-FinPerf RE'!H31+'A4-FinPerf RE'!H33+'A4-FinPerf RE'!H34 -> 155236256 | H17: ='A4-FinPerf RE'!I26+'A4-FinPerf RE'!I31+'A4-FinPerf RE'!I33+'A4-FinPerf RE'!I34 -> 155236256 | I17: ='A4-FinPerf RE'!J26+'A4-FinPerf RE'!J31+'A4-FinPerf RE'!J33+'A4-FinPerf RE'!J34 -> 144717165.1 | J17: ='A4-FinPerf RE'!K26+'A4-FinPerf RE'!K31+'A4-FinPerf RE'!K33+'A4-FinPerf RE'!K34 -> 144672430.6 | K17: ='A4-FinPerf RE'!L26+'A4-FinPerf RE'!L31+'A4-FinPerf RE'!L33+'A4-FinPerf RE'!L34 -> 164644540.8
A18: ='A4-FinPerf RE'!A35 -> Total Expenditure | B18: =SUM(B11:B17) -> 292827793.8 | C18: =SUM(C11:C17) -> 322694229.3 | D18: 380159913 | E18: 351894982 | F18: 351812727 | G18: 351812727 | H18: 351812727 | I18: 372190739.4 | J18: 392210097.9 | K18: 430009106.2
A19: ='A4-FinPerf RE'!A37 -> Surplus/(Deficit) | B19: =B10-B18 -> -1678799.79 | C19: -33050042.34 | D19: -60242380 | E19: 10676348 | F19: -15415561 | G19: -15415561 | H19: -15415561 | I19: 4182260.56 | J19: 1710088.05 | K19: -4678649.19
A20: ='A4-FinPerf RE'!A38 -> Transfers and subsidies - capital (monetary allocations) (National / Provincial and District) | B20: ='A4-FinPerf RE'!C38 -> 105700629 | C20: ='A4-FinPerf RE'!D38 -> 92999654 | D20: ='A4-FinPerf RE'!E38 -> 102650780 | E20: ='A4-FinPerf RE'!F38 -> 59473000 | F20: ='A4-FinPerf RE'!G38 -> 59473000 | G20: ='A4-FinPerf RE'!H38 -> 59473000 | H20: ='A4-FinPerf RE'!I38 -> 59473000 | I20: ='A4-FinPerf RE'!J38 -> 60688000 | J20: ='A4-FinPerf RE'!K38 -> 64049000 | K20: ='A4-FinPerf RE'!L38 -> 68884000
A21: Contributions recognised - capital & contributed assets | B21: ='A4-FinPerf RE'!C39+'A4-FinPerf RE'!C40 -> 0 | C21: ='A4-FinPerf RE'!D39+'A4-FinPerf RE'!D40 -> 0 | D21: ='A4-FinPerf RE'!E39+'A4-FinPerf RE'!E40 -> 0 | E21: ='A4-FinPerf RE'!F39+'A4-FinPerf RE'!F40 -> 0 | F21: ='A4-FinPerf RE'!G39+'A4-FinPerf RE'!G40 -> 0 | G21: ='A4-FinPerf RE'!H39+'A4-FinPerf RE'!H40 -> 0 | H21: ='A4-FinPerf RE'!I39+'A4-FinPerf RE'!I40 -> 0 | I21: ='A4-FinPerf RE'!J39+'A4-FinPerf RE'!J40 -> 0 | J21: ='A4-FinPerf RE'!K39+'A4-FinPerf RE'!K40 -> 0 | K21: ='A4-FinPerf RE'!L39+'A4-FinPerf RE'!L40 -> 0
A22: ='A4-FinPerf RE'!A41 -> Surplus/(Deficit) after capital transfers & contributions | B22: =B19+SUM(B20:B21) -> 104021829.2 | C22: =C19+SUM(C20:C21) -> 59949611.66 | D22: 42408400 | E22: 70149348 | F22: 44057439 | G22: 44057439 | H22: 44057439 | I22: 64870260.56 | J22: 65759088.05 | K22: 64205350.81
A23: ='A4-FinPerf RE'!A46 -> Share of surplus/ (deficit) of associate | B23: ='A4-FinPerf RE'!C46 -> 0 | C23: ='A4-FinPerf RE'!D46 -> 0 | D23: ='A4-FinPerf RE'!E46 -> 0 | E23: ='A4-FinPerf RE'!F46 -> 0 | F23: ='A4-FinPerf RE'!G46 -> 0 | G23: ='A4-FinPerf RE'!H46 -> 0 | H23: ='A4-FinPerf RE'!I46 -> 0 | I23: ='A4-FinPerf RE'!J46 -> 0 | J23: ='A4-FinPerf RE'!K46 -> 0 | K23: ='A4-FinPerf RE'!L46 -> 0
A24: ='A4-FinPerf RE'!A47 -> Surplus/(Deficit) for the year | B24: =B22+B23 -> 104021829.2 | C24: =C22+C23 -> 59949611.66 | D24: 42408400 | E24: 70149348 | F24: 44057439 | G24: 44057439 | H24: 44057439 | I24: 64870260.56 | J24: 65759088.05 | K24: 64205350.81
A26: Capital expenditure & funds sources
A27: Capital expenditure | B27: ='A5-Capex'!C63 -> 63937443 | C27: ='A5-Capex'!D63 -> 30523585.88 | D27: ='A5-Capex'!E63 -> 107839867 | E27: ='A5-Capex'!F63 -> 100149350 | F27: ='A5-Capex'!G63 -> 74057078 | G27: ='A5-Capex'!H63 -> 74057078 | H27: ='A5-Capex'!I63 -> 74057078 | I27: ='A5-Capex'!J63 -> 109869666 | J27: ='A5-Capex'!K63 -> 95759088 | K27: ='A5-Capex'!L63 -> 94205466
A28: Transfers recognised - capital | B28: ='A5-Capex'!C70 -> 56835914 | C28: ='A5-Capex'!D70 -> 22981656 | D28: ='A5-Capex'!E70 -> 88116346 | E28: ='A5-Capex'!F70 -> 56649250 | F28: ='A5-Capex'!G70 -> 56647078 | G28: ='A5-Capex'!H70 -> 56647078 | H28: ='A5-Capex'!I70 -> 56647078 | I28: ='A5-Capex'!J70 -> 60688000 | J28: ='A5-Capex'!K70 -> 64049000 | K28: ='A5-Capex'!L70 -> 68884000
A30: ='A5-Capex'!A72 -> Borrowing | B30: ='A5-Capex'!C72 -> 0 | C30: ='A5-Capex'!D72 -> 0 | D30: ='A5-Capex'!E72 -> 0 | E30: ='A5-Capex'!F72 -> 0 | F30: ='A5-Capex'!G72 -> 0 | G30: ='A5-Capex'!H72 -> 0 | H30: ='A5-Capex'!I72 -> 0 | I30: ='A5-Capex'!J72 -> 0 | J30: ='A5-Capex'!K72 -> 0 | K30: ='A5-Capex'!L72 -> 0
A31: ='A5-Capex'!A73 -> Internally generated funds | B31: ='A5-Capex'!C73 -> 7101529 | C31: ='A5-Capex'!D73 -> 7541929.88 | D31: ='A5-Capex'!E73 -> 19723521.01 | E31: ='A5-Capex'!F73 -> 43500100 | F31: ='A5-Capex'!G73 -> 17410000 | G31: ='A5-Capex'!H73 -> 17410000 | H31: ='A5-Capex'!I73 -> 17410000 | I31: ='A5-Capex'!J73 -> 49181666 | J31: ='A5-Capex'!K73 -> 31710088 | K31: ='A5-Capex'!L73 -> 25321466
A32: Total sources of capital funds | B32: =+B28+B30+B31 -> 63937443 | C32: =+C28+C30+C31 -> 30523585.88 | D32: 107839867 | E32: 100149350 | F32: 74057078 | G32: 74057078 | H32: 74057078 | I32: 109869666 | J32: 95759088 | K32: 94205466
A34: Financial position
A35: ='A6-FinPos'!A12 -> Total current assets | B35: ='A6-FinPos'!C12 -> 220129566 | C35: ='A6-FinPos'!D12 -> 235170044 | D35: ='A6-FinPos'!E12 -> 89809673 | E35: ='A6-FinPos'!F12 -> 9380089 | F35: ='A6-FinPos'!G12 -> 123549338 | G35: ='A6-FinPos'!H12 -> 123549338 | H35: ='A6-FinPos'!I12 -> 123549338 | I35: ='A6-FinPos'!J12 -> 98835533.6 | J35: ='A6-FinPos'!K12 -> 98646651.65 | K35: ='A6-FinPos'!L12 -> 102491561.5
A36: ='A6-FinPos'!A24 -> Total non current assets | B36: ='A6-FinPos'!C24 -> 525422124.5 | C36: ='A6-FinPos'!D24 -> 585026191 | D36: ='A6-FinPos'!E24 -> 905445993 | E36: ='A6-FinPos'!F24 -> 0 | F36: ='A6-FinPos'!G24 -> 940799848 | G36: ='A6-FinPos'!H24 -> 940799848 | H36: ='A6-FinPos'!I24 -> 940799848 | I36: ='A6-FinPos'!J24 -> 939655516.9 | J36: ='A6-FinPos'!K24 -> 939655516.9 | K36: ='A6-FinPos'!L24 -> 939655516.9
A37: ='A6-FinPos'!A34 -> Total current liabilities | B37: ='A6-FinPos'!C34 -> 62486713 | C37: ='A6-FinPos'!D34 -> 77173636 | D37: ='A6-FinPos'!E34 -> 79433509 | E37: ='A6-FinPos'!F34 -> 0 | F37: ='A6-FinPos'!G34 -> 133834913 | G37: ='A6-FinPos'!H34 -> 133834913 | H37: ='A6-FinPos'!I34 -> 133834913 | I37: ='A6-FinPos'!J34 -> 118369347.1 | J37: ='A6-FinPos'!K34 -> 118369347.1 | K37: ='A6-FinPos'!L34 -> 118369347.1
A38: ='A6-FinPos'!A39 -> Total non current liabilities | B38: ='A6-FinPos'!C39 -> 36631023 | C38: ='A6-FinPos'!D39 -> 38545962 | D38: ='A6-FinPos'!E39 -> 37200353 | E38: ='A6-FinPos'!F39 -> 0 | F38: ='A6-FinPos'!G39 -> 0 | G38: ='A6-FinPos'!H39 -> 0 | H38: ='A6-FinPos'!I39 -> 0 | I38: ='A6-FinPos'!J39 -> 0 | J38: ='A6-FinPos'!K39 -> 0 | K38: ='A6-FinPos'!L39 -> 0
A39: Community wealth/Equity | B39: ='A6-FinPos'!C48 -> 646433954.5 | C39: ='A6-FinPos'!D48 -> 704476637 | D39: ='A6-FinPos'!E48 -> 878621804 | E39: ='A6-FinPos'!F48 -> 9380089 | F39: ='A6-FinPos'!G48 -> 930514273 | G39: ='A6-FinPos'!H48 -> 930514273 | H39: ='A6-FinPos'!I48 -> 930514273 | I39: ='A6-FinPos'!J48 -> 920121703.5 | J39: ='A6-FinPos'!K48 -> 919932821.5 | K39: ='A6-FinPos'!L48 -> 923777731.3
A41: Cash flows
A42: Net cash from (used) operating | B42: ='A7-CFlow'!C17 -> 120191095.2 | C42: ='A7-CFlow'!D17 -> 19428783.72 | D42: ='A7-CFlow'!E17 -> 136726798 | E42: ='A7-CFlow'!F17 -> 94269348 | F42: ='A7-CFlow'!G17 -> 66737480 | G42: ='A7-CFlow'!H17 -> 66737480 | H42: ='A7-CFlow'!I17 -> 66737480 | I42: ='A7-CFlow'!J17 -> 91619860.56 | J42: ='A7-CFlow'!K17 -> 95570206.05 | K42: ='A7-CFlow'!L17 -> 98050259.81
A43: Net cash from (used) investing | B43: ='A7-CFlow'!C27 -> -63937443 | C43: ='A7-CFlow'!D27 -> -30525586 | D43: ='A7-CFlow'!E27 -> -153868829 | E43: ='A7-CFlow'!F27 -> -100149350 | F43: ='A7-CFlow'!G27 -> -74057078 | G43: ='A7-CFlow'!H27 -> -74057078 | H43: ='A7-CFlow'!I27 -> -74057078 | I43: ='A7-CFlow'!J27 -> -109870266 | J43: ='A7-CFlow'!K27 -> -95759088 | K43: ='A7-CFlow'!L27 -> -94205350
A44: Net cash from (used) financing | B44: ='A7-CFlow'!C36 -> -26557699 | C44: ='A7-CFlow'!D36 -> -3258622 | D44: ='A7-CFlow'!E36 -> -33311105 | E44: ='A7-CFlow'!F36 -> 0 | F44: ='A7-CFlow'!G36 -> 0 | G44: ='A7-CFlow'!H36 -> 0 | H44: ='A7-CFlow'!I36 -> 0 | I44: ='A7-CFlow'!J36 -> 0 | J44: ='A7-CFlow'!K36 -> 0 | K44: ='A7-CFlow'!L36 -> 0
A45: =LEFT('A7-CFlow'!A40,37) -> Cash/cash equivalents at the year end | B45: ='A7-CFlow'!C40 -> 180005001.2 | C45: ='A7-CFlow'!D40 -> 165649576.7 | D45: ='A7-CFlow'!E40 -> 14639964 | E45: ='A7-CFlow'!F40 -> 8759962 | F45: ='A7-CFlow'!G40 -> 102093415 | G45: ='A7-CFlow'!H40 -> 102093415 | H45: ='A7-CFlow'!I40 -> 102093415 | I45: ='A7-CFlow'!J40 -> 31749594.56 | J45: ='A7-CFlow'!K40 -> 31560712.61 | K45: ='A7-CFlow'!L40 -> 35405622.42
A47: Cash backing/surplus reconciliation
A48: ='A8-ResRecon'!A4 -> Cash and investments available | B48: ='A8-ResRecon'!C8 -> 180005001 | C48: ='A8-ResRecon'!D8 -> 166530477 | D48: ='A8-ResRecon'!E8 -> 14639964 | E48: ='A8-ResRecon'!F8 -> 9380089 | F48: ='A8-ResRecon'!G8 -> 86011731 | G48: ='A8-ResRecon'!H8 -> 86011731 | H48: ='A8-ResRecon'!I8 -> 86011731 | I48: ='A8-ResRecon'!J8 -> 31749594.56 | J48: ='A8-ResRecon'!K8 -> 31560712.61 | K48: ='A8-ResRecon'!L8 -> 35405622.42
A49: ='A8-ResRecon'!A10 -> Application of cash and investments | B49: ='A8-ResRecon'!C18 -> 31078713 | C49: ='A8-ResRecon'!D18 -> 9962636 | D49: ='A8-ResRecon'!E18 -> 10398063 | E49: ='A8-ResRecon'!F18 -> 0 | F49: ='A8-ResRecon'!G18 -> 54471566 | G49: ='A8-ResRecon'!H18 -> 54471566 | H49: ='A8-ResRecon'!I18 -> 54471566 | I49: ='A8-ResRecon'!J18 -> 19821000 | J49: ='A8-ResRecon'!K18 -> 19744000 | K49: ='A8-ResRecon'!L18 -> 19974000
A50: Balance - surplus (shortfall) | B50: =B48-B49 -> 148926288 | C50: =C48-C49 -> 156567841 | D50: 4241901 | E50: 9380089 | F50: 31540165 | G50: 31540165 | H50: 31540165 | I50: 11928594.56 | J50: 11816712.61 | K50: 15431622.42
A52: Asset management
A53: Asset register summary (WDV) | B53: ='A9-Asset'!C165 -> 646433954.5 | C53: ='A9-Asset'!D165 -> 704476637 | D53: ='A9-Asset'!E165 -> 878621804 | E53: ='A9-Asset'!F165 -> 9380089 | F53: ='A9-Asset'!G165 -> 930514273 | G53: ='A9-Asset'!H165 -> 930514273 | H53: ='A9-Asset'!H165 -> 930514273 | I53: ='A9-Asset'!I165 -> 920121703.5 | J53: ='A9-Asset'!J165 -> 919932821.5 | K53: ='A9-Asset'!K165 -> 923777731.3
A54: ='A9-Asset'!A168 -> Depreciation | B54: ='A9-Asset'!C168 -> 20361463 | C54: ='A9-Asset'!D168 -> 38553421.06 | D54: ='A9-Asset'!E168 -> 84607998.46 | E54: ='A9-Asset'!F168 -> 30000000 | F54: ='A9-Asset'!G168 -> 30000000 | G54: ='A9-Asset'!H168 -> 30000000 | H54: ='A9-Asset'!H168 -> 30000000 | I54: ='A9-Asset'!I168 -> 30000000 | J54: ='A9-Asset'!J168 -> 30000000 | K54: ='A9-Asset'!K168 -> 30000000
A55: Renewal and Upgrading of Existing Assets | B55: ='A9-Asset'!C37+'A9-Asset'!C69 -> 31759264 | C55: ='A9-Asset'!D37+'A9-Asset'!D69 -> 25353565.88 | D55: ='A9-Asset'!E37+'A9-Asset'!E69 -> 65094173 | E55: ='A9-Asset'!F37+'A9-Asset'!F69 -> 250000 | F55: ='A9-Asset'!G37+'A9-Asset'!G69 -> 0 | G55: ='A9-Asset'!H37+'A9-Asset'!H69 -> 0 | H55: ='A9-Asset'!H37+'A9-Asset'!H69 -> 0 | I55: ='A9-Asset'!I37+'A9-Asset'!I69 -> 4550000 | J55: ='A9-Asset'!J37+'A9-Asset'!J69 -> 2000000 | K55: ='A9-Asset'!K37+'A9-Asset'!K69 -> 0
A56: Repairs and Maintenance | B56: ='A9-Asset'!C169 -> 25776515.68 | C56: ='A9-Asset'!D169 -> 16265000 | D56: ='A9-Asset'!E169 -> 2879292 | E56: ='A9-Asset'!F169 -> 18610000 | F56: ='A9-Asset'!G169 -> 14310000 | G56: ='A9-Asset'!H169 -> 14310000 | H56: ='A9-Asset'!H169 -> 14310000 | I56: ='A9-Asset'!I169 -> 14635000 | J56: ='A9-Asset'!J169 -> 20185000 | K56: ='A9-Asset'!K169 -> 22846000
A58: Free services
A59: Cost of Free Basic Services provided | B59: ='A10-SerDel'!C60 -> 0 | C59: ='A10-SerDel'!D60 -> 0 | D59: ='A10-SerDel'!E60 -> 0 | E59: ='A10-SerDel'!F60 -> 0 | F59: ='A10-SerDel'!G60 -> 0 | G59: ='A10-SerDel'!H60 -> 0 | H59: ='A10-SerDel'!I60 -> 0 | I59: ='A10-SerDel'!I60 -> 0 | J59: ='A10-SerDel'!J60 -> 0 | K59: ='A10-SerDel'!K60 -> 0
A60: Revenue cost of free services provided | B60: ='A10-SerDel'!C79 -> 0 | C60: ='A10-SerDel'!D79 -> 0 | D60: ='A10-SerDel'!E79 -> 0 | E60: ='A10-SerDel'!F79 -> 0 | F60: ='A10-SerDel'!G79 -> 0 | G60: ='A10-SerDel'!H79 -> 0 | H60: ='A10-SerDel'!I79 -> 1500000 | I60: ='A10-SerDel'!I79 -> 1500000 | J60: ='A10-SerDel'!J79 -> 2000000 | K60: ='A10-SerDel'!K79 -> 2500000
A61: Households below minimum service level
A62: ='A10-SerDel'!A5 -> Water: | B62: ='A10-SerDel'!C14 -> 0 | C62: ='A10-SerDel'!D14 -> 0 | D62: ='A10-SerDel'!E14 -> 0 | E62: ='A10-SerDel'!F14 -> 0 | F62: ='A10-SerDel'!G14 -> 0 | G62: ='A10-SerDel'!H14 -> 0 | H62: ='A10-SerDel'!I14 -> 0 | I62: ='A10-SerDel'!I14 -> 0 | J62: ='A10-SerDel'!J14 -> 0 | K62: ='A10-SerDel'!K14 -> 0
A63: ='A10-SerDel'!A16 -> Sanitation/sewerage: | B63: ='A10-SerDel'!C26 -> 0 | C63: ='A10-SerDel'!D26 -> 0 | D63: ='A10-SerDel'!E26 -> 0 | E63: ='A10-SerDel'!F26 -> 0 | F63: ='A10-SerDel'!G26 -> 0 | G63: ='A10-SerDel'!H26 -> 0 | H63: ='A10-SerDel'!I26 -> 0 | I63: ='A10-SerDel'!I26 -> 0 | J63: ='A10-SerDel'!J26 -> 0 | K63: ='A10-SerDel'!K26 -> 0
A64: ='A10-SerDel'!A28 -> Energy: | B64: ='A10-SerDel'!C35 -> 0 | C64: ='A10-SerDel'!D35 -> 0 | D64: ='A10-SerDel'!E35 -> 0 | E64: ='A10-SerDel'!F35 -> 0 | F64: ='A10-SerDel'!G35 -> 0 | G64: ='A10-SerDel'!H35 -> 0 | H64: ='A10-SerDel'!I35 -> 0 | I64: ='A10-SerDel'!I35 -> 0 | J64: ='A10-SerDel'!J35 -> 0 | K64: ='A10-SerDel'!K35 -> 0
A65: ='A10-SerDel'!A37 -> Refuse: | B65: ='A10-SerDel'!C45 -> 0 | C65: ='A10-SerDel'!D45 -> 0 | D65: ='A10-SerDel'!E45 -> 0 | E65: ='A10-SerDel'!F45 -> 0 | F65: ='A10-SerDel'!G45 -> 0 | G65: ='A10-SerDel'!H45 -> 0 | H65: ='A10-SerDel'!I45 -> 0 | I65: ='A10-SerDel'!I45 -> 0 | J65: ='A10-SerDel'!J45 -> 0 | K65: ='A10-SerDel'!K45 -> 0

Sheet A2-FinPerf SC
A1: =muni&" - "&Approve3 -> LIM331 Greater Giyani - Table A2 Budgeted Financial Performance (revenue and expenditure by functional classification)
A2: ="Functional Classification "&desc -> Functional Classification Description | B2: =head27 -> Ref | C2: =head1b -> 2015/16 | D2: =head1A -> 2016/17 | E2: =Head1 -> 2017/18 | F2: =Head2 -> Current Year 2018/19 | I2: =Head3 -> 2019/20 Medium Term Revenue & Expenditure Framework
A3: R thousand | B3: 1 | C3: =Head5 -> Audited Outcome | D3: =Head5 -> Audited Outcome | E3: =Head5 -> Audited Outcome | F3: =Head6 -> Original Budget | G3: =Head7 -> Adjusted Budget | H3: =Head8 -> Full Year Forecast | I3: =Head9 -> Budget Year 2019/20 | J3: =Head10 -> Budget Year +1 2020/21 | K3: =Head11 -> Budget Year +2 2021/22
A4: Revenue - Functional
A5: Governance and administration | C5: =SUM(C6:C8) -> 385617401 | D5: =SUM(D6:D8) -> 371804177.4 | E5: 405082665 | F5: 408247600 | G5: 381142564 | H5: 381142564 | I5: 413436000 | J5: 433067506 | K5: 469181843
A6: Executive and council | C6: =A2A!C6 -> 0 | D6: =A2A!D6 -> 0 | E6: =A2A!E6 -> 0 | F6: =A2A!F6 -> 0 | G6: =A2A!G6 -> 0 | H6: =A2A!H6 -> 0 | I6: =A2A!I6 -> 0 | J6: =A2A!J6 -> 0 | K6: =A2A!K6 -> 0
A7: Finance and administration | C7: =A2A!C9 -> 385617401 | D7: =A2A!D9 -> 371804177.4 | E7: =A2A!E9 -> 405082665 | F7: =A2A!F9 -> 408247600 | G7: =A2A!G9 -> 381142564 | H7: =A2A!H9 -> 381142564 | I7: =A2A!I9 -> 413436000 | J7: =A2A!J9 -> 433067506 | K7: =A2A!K9 -> 469181843
A8: Internal audit | C8: =A2A!C23 -> 0 | D8: =A2A!D23 -> 0 | E8: =A2A!E23 -> 0 | F8: =A2A!F23 -> 0 | G8: =A2A!G23 -> 0 | H8: =A2A!H23 -> 0 | I8: =A2A!I23 -> 0 | J8: =A2A!J23 -> 0 | K8: =A2A!K23 -> 0
A9: Community and public safety | C9: =SUM(C10:C14) -> 6070545 | D9: =SUM(D10:D14) -> 5990637.42 | E9: 12303366 | F9: 8201000 | G9: 8522600 | H9: 8522600 | I9: 16543000 | J9: 17680480 | K9: 17723792
A10: Community and social services | C10: =A2A!C26 -> 249664 | D10: =A2A!D26 -> 465122.88 | E10: =A2A!E26 -> 251998 | F10: =A2A!F26 -> 258000 | G10: =A2A!G26 -> 512600 | H10: =A2A!H26 -> 512600 | I10: =A2A!I26 -> 623000 | J10: =A2A!J26 -> 660480 | K10: =A2A!K26 -> 693792
A11: Sport and recreation | C11: =A2A!C48 -> 46526 | D11: =A2A!D48 -> 7729.54 | E11: =A2A!E48 -> 75520 | F11: =A2A!F48 -> 22000 | G11: =A2A!G48 -> 210000 | H11: =A2A!H48 -> 210000 | I11: =A2A!I48 -> 220000 | J11: =A2A!J48 -> 220000 | K11: =A2A!K48 -> 230000
A12: Public safety | C12: =A2A!C54 -> 5266584 | D12: =A2A!D54 -> 4957505 | E12: =A2A!E54 -> 11395384 | F12: =A2A!F54 -> 7332000 | G12: =A2A!G54 -> 7200000 | H12: =A2A!H54 -> 7200000 | I12: =A2A!I54 -> 15000000 | J12: =A2A!J54 -> 16100000 | K12: =A2A!K54 -> 16100000
A13: Housing | C13: =A2A!C63 -> 507771 | D13: =A2A!D63 -> 560280 | E13: =A2A!E63 -> 580464 | F13: =A2A!F63 -> 589000 | G13: =A2A!G63 -> 600000 | H13: =A2A!H63 -> 600000 | I13: =A2A!I63 -> 700000 | J13: =A2A!J63 -> 700000 | K13: =A2A!K63 -> 700000
A14: Health | C14: =A2A!C66 -> 0 | D14: =A2A!D66 -> 0 | E14: =A2A!E66 -> 0 | F14: =A2A!F66 -> 0 | G14: =A2A!G66 -> 0 | H14: =A2A!H66 -> 0 | I14: =A2A!I66 -> 0 | J14: =A2A!J66 -> 0 | K14: =A2A!K66 -> 0
A15: Economic and environmental services | C15: =SUM(C16:C18) -> 637143 | D15: =SUM(D16:D18) -> 546403 | E15: 561543 | F15: 880130 | G15: 855000 | H15: 855000 | I15: 1632000 | J15: 1716200 | K15: 1802822
A16: Planning and development | C16: =A2A!C75 -> 637143 | D16: =A2A!D75 -> 546403 | E16: =A2A!E75 -> 561543 | F16: =A2A!F75 -> 880130 | G16: =A2A!G75 -> 855000 | H16: =A2A!H75 -> 855000 | I16: =A2A!I75 -> 1132000 | J16: =A2A!J75 -> 1216200 | K16: =A2A!K75 -> 1252822
A17: Road transport | C17: =A2A!C86 -> 0 | D17: =A2A!D86 -> 0 | E17: =A2A!E86 -> 0 | F17: =A2A!F86 -> 0 | G17: =A2A!G86 -> 0 | H17: =A2A!H86 -> 0 | I17: =A2A!I86 -> 500000 | J17: =A2A!J86 -> 500000 | K17: =A2A!K86 -> 550000
A18: Environmental protection | C18: =A2A!C91 -> 0 | D18: =A2A!D91 -> 0 | E18: =A2A!E91 -> 0 | F18: =A2A!F91 -> 0 | G18: =A2A!G91 -> 0 | H18: =A2A!H91 -> 0 | I18: =A2A!I91 -> 0 | J18: =A2A!J91 -> 0 | K18: =A2A!K91 -> 0
A19: Trading services | C19: =SUM(C20:C23) -> 4524534 | D19: =SUM(D20:D23) -> 4302622.81 | E19: 4620739 | F19: 4715600 | G19: 5350000 | H19: 5350000 | I19: 5450000 | J19: =SUM(J20:J23) -> 5505000 | K19: 5506000
A20: Energy sources | C20: =A2A!C99 -> 0 | D20: =A2A!D99 -> 0 | E20: =A2A!E99 -> 0 | F20: =A2A!F99 -> 0 | G20: =A2A!G99 -> 0 | H20: =A2A!H99 -> 0 | I20: =A2A!I99 -> 0 | J20: =A2A!J99 -> 0 | K20: =A2A!K99 -> 0
A21: Water management | C21: =A2A!C103 -> 285432 | D21: =A2A!D103 -> 0 | E21: =A2A!E103 -> 0 | F21: =A2A!F103 -> 0 | G21: =A2A!G103 -> 0 | H21: =A2A!H103 -> 0 | I21: =A2A!I103 -> 0 | J21: =A2A!J103 -> 0 | K21: =A2A!K103 -> 0
A22: Waste water management | C22: =A2A!C107 -> 0 | D22: =A2A!D107 -> 0 | E22: =A2A!E107 -> 0 | F22: =A2A!F107 -> 0 | G22: =A2A!G107 -> 0 | H22: =A2A!H107 -> 0 | I22: =A2A!I107 -> 0 | J22: =A2A!J107 -> 0 | K22: =A2A!K107 -> 0
A23: Waste management | C23: =A2A!C112 -> 4239102 | D23: =A2A!D112 -> 4302622.81 | E23: =A2A!E112 -> 4620739 | F23: =A2A!F112 -> 4715600 | G23: =A2A!G112 -> 5350000 | H23: =A2A!H112 -> 5350000 | I23: =A2A!I112 -> 5450000 | J23: =A2A!J112 -> 5505000 | K23: =A2A!K112 -> 5506000
A24: Other | B24: 4 | C24: =A2A!C117 -> 0 | D24: =A2A!D117 -> 0 | E24: =A2A!E117 -> 0 | F24: =A2A!F117 -> 0 | G24: =A2A!G117 -> 0 | H24: =A2A!H117 -> 0 | I24: =A2A!I117 -> 0 | J24: =A2A!J117 -> 0 | K24: =A2A!K117 -> 0
A25: ="Total "&A4 -> Total Revenue - Functional | B25: 2 | C25: =C5+C9+C15+C19+C24 -> 396849623 | D25: =D5+D9+D15+D19+D24 -> 382643840.7 | E25: =E5+E9+E15+E19+E24 -> 422568313 | F25: 422044330 | G25: 395870164 | H25: 395870164 | I25: =I5+I9+I15+I19+I24 -> 437061000 | J25: 457969186 | K25: 494214457
A27: Expenditure - Functional
A28: Governance and administration | C28: =SUM(C29:C31) -> 161899758.3 | D28: =SUM(D29:D31) -> 215227375 | E28: 278419776.5 | F28: 213109385 | G28: 211801397 | H28: 211801397 | I28: 238034505.9 | J28: 262082646.7 | K28: 283995126.2
A29: Executive and council | C29: =A2A!C128 -> 30003080 | D29: =A2A!D128 -> 35188330 | E29: =A2A!E128 -> 37459808 | F29: =A2A!F128 -> 37005766 | G29: =A2A!G128 -> 35479009 | H29: =A2A!H128 -> 35479009 | I29: =A2A!I128 -> 36481597.61 | J29: =A2A!J128 -> 39339626.83 | K29: =A2A!K128 -> 41831961.85
A30: Finance and administration | C30: =A2A!C131 -> 130378452.3 | D30: =A2A!D131 -> 178263980 | E30: =A2A!E131 -> 238802630.5 | F30: =A2A!F131 -> 173590275 | G30: =A2A!G131 -> 174200689 | H30: =A2A!H131 -> 174200689 | I30: =A2A!I131 -> 198964333.3 | J30: =A2A!J131 -> 220205779.1 | K30: =A2A!K131 -> 239424371.6
A31: Internal audit | C31: =A2A!C145 -> 1518226 | D31: =A2A!D145 -> 1775065 | E31: =A2A!E145 -> 2157338 | F31: =A2A!F145 -> 2513344 | G31: =A2A!G145 -> 2121699 | H31: =A2A!H145 -> 2121699 | I31: =A2A!I145 -> 2588575.04 | J31: =A2A!J145 -> 2537240.78 | K31: =A2A!K145 -> 2738792.79
A32: Community and public safety | C32: =SUM(C33:C37) -> 14990797.26 | D32: =SUM(D33:D37) -> 15182142 | E32: 14593205 | F32: 19035772 | G32: 17435835 | H32: 17435835 | I32: 19713545.59 | J32: 21023884.65 | K32: 22569484.34
A33: Community and social services | C33: =A2A!C148 -> 8256380 | D33: =A2A!D148 -> 8075717 | E33: =A2A!E148 -> 7799130 | F33: =A2A!F148 -> 11760717 | G33: =A2A!G148 -> 9653091 | H33: =A2A!H148 -> 9653091 | I33: =A2A!I148 -> 11309842.53 | J33: =A2A!J148 -> 12064516.08 | K33: =A2A!K148 -> 12999220.05
A34: Sport and recreation | C34: =A2A!C170 -> 5860621 | D34: =A2A!D170 -> 6161756 | E34: =A2A!E170 -> 5679297 | F34: =A2A!F170 -> 5925726 | G34: =A2A!G170 -> 6487819 | H34: =A2A!H170 -> 6487819 | I34: =A2A!I170 -> 7025909.89 | J34: =A2A!J170 -> 7454083.39 | K34: =A2A!K170 -> 7932333.91
A35: Public safety | C35: =A2A!C176 -> 0 | D35: =A2A!D176 -> 0 | E35: =A2A!E176 -> 0 | F35: =A2A!F176 -> 150000 | G35: =A2A!G176 -> 140000 | H35: =A2A!H176 -> 140000 | I35: =A2A!I176 -> 100000 | J35: =A2A!J176 -> 150000 | K35: =A2A!K176 -> 190000
A36: Housing | C36: =A2A!C185 -> 873796.26 | D36: =A2A!D185 -> 944669 | E36: =A2A!E185 -> 1114778 | F36: =A2A!F185 -> 1199329 | G36: =A2A!G185 -> 1154925 | H36: =A2A!H185 -> 1154925 | I36: =A2A!I185 -> 1277793.17 | J36: =A2A!J185 -> 1355285.18 | K36: =A2A!K185 -> 1447930.38
A37: Health | C37: =A2A!C188 -> 0 | D37: =A2A!D188 -> 0 | E37: =A2A!E188 -> 0 | F37: =A2A!F188 -> 0 | G37: =A2A!G188 -> 0 | H37: =A2A!H188 -> 0 | I37: =A2A!I188 -> 0 | J37: =A2A!J188 -> 0 | K37: =A2A!K188 -> 0
A38: Economic and environmental services | C38: =SUM(C39:C41) -> 74625491.94 | D38: =SUM(D39:D41) -> 45511070 | E38: 43619661 | F38: 67940427 | G38: 57068614 | H38: 57068614 | I38: 66319128.8 | J38: 67399858.83 | K38: 70440760.42
A39: Planning and development | C39: =A2A!C197 -> 9754649.87 | D39: =A2A!D197 -> 13482589 | E39: =A2A!E197 -> 14357700 | F39: =A2A!F197 -> 27875622 | G39: =A2A!G197 -> 18375856 | H39: =A2A!H197 -> 18375856 | I39: =A2A!I197 -> 24317907.32 | J39: =A2A!J197 -> 19061344.28 | K39: =A2A!K197 -> 18382103.67
A40: Road transport | C40: =A2A!C208 -> 64870842.07 | D40: =A2A!D208 -> 32028481 | E40: =A2A!E208 -> 29261961 | F40: =A2A!F208 -> 40064805 | G40: =A2A!G208 -> 38692758 | H40: =A2A!H208 -> 38692758 | I40: =A2A!I208 -> 42001221.48 | J40: =A2A!J208 -> 48338514.55 | K40: =A2A!K208 -> 52058656.75
A41: Environmental protection | C41: =A2A!C213 -> 0 | D41: =A2A!D213 -> 0 | E41: =A2A!E213 -> 0 | F41: =A2A!F213 -> 0 | G41: =A2A!G213 -> 0 | H41: =A2A!H213 -> 0 | I41: =A2A!I213 -> 0 | J41: =A2A!J213 -> 0 | K41: =A2A!K213 -> 0
A42: Trading services | C42: =SUM(C43:C46) -> 41311746.24 | D42: =SUM(D43:D46) -> 46773642 | E42: 43527270.46 | F42: =SUM(F43:F46) -> 51809398 | G42: 65506879 | H42: 65506879 | I42: 48123559.12 | J42: 41703707.8 | K42: =SUM(K43:K46) -> 53003736.34
A43: Energy sources | C43: =A2A!C221 -> 30430247.81 | D43: =A2A!D221 -> 35597729 | E43: =A2A!E221 -> 32394539 | F43: =A2A!F221 -> 34983541 | G43: =A2A!G221 -> 53121473 | H43: =A2A!H221 -> 53121473 | I43: =A2A!I221 -> 35287529.57 | J43: =A2A!J221 -> 27738527.78 | K43: =A2A!K221 -> 36783892.36
A44: Water management | C44: =A2A!C225 -> -787359.57 | D44: =A2A!D225 -> 0 | E44: =A2A!E225 -> 226696.46 | F44: =A2A!F225 -> 0 | G44: =A2A!G225 -> 0 | H44: =A2A!H225 -> 0 | I44: =A2A!I225 -> 0 | J44: =A2A!J225 -> 0 | K44: =A2A!K225 -> 0
A45: Waste water management | C45: =A2A!C229 -> -216209 | D45: =A2A!D229 -> 0 | E45: =A2A!E229 -> 0 | F45: =A2A!F229 -> 0 | G45: =A2A!G229 -> 0 | H45: =A2A!H229 -> 0 | I45: =A2A!I229 -> 0 | J45: =A2A!J229 -> 0 | K45: =A2A!K229 -> 0
A46: Waste management | C46: =A2A!C234 -> 11885067 | D46: =A2A!D234 -> 11175913 | E46: =A2A!E234 -> 10906035 | F46: =A2A!F234 -> 16825857 | G46: =A2A!G234 -> 12385406 | H46: =A2A!H234 -> 12385406 | I46: =A2A!I234 -> 12836029.55 | J46: =A2A!J234 -> 13965180.02 | K46: =A2A!K234 -> 16219843.98
A47: Other | B47: 4 | C47: =A2A!C239 -> 0 | D47: =A2A!D239 -> 0 | E47: =A2A!E239 -> 0 | F47: =A2A!F239 -> 0 | G47: =A2A!G239 -> 0 | H47: =A2A!H239 -> 0 | I47: =A2A!I239 -> 0 | J47: =A2A!J239 -> 0 | K47: =A2A!K239 -> 0
A48: ="Total "&A27 -> Total Expenditure - Functional | B48: 3 | C48: =C28+C32+C38+C42+C47 -> 292827793.8 | D48: =D28+D32+D38+D42+D47 -> 322694229 | E48: =E28+E32+E38+E42+E47 -> 380159913 | F48: =F28+F32+F38+F42+F47 -> 351894982 | G48: 351812725 | H48: 351812725 | I48: 372190739.4 | J48: 392210097.9 | K48: 430009107.3
A49: =result -> Surplus/(Deficit) for the year | C49: =C25-C48 -> 104021829.2 | D49: =D25-D48 -> 59949611.66 | E49: 42408400 | F49: 70149348 | G49: 44057439 | H49: 44057439 | I49: 64870260.56 | J49: 65759088.05 | K49: 64205349.69
A50: =head27a -> References
A51: 1. Government Finance Statistics Functions and Sub-functions are standardised to assist the compilation of national and international accounts for comparison purposes
A52: 2. Total Revenue by functional classification must reconcile to Total Operating Revenue shown in Budgeted Financial Performance (revenue and expenditure)
A53: 3. Total Expenditure by Functional Classification must reconcile to Total Operating Expenditure shown in Budgeted Financial Performance (revenue and expenditure)
A54: 4. All amounts must be classified under a functional classification . The GFS function 'Other' is only for Abbatoirs, Air Transport, Forestry, Licensing and Regulation, Markets and Tourism - and if used must be supported by footnotes. Nothing else may be placed under 'Other'. Assign associate share to relevant classification.
A57: check oprev balance | C57: =C25-'A4-FinPerf RE'!C59 -> -0.05000001192 | D57: =D25-'A4-FinPerf RE'!D59 -> -0.3399999738 | E57: =E25-'A4-FinPerf RE'!E59 -> 0 | F57: =F25-'A4-FinPerf RE'!F59 -> 0 | G57: =G25-'A4-FinPerf RE'!G59 -> -2 | H57: =H25-'A4-FinPerf RE'!H59 -> -2 | I57: =I25-'A4-FinPerf RE'!J59 -> 0 | J57: =J25-'A4-FinPerf RE'!K59 -> 0 | K57: =K25-'A4-FinPerf RE'!L59 -> 0
A58: check opexp balance | C58: =C48-'A4-FinPerf RE'!C35 -> -0.05000007153 | D58: =D48-'A4-FinPerf RE'!D35 -> -0.3400000334 | E58: =E48-'A4-FinPerf RE'!E35 -> 0 | F58: =F48-'A4-FinPerf RE'!F35 -> 0 | G58: =G48-'A4-FinPerf RE'!G35 -> -2 | H58: =H48-'A4-FinPerf RE'!H35 -> -2 | I58: =I48-'A4-FinPerf RE'!J35 -> 0 | J58: =J48-'A4-FinPerf RE'!K35 -> 0 | K58: =K48-'A4-FinPerf RE'!L35 -> 1.119999886

Sheet A2A
A1: =muni&" - "&Approve3 -> LIM331 Greater Giyani - Table A2 Budgeted Financial Performance (revenue and expenditure by functional classification)
A2: ="Functional Classification "&desc -> Functional Classification Description | B2: =head27 -> Ref | C2: =head1b -> 2015/16 | D2: =head1A -> 2016/17 | E2: =Head1 -> 2017/18 | F2: =Head2 -> Current Year 2018/19 | I2: =Head3 -> 2019/20 Medium Term Revenue & Expenditure Framework
A3: R thousand | B3: 1 | C3: =Head5 -> Audited Outcome | D3: =Head5 -> Audited Outcome | E3: =Head5 -> Audited Outcome | F3: =Head6 -> Original Budget | G3: =Head7 -> Adjusted Budget | H3: =Head8 -> Full Year Forecast | I3: =Head9 -> Budget Year 2019/20 | J3: =Head10 -> Budget Year +1 2020/21 | K3: =Head11 -> Budget Year +2 2021/22
A4: Revenue - Functional
A5: Municipal governance and administration | C5: =C6+C9+C23 -> 385617401 | D5: 371804177.4 | E5: 405082665 | F5: 408247600 | G5: 381142564 | H5: 381142564 | I5: 413436000 | J5: 433067506 | K5: 469181843
A6: Executive and council | C6: =SUM(C7:C8) -> 0 | D6: =SUM(D7:D8) -> 0 | E6: 0 | F6: 0 | G6: 0 | H6: 0 | I6: 0 | J6: 0 | K6: 0
A7: Mayor and Council
A8: Municipal Manager, Town Secretary and Chief Executive
A9: Finance and administration | C9: =SUM(C10:C22) -> 385617401 | D9: 371804177.4 | E9: 405082665 | F9: 408247600 | G9: 381142564 | H9: 381142564 | I9: 413436000 | J9: 433067506 | K9: 469181843
A10: Administrative and Corporate Support
A11: Asset Management | C11: =A3A!C31 -> 427436 | D11: =A3A!D31 -> 0 | E11: =A3A!E31 -> 51432 | F11: =A3A!F31 -> 0 | G11: =A3A!G31 -> 0 | H11: =A3A!H31 -> 0 | I11: 0 | J11: 0 | K11: 0
A12: Finance | C12: =A3A!C30 -> 384601817 | D12: =A3A!D30 -> 370376207.2 | E12: =A3A!E30 -> 403999967.7 | F12: =A3A!F30 -> 406900600 | G12: =A3A!G30 -> 380225564 | H12: =A3A!H30 -> 380225564 | I12: 412418000 | J12: 431960706 | K12: 467985202
A13: Fleet Management | C13: =A3A!C28 -> 12429 | D13: =A3A!D28 -> 16304.46 | E13: =A3A!E28 -> 15778.67 | F13: =A3A!F28 -> 17000 | G13: =A3A!G28 -> 17000 | H13: =A3A!H28 -> 17000 | I13: 18000 | J13: 19000 | K13: 19000
A14: Human Resources | C14: =A3A!C32 -> 183775 | D14: =A3A!D32 -> 211632.72 | E14: =A3A!E32 -> 232881.89 | F14: =A3A!F32 -> 380000 | G14: =A3A!G32 -> 250000 | H14: =A3A!H32 -> 250000 | I14: 300000 | J14: 350000 | K14: 400000
A15: Information Technology
A16: Legal Services
A17: Marketing, Customer Relations, Publicity and Media Co-ordination
A18: Property Services | C18: =A3A!C34 -> 106303 | D18: =A3A!D34 -> 293278.79 | E18: =A3A!E34 -> 136489.36 | F18: =A3A!F34 -> 0 | G18: =A3A!G34 -> 0 | H18: =A3A!H34 -> 0 | I18: 0 | J18: 0 | K18: 0
A19: Risk Management
A20: Security Services
A21: Supply Chain Management | C21: =A3A!C36 -> 285641 | D21: =A3A!D36 -> 906754.24 | E21: =A3A!E36 -> 646115.35 | F21: =A3A!F36 -> 950000 | G21: =A3A!G36 -> 650000 | H21: =A3A!H36 -> 650000 | I21: 700000 | J21: 737800 | K21: 777641
A22: Valuation Service
A23: Internal audit | C23: =SUM(C24:C24) -> 0 | D23: 0 | E23: 0 | F23: 0 | G23: 0 | H23: 0 | I23: 0 | J23: 0 | K23: 0
A24: Governance Function
A25: Community and public safety | C25: =C26+C48+C54+C63+C66 -> 6070545 | D25: 5990637.42 | E25: 12303366 | F25: 8201000 | G25: 8522600 | H25: 8522600 | I25: 16543000 | J25: 17680480 | K25: 17723792
A26: Community and social services | C26: =SUM(C27:C47) -> 249664 | D26: =SUM(D27:D47) -> 465122.88 | E26: 251998 | F26: 258000 | G26: 512600 | H26: 512600 | I26: 623000 | J26: 660480 | K26: 693792
A27: Aged Care
A28: Agricultural
A29: Animal Care and Diseases
A30: Cemeteries, Funeral Parlours and Crematoriums | C30: =A3A!C20 -> 53902 | D30: =A3A!D20 -> 263843.96 | E30: =A3A!E20 -> 67912 | F30: =A3A!F20 -> 83000 | G30: =A3A!G20 -> 310000 | H30: =A3A!H20 -> 310000 | I30: 320000 | J30: 337280 | K30: 355492
A31: Child Care Facilities
A32: Community Halls and Facilities | C32: =A3A!C18 -> 192289 | D32: =A3A!D18 -> 198543 | E32: =A3A!E18 -> 180301 | F32: =A3A!F18 -> 175000 | G32: =A3A!G18 -> 200000 | H32: =A3A!H18 -> 200000 | I32: 300000 | J32: 320000 | K32: 335000
A33: Consumer Protection
A34: Cultural Matters
A35: Disaster Management
A36: Education
A37: Indigenous and Customary Law
A38: Industrial Promotion
A39: Language Policy
A40: Libraries and Archives | C40: =A3A!C19 -> 3473 | D40: =A3A!D19 -> 2735.92 | E40: =A3A!E19 -> 3785 | F40: =A3A!F21 -> 0 | G40: =A3A!G21 -> 2600 | H40: =A3A!H21 -> 2600 | I40: 3000 | J40: 3200 | K40: 3300
A41: Literacy Programmes
A42: Media Services
A43: Museums and Art Galleries
A44: Population Development
A45: Provincial Cultural Matters
A46: Theatres
A47: Zoo's
A48: Sport and recreation | C48: =SUM(C49:C53) -> 46526 | D48: =SUM(D49:D53) -> 7729.54 | E48: 75520 | F48: 22000 | G48: 210000 | H48: 210000 | I48: 220000 | J48: 220000 | K48: 230000
A49: Beaches and Jetties
A50: Casinos, Racing, Gambling, Wagering
A51: Community Parks (including Nurseries)
A52: Recreational Facilities
A53: Sports Grounds and Stadiums | C53: =A3A!C106 -> 46526 | D53: =A3A!D106 -> 7729.54 | E53: =A3A!E106 -> 75520 | F53: =A3A!F106 -> 22000 | G53: =A3A!G106 -> 210000 | H53: =A3A!H106 -> 210000 | I53: 220000 | J53: 220000 | K53: 230000
A54: Public safety | C54: =SUM(C55:C62) -> 5266584 | D54: 4957505 | E54: 11395384 | F54: 7332000 | G54: 7200000 | H54: 7200000 | I54: 15000000 | J54: 16100000 | K54: 16100000
A55: Civil Defence
A56: Cleansing
A57: Control of Public Nuisances
A58: Fencing and Fences
A59: Fire Fighting and Protection
A60: Licensing and Control of Animals
A61: Police Forces, Traffic and Street Parking Control | C61: =A3A!C73 -> 5266584 | D61: =A3A!D73 -> 4957505 | E61: =A3A!E73 -> 11395384 | F61: =A3A!F73 -> 7332000 | G61: =A3A!G73 -> 7200000 | H61: =A3A!H73 -> 7200000 | I61: =A3A!I73 -> 15000000 | J61: 16100000 | K61: 16100000
A62: Pounds
A63: Housing | C63: =SUM(C64:C65) -> 507771 | D63: =SUM(D64:D65) -> 560280 | E63: 580464 | F63: 589000 | G63: 600000 | H63: 600000 | I63: 700000 | J63: 700000 | K63: 700000
A64: Housing | C64: =A3A!C138 -> 507771 | D64: =A3A!D138 -> 560280 | E64: =A3A!E138 -> 580464 | F64: =A3A!F138 -> 589000 | G64: =A3A!G138 -> 600000 | H64: =A3A!H138 -> 600000 | I64: 700000 | J64: 700000 | K64: 700000
A65: Informal Settlements
A66: Health | C66: =SUM(C67:C73) -> 0 | D66: =SUM(D67:D73) -> 0 | E66: 0 | F66: 0 | G66: 0 | H66: 0 | I66: 0 | J66: 0 | K66: 0
A67: Ambulance
A68: Health Services
A69: Laboratory Services
A70: Food Control
A71: Health Surveillance and Prevention of Communicable Diseases including immunizations
A72: Vector Control
A73: Chemical Safety
A74: Economic and environmental services | C74: =C75+C86+C91 -> 637143 | D74: 546403 | E74: 561543 | F74: 880130 | G74: 855000 | H74: 855000 | I74: 1632000 | J74: 1716200 | K74: 1802822
A75: Planning and development | C75: =SUM(C76:C85) -> 637143 | D75: =SUM(D76:D85) -> 546403 | E75: 561543 | F75: 880130 | G75: 855000 | H75: 855000 | I75: 1132000 | J75: 1216200 | K75: 1252822
A76: Billboards
A77: Corporate Wide Strategic Planning (IDPs, LEDs) | C77: =A3A!C40 -> 139841 | D77: =A3A!D40 -> 110838 | E77: =A3A!E40 -> 114437 | F77: =A3A!F40 -> 122000 | G77: =A3A!G40 -> 122000 | H77: =A3A!H40 -> 122000 | I77: 132000 | J77: 139200 | K77: 146722
A78: Central City Improvement District
A79: Development Facilitation
A80: Economic Development/Planning
A81: Regional Planning and Development
A82: Town Planning, Building Regulations and Enforcement, and City Engineer | C82: =A3A!C39 -> 497302 | D82: =A3A!D39 -> 435565 | E82: =A3A!E39 -> 447106 | F82: =A3A!F39 -> 758130 | G82: =A3A!G39 -> 733000 | H82: =A3A!H39 -> 733000 | I82: 1000000 | J82: 1077000 | K82: 1106100
A83: Project Management Unit
A84: Provincial Planning
A85: Support to Local Municipalities
A86: Road transport | C86: =SUM(C87:C90) -> 0 | D86: 0 | E86: 0 | F86: 0 | G86: 0 | H86: 0 | I86: 500000 | J86: 500000 | K86: 550000
A87: Public Transport
A88: Road and Traffic Regulation
A89: Roads
A90: Taxi Ranks | I90: 500000 | J90: 500000 | K90: 550000
A91: Environmental protection | C91: =SUM(C92:C97) -> 0 | D91: =SUM(D92:D97) -> 0 | E91: 0 | F91: 0 | G91: 0 | H91: 0 | I91: 0 | J91: 0 | K91: 0
A92: Biodiversity and Landscape
A93: Coastal Protection
A94: Indigenous Forests
A95: Nature Conservation
A96: Pollution Control
A97: Soil Conservation
A98: Trading services | C98: =C99+C103+C107+C112 -> 4524534 | D98: =D99+D103+D107+D112 -> 4302622.81 | E98: 4620739 | F98: 4715600 | G98: 5350000 | H98: 5350000 | I98: 5450000 | J98: 5505000 | K98: =K99+K103+K107+K112 -> 5506000
A99: Energy sources | C99: =SUM(C100:C102) -> 0 | D99: =SUM(D100:D102) -> 0 | E99: 0 | F99: 0 | G99: 0 | H99: 0 | I99: 0 | J99: 0 | K99: 0
A100: Electricity
A101: Street Lighting and Signal Systems
A102: Nonelectric Energy
A103: Water management | C103: =SUM(C104:C106) -> 285432 | D103: =SUM(D104:D106) -> 0 | E103: 0 | F103: 0 | G103: 0 | H103: 0 | I103: 0 | J103: 0 | K103: 0
A104: Water Treatment
A105: Water Distribution | C105: =A3A!C116 -> 285432 | D105: =A3A!D116 -> 0
A106: Water Storage
A107: Waste water management | C107: =SUM(C108:C111) -> 0 | D107: =SUM(D108:D111) -> 0 | E107: 0 | F107: 0 | G107: 0 | H107: 0 | I107: 0 | J107: 0 | K107: 0
A108: Public Toilets
A109: Sewerage | C109: =A3A!C127 -> 0
A110: Storm Water Management
A111: Waste Water Treatment
A112: Waste management | C112: =SUM(C113:C116) -> 4239102 | D112: =SUM(D113:D116) -> 4302622.81 | E112: 4620739 | F112: 4715600 | G112: 5350000 | H112: 5350000 | I112: 5450000 | J112: 5505000 | K112: 5506000
A113: Recycling
A114: Solid Waste Disposal (Landfill Sites)
A115: Solid Waste Removal | C115: =A3A!C96 -> 4239102 | D115: =A3A!D96 -> 4302622.81 | E115: =A3A!E96 -> 4620739 | F115: =A3A!F96 -> 4715600 | G115: =A3A!G96 -> 5350000 | H115: =A3A!H96 -> 5350000 | I115: 5450000 | J115: 5505000 | K115: 5506000
A116: Street Cleaning
A117: Other | C117: =SUM(C118:C123) -> 0 | D117: =SUM(D118:D123) -> 0 | E117: 0 | F117: 0 | G117: 0 | H117: 0 | I117: 0 | J117: 0 | K117: 0
A118: Abattoirs
A119: Air Transport
A120: Forestry
A121: Licensing and Regulation
A122: Markets
A123: Tourism
A124: ="Total "&A4 -> Total Revenue - Functional | B124: 2 | C124: =C5+C25+C74+C98+C117 -> 396849623 | D124: 382643840.7 | E124: 422568313 | F124: 422044330 | G124: 395870164 | H124: 395870164 | I124: 437061000 | J124: 457969186 | K124: 494214457
A126: Expenditure - Functional
A127: =A5 -> Municipal governance and administration | C127: =C128+C131+C145 -> 161899758.3 | D127: 215227375 | E127: 278419776.5 | F127: 213109385 | G127: 211801397 | H127: 211801397 | I127: 238034505.9 | J127: 262082646.7 | K127: 283995126.2
A128: Executive and council | C128: =SUM(C129:C130) -> 30003080 | D128: 35188330 | E128: 37459808 | F128: 37005766 | G128: 35479009 | H128: 35479009 | I128: 36481597.61 | J128: 39339626.83 | K128: 41831961.85
A129: Mayor and Council | C129: =A3A!C219 -> 26366966 | D129: =A3A!D219 -> 30376830 | E129: =A3A!E219 -> 31870308 | F129: =A3A!F219 -> 35655181 | G129: =A3A!G219 -> 33936587 | H129: =A3A!H219 -> 33936587 | I129: =A3A!I219 -> 34973780.64 | J129: =A3A!J219 -> 37709653.04 | K129: =A3A!K219 -> 39975702.81
A130: Municipal Manager, Town Secretary and Chief Executive | C130: =A3A!C218 -> 3636114 | D130: =A3A!D218 -> 4811500 | E130: =A3A!E218 -> 5589500 | F130: =A3A!F218 -> 1350585 | G130: =A3A!G218 -> 1542422 | H130: =A3A!H218 -> 1542422 | I130: =A3A!I218 -> 1507816.97 | J130: =A3A!J218 -> 1629973.79 | K130: =A3A!K218 -> 1856259.04
A131: Finance and administration | C131: =SUM(C132:C144) -> 130378452.3 | D131: 178263980 | E131: 238802630.5 | F131: 173590275 | G131: 174200689 | H131: 174200689 | I131: 198964333.3 | J131: 220205779.1 | K131: 239424371.6
A132: Administrative and Corporate Support | C132: =A3A!C318 -> 7417827 | D132: =A3A!D318 -> 10074806 | E132: =A3A!E318 -> 10332824 | F132: =A3A!F318 -> 14429048 | G132: =A3A!G318 -> 14181689 | H132: =A3A!H318 -> 14181689 | I132: =A3A!I318 -> 15710749.23 | J132: =A3A!J318 -> 16358088.8 | K132: =A3A!K318 -> 17560963.94
A133: Asset Management | C133: =A3A!C199 -> 24625658 | D133: =A3A!D199 -> 42877678 | E133: =A3A!E199 -> 96252800.09 | F133: =A3A!F199 -> 39479497 | G133: =A3A!G199 -> 41763745 | H133: =A3A!H199 -> 41763745 | I133: =A3A!I199 -> 42562573.53 | J133: =A3A!J199 -> 44658551.39 | K133: =A3A!K199 -> 45175337.02
A134: Finance | C134: =A3A!C198+A3A!C197 -> 35071953 | D134: =A3A!D198+A3A!D197 -> 64916837 | E134: =A3A!E198+A3A!E197 -> 66410619 | F134: =A3A!F198+A3A!F197 -> 38653104 | G134: =A3A!G198+A3A!G197 -> 38607530 | H134: =A3A!H198+A3A!H197 -> 38607530 | I134: =A3A!I198+A3A!I197 -> 47504687.79 | J134: =A3A!J198+A3A!J197 -> 52600774.46 | K134: =A3A!K198+A3A!K197 -> 60086339.16
A135: Fleet Management | C135: =A3A!C196 -> 7058267 | D135: =A3A!D196 -> 7308696 | E135: =A3A!E196 -> 6464521 | F135: =A3A!F196 -> 8637778 | G135: =A3A!G196 -> 10671255 | H135: =A3A!H196 -> 10671255 | I135: =A3A!I196 -> 9785666.16 | J135: =A3A!J196 -> 9916789.28 | K135: =A3A!K196 -> 11057188.07
A136: Human Resources | C136: =A3A!C200 -> 20340353 | D136: =A3A!D200 -> 15691006 | E136: =A3A!E200 -> 17592100.45 | F136: =A3A!F200 -> 13973307 | G136: =A3A!G200 -> 16351009 | H136: =A3A!H200 -> 16351009 | I136: =A3A!I200 -> 17059043.1 | J136: =A3A!J200 -> 21621406.39 | K136: =A3A!K200 -> 24716677.04
A137: Information Technology | C137: =A3A!C319 -> 5792540.35 | D137: =A3A!D319 -> 5889207 | E137: =A3A!E319 -> 5226235 | F137: =A3A!F319 -> 7163926 | G137: =A3A!G319 -> 7107639 | H137: =A3A!H319 -> 7107639 | I137: =A3A!I319 -> 11259999.15 | J137: =A3A!J319 -> 14901770.34 | K137: =A3A!K319 -> 15814073.32
A138: Legal Services | C138: =A3A!C201 -> 1635413 | D138: =A3A!D201 -> 1221396 | E138: =A3A!E201 -> 5505035 | F138: =A3A!F201 -> 7811381 | G138: =A3A!G201 -> 9295669 | H138: =A3A!H201 -> 9295669 | I138: =A3A!I201 -> 6222259.47 | J138: =A3A!J201 -> 6786848.22 | K138: =A3A!K201 -> 7486732.13
A139: Marketing, Customer Relations, Publicity and Media Co-ordination
A140: Property Services | C140: =A3A!C202 -> 8177475 | D140: =A3A!D202 -> 11147710 | E140: =A3A!E202 -> 10006814 | F140: =A3A!F202 -> 14160083 | G140: =A3A!G202 -> 10430751 | H140: =A3A!H202 -> 10430751 | I140: =A3A!I202 -> 14810122.67 | J140: =A3A!J202 -> 16556061.32 | K140: =A3A!K202 -> 18471604.9
A141: Risk Management | C141: =A3A!C203 -> 10388268 | D141: =A3A!D203 -> 8703886 | E141: =A3A!E203 -> 7410566 | F141: =A3A!F203 -> 11547106 | G141: =A3A!G203 -> 9786838 | H141: =A3A!H203 -> 9786838 | I141: =A3A!I203 -> 12372126.28 | J141: =A3A!J203 -> 13146088.41 | K141: =A3A!K203 -> 13995788.41
A142: Security Services | C142: =A3A!C317 -> 8796473 | D142: =A3A!D317 -> 8930282 | E142: =A3A!E317 -> 11516311 | F142: =A3A!F317 -> 14193288 | G142: =A3A!G317 -> 13315450 | H142: =A3A!H317 -> 13315450 | I142: =A3A!I317 -> 16022267.48 | J142: =A3A!J317 -> 17644275.76 | K142: =A3A!K317 -> 18593297.6
A143: Supply Chain Management | C143: =A3A!C204 -> 1074225 | D143: =A3A!D204 -> 1502476 | E143: =A3A!E204 -> 2084805 | F143: =A3A!F204 -> 3541757 | G143: =A3A!G204 -> 2689114 | H143: =A3A!H204 -> 2689114 | I143: =A3A!I204 -> 5654838.42 | J143: =A3A!J204 -> 6015124.69 | K143: =A3A!K204 -> 6466369.98
A144: Valuation Service
A145: Internal audit | C145: =SUM(C146:C146) -> 1518226 | D145: 1775065 | E145: 2157338 | F145: 2513344 | G145: 2121699 | H145: 2121699 | I145: 2588575.04 | J145: 2537240.78 | K145: 2738792.79
A146: Governance Function | C146: =A3A!C229 -> 1518226 | D146: =A3A!D229 -> 1775065 | E146: =A3A!E229 -> 2157338 | F146: =A3A!F229 -> 2513344 | G146: =A3A!G229 -> 2121699 | H146: =A3A!H229 -> 2121699 | I146: =A3A!I229 -> 2588575.04 | J146: =A3A!J229 -> 2537240.78 | K146: =A3A!K229 -> 2738792.79
A147: Community and public safety | C147: =C148+C170+C176+C185+C188 -> 14990797.26 | D147: 15182142 | E147: 14593205 | F147: 19035772 | G147: 17435835 | H147: 17435835 | I147: 19713545.59 | J147: 21023884.65 | K147: 22569484.34
A148: Community and social services | C148: =SUM(C149:C169) -> 8256380 | D148: =SUM(D149:D169) -> 8075717 | E148: 7799130 | F148: 11760717 | G148: 9653091 | H148: 9653091 | I148: 11309842.53 | J148: 12064516.08 | K148: 12999220.05
A149: Aged Care
A150: Agricultural
A151: Animal Care and Diseases | C151: =A3A!C185 -> 0 | D151: =A3A!D185 -> 535665 | E151: =A3A!E185 -> 563185 | F151: =A3A!F185 -> 720192 | G151: =A3A!G185 -> 618539 | H151: =A3A!H185 -> 618539 | I151: =A3A!I185 -> 745614.39 | J151: =A3A!J185 -> 828040.74 | K151: =A3A!K185 -> 883123.46
A152: Cemeteries, Funeral Parlours and Crematoriums | C152: =A3A!C188 -> 2881373 | D152: =A3A!D188 -> 2792155 | E152: =A3A!E188 -> 2901061 | F152: =A3A!F188 -> 3949547 | G152: =A3A!G188 -> 3010155 | H152: =A3A!H188 -> 3010155 | I152: =A3A!I188 -> 3194757.89 | J152: =A3A!J188 -> 3397234.3 | K152: =A3A!K188 -> 3723175.39
A153: Child Care Facilities
A154: Community Halls and Facilities | C154: =A3A!C186 -> 3184265 | D154: =A3A!D186 -> 2750414 | E154: =A3A!E186 -> 3090338 | F154: =A3A!F186 -> 4868668 | G154: =A3A!G186 -> 4884394 | H154: =A3A!H186 -> 4884394 | I154: =A3A!I186 -> 5016026.34 | J154: =A3A!J186 -> 5349176.61 | K154: =A3A!K186 -> 5741151.34
A155: Consumer Protection
A156: Cultural Matters
A157: Disaster Management | C157: =A3A!C190 -> 1557786 | D157: =A3A!D190 -> 1508393 | E157: =A3A!E190 -> 875609 | F157: =A3A!F190 -> 1657360 | G157: =A3A!G190 -> 663789 | H157: =A3A!H190 -> 663789 | I157: =A3A!I190 -> 1719129.37 | J157: =A3A!J190 -> 1819153.97 | K157: =A3A!K190 -> 1942829.86
A158: Education
A159: =A37 -> Indigenous and Customary Law
A160: Industrial Promotion
A161: Language Policy
A162: Libraries and Archives | C162: =A3A!C187+A3A!C189 -> 632956 | D162: =A3A!D187+A3A!D189 -> 489090 | E162: =A3A!E187+A3A!E189 -> 368937 | F162: =A3A!F187+A3A!F189 -> 564950 | G162: =A3A!G187+A3A!G189 -> 476214 | H162: =A3A!H187+A3A!H189 -> 476214 | I162: =A3A!I187+A3A!I189 -> 634314.54 | J162: =A3A!J187+A3A!J189 -> 670910.46 | K162: =A3A!K187+A3A!K189 -> 708940
A163: Literacy Programmes
A164: Media Services
A165: Museums and Art Galleries
A166: Population Development
A167: Provincial Cultural Matters
A168: Theatres
A169: Zoo's
A170: Sport and recreation | C170: =SUM(C171:C175) -> 5860621 | D170: 6161756 | E170: 5679297 | F170: 5925726 | G170: 6487819 | H170: 6487819 | I170: 7025909.89 | J170: 7454083.39 | K170: 7932333.91
A171: Beaches and Jetties
A172: Casinos, Racing, Gambling, Wagering
A173: Community Parks (including Nurseries)
A174: Recreational Facilities | C174: =A3A!C273 -> 0 | D174: =A3A!D273 -> 0 | E174: =A3A!E273 -> 0 | F174: =A3A!F273 -> 345000 | G174: =A3A!G273 -> 302000 | H174: =A3A!H273 -> 302000 | I174: =A3A!I273 -> 510000 | J174: =A3A!J273 -> 526000 | K174: =A3A!K273 -> 543000
A175: Sports Grounds and Stadiums | C175: =A3A!C274 -> 5860621 | D175: =A3A!D274 -> 6161756 | E175: =A3A!E274 -> 5679297 | F175: =A3A!F274 -> 5580726 | G175: =A3A!G274 -> 6185819 | H175: =A3A!H274 -> 6185819 | I175: =A3A!I274 -> 6515909.89 | J175: =A3A!J274 -> 6928083.39 | K175: =A3A!K274 -> 7389333.91
A176: Public safety | C176: =SUM(C177:C184) -> 0 | D176: 0 | E176: 0 | F176: 150000 | G176: 140000 | H176: 140000 | I176: 100000 | J176: 150000 | K176: 190000
A177: Civil Defence
A178: Cleansing | C178: =A3A!C251 -> 0 | D178: =A3A!D251 -> 0 | E178: =A3A!E251 -> 0 | F178: =A3A!F251 -> 0 | G178: =A3A!G251 -> 40000 | H178: =A3A!H251 -> 40000 | I178: =A3A!I251 -> 0 | J178: =A3A!J251 -> 0 | K178: =A3A!K251 -> 0
A179: =A57 -> Control of Public Nuisances
A180: Fencing and Fences | C180: =A3A!C252 -> 0 | D180: =A3A!D252 -> 0 | E180: =A3A!E252 -> 0 | F180: =A3A!F252 -> 150000 | G180: =A3A!G252 -> 100000 | H180: =A3A!H252 -> 100000 | I180: =A3A!I252 -> 100000 | J180: =A3A!J252 -> 150000 | K180: =A3A!K252 -> 190000
A181: Fire Fighting and Protection
A182: Licensing and Control of Animals
A183: Police Forces, Traffic and Street Parking Control
A184: Pounds
A185: =A63 -> Housing | C185: =SUM(C186:C187) -> 873796.26 | D185: 944669 | E185: 1114778 | F185: 1199329 | G185: 1154925 | H185: 1154925 | I185: 1277793.17 | J185: 1355285.18 | K185: 1447930.38
A186: Housing | C186: =A3A!C306 -> 873796.26 | D186: =A3A!D306 -> 944669 | E186: =A3A!E306 -> 1114778 | F186: =A3A!F306 -> 1199329 | G186: =A3A!G306 -> 1154925 | H186: =A3A!H306 -> 1154925 | I186: =A3A!I306 -> 1277793.17 | J186: =A3A!J306 -> 1355285.18 | K186: =A3A!K306 -> 1447930.38
A187: Informal Settlements
A188: Health | C188: =SUM(C189:C195) -> 0 | D188: =SUM(D189:D195) -> 0 | E188: 0 | F188: 0 | G188: 0 | H188: 0 | I188: 0 | J188: 0 | K188: 0
A189: Ambulance
A190: Health Services
A191: Laboratory Services
A192: Food Control
A193: Health Surveillance and Prevention of Communicable Diseases including immunizations
A194: Vector Control
A195: Chemical Safety
A196: Economic and environmental services | C196: =C197+C208+C213 -> 74625491.94 | D196: 45511070 | E196: 43619661 | F196: 67940427 | G196: 57068614 | H196: 57068614 | I196: 66319128.8 | J196: 67399858.83 | K196: 70440760.42
A197: Planning and development | C197: =SUM(C198:C207) -> 9754649.87 | D197: =SUM(D198:D207) -> 13482589 | E197: 14357700 | F197: 27875622 | G197: 18375856 | H197: 18375856 | I197: 24317907.32 | J197: 19061344.28 | K197: 18382103.67
A198: Billboards
A199: Corporate Wide Strategic Planning (IDPs, LEDs) | C199: =A3A!C208 -> 2141110 | D199: =A3A!D208 -> 2925169 | E199: =A3A!E208 -> 2744340 | F199: =A3A!F208 -> 6992451 | G199: =A3A!G208 -> 5778334 | H199: =A3A!H208 -> 5778334 | I199: =A3A!I208 -> 6953160.84 | J199: =A3A!J208 -> 6783136.01 | K199: =A3A!K208 -> 8591549.58
A200: Central City Improvement District
A201: Development Facilitation
... 53 more rows

Sheet A3-FinPerf V
A1: =muni&" - "&Approve2 -> LIM331 Greater Giyani - Table A3 Budgeted Financial Performance (revenue and expenditure by municipal vote)
A2: =Vdesc -> Vote Description | B2: =head27 -> Ref | C2: =head1b -> 2015/16 | D2: =head1A -> 2016/17 | E2: =Head1 -> 2017/18 | F2: =Head2 -> Current Year 2018/19 | I2: =Head3 -> 2019/20 Medium Term Revenue & Expenditure Framework | L2: =Head4 -> LTFS
A3: R thousand | C3: =Head5 -> Audited Outcome | D3: =Head5 -> Audited Outcome | E3: =Head5 -> Audited Outcome | F3: =Head6 -> Original Budget | G3: =Head7 -> Adjusted Budget | H3: =Head8 -> Full Year Forecast | I3: =Head9 -> Budget Year 2019/20 | J3: =Head10 -> Budget Year +1 2020/21 | K3: =Head11 -> Budget Year +2 2021/22 | L3: =Head12 -> Forecast 2022/23 | M3: =Head13 -> Forecast 2023/24 | N3: =Head14 -> Forecast 2024/25 | O3: =Head15 -> Forecast 2025/26 | P3: =Head16 -> Forecast 2026/27 | Q3: =Head17 -> Forecast 2027/28 | R3: =Head18 -> Forecast 2028/29 | S3: =Head19 -> Forecast 2029/30 | T3: =Head20 -> Forecast 2030/31 | U3: =Head21 -> Forecast 2031/32 | V3: =Head22 -> Forecast 2032/33 | W3: =Head23 -> Forecast 2033/34
A4: Revenue by Vote | B4: 1
A5: =A3A!A5 -> Vote 1 - Energy sources | C5: =A3A!C5 -> 0 | D5: =A3A!D5 -> 0 | E5: =A3A!E5 -> 0 | F5: =A3A!F5 -> 0 | G5: =A3A!G5 -> 0 | H5: =A3A!H5 -> 0 | I5: =A3A!I5 -> 0 | J5: =A3A!J5 -> 0 | K5: =A3A!K5 -> 0
A6: =A3A!A16 -> Vote 2 - Community and social services | C6: =A3A!C16 -> 249664 | D6: =A3A!D16 -> 465122.88 | E6: =A3A!E16 -> 251998 | F6: =A3A!F16 -> 258000 | G6: =A3A!G16 -> 512600 | H6: =A3A!H16 -> 512600 | I6: =A3A!I16 -> 623000 | J6: =A3A!J16 -> 660480 | K6: =A3A!K16 -> 693793.12
A7: =A3A!A27 -> Vote 3 - Finance and administration | C7: =A3A!C27 -> 385617401 | D7: =A3A!D27 -> 371804177.4 | E7: =A3A!E27 -> 405082665 | F7: =A3A!F27 -> 408247600 | G7: =A3A!G27 -> 381142564 | H7: =A3A!H27 -> 381142564 | I7: =A3A!I27 -> 413436000 | J7: =A3A!J27 -> 433067506 | K7: =A3A!K27 -> 469181843
A8: =A3A!A38 -> Vote 4 - Planning and development | C8: =A3A!C38 -> 637143 | D8: =A3A!D38 -> 546403 | E8: =A3A!E38 -> 561543 | F8: =A3A!F38 -> 880130 | G8: =A3A!G38 -> 855000 | H8: =A3A!H38 -> 855000 | I8: =A3A!I38 -> 1132000 | J8: =A3A!J38 -> 1216200 | K8: =A3A!K38 -> 1252822
A9: =A3A!A49 -> Vote 5 - Executive and council | C9: =A3A!C49 -> 0 | D9: =A3A!D49 -> 0 | E9: =A3A!E49 -> 0 | F9: =A3A!F49 -> 0 | G9: =A3A!G49 -> 0 | H9: =A3A!H49 -> 0 | I9: =A3A!I49 -> 0 | J9: =A3A!J49 -> 0 | K9: =A3A!K49 -> 0
A10: =A3A!A60 -> Vote 6 - Internal audit | C10: =A3A!C60 -> 0 | D10: =A3A!D60 -> 0 | E10: =A3A!E60 -> 0 | F10: =A3A!F60 -> 0 | G10: =A3A!G60 -> 0 | H10: =A3A!H60 -> 0 | I10: =A3A!I60 -> 0 | J10: =A3A!J60 -> 0 | K10: =A3A!K60 -> 0
A11: =A3A!A71 -> Vote 7 - Road transport | C11: =A3A!C71 -> 5266584 | D11: =A3A!D71 -> 4957505 | E11: =A3A!E71 -> 11395384 | F11: =A3A!F71 -> 7332000 | G11: =A3A!G71 -> 7200000 | H11: =A3A!H71 -> 7200000 | I11: =A3A!I71 -> 15500000 | J11: =A3A!J71 -> 16600000 | K11: =A3A!K71 -> 16650000
A12: =A3A!A82 -> Vote 8 - Public safety | C12: =A3A!C82 -> 0 | D12: =A3A!D82 -> 0 | E12: =A3A!E82 -> 0 | F12: =A3A!F82 -> 0 | G12: =A3A!G82 -> 0 | H12: =A3A!H82 -> 0 | I12: =A3A!I82 -> 0 | J12: =A3A!J82 -> 0 | K12: =A3A!K82 -> 0
A13: =A3A!A93 -> Vote 9 - Waste management | C13: =A3A!C93 -> 4239102 | D13: =A3A!D93 -> 4302622.81 | E13: =A3A!E93 -> 4620739 | F13: =A3A!F93 -> 4715600 | G13: =A3A!G93 -> 5350000 | H13: =A3A!H93 -> 5350000 | I13: =A3A!I93 -> 5450000 | J13: =A3A!J93 -> 5505000 | K13: =A3A!K93 -> 5506000
A14: =A3A!A104 -> Vote 10 - Sport and recreation | C14: =A3A!C104 -> 46526 | D14: =A3A!D104 -> 7729.54 | E14: =A3A!E104 -> 75520 | F14: =A3A!F104 -> 22000 | G14: =A3A!G104 -> 210000 | H14: =A3A!H104 -> 210000 | I14: =A3A!I104 -> 220000 | J14: =A3A!J104 -> 220000 | K14: =A3A!K104 -> 230000
A15: =A3A!A115 -> Vote 11 - Water management | C15: =A3A!C115 -> 285432 | D15: =A3A!D115 -> 0 | E15: =A3A!E115 -> 0 | F15: =A3A!F115 -> 0 | G15: =A3A!G115 -> 0 | H15: =A3A!H115 -> 0 | I15: =A3A!I115 -> 0 | J15: =A3A!J115 -> 0 | K15: =A3A!K115 -> 0 | L15: =A5A!L115 -> 0
A16: =A3A!A126 -> Vote 12 - Waste water management | C16: =A3A!C126 -> 0 | D16: =A3A!D126 -> 0 | E16: =A3A!E126 -> 0 | F16: =A3A!F126 -> 0 | G16: =A3A!G126 -> 0 | H16: =A3A!H126 -> 0 | I16: =A3A!I126 -> 0 | J16: =A3A!J126 -> 0 | K16: =A3A!K126 -> 0 | L16: =A5A!L126 -> 0
A17: =A3A!A137 -> Vote 13 - Housing | C17: =A3A!C137 -> 507771 | D17: =A3A!D137 -> 560280 | E17: =A3A!E137 -> 580464 | F17: =A3A!F137 -> 589000 | G17: =A3A!G137 -> 600000 | H17: =A3A!H137 -> 600000 | I17: =A3A!I137 -> 700000 | J17: =A3A!J137 -> 700000 | K17: =A3A!K137 -> 700000 | L17: =A5A!L137 -> 0
A18: =A3A!A148 -> Vote 14 - Finance and administration | C18: =A3A!C148 -> 0 | D18: =A3A!D148 -> 0 | E18: =A3A!E148 -> 0 | F18: =A3A!F148 -> 0 | G18: =A3A!G148 -> 0 | H18: =A3A!H148 -> 0 | I18: =A3A!I148 -> 0 | J18: =A3A!J148 -> 0 | K18: =A3A!K148 -> 0 | L18: =A5A!L148 -> 0
A19: =A3A!A159 -> Vote 15 - [NAME OF VOTE 15] | C19: =A3A!C159 -> 0 | D19: =A3A!D159 -> 0 | E19: =A3A!E159 -> 0 | F19: =A3A!F159 -> 0 | G19: =A3A!G159 -> 0 | H19: =A3A!H159 -> 0 | I19: =A3A!I159 -> 0 | J19: =A3A!J159 -> 0 | K19: =A3A!K159 -> 0 | L19: =A5A!L159 -> 0
A20: Total Revenue by Vote | B20: 2 | C20: =SUM(C5:C19) -> 396849623 | D20: =SUM(D5:D19) -> 382643840.7 | E20: 422568313 | F20: 422044330 | G20: 395870164 | H20: 395870164 | I20: 437061000 | J20: 457969186 | K20: 494214458.1
A22: Expenditure by Vote to be appropriated | B22: 1
A23: =A3A!A173 -> Vote 1 - Energy sources | C23: =A3A!C173 -> 30430247.81 | D23: =A3A!D173 -> 35597729 | E23: =A3A!E173 -> 32394539 | F23: =A3A!F173 -> 34983541 | G23: =A3A!G173 -> 53121473 | H23: =A3A!H173 -> 53121473 | I23: =A3A!I173 -> 35287529.57 | J23: =A3A!J173 -> 27738527.78 | K23: =A3A!K173 -> 36783892.36
A24: =A3A!A184 -> Vote 2 - Community and social services | C24: =A3A!C184 -> 8256380 | D24: =A3A!D184 -> 8075717 | E24: =A3A!E184 -> 7799130 | F24: =A3A!F184 -> 11760717 | G24: =A3A!G184 -> 9653091 | H24: =A3A!H184 -> 9653091 | I24: =A3A!I184 -> 11309842.53 | J24: =A3A!J184 -> 12064516.08 | K24: =A3A!K184 -> 12999220.05
A25: =A3A!A195 -> Vote 3 - Finance and administration | C25: =A3A!C195 -> 108371612 | D25: =A3A!D195 -> 153369685 | E25: =A3A!E195 -> 211727260.5 | F25: =A3A!F195 -> 137804013 | G25: =A3A!G195 -> 139595911 | H25: =A3A!H195 -> 139595911 | I25: =A3A!I195 -> 155971317.4 | J25: =A3A!J195 -> 171301644.2 | K25: =A3A!K195 -> 187456036.7
A26: =A3A!A206 -> Vote 4 - Planning and development | C26: =A3A!C206 -> 9754649.87 | D26: =A3A!D206 -> 13482589 | E26: =A3A!E206 -> 14357700 | F26: =A3A!F206 -> 27875622 | G26: =A3A!G206 -> 18375856 | H26: =A3A!H206 -> 18375856 | I26: =A3A!I206 -> 24317907.32 | J26: =A3A!J206 -> 19061344.28 | K26: =A3A!K206 -> 18382103.67
A27: =A3A!A217 -> Vote 5 - Executive and council | C27: =A3A!C217 -> 30003080 | D27: =A3A!D217 -> 35188330 | E27: =A3A!E217 -> 37459808 | F27: =A3A!F217 -> 37005766 | G27: =A3A!G217 -> 35479009 | H27: =A3A!H217 -> 35479009 | I27: =A3A!I217 -> 36481597.61 | J27: =A3A!J217 -> 39339626.83 | K27: =A3A!K217 -> 41831961.85
A28: =A3A!A228 -> Vote 6 - Internal audit | C28: =A3A!C228 -> 1518226 | D28: =A3A!D228 -> 1775065 | E28: =A3A!E228 -> 2157338 | F28: =A3A!F228 -> 2513344 | G28: =A3A!G228 -> 2121699 | H28: =A3A!H228 -> 2121699 | I28: =A3A!I228 -> 2588575.04 | J28: =A3A!J228 -> 2537240.78 | K28: =A3A!K228 -> 2738792.79
A29: =A3A!A239 -> Vote 7 - Road transport | C29: =A3A!C239 -> 64870842.07 | D29: =A3A!D239 -> 32028481 | E29: =A3A!E239 -> 29261961 | F29: =A3A!F239 -> 40064805 | G29: =A3A!G239 -> 38692758 | H29: =A3A!H239 -> 38692758 | I29: =A3A!I239 -> 42001221.48 | J29: =A3A!J239 -> 48338514.55 | K29: =A3A!K239 -> 52058656.75
A30: =A3A!A250 -> Vote 8 - Public safety | C30: =A3A!C250 -> 0 | D30: =A3A!D250 -> 0 | E30: =A3A!E250 -> 0 | F30: =A3A!F250 -> 150000 | G30: =A3A!G250 -> 140000 | H30: =A3A!H250 -> 140000 | I30: =A3A!I250 -> 100000 | J30: =A3A!J250 -> 150000 | K30: =A3A!K250 -> 190000
A31: =A3A!A261 -> Vote 9 - Waste management | C31: =A3A!C261 -> 11885067 | D31: =A3A!D261 -> 11175913 | E31: =A3A!E261 -> 10906035 | F31: =A3A!F261 -> 16825857 | G31: =A3A!G261 -> 12385406 | H31: =A3A!H261 -> 12385406 | I31: =A3A!I261 -> 12836029.55 | J31: =A3A!J261 -> 13965180.02 | K31: =A3A!K261 -> 16219843.98
A32: =A3A!A272 -> Vote 10 - Sport and recreation | C32: =A3A!C272 -> 5860621 | D32: =A3A!D272 -> 6161756 | E32: =A3A!E272 -> 5679297 | F32: =A3A!F272 -> 5925726 | G32: =A3A!G272 -> 6487819 | H32: =A3A!H272 -> 6487819 | I32: =A3A!I272 -> 7025909.89 | J32: =A3A!J272 -> 7454083.39 | K32: =A3A!K272 -> 7932333.91
A33: =A3A!A283 -> Vote 11 - Water management | C33: =A3A!C283 -> -787359.57 | D33: =A3A!D283 -> 0 | E33: =A3A!E283 -> 226696.46 | F33: =A3A!F283 -> 0 | G33: =A3A!G283 -> 0 | H33: =A3A!H283 -> 0 | I33: =A3A!I283 -> 0 | J33: =A3A!J283 -> 0 | K33: =A3A!K283 -> 0 | L33: =A3A!L284 -> 0
A34: =A3A!A294 -> Vote 12 - Waste water management | C34: =A3A!C294 -> -216209 | D34: =A3A!D294 -> 0 | E34: =A3A!E294 -> 0 | F34: =A3A!F294 -> 0 | G34: =A3A!G294 -> 0 | H34: =A3A!H294 -> 0 | I34: =A3A!I294 -> 0 | J34: =A3A!J294 -> 0 | K34: =A3A!K294 -> 0 | L34: =A3A!L295 -> 0
A35: =A3A!A305 -> Vote 13 - Housing | C35: =A3A!C305 -> 873796.26 | D35: =A3A!D305 -> 944669 | E35: =A3A!E305 -> 1114778 | F35: =A3A!F305 -> 1199329 | G35: =A3A!G305 -> 1154925 | H35: =A3A!H305 -> 1154925 | I35: =A3A!I305 -> 1277793.17 | J35: =A3A!J305 -> 1355285.18 | K35: =A3A!K305 -> 1447930.38 | L35: =A3A!L306 -> 0
A36: =A3A!A316 -> Vote 14 - Finance and administration | C36: =A3A!C316 -> 22006840.35 | D36: =A3A!D316 -> 24894295 | E36: =A3A!E316 -> 27075370 | F36: =A3A!F316 -> 35786262 | G36: =A3A!G316 -> 34604778 | H36: =A3A!H316 -> 34604778 | I36: =A3A!I316 -> 42993015.86 | J36: =A3A!J316 -> 48904134.9 | K36: =A3A!K316 -> 51968334.86 | L36: =A3A!L317 -> 0
A37: =A3A!A327 -> Vote 15 - [NAME OF VOTE 15] | C37: =A3A!C327 -> 0 | D37: =A3A!D327 -> 0 | E37: =A3A!E327 -> 0 | F37: =A3A!F327 -> 0 | G37: =A3A!G327 -> 0 | H37: =A3A!H327 -> 0 | I37: =A3A!I327 -> 0 | J37: =A3A!J327 -> 0 | K37: =A3A!K327 -> 0 | L37: =A3A!L328 -> 0
A38: Total Expenditure by Vote | B38: 2 | C38: =SUM(C23:C37) -> 292827793.8 | D38: =SUM(D23:D37) -> 322694229 | E38: 380159913 | F38: 351894982 | G38: 351812725 | H38: 351812725 | I38: 372190739.4 | J38: 392210097.9 | K38: 430009107.3 | L38: =SUM(L23:L29) -> 0 | M38: 0 | N38: 0 | O38: 0 | P38: 0 | Q38: 0 | R38: 0 | S38: 0 | T38: 0 | U38: 0 | V38: 0 | W38: 0
A39: =result -> Surplus/(Deficit) for the year | B39: 2 | C39: =C20-C38 -> 104021829.2 | D39: 59949611.66 | E39: 42408400 | F39: 70149348 | G39: 44057439 | H39: 44057439 | I39: 64870260.56 | J39: 65759088.05 | K39: 64205350.81 | L39: 0 | M39: 0 | N39: 0 | O39: 0 | P39: 0 | Q39: 0 | R39: 0 | S39: 0 | T39: 0 | U39: 0 | V39: 0 | W39: 0
A40: =head27a -> References
A41: 1. Insert 'Vote'; e.g. department, if different to functional classification structure
A42: 2. Must reconcile to Budgeted Financial Performance (revenue and expenditure)
A43: 3. Assign share in 'associate' to relevant Vote
A45: ="check "&A39 -> check Surplus/(Deficit) for the year | C45: =C39-A3A!C340 -> 0 | D45: =D39-A3A!D340 -> 0 | E45: =E39-A3A!E340 -> 0 | F45: =F39-A3A!F340 -> 0 | G45: =G39-A3A!G340 -> 0 | H45: =H39-A3A!H340 -> 0 | I45: =I39-A3A!I340 -> 0 | J45: =J39-A3A!J340 -> 0 | K45: =K39-A3A!K340 -> 0

Sheet A3A
A1: =muni&" - "&Approve2&"A" -> LIM331 Greater Giyani - Table A3 Budgeted Financial Performance (revenue and expenditure by municipal vote)A
A2: =Vdesc -> Vote Description | B2: =head27 -> Ref | C2: =head1b -> 2015/16 | D2: =head1A -> 2016/17 | E2: =Head1 -> 2017/18 | F2: =Head2 -> Current Year 2018/19 | I2: =Head3 -> 2019/20 Medium Term Revenue & Expenditure Framework | L2: =Head4 -> LTFS
A3: R thousand | C3: =Head5 -> Audited Outcome | D3: =Head5 -> Audited Outcome | E3: =Head5 -> Audited Outcome | F3: =Head6 -> Original Budget | G3: =Head7 -> Adjusted Budget | H3: =Head8 -> Full Year Forecast | I3: =Head9 -> Budget Year 2019/20 | J3: =Head10 -> Budget Year +1 2020/21 | K3: =Head11 -> Budget Year +2 2021/22 | L3: =Head12 -> Forecast 2022/23 | M3: =Head13 -> Forecast 2023/24 | N3: =Head14 -> Forecast 2024/25 | O3: =Head15 -> Forecast 2025/26 | P3: =Head16 -> Forecast 2026/27 | Q3: =Head17 -> Forecast 2027/28 | R3: =Head18 -> Forecast 2028/29 | S3: =Head19 -> Forecast 2029/30 | T3: =Head20 -> Forecast 2030/31 | U3: =Head21 -> Forecast 2031/32 | V3: =Head22 -> Forecast 2032/33 | W3: =Head23 -> Forecast 2033/34
A4: Revenue by Vote | B4: 1
A5: ='Org structure'!A2 -> Vote 1 - Energy sources | C5: =SUM(C6:C15) -> 0 | D5: =SUM(D6:D15) -> 0 | E5: 0 | F5: 0 | G5: 0 | H5: 0 | I5: 0 | J5: 0 | K5: 0
A6: ='Org structure'!E3 -> 1.1 - Electricity
A7: ='Org structure'!E4 -> 1.2 - Street Lighting and Signal Systems
A8: ='Org structure'!E5 -> 0
A9: ='Org structure'!E6 -> 0
A10: ='Org structure'!E7 -> 0
A11: ='Org structure'!E8 -> 0
A12: ='Org structure'!E9 -> 0
A13: ='Org structure'!E10 -> 0
A14: ='Org structure'!E11 -> 0
A15: ='Org structure'!E12 -> 0
A16: ='Org structure'!A3 -> Vote 2 - Community and social services | C16: =SUM(C17:C26) -> 249664 | D16: =SUM(D17:D26) -> 465122.88 | E16: 251998 | F16: 258000 | G16: 512600 | H16: 512600 | I16: 623000 | J16: 660480 | K16: 693793.12
A17: ='Org structure'!E14 -> 2.1 - Animal Care and Diseases | C17: 0 | D17: 0 | F17: 0
A18: ='Org structure'!E15 -> 2.2 - Community Halls and Facilities | C18: 192289 | D18: 198543 | E18: 180301 | F18: 175000 | G18: 200000 | H18: 200000 | I18: 300000 | J18: 320000 | K18: 335000
A19: ='Org structure'!E16 -> 2.3 - Libraries and Archives | C19: 3473 | D19: 2735.92 | E19: 3785 | F19: 0 | I19: 3000 | J19: 3200 | K19: 3300
A20: ='Org structure'!E17 -> 2.4 - Cemeteries, Funeral Parlours and Crematoriums | C20: 53902 | D20: 263843.96 | E20: 67912 | F20: 83000 | G20: 310000 | H20: 310000 | I20: 320000 | J20: 337280 | K20: 355493.12
A21: ='Org structure'!E18 -> 2.5 - Libraries and Archives | C21: 0 | D21: 0 | G21: 2600 | H21: 2600
A22: ='Org structure'!E19 -> 2.6 - Disaster Management | C22: 0 | D22: 0
A23: ='Org structure'!E20 -> 0
A24: ='Org structure'!E21 -> 0
A25: ='Org structure'!E22 -> 0
A26: ='Org structure'!E23 -> 0
A27: ='Org structure'!A4 -> Vote 3 - Finance and administration | C27: =SUM(C28:C37) -> 385617401 | D27: 371804177.4 | E27: 405082665 | F27: 408247600 | G27: 381142564 | H27: 381142564 | I27: 413436000 | J27: 433067506 | K27: 469181843
A28: ='Org structure'!E25 -> 3.1 - Fleet Management | C28: 12429 | D28: 16304.46 | E28: 15778.67 | F28: 17000 | G28: 17000 | H28: 17000 | I28: 18000 | J28: 19000 | K28: 19000
A29: ='Org structure'!E26 -> 3.2 - Budget and Treasury Office | C29: 0 | D29: 0 | F29: 0
A30: ='Org structure'!E27 -> 3.3 - Finance | C30: 384601817 | D30: 370376207.2 | E30: =403035916.73+964051 -> 403999967.7 | F30: 406900600 | G30: 380225564 | H30: 380225564 | I30: 412418000 | J30: 431960706 | K30: 467985202
A31: ='Org structure'!E28 -> 3.4 - Asset Management | C31: 427436 | D31: 0 | E31: 51432 | F31: 0
A32: ='Org structure'!E29 -> 3.5 - Human Resources | C32: 183775 | D32: 211632.72 | E32: 232881.89 | F32: 380000 | G32: 250000 | H32: 250000 | I32: 300000 | J32: 350000 | K32: 400000
A33: ='Org structure'!E30 -> 3.6 - Legal Services | C33: 0 | D33: 0 | F33: 0
A34: ='Org structure'!E31 -> 3.7 - Property Services | C34: 106303 | D34: 293278.79 | E34: 136489.36 | F34: 0
A35: ='Org structure'!E32 -> 3.8 - Risk Management | C35: 0 | D35: 0 | F35: 0
A36: ='Org structure'!E33 -> 3.9 - Supply Chain Management | C36: 285641 | D36: 906754.24 | E36: 646115.35 | F36: 950000 | G36: 650000 | H36: 650000 | I36: 700000 | J36: 737800 | K36: 777641
A37: ='Org structure'!E34 -> 0
A38: ='Org structure'!A5 -> Vote 4 - Planning and development | C38: =SUM(C39:C48) -> 637143 | D38: 546403 | E38: 561543 | F38: 880130 | G38: 855000 | H38: 855000 | I38: 1132000 | J38: 1216200 | K38: 1252822
A39: ='Org structure'!E36 -> 4.1 - Town Planning, Building Regulations and Enforcement, and City Engineer | C39: 497302 | D39: 435565 | E39: 447106 | F39: 758130 | G39: 733000 | H39: 733000 | I39: 1000000 | J39: 1077000 | K39: 1106100
A40: ='Org structure'!E37 -> 4.2 - Corporate Wide Strategic Planning (IDPs, LEDs) | C40: 139841 | D40: 110838 | E40: 114437 | F40: 122000 | G40: 122000 | H40: 122000 | I40: 132000 | J40: 139200 | K40: 146722
A41: ='Org structure'!E38 -> 4.3 - Economic Development/Planning
A42: ='Org structure'!E39 -> 4.4 - Project Management Unit
A43: ='Org structure'!E40 -> 0
A44: ='Org structure'!E41 -> 0
A45: ='Org structure'!E42 -> 0
A46: ='Org structure'!E43 -> 0
A47: ='Org structure'!E44 -> 0
A48: ='Org structure'!E45 -> 0
A49: ='Org structure'!A6 -> Vote 5 - Executive and council | C49: =SUM(C50:C59) -> 0 | D49: =SUM(D50:D59) -> 0 | E49: 0 | F49: 0 | G49: 0 | H49: 0 | I49: 0 | J49: 0 | K49: 0
A50: ='Org structure'!E47 -> 5.1 - Municipal Manager, Town Secretary and Chief Executive
A51: ='Org structure'!E48 -> 5.2 - Mayor and Council
A52: ='Org structure'!E49 -> 0
A53: ='Org structure'!E50 -> 0
A54: ='Org structure'!E51 -> 0
A55: ='Org structure'!E52 -> 0
A56: ='Org structure'!E53 -> 0
A57: ='Org structure'!E54 -> 0
A58: ='Org structure'!E55 -> 0
A59: ='Org structure'!E56 -> 0
A60: ='Org structure'!A7 -> Vote 6 - Internal audit | C60: =SUM(C61:C70) -> 0 | D60: =SUM(D61:D70) -> 0 | E60: 0 | F60: 0 | G60: 0 | H60: 0 | I60: 0 | J60: 0 | K60: 0
A61: ='Org structure'!E58 -> 6.1 - Governance Function
A62: ='Org structure'!E59 -> 0
A63: ='Org structure'!E60 -> 0
A64: ='Org structure'!E61 -> 0
A65: ='Org structure'!E62 -> 0
A66: ='Org structure'!E63 -> 0
A67: ='Org structure'!E64 -> 0
A68: ='Org structure'!E65 -> 0
A69: ='Org structure'!E66 -> 0
A70: ='Org structure'!E67 -> 0
A71: ='Org structure'!A8 -> Vote 7 - Road transport | C71: =SUM(C72:C81) -> 5266584 | D71: 4957505 | E71: 11395384 | F71: 7332000 | G71: 7200000 | H71: 7200000 | I71: 15500000 | J71: 16600000 | K71: 16650000
A72: ='Org structure'!E69 -> 7.1 - Taxi Ranks | I72: 500000 | J72: 500000 | K72: 550000
A73: ='Org structure'!E70 -> 7.2 - Road and Traffic Regulation | C73: 5266584 | D73: 4957505 | E73: 11395384 | F73: 7332000 | G73: 7200000 | H73: 7200000 | I73: 15000000 | J73: 16100000 | K73: 16100000
A74: ='Org structure'!E71 -> 7.3 - Public Transport
A75: ='Org structure'!E72 -> 7.4 - Roads
A76: ='Org structure'!E73 -> 0
A77: ='Org structure'!E74 -> 0
A78: ='Org structure'!E75 -> 0
A79: ='Org structure'!E76 -> 0
A80: ='Org structure'!E77 -> 0
A81: ='Org structure'!E78 -> 0
A82: ='Org structure'!A9 -> Vote 8 - Public safety | C82: =SUM(C83:C92) -> 0 | D82: =SUM(D83:D92) -> 0 | E82: 0 | F82: 0 | G82: 0 | H82: 0 | I82: 0 | J82: 0 | K82: 0
A83: ='Org structure'!E80 -> 8.1 - Cleansing
A84: ='Org structure'!E81 -> 8.2 - Fencing and Fences
A85: ='Org structure'!E82 -> 0
A86: ='Org structure'!E83 -> 0
A87: ='Org structure'!E84 -> 0
A88: ='Org structure'!E85 -> 0
A89: ='Org structure'!E86 -> 0
A90: ='Org structure'!E87 -> 0
A91: ='Org structure'!E88 -> 0
A92: ='Org structure'!E89 -> 0
A93: ='Org structure'!A10 -> Vote 9 - Waste management | C93: =SUM(C94:C103) -> 4239102 | D93: =SUM(D94:D103) -> 4302622.81 | E93: 4620739 | F93: 4715600 | G93: 5350000 | H93: 5350000 | I93: 5450000 | J93: 5505000 | K93: 5506000
A94: ='Org structure'!E91 -> 9.1 - Recycling
A95: ='Org structure'!E92 -> 9.2 - Solid Waste Disposal (Landfill Sites)
A96: ='Org structure'!E93 -> 9.3 - Solid Waste Removal | C96: 4239102 | D96: 4302622.81 | E96: 4620739 | F96: 4715600 | G96: 5350000 | H96: 5350000 | I96: 5450000 | J96: 5505000 | K96: 5506000
A97: ='Org structure'!E94 -> 0
A98: ='Org structure'!E95 -> 0
A99: ='Org structure'!E96 -> 0
A100: ='Org structure'!E97 -> 0
A101: ='Org structure'!E98 -> 0
A102: ='Org structure'!E99 -> 0
A103: ='Org structure'!E100 -> 0
A104: ='Org structure'!A11 -> Vote 10 - Sport and recreation | C104: =SUM(C105:C114) -> 46526 | D104: =SUM(D105:D114) -> 7729.54 | E104: 75520 | F104: 22000 | G104: 210000 | H104: 210000 | I104: 220000 | J104: 220000 | K104: 230000
A105: ='Org structure'!E102 -> 10.1 - Recreational Facilities
A106: ='Org structure'!E103 -> 10.2 - Sports Grounds and Stadiums | C106: 46526 | D106: 7729.54 | E106: 75520 | F106: 22000 | G106: 210000 | H106: 210000 | I106: 220000 | J106: 220000 | K106: 230000
A107: ='Org structure'!E104 -> 0
A108: ='Org structure'!E105 -> 0
A109: ='Org structure'!E106 -> 0
A110: ='Org structure'!E107 -> 0
A111: ='Org structure'!E108 -> 0
A112: ='Org structure'!E109 -> 0
A113: ='Org structure'!E110 -> 0
A114: ='Org structure'!E111 -> 0
A115: ='Org structure'!A12 -> Vote 11 - Water management | C115: =SUM(C116:C125) -> 285432 | D115: =SUM(D116:D125) -> 0 | E115: 0 | F115: 0 | G115: 0 | H115: 0 | I115: 0 | J115: 0 | K115: 0
A116: ='Org structure'!E113 -> 11.1 - Water Distribution | C116: 285432
A117: ='Org structure'!E114 -> 0
A118: ='Org structure'!E115 -> 0
A119: ='Org structure'!E116 -> 0
A120: ='Org structure'!E117 -> 0
A121: ='Org structure'!E118 -> 0
A122: ='Org structure'!E119 -> 0
A123: ='Org structure'!E120 -> 0
A124: ='Org structure'!E121 -> 0
A125: ='Org structure'!E122 -> 0
A126: ='Org structure'!A13 -> Vote 12 - Waste water management | C126: =SUM(C127:C136) -> 0 | D126: =SUM(D127:D136) -> 0 | E126: 0 | F126: 0 | G126: 0 | H126: 0 | I126: 0 | J126: 0 | K126: 0
A127: ='Org structure'!E124 -> 12.1 - Sewerage
A128: ='Org structure'!E125 -> 0
A129: ='Org structure'!E126 -> 0
A130: ='Org structure'!E127 -> 0
A131: ='Org structure'!E128 -> 0
A132: ='Org structure'!E129 -> 0
A133: ='Org structure'!E130 -> 0
A134: ='Org structure'!E131 -> 0
A135: ='Org structure'!E132 -> 0
A136: ='Org structure'!E133 -> 0
A137: ='Org structure'!A14 -> Vote 13 - Housing | C137: =SUM(C138:C147) -> 507771 | D137: =SUM(D138:D147) -> 560280 | E137: 580464 | F137: 589000 | G137: 600000 | H137: 600000 | I137: 700000 | J137: 700000 | K137: 700000
A138: ='Org structure'!E135 -> 13.1 - Housing | C138: 507771 | D138: 560280 | E138: 580464 | F138: 589000 | G138: 600000 | H138: 600000 | I138: 700000 | J138: 700000 | K138: 700000
A139: ='Org structure'!E136 -> 0
A140: ='Org structure'!E137 -> 0
A141: ='Org structure'!E138 -> 0
A142: ='Org structure'!E139 -> 0
A143: ='Org structure'!E140 -> 0
A144: ='Org structure'!E141 -> 0
A145: ='Org structure'!E142 -> 0
A146: ='Org structure'!E143 -> 0
A147: ='Org structure'!E144 -> 0
A148: ='Org structure'!A15 -> Vote 14 - Finance and administration | C148: =SUM(C149:C158) -> 0 | D148: =SUM(D149:D158) -> 0 | E148: 0 | F148: 0 | G148: 0 | H148: 0 | I148: 0 | J148: 0 | K148: 0
A149: ='Org structure'!E146 -> 14.1 - Security Services
A150: ='Org structure'!E147 -> 14.2 - Administrative and Corporate Support
A151: ='Org structure'!E148 -> 14.3 - Information Technology
A152: ='Org structure'!E149 -> 0
A153: ='Org structure'!E150 -> 0
A154: ='Org structure'!E151 -> 0
A155: ='Org structure'!E152 -> 0
A156: ='Org structure'!E153 -> 0
A157: ='Org structure'!E154 -> 0
A158: ='Org structure'!E155 -> 0
A159: ='Org structure'!A16 -> Vote 15 - [NAME OF VOTE 15] | C159: =SUM(C160:C169) -> 0 | D159: =SUM(D160:D169) -> 0 | E159: 0 | F159: 0 | G159: 0 | H159: 0 | I159: 0 | J159: 0 | K159: 0
A160: ='Org structure'!E157 -> 15.1 - [Name of sub-vote]
A161: ='Org structure'!E158 -> 0
A162: ='Org structure'!E159 -> 0
A163: ='Org structure'!E160 -> 0
A164: ='Org structure'!E161 -> 0
A165: ='Org structure'!E162 -> 0
A166: ='Org structure'!E163 -> 0
A167: ='Org structure'!E164 -> 0
A168: ='Org structure'!E165 -> 0
A169: ='Org structure'!E166 -> 0
A170: Total Revenue by Vote | B170: 2 | C170: =C5+C16+C27+C38+C49+C60+C71+C82+C93+C104+C115+C126+C137+C148+C159 -> 396849623 | D170: =D5+D16+D27+D38+D49+D60+D71+D82+D93+D104+D115+D126+D137+D148+D159 -> 382643840.7 | E170: =E5+E16+E27+E38+E49+E60+E71+E82+E93+E104+E115+E126+E137+E148+E159 -> 422568313 | F170: 422044330 | G170: 395870164 | H170: 395870164 | I170: =I5+I16+I27+I38+I49+I60+I71+I82+I93+I104+I115+I126+I137+I148+I159 -> 437061000 | J170: 457969186 | K170: 494214458.1 | L170: =SUM(L78:L81) -> 0 | M170: 0 | N170: 0 | O170: 0 | P170: 0 | Q170: 0 | R170: 0 | S170: 0 | T170: 0 | U170: 0 | V170: 0 | W170: 0
A172: Expenditure by Vote | B172: 1
A173: =A5 -> Vote 1 - Energy sources | C173: =SUM(C174:C183) -> 30430247.81 | D173: 35597729 | E173: 32394539 | F173: 34983541 | G173: 53121473 | H173: 53121473 | I173: 35287529.57 | J173: 27738527.78 | K173: 36783892.36
A174: =A6 -> 1.1 - Electricity | C174: 30430247.81 | D174: 35597729 | E174: 32394539 | F174: 34983541 | G174: =49521473-300000+4700000-800000 -> 53121473 | H174: =49521473-300000+4700000-800000 -> 53121473 | I174: 35287529.57 | J174: 27738527.78 | K174: 36783892.36
A175: 1.2 - Street Lighting and Signal Systems
A176: 0
A177: 0
A178: 0
A179: 0
A180: 0
A181: 0
A182: 0
A183: 0
A184: =A16 -> Vote 2 - Community and social services | C184: =SUM(C185:C194) -> 8256380 | D184: =SUM(D185:D194) -> 8075717 | E184: =SUM(E185:E194) -> 7799130 | F184: 11760717 | G184: 9653091 | H184: 9653091 | I184: 11309842.53 | J184: 12064516.08 | K184: 12999220.05
A185: =A17 -> 2.1 - Animal Care and Diseases | C185: 0 | D185: 535665 | E185: 563185 | F185: 720192 | G185: 618539 | H185: 618539 | I185: 745614.39 | J185: 828040.74 | K185: 883123.46
A186: 2.2 - Community Halls and Facilities | C186: 3184265 | D186: 2750414 | E186: 3090338 | F186: 4868668 | G186: 4884394 | H186: 4884394 | I186: 5016026.34 | J186: 5349176.61 | K186: 5741151.34
A187: 2.3 - Libraries and Archives | C187: 632956 | D187: 0 | F187: 0
A188: 2.4 - Cemeteries, Funeral Parlours and Crematoriums | C188: 2881373 | D188: 2792155 | E188: 2901061 | F188: 3949547 | G188: 3010155 | H188: 3010155 | I188: 3194757.89 | J188: 3397234.3 | K188: 3723175.39
A189: 2.5 - Libraries and Archives | C189: 0 | D189: 489090 | E189: 368937 | F189: 564950 | G189: 476214 | H189: 476214 | I189: 634314.54 | J189: 670910.46 | K189: 708940
A190: 2.6 - Disaster Management | C190: 1557786 | D190: 1508393 | E190: 875609 | F190: 1657360 | G190: 663789 | H190: 663789 | I190: 1719129.37 | J190: 1819153.97 | K190: 1942829.86
A191: 0
A192: 0
A193: 0
A194: 0
A195: =A27 -> Vote 3 - Finance and administration | C195: =SUM(C196:C205) -> 108371612 | D195: 153369685 | E195: 211727260.5 | F195: 137804013 | G195: 139595911 | H195: 139595911 | I195: 155971317.4 | J195: 171301644.2 | K195: 187456036.7
A196: 3.1 - Fleet Management | C196: 7058267 | D196: 7308696 | E196: 6464521 | F196: 8637778 | G196: 10671255 | H196: 10671255 | I196: 9785666.16 | J196: 9916789.28 | K196: 11057188.07
A197: 3.2 - Budget and Treasury Office | C197: 5266635 | D197: 5542579 | E197: 8722624 | F197: 6678032 | G197: 11002997 | H197: 11002997
A198: 3.3 - Finance | C198: 29805318 | D198: 59374258 | E198: 57687995 | F198: 31975072 | G198: 27604533 | H198: 27604533 | I198: 47504687.79 | J198: 52600774.46 | K198: 60086339.16
A199: 3.4 - Asset Management | C199: 24625658 | D199: 42877678 | E199: =262633412.09-166380612 -> 96252800.09 | F199: 39479497 | G199: 41763745 | H199: 41763745 | I199: 42562573.53 | J199: 44658551.39 | K199: 45175337.02
A200: 3.5 - Human Resources | C200: 20340353 | D200: 15691006 | E200: 17592100.45 | F200: 13973307 | G200: 16351009 | H200: 16351009 | I200: 17059043.1 | J200: 21621406.39 | K200: 24716677.04
A201: 3.6 - Legal Services | C201: 1635413 | D201: 1221396 | E201: 5505035 | F201: 7811381 | G201: 9295669 | H201: 9295669 | I201: 6222259.47 | J201: 6786848.22 | K201: 7486732.13
... 144 more rows

Sheet A4-FinPerf RE
A1: =muni&" - "&Approve4 -> LIM331 Greater Giyani - Table A4 Budgeted Financial Performance (revenue and expenditure)
A2: =desc -> Description | B2: =head27 -> Ref | C2: =head1b -> 2015/16 | D2: =head1A -> 2016/17 | E2: =Head1 -> 2017/18 | F2: =Head2 -> Current Year 2018/19 | J2: =Head3 -> 2019/20 Medium Term Revenue & Expenditure Framework | M2: =Head4 -> LTFS
A3: R thousand | B3: 1 | C3: =Head5 -> Audited Outcome | D3: =Head5 -> Audited Outcome | E3: =Head5 -> Audited Outcome | F3: =Head6 -> Original Budget | G3: =Head7 -> Adjusted Budget | H3: =Head8 -> Full Year Forecast | I3: =Head5b -> Pre-audit outcome | J3: =Head9 -> Budget Year 2019/20 | K3: =Head10 -> Budget Year +1 2020/21 | L3: =Head11 -> Budget Year +2 2021/22 | M3: =Head12 -> Forecast 2022/23 | N3: =Head13 -> Forecast 2023/24 | O3: =Head14 -> Forecast 2024/25 | P3: =Head15 -> Forecast 2025/26 | Q3: =Head16 -> Forecast 2026/27 | R3: =Head17 -> Forecast 2027/28 | S3: =Head18 -> Forecast 2028/29 | T3: =Head19 -> Forecast 2029/30 | U3: =Head20 -> Forecast 2030/31 | V3: =Head21 -> Forecast 2031/32 | W3: =Head22 -> Forecast 2032/33 | X3: =Head23 -> Forecast 2033/34
A4: Revenue By Source
A5: Property rates | B5: 2 | C5: ='SA1'!C9 -> 30675862 | D5: ='SA1'!D9 -> 33865255 | E5: ='SA1'!E9 -> 35238339 | F5: ='SA1'!F9 -> 35000000 | G5: ='SA1'!G9 -> 38000000 | H5: ='SA1'!H9 -> 38000000 | I5: ='SA1'!I9 -> 38000000 | J5: ='SA1'!J9 -> 39976000 | K5: ='SA1'!K9 -> 42134706 | L5: ='SA1'!L9 -> 44409977
A6: Service charges - electricity revenue | B6: 2 | C6: ='SA1'!C15 -> 0 | D6: ='SA1'!D15 -> 0 | E6: ='SA1'!E15 -> 0 | F6: ='SA1'!F15 -> 0 | G6: ='SA1'!G15 -> 0 | H6: ='SA1'!H15 -> 0 | I6: ='SA1'!I15 -> 0 | J6: ='SA1'!J15 -> 0 | K6: ='SA1'!K15 -> 0 | L6: ='SA1'!L15 -> 0
A7: Service charges - water revenue | B7: 2 | C7: ='SA1'!C21 -> 0 | D7: ='SA1'!D21 -> 0 | E7: ='SA1'!E21 -> 0 | F7: ='SA1'!F21 -> 0 | G7: ='SA1'!G21 -> 0 | H7: ='SA1'!H21 -> 0 | I7: ='SA1'!I21 -> 0 | J7: ='SA1'!J21 -> 0 | K7: ='SA1'!K21 -> 0 | L7: ='SA1'!L21 -> 0
A8: Service charges - sanitation revenue | B8: 2 | C8: ='SA1'!C27 -> 0 | D8: ='SA1'!D27 -> 0 | E8: ='SA1'!E27 -> 0 | F8: ='SA1'!F27 -> 0 | G8: ='SA1'!G27 -> 0 | H8: ='SA1'!H27 -> 0 | I8: ='SA1'!I27 -> 0 | J8: ='SA1'!J27 -> 0 | K8: ='SA1'!K27 -> 0 | L8: ='SA1'!L27 -> 0
A9: Service charges - refuse revenue | B9: 2 | C9: ='SA1'!C34 -> 4236874 | D9: ='SA1'!D34 -> 4472542 | E9: ='SA1'!E34 -> 4594593 | F9: ='SA1'!F34 -> 4700000 | G9: ='SA1'!G34 -> 5300000 | H9: ='SA1'!H34 -> 5300000 | I9: ='SA1'!I34 -> 5300000 | J9: ='SA1'!J34 -> 5400000 | K9: ='SA1'!K34 -> 5450000 | L9: ='SA1'!L34 -> 5450000
A11: Rental of facilities and equipment | C11: 880291 | D11: 880126 | E11: 836285 | F11: 788000 | G11: 1012000 | H11: 1012000 | I11: 1012000 | J11: 1222000 | K11: 1242100 | L11: 1267222
A12: Interest earned - external investments | C12: 13400970 | D12: 15174630 | E12: 11958996 | F12: 15200000 | G12: 4880000 | H12: 4880000 | I12: 4880000 | J12: 5000000 | K12: 5100000 | L12: 5150000
A13: Interest earned - outstanding debtors | C13: 8472698 | D13: 5645953 | E13: 12205023 | F13: 6000000 | G13: 2000000 | H13: 2000000 | I13: 2000000 | J13: 3400000 | K13: 3583600 | L13: 3777133
A14: Dividends received | D14: 0 | F14: 0 | J14: 0 | K14: 0 | L14: 0
A15: Fines, penalties and forfeits | C15: 92765 | D15: 31259 | E15: 6256181 | F15: 32000 | G15: 2200000 | H15: 2200000 | I15: 2200000 | J15: 10000000 | K15: 11000000 | L15: 11000000
A16: Licences and permits | C16: 5173819 | D16: 4926246 | E16: 5160503 | F16: 7300000 | G16: 5080000 | H16: 5080000 | I16: 5080000 | J16: 6000000 | K16: 6100000 | L16: 6150000
A17: Agency services | C17: 285432 | D17: 318997 | E17: 226696 | F17: 0 | J17: 0 | K17: 0 | L17: 0
A18: Transfers and subsidies | C18: 226341284 | D18: 222487633 | E18: 241319882 | F18: 270595000 | G18: 275930566 | H18: 275930566 | I18: 275930566 | J18: 303024000 | K18: 316807000 | L18: 345521000
A19: Other revenue | B19: 2 | C19: ='SA1'!C49 -> 1161563.05 | D19: ='SA1'!D49 -> 1841546 | E19: ='SA1'!E49 -> 1579116 | F19: ='SA1'!F49 -> 22956330 | G19: ='SA1'!G49 -> 1994600 | H19: ='SA1'!H49 -> 1994600 | I19: ='SA1'!I49 -> 1994600 | J19: ='SA1'!J49 -> 2351000 | K19: ='SA1'!K49 -> 2502780 | L19: ='SA1'!L49 -> 2605125
A20: Gains on disposal of PPE | C20: 427436 | E20: 541919
A21: Total Revenue (excluding capital transfers and contributions) | C21: =SUM(C5:C9)+SUM(C11:C20) -> 291148994.1 | D21: =SUM(D5:D9)+SUM(D11:D20) -> 289644187 | E21: 319917533 | F21: 362571330 | G21: 336397166 | H21: 336397166 | I21: 336397166 | J21: 376373000 | K21: 393920186 | L21: 425330457 | M21: =SUM(M5:M20) -> 0 | N21: 0 | O21: 0 | P21: 0 | Q21: 0 | R21: 0 | S21: 0 | T21: 0 | U21: 0 | V21: 0 | W21: 0 | X21: 0
A23: Expenditure By Type
A24: Employee related costs | B24: 2 | C24: ='SA1'!C67 -> 108057434.8 | D24: ='SA1'!D67 -> 119525379 | E24: ='SA1'!E67 -> 125313885 | F24: ='SA1'!F67 -> 151097072 | G24: ='SA1'!G67 -> 139655039 | H24: ='SA1'!H67 -> 139655039 | I24: ='SA1'!I67 -> 139655039 | J24: ='SA1'!J67 -> 164551022 | K24: ='SA1'!K67 -> 180024265.2 | L24: ='SA1'!L67 -> 193364522.1
A25: Remuneration of councillors | C25: 18273962 | D25: 19431700 | E25: 22143882 | F25: 23856763 | G25: 22921432 | H25: 22921432 | I25: 22921432 | J25: 23922552.37 | K25: 25513402.09 | L25: 27210043.34
A26: Debt impairment | B26: 3 | C26: 7245980 | D26: 25229239 | E26: 39446358 | F26: 10000000 | G26: 10000000 | H26: 10000000 | I26: 10000000 | J26: 16000000 | K26: 20000000 | L26: 25000000
A27: Depreciation & asset impairment | B27: 2 | C27: ='SA1'!C83 -> 20361720 | D27: ='SA1'!D83 -> 38553790 | E27: ='SA1'!E83 -> 84607767 | F27: ='SA1'!F83 -> 30000000 | G27: ='SA1'!G83 -> 30000000 | H27: ='SA1'!H83 -> 30000000 | I27: ='SA1'!I83 -> 30000000 | J27: ='SA1'!J83 -> 30000000 | K27: ='SA1'!K83 -> 30000000 | L27: ='SA1'!L83 -> 30000000
A28: Finance charges | E28: 111400
A29: Bulk purchases | B29: 2 | C29: ='SA1'!C88 -> 0 | D29: ='SA1'!D88 -> 0 | E29: ='SA1'!E88 -> 0 | F29: ='SA1'!F88 -> 0 | G29: ='SA1'!G88 -> 0 | H29: ='SA1'!H88 -> 0 | I29: ='SA1'!I88 -> 0 | J29: ='SA1'!J88 -> 0 | K29: ='SA1'!K88 -> 0 | L29: ='SA1'!L88 -> 0
A30: Other materials | B30: 8 | C30: 25776515.93 | D30: 16265310 | E30: 0 | F30: 10855118 | G30: 4000000 | H30: 4000000 | I30: 4000000 | J30: 9000000 | K30: 12000000 | L30: 14790000
A31: Contracted services | C31: ='SA1'!C127 -> 301209.65 | D31: ='SA1'!D127 -> 0 | E31: ='SA1'!E127 -> 52028133 | F31: ='SA1'!F127 -> 70884452 | G31: ='SA1'!G127 -> 89966647 | H31: ='SA1'!H127 -> 89966647 | I31: ='SA1'!I127 -> 89966647 | J31: ='SA1'!J127 -> 71238008 | K31: ='SA1'!K127 -> 57442513 | L31: ='SA1'!L127 -> 69224708
A32: Transfers and subsidies | C32: ='SA1'!C93 -> 0 | D32: ='SA1'!D93 -> 0 | E32: ='SA1'!E93 -> 0 | F32: ='SA1'!F93 -> 0 | G32: ='SA1'!G93 -> 0 | H32: ='SA1'!H93 -> 0 | I32: ='SA1'!I93 -> 0 | J32: ='SA1'!J93 -> 0 | K32: ='SA1'!K93 -> 0 | L32: ='SA1'!L93 -> 0
A33: Other expenditure | B33: 4, 5 | C33: ='SA1'!C157 -> 112810971.5 | D33: ='SA1'!D157 -> 101309089.3 | E33: ='SA1'!E157 -> 56508488 | F33: ='SA1'!F157 -> 55201577 | G33: ='SA1'!G157 -> 55269609 | H33: ='SA1'!H157 -> 55269609 | I33: ='SA1'!I157 -> 55269609 | J33: ='SA1'!J157 -> 57479157.09 | K33: ='SA1'!K157 -> 67229917.62 | L33: ='SA1'!L157 -> 70419832.77
A34: Loss on disposal of PPE | D34: 2379722
A35: Total Expenditure | C35: =SUM(C24:C34) -> 292827793.8 | D35: =SUM(D24:D34) -> 322694229.3 | E35: 380159913 | F35: 351894982 | G35: 351812727 | H35: 351812727 | I35: 351812727 | J35: 372190739.4 | K35: 392210097.9 | L35: 430009106.2 | M35: =SUM(M24:M34) -> 0 | N35: 0 | O35: 0 | P35: 0 | Q35: 0 | R35: 0 | S35: 0 | T35: 0 | U35: 0 | V35: 0 | W35: 0 | X35: 0
A37: Surplus/(Deficit) | C37: =C21-C35 -> -1678799.79 | D37: -33050042.34 | E37: -60242380 | F37: 10676348 | G37: -15415561 | H37: -15415561 | I37: -15415561 | J37: 4182260.56 | K37: 1710088.05 | L37: -4678649.19 | M37: =M21+M35 -> 0 | N37: 0 | O37: 0 | P37: 0 | Q37: 0 | R37: 0 | S37: 0 | T37: 0 | U37: 0 | V37: 0 | W37: 0 | X37: 0
A38: Transfers and subsidies - capital (monetary allocations) (National / Provincial and District) | C38: 105700629 | D38: 92999654 | E38: 102650780 | F38: 59473000 | G38: 59473000 | H38: 59473000 | I38: 59473000 | J38: ='[5]6115_Revenue'!$O$46 -> 60688000 | K38: ='[5]6115_Revenue'!$P$46 -> 64049000 | L38: ='[5]6115_Revenue'!$Q$46 -> 68884000
A39: Transfers and subsidies - capital (monetary allocations) (National / Provincial Departmental Agencies, Households, Non-profit Institutions, Private Enterprises, Public Corporatons, Higher Educational Institutions) | B39: 6 | C39: ='SA1'!C76 -> 0 | D39: ='SA1'!D76 -> 0 | E39: ='SA1'!E76 -> 0 | F39: ='SA1'!F76 -> 0 | G39: ='SA1'!G76 -> 0 | H39: ='SA1'!H76 -> 0 | I39: ='SA1'!I76 -> 0 | J39: ='SA1'!J76 -> 0 | K39: ='SA1'!K76 -> 0 | L39: ='SA1'!L76 -> 0
A40: Transfers and subsidies - capital (in-kind - all)
A41: Surplus/(Deficit) after capital transfers & contributions | C41: =SUM(C37:C40) -> 104021829.2 | D41: 59949611.66 | E41: 42408400 | F41: 70149348 | G41: 44057439 | H41: 44057439 | I41: 44057439 | J41: 64870260.56 | K41: 65759088.05 | L41: 64205350.81
A42: Taxation
A43: Surplus/(Deficit) after taxation | C43: =C41-C42 -> 104021829.2 | D43: 59949611.66 | E43: 42408400 | F43: 70149348 | G43: 44057439 | H43: 44057439 | I43: 44057439 | J43: 64870260.56 | K43: 65759088.05 | L43: 64205350.81
A44: Attributable to minorities
A45: Surplus/(Deficit) attributable to municipality | C45: =SUM(C43:C44) -> 104021829.2 | D45: 59949611.66 | E45: 42408400 | F45: 70149348 | G45: 44057439 | H45: 44057439 | I45: 44057439 | J45: 64870260.56 | K45: 65759088.05 | L45: 64205350.81
A46: Share of surplus/ (deficit) of associate | B46: 7
A47: =result -> Surplus/(Deficit) for the year | C47: =SUM(C45:C46) -> 104021829.2 | D47: 59949611.66 | E47: 42408400 | F47: 70149348 | G47: 44057439 | H47: 44057439 | I47: 44057439 | J47: 64870260.56 | K47: 65759088.05 | L47: 64205350.81 | M47: =M25+M46 -> 0 | N47: 0 | O47: 0 | P47: 0 | Q47: 0 | R47: 0 | S47: 0 | T47: 0 | U47: 0 | V47: 0 | W47: 0 | X47: 0
A48: =head27a -> References
A49: 1. Classifications are revenue sources and expenditure type
A50: 2. Detail to be provided in Table SA1
A51: 3. Previously described as 'bad or doubtful debts' - amounts shown should reflect the change in the provision for debt impairment
A52: 4. Expenditure type components previously shown under repairs and maintenance should be allocated back to the originating expenditure group/item; e.g. employee costs
A53: 5. Repairs & maintenance detailed in Table A9 and Table SA34c
A54: 6. Contributions are funds provided by external organisations to assist with infrastructure development; e.g. developer contributions (detail to be provided in Table SA1)
A55: 7. Equity method ( Includes Joint Ventures)
A56: 8. All materials not part of 'bulk' e.g road making materials, pipe, cable etc.
A57: check balance | C57: =C45-'A3-FinPerf V'!C39 -> 0 | D57: =D45-'A3-FinPerf V'!D39 -> -5.960464478e-08 | E57: =E45-'A3-FinPerf V'!E39 -> 0 | F57: =F45-'A3-FinPerf V'!F39 -> 0 | G57: =G45-'A3-FinPerf V'!G39 -> 0 | H57: =H45-'A3-FinPerf V'!H39 -> 0 | J57: =J45-'A3-FinPerf V'!I39 -> 0 | K57: =K45-'A3-FinPerf V'!J39 -> 0 | L57: =L45-'A3-FinPerf V'!K39 -> 0
A59: Total revenue | C59: =C21+SUM(C38:C40) -> 396849623.1 | D59: 382643841 | E59: 422568313 | F59: 422044330 | G59: 395870166 | H59: 395870166 | I59: 395870166 | J59: 437061000 | K59: 457969186 | L59: 494214457

Sheet A5-Capex
A2: =Vdesc -> Vote Description | B2: =head27 -> Ref | C2: =head1b -> 2015/16 | D2: =head1A -> 2016/17 | E2: =Head1 -> 2017/18 | F2: =Head2 -> Current Year 2018/19 | J2: =Head3 -> 2019/20 Medium Term Revenue & Expenditure Framework
A3: R thousand | B3: 1 | C3: =Head5 -> Audited Outcome | D3: =Head5 -> Audited Outcome | E3: =Head5 -> Audited Outcome | F3: =Head6 -> Original Budget | G3: =Head7 -> Adjusted Budget | H3: =Head8 -> Full Year Forecast | I3: =Head5b -> Pre-audit outcome | J3: =Head9 -> Budget Year 2019/20 | K3: =Head10 -> Budget Year +1 2020/21 | L3: =Head11 -> Budget Year +2 2021/22
A4: Capital expenditure - Vote
A5: Multi-year expenditure to be appropriated | B5: 2
A6: =A5A!A6 -> Vote 1 - Energy sources | C6: =A5A!C6 -> 0 | D6: =A5A!D6 -> 0 | E6: =A5A!E6 -> 0 | F6: =A5A!F6 -> 3500000 | G6: =A5A!G6 -> 1000000 | H6: =A5A!H6 -> 1000000 | I6: =A5A!I6 -> 1000000 | J6: =A5A!J6 -> 1400000 | K6: =A5A!K6 -> 0 | L6: =A5A!L6 -> 0
A7: =A5A!A17 -> Vote 2 - Community and social services | C7: =A5A!C17 -> 15204639.29 | D7: =A5A!D17 -> 0 | E7: =A5A!E17 -> 1066420.01 | F7: =A5A!F17 -> 2250000 | G7: =A5A!G17 -> 0 | H7: =A5A!H17 -> 0 | I7: =A5A!I17 -> 0 | J7: =A5A!J17 -> 100000 | K7: =A5A!K17 -> 0 | L7: =A5A!L17 -> 40439800
A8: =A5A!A28 -> Vote 3 - Finance and administration | C8: =A5A!C28 -> 0 | D8: =A5A!D28 -> 0 | E8: =A5A!E28 -> 152842 | F8: =A5A!F28 -> 4000000 | G8: =A5A!G28 -> 8000000 | H8: =A5A!H28 -> 8000000 | I8: =A5A!I28 -> 8000000 | J8: =A5A!J28 -> 500000 | K8: =A5A!K28 -> 1000000 | L8: =A5A!L28 -> 1000000
A9: =A5A!A39 -> Vote 4 - Planning and development | C9: =A5A!C39 -> 0 | D9: =A5A!D39 -> 0 | E9: =A5A!E39 -> 0 | F9: =A5A!F39 -> 0 | G9: =A5A!G39 -> 0 | H9: =A5A!H39 -> 0 | I9: =A5A!I39 -> 0 | J9: =A5A!J39 -> 1166666 | K9: =A5A!K39 -> 1166666 | L9: =A5A!L39 -> 1166666
A10: =A5A!A50 -> Vote 5 - Executive and council | C10: =A5A!C50 -> 0 | D10: =A5A!D50 -> 0 | E10: =A5A!E50 -> 0 | F10: =A5A!F50 -> 0 | G10: =A5A!G50 -> 0 | H10: =A5A!H50 -> 0 | I10: =A5A!I50 -> 0 | J10: =A5A!J50 -> 0 | K10: =A5A!K50 -> 0 | L10: =A5A!L50 -> 0
A11: =A5A!A61 -> Vote 6 - Internal audit | C11: =A5A!C61 -> 0 | D11: =A5A!D61 -> 0 | E11: =A5A!E61 -> 0 | F11: =A5A!F61 -> 0 | G11: =A5A!G61 -> 0 | H11: =A5A!H61 -> 0 | I11: =A5A!I61 -> 0 | J11: =A5A!J61 -> 0 | K11: =A5A!K61 -> 0 | L11: =A5A!L61 -> 0
A12: =A5A!A72 -> Vote 7 - Road transport | C12: =A5A!C72 -> 20734494.4 | D12: =A5A!D72 -> 25353565.88 | E12: =A5A!E72 -> 65094173 | F12: =A5A!F72 -> 44166027 | G12: =A5A!G72 -> 53897078 | H12: =A5A!H72 -> 53897078 | I12: =A5A!I72 -> 53897078 | J12: =A5A!J72 -> 40002820 | K12: =A5A!K72 -> 46842616 | L12: =A5A!L72 -> 22242122
A13: =A5A!A83 -> Vote 8 - Public safety | C13: =A5A!C83 -> 0 | D13: =A5A!D83 -> 0 | E13: =A5A!E83 -> 0 | F13: =A5A!F83 -> 1500000 | G13: =A5A!G83 -> 0 | H13: =A5A!H83 -> 0 | I13: =A5A!I83 -> 0 | J13: =A5A!J83 -> 0 | K13: =A5A!K83 -> 0 | L13: =A5A!L83 -> 0
A14: =A5A!A94 -> Vote 9 - Waste management | C14: =A5A!C94 -> 3684803 | D14: =A5A!D94 -> 0 | E14: =A5A!E94 -> 13274995 | F14: =A5A!F94 -> 18468083 | G14: =A5A!G94 -> 1000000 | H14: =A5A!H94 -> 1000000 | I14: =A5A!I94 -> 1000000 | J14: =A5A!J94 -> 12500000 | K14: =A5A!K94 -> 31537806 | L14: =A5A!L94 -> 7000000
A15: =A5A!A105 -> Vote 10 - Sport and recreation | C15: =A5A!C105 -> 22244292 | D15: =A5A!D105 -> 2020672 | E15: =A5A!E105 -> 20024557 | F15: =A5A!F105 -> 13365240 | G15: =A5A!G105 -> 5110000 | H15: =A5A!H105 -> 5110000 | I15: =A5A!I105 -> 5110000 | J15: =A5A!J105 -> 23250780 | K15: =A5A!K105 -> 0 | L15: =A5A!L105 -> 15000000
A16: =A5A!A116 -> Vote 11 - Water management | C16: =A5A!C116 -> 0 | D16: =A5A!D116 -> 0 | E16: =A5A!E116 -> 0 | F16: =A5A!F116 -> 0 | G16: =A5A!G116 -> 0 | H16: =A5A!H116 -> 0 | I16: =A5A!I116 -> 0 | J16: =A5A!J116 -> 0 | K16: =A5A!K116 -> 0 | L16: =A5A!L116 -> 0
A17: =A5A!A127 -> Vote 12 - Waste water management | C17: =A5A!C127 -> 0 | D17: =A5A!D127 -> 0 | E17: =A5A!E127 -> 0 | F17: =A5A!F127 -> 0 | G17: =A5A!G127 -> 0 | H17: =A5A!H127 -> 0 | I17: =A5A!I127 -> 0 | J17: =A5A!J127 -> 0 | K17: =A5A!K127 -> 0 | L17: =A5A!L127 -> 0
A18: =A5A!A138 -> Vote 13 - Housing | C18: =A5A!C138 -> 0 | D18: =A5A!D138 -> 0 | E18: =A5A!E138 -> 0 | F18: =A5A!F138 -> 0 | G18: =A5A!G138 -> 0 | H18: =A5A!H138 -> 0 | I18: =A5A!I138 -> 0 | J18: =A5A!J138 -> 0 | K18: =A5A!K138 -> 0 | L18: =A5A!L138 -> 0
A19: =A5A!A149 -> Vote 14 - Finance and administration | C19: =A5A!C149 -> 0 | D19: =A5A!D149 -> 0 | E19: =A5A!E149 -> 0 | F19: =A5A!F149 -> 0 | G19: =A5A!G149 -> 0 | H19: =A5A!H149 -> 0 | I19: =A5A!I149 -> 0 | J19: =A5A!J149 -> 22450000 | K19: =A5A!K149 -> 4544000 | L19: =A5A!L149 -> 2696640
A20: =A5A!A160 -> Vote 15 - [NAME OF VOTE 15] | C20: =A5A!C160 -> 0 | D20: =A5A!D160 -> 0 | E20: =A5A!E160 -> 0 | F20: =A5A!F160 -> 0 | G20: =A5A!G160 -> 0 | H20: =A5A!H160 -> 0 | I20: =A5A!I160 -> 0 | J20: =A5A!J160 -> 0 | K20: =A5A!K160 -> 0 | L20: =A5A!L160 -> 0
A21: Capital multi-year expenditure sub-total | B21: 7 | C21: =SUM(C6:C20) -> 61868228.69 | D21: =SUM(D6:D20) -> 27374237.88 | E21: 99612987.01 | F21: 87249350 | G21: 69007078 | H21: =SUM(H6:H20) -> 69007078 | I21: 69007078 | J21: 101370266 | K21: 85091088 | L21: 89545228
A23: Single-year expenditure to be appropriated | B23: 2
A24: =A6 -> Vote 1 - Energy sources | C24: =A5A!C175 -> 1096710.53 | D24: =A5A!D175 -> 0 | E24: =A5A!E175 -> 0 | F24: =A5A!F175 -> 800000 | G24: =A5A!G175 -> 300000 | H24: =A5A!H175 -> 300000 | I24: =A5A!I175 -> 300000 | J24: =A5A!J175 -> 300000 | K24: =A5A!K175 -> 400000 | L24: =A5A!L175 -> 500000
A25: =A7 -> Vote 2 - Community and social services | C25: =A5A!C186 -> 0 | D25: =A5A!D186 -> 0 | E25: =A5A!E186 -> 0 | F25: =A5A!F186 -> 500000 | G25: =A5A!G186 -> 0 | H25: =A5A!H186 -> 0 | I25: =A5A!I186 -> 0 | J25: =A5A!J186 -> 0 | K25: =A5A!K186 -> 0 | L25: =A5A!L186 -> 0
A26: Vote 3 - Finance and administration | C26: =A5A!C197 -> 342752.84 | D26: =A5A!D197 -> 3010099 | E26: =A5A!E197 -> 3646053 | F26: =A5A!F197 -> 3500000 | G26: =A5A!G197 -> 2200000 | H26: =A5A!H197 -> 2200000 | I26: =A5A!I197 -> 2200000 | J26: =A5A!J197 -> 2500000 | K26: =A5A!K197 -> 5000000 | L26: =A5A!L197 -> 0
A27: Vote 4 - Planning and development | C27: =A5A!C208 -> 487665.94 | D27: =A5A!D208 -> 0 | E27: =A5A!E208 -> 0 | F27: =A5A!F208 -> 150000 | G27: =A5A!G208 -> 150000 | H27: =A5A!H208 -> 150000 | I27: =A5A!I208 -> 150000 | J27: =A5A!J208 -> 0 | K27: =A5A!K208 -> 0 | L27: =A5A!L208 -> 0
A28: Vote 5 - Executive and council | C28: =A5A!C219 -> 0 | D28: =A5A!D219 -> 0 | E28: =A5A!E219 -> 0 | F28: =A5A!F219 -> 0 | G28: =A5A!G219 -> 0 | H28: =A5A!H219 -> 0 | I28: =A5A!I219 -> 0 | J28: =A5A!J219 -> 0 | K28: =A5A!K219 -> 0 | L28: =A5A!L219 -> 0
A29: Vote 6 - Internal audit | C29: =A5A!C230 -> 0 | D29: =A5A!D230 -> 0 | E29: =A5A!E230 -> 0 | F29: =A5A!F230 -> 0 | G29: =A5A!G230 -> 0 | H29: =A5A!H230 -> 0 | I29: =A5A!I230 -> 0 | J29: =A5A!J230 -> 0 | K29: =A5A!K230 -> 0 | L29: =A5A!L230 -> 0
A30: Vote 7 - Road transport | C30: =A5A!C241 -> 0 | D30: =A5A!D241 -> 0 | E30: =A5A!E241 -> 0 | F30: =A5A!F241 -> 1150000 | G30: =A5A!G241 -> 500000 | H30: =A5A!H241 -> 500000 | I30: =A5A!I241 -> 500000 | J30: =A5A!J241 -> 600000 | K30: =A5A!K241 -> 650000 | L30: =A5A!L241 -> 750000
A31: Vote 8 - Public safety | C31: =A5A!C252 -> 0 | D31: =A5A!D252 -> 0 | E31: =A5A!E252 -> 0 | F31: =A5A!F252 -> 0 | G31: =A5A!G252 -> 0 | H31: =A5A!H252 -> 0 | I31: =A5A!I252 -> 0 | J31: =A5A!J252 -> 0 | K31: =A5A!K252 -> 0 | L31: =A5A!L252 -> 0
A32: Vote 9 - Waste management | C32: =A5A!C263 -> 0 | D32: =A5A!D263 -> 0 | E32: =A5A!E263 -> 0 | F32: =A5A!F263 -> 400000 | G32: =A5A!G263 -> 200000 | H32: =A5A!H263 -> 200000 | I32: =A5A!I263 -> 200000 | J32: =A5A!J263 -> 100000 | K32: =A5A!K263 -> 100000 | L32: =A5A!L263 -> 200000
A33: Vote 10 - Sport and recreation | C33: =A5A!C274 -> 0 | D33: =A5A!D274 -> 0 | E33: =A5A!E274 -> 0 | F33: =A5A!F274 -> 0 | G33: =A5A!G274 -> 0 | H33: =A5A!H274 -> 0 | I33: =A5A!I274 -> 0 | J33: =A5A!J274 -> 0 | K33: =A5A!K274 -> 0 | L33: =A5A!L274 -> 0
A34: Vote 11 - Water management | C34: =A5A!C285 -> 0 | D34: =A5A!D285 -> 0 | E34: =A5A!E285 -> 0 | F34: =A5A!F285 -> 0 | G34: =A5A!G285 -> 0 | H34: =A5A!H285 -> 0 | I34: =A5A!I285 -> 0 | J34: =A5A!J285 -> 0 | K34: =A5A!K285 -> 0 | L34: =A5A!L285 -> 0
A35: Vote 12 - Waste water management | C35: =A5A!C296 -> 0 | D35: =A5A!D296 -> 0 | E35: =A5A!E296 -> 0 | F35: =A5A!F296 -> 0 | G35: =A5A!G296 -> 0 | H35: =A5A!H296 -> 0 | I35: =A5A!I296 -> 0 | J35: =A5A!J296 -> 0 | K35: =A5A!K296 -> 0 | L35: =A5A!L296 -> 0
A36: Vote 13 - Housing | C36: =A5A!C307 -> 0 | D36: =A5A!D307 -> 0 | E36: =A5A!E307 -> 0 | F36: =A5A!F307 -> 0 | G36: =A5A!G307 -> 0 | H36: =A5A!H307 -> 0 | I36: =A5A!I307 -> 0 | J36: =A5A!J307 -> 0 | K36: =A5A!K307 -> 0 | L36: =A5A!L307 -> 0
A37: Vote 14 - Finance and administration | C37: =A5A!C318 -> 142085 | D37: =A5A!D318 -> 139249 | E37: =A5A!E318 -> 4580827 | F37: =A5A!F318 -> 6400000 | G37: =A5A!G318 -> 1700000 | H37: =A5A!H318 -> 1700000 | I37: =A5A!I318 -> 1700000 | J37: =A5A!J318 -> 5000000 | K37: =A5A!K318 -> 4518000 | L37: =A5A!L318 -> 3210120
A38: =A20 -> Vote 15 - [NAME OF VOTE 15] | C38: =A5A!C329 -> 0 | D38: =A5A!D329 -> 0 | E38: =A5A!E329 -> 0 | F38: =A5A!F329 -> 0 | G38: =A5A!G329 -> 0 | H38: =A5A!H329 -> 0 | I38: =A5A!I329 -> 0 | J38: =A5A!J329 -> 0 | K38: =A5A!K329 -> 0 | L38: =A5A!L329 -> 0
A39: Capital single-year expenditure sub-total | C39: =SUM(C24:C38) -> 2069214.31 | D39: =SUM(D24:D38) -> 3149348 | E39: 8226880 | F39: 12900000 | G39: 5050000 | H39: 5050000 | I39: 5050000 | J39: 8500000 | K39: 10668000 | L39: 4660120
A40: Total Capital Expenditure - Vote | C40: =C39+C21 -> 63937443 | D40: =D39+D21 -> 30523585.88 | E40: 107839867 | F40: 100149350 | G40: 74057078 | H40: 74057078 | I40: 74057078 | J40: 109870266 | K40: 95759088 | L40: 94205348
A42: Capital Expenditure - Functional
A43: Governance and administration | C43: =SUM(C44:C46) -> 484837.84 | D43: =SUM(D44:D46) -> 3149348 | E43: 8379722 | F43: 13900000 | G43: 11900000 | H43: 11900000 | I43: 11900000 | J43: 31616666 | K43: 16228666 | L43: 8073666
A44: Executive and council | C44: =A5A!C220 -> 0 | J44: 1166666 | K44: 1166666 | L44: 1166666
A45: Finance and administration | C45: =A5A!C28+A5A!C197+A5A!C318+A5A!C149 -> 484837.84 | D45: =A5A!D28+A5A!D197+A5A!D318+A5A!D149 -> 3149348 | E45: =A5A!E28+A5A!E197+A5A!E318+A5A!E149 -> 8379722 | F45: =A5A!F28+A5A!F197+A5A!F318+A5A!F149 -> 13900000 | G45: =A5A!G28+A5A!G197+A5A!G318+A5A!G149 -> 11900000 | H45: =A5A!H28+A5A!H197+A5A!H318+A5A!H149 -> 11900000 | I45: =A5A!I28+A5A!I197+A5A!I318+A5A!I149 -> 11900000 | J45: 30450000 | K45: 15062000 | L45: 6907000
A46: Internal audit | J46: 0 | K46: 0 | L46: 0
A47: Community and public safety | C47: =SUM(C48:C52) -> 37448931.29 | D47: =SUM(D48:D52) -> 2020672 | E47: 21090977.01 | F47: 17615240 | G47: 5110000 | H47: 5110000 | I47: 5110000 | J47: 25351000 | K47: 0 | L47: 55439800
A48: Community and social services | C48: =A5A!C17+A5A!C186 -> 15204639.29 | D48: =A5A!D17+A5A!D186 -> 0 | E48: =A5A!E17+A5A!E186 -> 1066420.01 | F48: =A5A!F17+A5A!F186 -> 2750000 | G48: =A5A!G17+A5A!G186 -> 0 | H48: =A5A!H17+A5A!H186 -> 0 | I48: =A5A!I17+A5A!I186 -> 0 | J48: 100000 | K48: 0 | L48: 40439800
A49: Sport and recreation | C49: =A5A!C105+A5A!C274 -> 22244292 | D49: =A5A!D105+A5A!D274 -> 2020672 | E49: =A5A!E105+A5A!E274 -> 20024557 | F49: =A5A!F105+A5A!F274 -> 13365240 | G49: =A5A!G105+A5A!G274 -> 5110000 | H49: =A5A!H105+A5A!H274 -> 5110000 | I49: =A5A!I105+A5A!I274 -> 5110000 | J49: 25251000 | K49: 0 | L49: 15000000
A50: Public safety | C50: =A5A!C83+A5A!C252 -> 0 | D50: =A5A!D83+A5A!D252 -> 0 | E50: =A5A!E83+A5A!E252 -> 0 | F50: =A5A!F83+A5A!F252 -> 1500000 | G50: =A5A!G83+A5A!G252 -> 0 | H50: =A5A!H83+A5A!H252 -> 0 | I50: =A5A!I83+A5A!I252 -> 0 | J50: 0 | K50: 0 | L50: 0
A51: Housing | J51: 0 | K51: 0 | L51: 0
A52: Health | J52: 0 | K52: 0 | L52: 0
A53: Economic and environmental services | C53: =SUM(C54:C56) -> 21222160.34 | D53: =SUM(D54:D56) -> 25353565.88 | E53: 65094173 | F53: 45466027 | G53: 54547078 | H53: 54547078 | I53: 54547078 | J53: 40002000 | K53: 47492616 | L53: 22992000
A54: Planning and development | C54: =A5A!C39+A5A!C208 -> 487665.94 | D54: =A5A!D39+A5A!D208 -> 0 | E54: =A5A!E39+A5A!E208 -> 0 | F54: =A5A!F39+A5A!F208 -> 150000 | G54: =A5A!G39+A5A!G208 -> 150000 | H54: =A5A!H39+A5A!H208 -> 150000 | I54: =A5A!I39+A5A!I208 -> 150000
A55: Road transport | C55: =A5A!C72+A5A!C241 -> 20734494.4 | D55: =A5A!D72+A5A!D241 -> 25353565.88 | E55: =A5A!E72+A5A!E241 -> 65094173 | F55: =A5A!F72+A5A!F241 -> 45316027 | G55: =A5A!G72+A5A!G241 -> 54397078 | H55: =A5A!H72+A5A!H241 -> 54397078 | I55: =A5A!I72+A5A!I241 -> 54397078 | J55: 40002000 | K55: 47492616 | L55: 22992000
A56: Environmental protection | J56: 0 | K56: 0 | L56: 0
A57: Trading services | C57: =SUM(C58:C61) -> 4781513.53 | D57: =SUM(D58:D61) -> 0 | E57: 13274995 | F57: 23168083 | G57: 2500000 | H57: 2500000 | I57: 2500000 | J57: 12900000 | K57: 32037806 | L57: 7700000
A58: Energy sources | C58: =A5A!C6+A5A!C175 -> 1096710.53 | D58: =A5A!D6+A5A!D175 -> 0 | E58: =A5A!E6+A5A!E175 -> 0 | F58: =A5A!F6+A5A!F175 -> 4300000 | G58: =A5A!G6+A5A!G175 -> 1300000 | H58: =A5A!H6+A5A!H175 -> 1300000 | I58: =A5A!I6+A5A!I175 -> 1300000 | J58: 300000 | K58: 400000 | L58: 500000
A59: Water management | J59: 0 | K59: 0 | L59: 0
A60: Waste water management | J60: 0 | K60: 0 | L60: 0
A61: Waste management | C61: =A5A!C94+A5A!C263 -> 3684803 | D61: =A5A!D94+A5A!D263 -> 0 | E61: =A5A!E94+A5A!E263 -> 13274995 | F61: =A5A!F94+A5A!F263 -> 18868083 | G61: =A5A!G94+A5A!G263 -> 1200000 | H61: =A5A!H94+A5A!H263 -> 1200000 | I61: =A5A!I94+A5A!I263 -> 1200000 | J61: 12600000 | K61: 31637806 | L61: 7200000
A62: Other | J62: 0 | K62: 0 | L62: 0
A63: Total Capital Expenditure - Functional | B63: 3 | C63: =C43+C47+C53+C57+C62 -> 63937443 | D63: =D43+D47+D53+D57+D62 -> 30523585.88 | E63: 107839867 | F63: 100149350 | G63: 74057078 | H63: 74057078 | I63: 74057078 | J63: 109869666 | K63: 95759088 | L63: =L43+L47+L53+L57+L62 -> 94205466
A65: Funded by:
A66: National Government | C66: ='[6]A5-Capex'!$D$66 -> 56835914 | D66: ='[6]A5-Capex'!$E$66 -> 22981656 | E66: =[7]Sheet1!$I$4076 -> 88116346 | F66: ='[8]B5-Capex'!$C$68 -> 56649250 | G66: ='[8]B5-Capex'!$D$68 -> 56647078 | H66: ='[8]B5-Capex'!$D$68 -> 56647078 | I66: 56647078 | J66: 60688000 | K66: 64049000 | L66: 68884000
A67: Provincial Government
A68: District Municipality
A69: Other transfers and grants
A70: Transfers recognised - capital | B70: 4 | C70: =SUM(C66:C69) -> 56835914 | D70: 22981656 | E70: 88116346 | F70: 56649250 | G70: 56647078 | H70: 56647078 | I70: 56647078 | J70: 60688000 | K70: 64049000 | L70: 68884000
A72: Borrowing | B72: 6
A73: Internally generated funds | C73: =C63-C66 -> 7101529 | D73: 7541929.88 | E73: 19723521.01 | F73: 43500100 | G73: 17410000 | H73: 17410000 | I73: 17410000 | J73: 49181666 | K73: 31710088 | L73: 25321466
A74: Total Capital Funding | B74: 7 | C74: =+C70+C72+C73 -> 63937443 | D74: =+D70+D72+D73 -> 30523585.88 | E74: 107839867 | F74: 100149350 | G74: 74057078 | H74: 74057078 | I74: 74057078 | J74: 109869666 | K74: 95759088 | L74: 94205466
A75: =head27a -> References
A76: 1. Municipalities may choose to appropriate for capital expenditure for three years or for one year (if one year appropriation projected expenditure required for yr2 and yr3).
A77: 2. Include capital component of PPP unitary payment. Note that capital transfers are only appropriated to municipalities for the budget year
A78: 3. Capital expenditure by functional classification must reconcile to the appropriations by vote
A79: 4. Must reconcile to supporting table SA20 and to Budgeted Financial Performance (revenue and expenditure)
A81: 6. Include finance leases and PPP capital funding component of unitary payment - total borrowing/repayments to reconcile to changes in Table SA17
A82: 7. Total Capital Funding must balance with Total Capital Expenditure
A83: 8. Include any capitalised interest (MFMA section 46) as part of relevant capital budget
A85: check balance | C85: =IF((C63-C74)=0,0,"Unbalanced") -> 0 | D85: =IF((D63-D74)=0,0,"Unbalanced") -> 0 | E85: 0 | F85: 0 | G85: 0 | H85: 0 | I85: 0 | J85: 0 | K85: 0 | L85: 0

Sheet A5A
A1: =muni&" - "&Approve5 -> LIM331 Greater Giyani - Table A5 Budgeted Capital Expenditure by vote, functional classification and funding
A2: =Vdesc -> Vote Description | B2: =head27 -> Ref | C2: =head1b -> 2015/16 | D2: =head1A -> 2016/17 | E2: =Head1 -> 2017/18 | F2: =Head2 -> Current Year 2018/19 | J2: =Head3 -> 2019/20 Medium Term Revenue & Expenditure Framework | N2: ="Multi-year appropriation for "&Head9& " in the "&Head2A&" Annual Budget" -> Multi-year appropriation for Budget Year 2019/20 in the 2018/19 Annual Budget | R2: ="Multi-year appropriation for "&RIGHT(Head10,7)& " in the "&Head2A&" Annual Budget" -> Multi-year appropriation for 2020/21 in the 2018/19 Annual Budget | V2: New multi-year appropriations (funds for new and existing projects)
A3: R thousand | B3: 1 | C3: =Head5 -> Audited Outcome | D3: =Head5 -> Audited Outcome | E3: =Head5 -> Audited Outcome | F3: =Head6 -> Original Budget | G3: =Head7 -> Adjusted Budget | H3: =Head8 -> Full Year Forecast | I3: =Head5b -> Pre-audit outcome | J3: =Head9 -> Budget Year 2019/20 | K3: =Head10 -> Budget Year +1 2020/21 | L3: =Head11 -> Budget Year +2 2021/22 | N3: ="Appropriation for "&RIGHT(Head9,7) -> Appropriation for 2019/20 | O3: ="Adjustments in "&Head2A -> Adjustments in 2018/19 | P3: ="Downward adjustments for "&RIGHT(Head9,7) -> Downward adjustments for 2019/20 | Q3: Appropriation carried forward | R3: ="Appropriation for "&RIGHT(Head9,7) -> Appropriation for 2019/20 | S3: ="Adjustments in "&Head2A -> Adjustments in 2018/19 | T3: ="Downward adjustments for "&RIGHT(Head9,7) -> Downward adjustments for 2019/20 | U3: Appropriation carried forward | V3: =Head9 -> Budget Year 2019/20 | W3: =Head10 -> Budget Year +1 2020/21 | X3: =Head11 -> Budget Year +2 2021/22
A4: Capital expenditure - Municipal Vote
A5: Multi-year expenditure appropriation | B5: 2
A6: ='Org structure'!A2 -> Vote 1 - Energy sources | C6: =SUM(C7:C16) -> 0 | D6: =SUM(D7:D16) -> 0 | E6: 0 | F6: 3500000 | G6: 1000000 | H6: 1000000 | I6: =SUM(I7:I16) -> 1000000 | J6: 1400000 | K6: 0 | L6: 0 | N6: =SUM(N7:N16) -> 0 | O6: 0 | P6: 0 | Q6: 0 | R6: 0 | S6: 0 | T6: 0 | U6: 0 | V6: =SUM(V7:V16) -> 1400000 | W6: =SUM(W7:W16) -> 0 | X6: =SUM(X7:X16) -> 0
A7: ='Org structure'!E3 -> 1.1 - Electricity | J7: =Q7+V7 -> 0 | K7: =U7+W7 -> 0 | L7: =X7 -> 0 | Q7: =SUM(N7:P7) -> 0 | U7: =SUM(R7:T7) -> 0
A8: ='Org structure'!E4 -> 1.2 - Street Lighting and Signal Systems | F8: =[8]B5B!$C$10 -> 3500000 | G8: =[8]B5B!$D$10 -> 1000000 | H8: =[8]B5B!$D$10 -> 1000000 | I8: =[8]B5B!$D$10 -> 1000000 | J8: =Q8+V8 -> 1400000 | K8: =U8+W8 -> 0 | L8: =X8 -> 0 | Q8: =SUM(N8:P8) -> 0 | U8: =SUM(R8:T8) -> 0 | V8: 1400000
A9: ='Org structure'!E5 -> 0 | J9: =Q9+V9 -> 0 | K9: =U9+W9 -> 0 | L9: 0 | Q9: 0 | U9: 0
A10: ='Org structure'!E6 -> 0 | J10: 0 | K10: 0 | L10: 0 | Q10: 0 | U10: 0
A11: ='Org structure'!E7 -> 0 | J11: 0 | K11: 0 | L11: =X11 -> 0 | Q11: 0 | U11: 0
A12: ='Org structure'!E8 -> 0 | J12: 0 | K12: 0 | L12: 0 | Q12: 0 | U12: 0
A13: ='Org structure'!E9 -> 0 | J13: 0 | K13: 0 | L13: 0 | Q13: 0 | U13: 0
A14: ='Org structure'!E10 -> 0 | J14: 0 | K14: 0 | L14: 0 | Q14: 0 | U14: 0
A15: ='Org structure'!E11 -> 0 | J15: 0 | K15: 0 | L15: 0 | Q15: 0 | U15: 0
A16: ='Org structure'!E12 -> 0 | J16: 0 | K16: 0 | L16: 0 | Q16: 0 | U16: 0
A17: ='Org structure'!A3 -> Vote 2 - Community and social services | C17: =SUM(C18:C27) -> 15204639.29 | D17: =SUM(D18:D27) -> 0 | E17: 1066420.01 | F17: 2250000 | G17: 0 | H17: 0 | I17: =SUM(I18:I27) -> 0 | J17: 100000 | K17: 0 | L17: 40439800 | N17: =SUM(N18:N27) -> 0 | O17: 0 | P17: 0 | Q17: 0 | R17: 0 | S17: 0 | T17: 0 | U17: 0 | V17: 100000 | W17: 0 | X17: 40439800
A18: ='Org structure'!E14 -> 2.1 - Animal Care and Diseases | J18: =Q18+V18 -> 0 | K18: =U18+W18 -> 0 | L18: =X18 -> 0 | Q18: =SUM(N18:P18) -> 0 | U18: 0
A19: ='Org structure'!E15 -> 2.2 - Community Halls and Facilities | C19: =[6]A5A!$D$19 -> 3924708.29 | D19: =[6]A5A!$E$19 -> 0 | E19: 1066420.01 | F19: =[8]B5B!$C$21 -> 2250000 | G19: =[8]B5B!$D$21 -> 0 | J19: =Q19+V19 -> 100000 | K19: =U19+W19 -> 0 | L19: 40439800 | Q19: 0 | U19: 0 | V19: 100000 | W19: 0 | X19: 40439800
A20: ='Org structure'!E16 -> 2.3 - Libraries and Archives | J20: 0 | K20: 0 | L20: 0 | Q20: 0 | U20: 0
A21: ='Org structure'!E17 -> 2.4 - Cemeteries, Funeral Parlours and Crematoriums | J21: 0 | K21: =U21+W21 -> 0 | L21: 0 | Q21: 0 | U21: 0
A22: ='Org structure'!E18 -> 2.5 - Libraries and Archives | J22: 0 | K22: 0 | L22: 0 | Q22: 0 | U22: 0
A23: ='Org structure'!E19 -> 2.6 - Disaster Management | C23: =[6]A5A!$D$23 -> 11279931 | J23: 0 | K23: 0 | L23: 0 | Q23: 0 | U23: 0
A24: ='Org structure'!E20 -> 0 | J24: 0 | K24: 0 | L24: 0 | Q24: 0 | U24: 0
A25: ='Org structure'!E21 -> 0 | J25: 0 | K25: 0 | L25: 0 | Q25: 0 | U25: 0
A26: ='Org structure'!E22 -> 0 | J26: 0 | K26: 0 | L26: 0 | Q26: 0 | U26: 0
A27: ='Org structure'!E23 -> 0 | J27: 0 | K27: 0 | L27: 0 | Q27: 0 | U27: 0
A28: ='Org structure'!A4 -> Vote 3 - Finance and administration | C28: =SUM(C29:C38) -> 0 | D28: =SUM(D29:D38) -> 0 | E28: 152842 | F28: 4000000 | G28: 8000000 | H28: 8000000 | I28: =SUM(I29:I38) -> 8000000 | J28: 500000 | K28: 1000000 | L28: 1000000 | N28: =SUM(N29:N38) -> 0 | O28: 0 | P28: 0 | Q28: 0 | R28: 0 | S28: 0 | T28: 0 | U28: 0 | V28: 500000 | W28: 1000000 | X28: 1000000
A29: ='Org structure'!E25 -> 3.1 - Fleet Management | J29: =Q29+V29 -> 0 | K29: =U29+W29 -> 0 | L29: =X29 -> 0 | Q29: =SUM(N29:P29) -> 0 | U29: 0
A30: ='Org structure'!E26 -> 3.2 - Budget and Treasury Office | J30: 0 | K30: 0 | L30: 0 | Q30: 0 | U30: 0
A31: ='Org structure'!E27 -> 3.3 - Finance | J31: 0 | K31: 0 | L31: 0 | Q31: 0 | U31: =SUM(R31:T31) -> 0
A32: ='Org structure'!E28 -> 3.4 - Asset Management | J32: 0 | K32: =U32+W32 -> 0 | L32: 0 | Q32: 0 | U32: 0
A33: ='Org structure'!E29 -> 3.5 - Human Resources | J33: =Q33+V33 -> 0 | K33: 0 | L33: 0 | Q33: 0 | U33: 0
A34: ='Org structure'!E30 -> 3.6 - Legal Services | J34: 500000 | K34: 1000000 | L34: 1000000 | Q34: 0 | U34: 0 | V34: 500000 | W34: 1000000 | X34: 1000000
A35: ='Org structure'!E31 -> 3.7 - Property Services | C35: =[6]A5A!$D$35 -> 0 | D35: =[6]A5A!$D$35 -> 0 | E35: =[7]Sheet1!$I$4051 -> 152842 | F35: =[8]B5B!$C$37 -> 4000000 | G35: =[8]B5B!$D$37 -> 8000000 | H35: =[8]B5B!$D$37 -> 8000000 | I35: =[8]B5B!$D$37 -> 8000000 | J35: 0 | K35: 0 | L35: 0 | Q35: 0 | U35: 0
A36: ='Org structure'!E32 -> 3.8 - Risk Management | J36: 0 | K36: 0 | L36: 0 | Q36: 0 | U36: 0
A37: ='Org structure'!E33 -> 3.9 - Supply Chain Management | J37: 0 | K37: 0 | L37: 0 | Q37: 0 | U37: 0
A38: ='Org structure'!E34 -> 0 | J38: 0 | K38: 0 | L38: 0 | Q38: 0 | U38: 0
A39: ='Org structure'!A5 -> Vote 4 - Planning and development | C39: =SUM(C40:C49) -> 0 | D39: =SUM(D40:D49) -> 0 | E39: 0 | F39: 0 | G39: 0 | H39: 0 | I39: =SUM(I40:I49) -> 0 | J39: 1166666 | K39: 1166666 | L39: 1166666 | N39: =SUM(N40:N49) -> 0 | O39: 0 | P39: 0 | Q39: 0 | R39: 0 | S39: 0 | T39: 0 | U39: 0 | V39: 1166666 | W39: 1166666 | X39: 1166666
A40: ='Org structure'!E36 -> 4.1 - Town Planning, Building Regulations and Enforcement, and City Engineer | J40: =Q40+V40 -> 0 | K40: =U40+W40 -> 0 | L40: =X40 -> 0 | Q40: =SUM(N40:P40) -> 0 | U40: 0 | V40: 0 | W40: 0 | X40: 0
A41: ='Org structure'!E37 -> 4.2 - Corporate Wide Strategic Planning (IDPs, LEDs) | J41: 1166666 | K41: 1166666 | L41: 1166666 | Q41: 0 | U41: 0 | V41: 1166666 | W41: 1166666 | X41: 1166666
A42: ='Org structure'!E38 -> 4.3 - Economic Development/Planning | J42: 0 | K42: 0 | L42: 0 | Q42: 0 | U42: 0
A43: ='Org structure'!E39 -> 4.4 - Project Management Unit | J43: 0 | K43: 0 | L43: 0 | Q43: 0 | U43: 0
A44: ='Org structure'!E40 -> 0 | J44: 0 | K44: 0 | L44: 0 | Q44: 0 | U44: 0
A45: ='Org structure'!E41 -> 0 | J45: 0 | K45: 0 | L45: 0 | Q45: 0 | U45: 0
A46: ='Org structure'!E42 -> 0 | J46: 0 | K46: 0 | L46: 0 | Q46: 0 | U46: 0
A47: ='Org structure'!E43 -> 0 | J47: 0 | K47: 0 | L47: 0 | Q47: 0 | U47: 0
A48: ='Org structure'!E44 -> 0 | J48: 0 | K48: 0 | L48: 0 | Q48: 0 | U48: 0
A49: ='Org structure'!E45 -> 0 | J49: 0 | K49: 0 | L49: 0 | Q49: 0 | U49: 0
A50: ='Org structure'!A6 -> Vote 5 - Executive and council | C50: =SUM(C51:C60) -> 0 | D50: =SUM(D51:D60) -> 0 | E50: 0 | F50: 0 | G50: 0 | H50: 0 | I50: =SUM(I51:I60) -> 0 | J50: 0 | K50: 0 | L50: 0 | N50: =SUM(N51:N60) -> 0 | O50: 0 | P50: 0 | Q50: 0 | R50: 0 | S50: 0 | T50: 0 | U50: 0 | V50: 0 | W50: 0 | X50: 0
A51: ='Org structure'!E47 -> 5.1 - Municipal Manager, Town Secretary and Chief Executive | J51: =Q51+V51 -> 0 | K51: =U51+W51 -> 0 | L51: =X51 -> 0 | Q51: =SUM(N51:P51) -> 0 | U51: 0
A52: ='Org structure'!E48 -> 5.2 - Mayor and Council | J52: 0 | K52: 0 | L52: 0 | Q52: 0 | U52: 0
A53: ='Org structure'!E49 -> 0 | J53: 0 | K53: 0 | L53: 0 | Q53: 0 | U53: 0
A54: ='Org structure'!E50 -> 0 | J54: 0 | K54: 0 | L54: 0 | Q54: 0 | U54: 0
A55: ='Org structure'!E51 -> 0 | J55: 0 | K55: 0 | L55: 0 | Q55: 0 | U55: 0
A56: ='Org structure'!E52 -> 0 | J56: 0 | K56: 0 | L56: 0 | Q56: 0 | U56: 0
A57: ='Org structure'!E53 -> 0 | J57: 0 | K57: 0 | L57: 0 | Q57: 0 | U57: 0
A58: ='Org structure'!E54 -> 0 | J58: 0 | K58: 0 | L58: 0 | Q58: 0 | U58: 0
A59: ='Org structure'!E55 -> 0 | J59: 0 | K59: 0 | L59: 0 | Q59: 0 | U59: 0
A60: ='Org structure'!E56 -> 0 | J60: 0 | K60: 0 | L60: 0 | Q60: 0 | U60: 0
A61: ='Org structure'!A7 -> Vote 6 - Internal audit | C61: =SUM(C62:C71) -> 0 | D61: =SUM(D62:D71) -> 0 | E61: 0 | F61: 0 | G61: 0 | H61: 0 | I61: =SUM(I62:I71) -> 0 | J61: 0 | K61: 0 | L61: 0 | N61: =SUM(N62:N71) -> 0 | O61: 0 | P61: 0 | Q61: 0 | R61: 0 | S61: 0 | T61: 0 | U61: 0 | V61: 0 | W61: 0 | X61: 0
A62: ='Org structure'!E58 -> 6.1 - Governance Function | J62: =Q62+V62 -> 0 | K62: =U62+W62 -> 0 | L62: =X62 -> 0 | Q62: =SUM(N62:P62) -> 0 | U62: 0
A63: ='Org structure'!E59 -> 0 | J63: 0 | K63: 0 | L63: 0 | Q63: 0 | U63: 0
A64: ='Org structure'!E60 -> 0 | J64: 0 | K64: 0 | L64: 0 | Q64: 0 | U64: 0
A65: ='Org structure'!E61 -> 0 | J65: 0 | K65: 0 | L65: 0 | Q65: 0 | U65: 0
A66: ='Org structure'!E62 -> 0 | J66: 0 | K66: 0 | L66: 0 | Q66: 0 | U66: 0
A67: ='Org structure'!E63 -> 0 | J67: 0 | K67: 0 | L67: 0 | Q67: 0 | U67: 0
A68: ='Org structure'!E64 -> 0 | J68: 0 | K68: 0 | L68: 0 | Q68: 0 | U68: 0
A69: ='Org structure'!E65 -> 0 | J69: 0 | K69: 0 | L69: 0 | Q69: 0 | U69: 0
A70: ='Org structure'!E66 -> 0 | J70: 0 | K70: 0 | L70: 0 | Q70: 0 | U70: 0
A71: ='Org structure'!E67 -> 0 | J71: 0 | K71: 0 | L71: 0 | Q71: 0 | U71: 0
A72: ='Org structure'!A8 -> Vote 7 - Road transport | C72: =SUM(C73:C82) -> 20734494.4 | D72: 25353565.88 | E72: 65094173 | F72: 44166027 | G72: 53897078 | H72: 53897078 | I72: 53897078 | J72: 40002820 | K72: 46842616 | L72: 22242122 | N72: =SUM(N73:N82) -> 0 | O72: 0 | P72: 0 | Q72: 0 | R72: 0 | S72: 0 | T72: 0 | U72: 0 | V72: 40002820 | W72: 46842616 | X72: 22242122
A73: ='Org structure'!E69 -> 7.1 - Taxi Ranks | C73: =[6]A5A!$C$73 -> 0 | D73: =[6]A5A!$C$73 -> 0 | E73: =[6]A5A!$C$73 -> 0 | F73: =[8]B5B!$C$75 -> 1000000 | J73: =Q73+V73 -> 0 | K73: =U73+W73 -> 0 | L73: =X73 -> 10000000 | Q73: =SUM(N73:P73) -> 0 | U73: =SUM(R73:T73) -> 0 | X73: 10000000
A74: ='Org structure'!E70 -> 7.2 - Road and Traffic Regulation | J74: 0 | K74: 0 | L74: 0 | Q74: 0 | U74: 0
A75: ='Org structure'!E71 -> 7.3 - Public Transport | C75: =[6]A5A!$D$75 -> 255161.4 | D75: =[6]A5A!$E$75 -> 0 | F75: =[8]B5B!$C$77 -> 0 | G75: =[8]B5B!$C$77 -> 0 | H75: =[8]B5B!$C$77 -> 0 | I75: =[8]B5B!$C$77 -> 0 | J75: 0 | K75: 500000 | L75: 500000 | Q75: 0 | U75: 0 | W75: 500000 | X75: 500000
A76: ='Org structure'!E72 -> 7.4 - Roads | C76: =[6]A5A!$D$76 -> 20479333 | D76: =[6]A5A!$E$76 -> 25353565.88 | E76: =[7]Sheet1!$I$4015 -> 65094173 | F76: =[8]B5B!$C$78 -> 43166027 | G76: =[8]B5B!$D$78 -> 53897078 | H76: =[8]B5B!$D$78 -> 53897078 | I76: =[8]B5B!$D$78 -> 53897078 | J76: 40002820 | K76: 46342616 | L76: 11742122 | Q76: 0 | U76: 0 | V76: 40002820 | W76: 46342616 | X76: 11742122
A77: ='Org structure'!E73 -> 0 | J77: 0 | K77: 0 | L77: 0 | Q77: 0 | U77: 0
A78: ='Org structure'!E74 -> 0 | J78: 0 | K78: 0 | L78: 0 | Q78: 0 | U78: 0
A79: ='Org structure'!E75 -> 0 | J79: 0 | K79: 0 | L79: 0 | Q79: 0 | U79: 0
A80: ='Org structure'!E76 -> 0 | J80: 0 | K80: 0 | L80: 0 | Q80: 0 | U80: 0
A81: ='Org structure'!E77 -> 0 | J81: 0 | K81: 0 | L81: 0 | Q81: 0 | U81: 0
A82: ='Org structure'!E78 -> 0 | J82: 0 | K82: 0 | L82: 0 | Q82: 0 | U82: 0
A83: ='Org structure'!A9 -> Vote 8 - Public safety | C83: =SUM(C84:C93) -> 0 | D83: 0 | E83: 0 | F83: 1500000 | G83: 0 | H83: 0 | I83: 0 | J83: 0 | K83: 0 | L83: 0 | N83: =SUM(N84:N93) -> 0 | O83: 0 | P83: 0 | Q83: 0 | R83: 0 | S83: 0 | T83: 0 | U83: 0 | V83: 0 | W83: 0 | X83: 0
A84: ='Org structure'!E80 -> 8.1 - Cleansing | J84: =Q84+V84 -> 0 | K84: =U84+W84 -> 0 | L84: =X84 -> 0 | Q84: =SUM(N84:P84) -> 0 | U84: 0
A85: ='Org structure'!E81 -> 8.2 - Fencing and Fences | F85: =[8]B5B!$C$87 -> 1500000 | J85: 0 | K85: 0 | L85: 0 | Q85: 0 | U85: 0
A86: ='Org structure'!E82 -> 0 | J86: 0 | K86: 0 | L86: 0 | Q86: 0 | U86: 0
A87: ='Org structure'!E83 -> 0 | J87: 0 | K87: 0 | L87: 0 | Q87: 0 | U87: 0
A88: ='Org structure'!E84 -> 0 | J88: 0 | K88: 0 | L88: 0 | Q88: 0 | U88: 0
A89: ='Org structure'!E85 -> 0 | J89: 0 | K89: 0 | L89: 0 | Q89: 0 | U89: 0
A90: ='Org structure'!E86 -> 0 | J90: 0 | K90: 0 | L90: 0 | Q90: 0 | U90: 0
A91: ='Org structure'!E87 -> 0 | J91: 0 | K91: 0 | L91: 0 | Q91: 0 | U91: 0
A92: ='Org structure'!E88 -> 0 | J92: 0 | K92: 0 | L92: 0 | Q92: 0 | U92: 0
A93: ='Org structure'!E89 -> 0 | J93: 0 | K93: 0 | L93: 0 | Q93: 0 | U93: 0
A94: ='Org structure'!A10 -> Vote 9 - Waste management | C94: =SUM(C95:C104) -> 3684803 | D94: =SUM(D95:D104) -> 0 | E94: 13274995 | F94: 18468083 | G94: 1000000 | H94: 1000000 | I94: 1000000 | J94: 12500000 | K94: 31537806 | L94: 7000000 | N94: =SUM(N95:N104) -> 0 | O94: 0 | P94: 0 | Q94: 0 | R94: 0 | S94: 0 | T94: 0 | U94: 0 | V94: 12500000 | W94: 31537806 | X94: 7000000
A95: ='Org structure'!E91 -> 9.1 - Recycling | J95: =Q95+V95 -> 0 | K95: =U95+W95 -> 0 | L95: =X95 -> 0 | Q95: =SUM(N95:P95) -> 0 | U95: 0
A96: ='Org structure'!E92 -> 9.2 - Solid Waste Disposal (Landfill Sites) | J96: 12500000 | K96: 31537806 | L96: 7000000 | Q96: 0 | U96: 0 | V96: 12500000 | W96: 31537806 | X96: 7000000
A97: ='Org structure'!E93 -> 9.3 - Solid Waste Removal | C97: =[6]A5A!$D$97 -> 3684803 | E97: =[7]Sheet1!$I$4024 -> 13274995 | F97: =[8]B5B!$C$98 -> 18468083 | G97: =[8]B5B!$D$98 -> 1000000 | H97: =[8]B5B!$D$98 -> 1000000 | I97: =[8]B5B!$D$98 -> 1000000 | J97: 0 | K97: 0 | L97: 0 | Q97: 0 | U97: 0
A98: ='Org structure'!E94 -> 0 | J98: 0 | K98: 0 | L98: 0 | Q98: 0 | U98: 0
A99: ='Org structure'!E95 -> 0 | J99: 0 | K99: 0 | L99: 0 | Q99: 0 | U99: 0
A100: ='Org structure'!E96 -> 0 | J100: 0 | K100: 0 | L100: 0 | Q100: 0 | U100: 0
A101: ='Org structure'!E97 -> 0 | J101: 0 | K101: 0 | L101: 0 | Q101: 0 | U101: 0
A102: ='Org structure'!E98 -> 0 | J102: 0 | K102: 0 | L102: 0 | Q102: 0 | U102: 0
A103: ='Org structure'!E99 -> 0 | J103: 0 | K103: 0 | L103: 0 | Q103: 0 | U103: 0
A104: ='Org structure'!E100 -> 0 | J104: 0 | K104: 0 | L104: 0 | Q104: 0 | U104: 0
A105: ='Org structure'!A11 -> Vote 10 - Sport and recreation | C105: =SUM(C106:C115) -> 22244292 | D105: =SUM(D106:D115) -> 2020672 | E105: 20024557 | F105: 13365240 | G105: 5110000 | H105: 5110000 | I105: 5110000 | J105: 23250780 | K105: 0 | L105: 15000000 | N105: =SUM(N106:N115) -> 0 | O105: 0 | P105: 0 | Q105: 0 | R105: 0 | S105: 0 | T105: 0 | U105: 0 | V105: =SUM(V106:V115) -> 23250780 | W105: =SUM(W106:W115) -> 0 | X105: =SUM(X106:X115) -> 15000000
A106: ='Org structure'!E102 -> 10.1 - Recreational Facilities | G106: =[8]B5B!$D$108 -> 1110000 | H106: =[8]B5B!$D$108 -> 1110000 | I106: =[8]B5B!$D$108 -> 1110000 | J106: =Q106+V106 -> 2500000 | K106: =U106+W106 -> 0 | L106: =X106 -> 0 | Q106: =SUM(N106:P106) -> 0 | U106: 0 | V106: 2500000
A107: ='Org structure'!E103 -> 10.2 - Sports Grounds and Stadiums | C107: =[6]A5A!$D$107 -> 22244292 | D107: =[6]A5A!$E$107 -> 2020672 | E107: =[7]Sheet1!$I$4028 -> 20024557 | F107: =[8]B5B!$C$109 -> 13365240 | G107: =[8]B5B!$D$109 -> 4000000 | H107: =[8]B5B!$D$109 -> 4000000 | I107: =[8]B5B!$D$109 -> 4000000 | J107: =Q107+V107 -> 20750780 | K107: =U107+W107 -> 0 | L107: =X107 -> 15000000 | Q107: 0 | U107: 0 | V107: 20750780 | X107: 15000000
A108: ='Org structure'!E104 -> 0 | J108: =Q108+V108 -> 0 | K108: =U108+W108 -> 0 | L108: =X108 -> 0 | Q108: 0 | U108: 0
A109: ='Org structure'!E105 -> 0 | J109: 0 | K109: 0 | L109: 0 | Q109: 0 | U109: 0
A110: ='Org structure'!E106 -> 0 | J110: 0 | K110: 0 | L110: 0 | Q110: 0 | U110: 0
A111: ='Org structure'!E107 -> 0 | J111: 0 | K111: 0 | L111: 0 | Q111: 0 | U111: 0
A112: ='Org structure'!E108 -> 0 | J112: 0 | K112: 0 | L112: 0 | Q112: 0 | U112: 0
A113: ='Org structure'!E109 -> 0 | J113: 0 | K113: 0 | L113: 0 | Q113: 0 | U113: 0
A114: ='Org structure'!E110 -> 0 | J114: 0 | K114: 0 | L114: 0 | Q114: 0 | U114: 0
A115: ='Org structure'!E111 -> 0 | J115: 0 | K115: 0 | L115: 0 | Q115: 0 | U115: 0
A116: ='Org structure'!A12 -> Vote 11 - Water management | C116: =SUM(C117:C126) -> 0 | D116: 0 | E116: 0 | F116: 0 | G116: 0 | H116: 0 | I116: 0 | J116: 0 | K116: 0 | L116: 0 | N116: =SUM(N117:N126) -> 0 | O116: 0 | P116: 0 | Q116: 0 | R116: 0 | S116: 0 | T116: 0 | U116: 0 | V116: 0 | W116: 0 | X116: 0
A117: ='Org structure'!E113 -> 11.1 - Water Distribution | J117: =Q117+V117 -> 0 | K117: =U117+W117 -> 0 | L117: =X117 -> 0 | Q117: =SUM(N117:P117) -> 0 | U117: 0
A118: ='Org structure'!E114 -> 0 | J118: 0 | K118: 0 | L118: 0 | Q118: 0 | U118: 0
A119: ='Org structure'!E115 -> 0 | J119: 0 | K119: 0 | L119: 0 | Q119: 0 | U119: 0
A120: ='Org structure'!E116 -> 0 | J120: 0 | K120: 0 | L120: 0 | Q120: 0 | U120: 0
A121: ='Org structure'!E117 -> 0 | J121: 0 | K121: 0 | L121: 0 | Q121: 0 | U121: 0
A122: ='Org structure'!E118 -> 0 | J122: 0 | K122: 0 | L122: 0 | Q122: 0 | U122: 0
A123: ='Org structure'!E119 -> 0 | J123: 0 | K123: 0 | L123: 0 | Q123: 0 | U123: 0
A124: ='Org structure'!E120 -> 0 | J124: 0 | K124: 0 | L124: 0 | Q124: 0 | U124: 0
A125: ='Org structure'!E121 -> 0 | J125: 0 | K125: 0 | L125: 0 | Q125: 0 | U125: 0
A126: ='Org structure'!E122 -> 0 | J126: 0 | K126: 0 | L126: 0 | Q126: 0 | U126: 0
A127: ='Org structure'!A13 -> Vote 12 - Waste water management | C127: =SUM(C128:C137) -> 0 | D127: 0 | E127: 0 | F127: 0 | G127: 0 | H127: 0 | I127: 0 | J127: 0 | K127: 0 | L127: 0 | N127: =SUM(N128:N137) -> 0 | O127: 0 | P127: 0 | Q127: 0 | R127: 0 | S127: 0 | T127: 0 | U127: 0 | V127: 0 | W127: 0 | X127: 0
A128: ='Org structure'!E124 -> 12.1 - Sewerage | J128: =Q128+V128 -> 0 | K128: =U128+W128 -> 0 | L128: =X128 -> 0 | Q128: =SUM(N128:P128) -> 0 | U128: 0
A129: ='Org structure'!E125 -> 0 | J129: 0 | K129: 0 | L129: 0 | Q129: 0 | U129: 0
A130: ='Org structure'!E126 -> 0 | J130: 0 | K130: 0 | L130: 0 | Q130: 0 | U130: 0
A131: ='Org structure'!E127 -> 0 | J131: 0 | K131: 0 | L131: 0 | Q131: 0 | U131: 0
A132: ='Org structure'!E128 -> 0 | J132: 0 | K132: 0 | L132: 0 | Q132: 0 | U132: 0
A133: ='Org structure'!E129 -> 0 | J133: =Q133+V133 -> 0 | K133: 0 | L133: 0 | Q133: 0 | U133: 0
A134: ='Org structure'!E130 -> 0 | J134: 0 | K134: 0 | L134: 0 | Q134: 0 | U134: 0
A135: ='Org structure'!E131 -> 0 | J135: 0 | K135: 0 | L135: 0 | Q135: 0 | U135: 0
A136: ='Org structure'!E132 -> 0 | J136: 0 | K136: 0 | L136: 0 | Q136: 0 | U136: =SUM(R136:T136) -> 0
A137: ='Org structure'!E133 -> 0 | J137: 0 | K137: 0 | L137: 0 | Q137: 0 | U137: 0
A138: ='Org structure'!A14 -> Vote 13 - Housing | C138: =SUM(C139:C148) -> 0 | D138: 0 | E138: 0 | F138: 0 | G138: 0 | H138: 0 | I138: 0 | J138: 0 | K138: 0 | L138: 0 | N138: =SUM(N139:N148) -> 0 | O138: 0 | P138: 0 | Q138: 0 | R138: 0 | S138: 0 | T138: 0 | U138: 0 | V138: 0 | W138: 0 | X138: 0
A139: ='Org structure'!E135 -> 13.1 - Housing | J139: =Q139+V139 -> 0 | K139: =U139+W139 -> 0 | L139: =X139 -> 0 | Q139: =SUM(N139:P139) -> 0 | U139: 0
A140: ='Org structure'!E136 -> 0 | J140: 0 | K140: 0 | L140: 0 | Q140: 0 | U140: 0
A141: ='Org structure'!E137 -> 0 | J141: 0 | K141: 0 | L141: 0 | Q141: 0 | U141: 0
A142: ='Org structure'!E138 -> 0 | J142: 0 | K142: 0 | L142: 0 | Q142: 0 | U142: 0
A143: ='Org structure'!E139 -> 0 | J143: 0 | K143: 0 | L143: 0 | Q143: 0 | U143: 0
A144: ='Org structure'!E140 -> 0 | J144: 0 | K144: 0 | L144: 0 | Q144: 0 | U144: 0
A145: ='Org structure'!E141 -> 0 | J145: 0 | K145: 0 | L145: 0 | Q145: 0 | U145: 0
A146: ='Org structure'!E142 -> 0 | J146: 0 | K146: 0 | L146: 0 | Q146: 0 | U146: 0
A147: ='Org structure'!E143 -> 0 | J147: 0 | K147: 0 | L147: 0 | Q147: 0 | U147: 0
A148: ='Org structure'!E144 -> 0 | J148: 0 | K148: 0 | L148: 0 | Q148: 0 | U148: 0
A149: ='Org structure'!A15 -> Vote 14 - Finance and administration | C149: =SUM(C150:C159) -> 0 | D149: 0 | E149: 0 | F149: 0 | G149: 0 | H149: 0 | I149: 0 | J149: 22450000 | K149: 4544000 | L149: 2696640 | N149: =SUM(N150:N159) -> 0 | O149: 0 | P149: 0 | Q149: 0 | R149: 0 | S149: 0 | T149: 0 | U149: 0 | V149: 22450000 | W149: 4544000 | X149: 2696640
A150: ='Org structure'!E146 -> 14.1 - Security Services | J150: =Q150+V150 -> 0 | K150: =U150+W150 -> 0 | L150: =X150 -> 0 | Q150: =SUM(N150:P150) -> 0 | U150: 0 | V150: 0 | W150: 0 | X150: 0
A151: ='Org structure'!E147 -> 14.2 - Administrative and Corporate Support | J151: 20050000 | K151: 2000000 | L151: 0 | Q151: 0 | U151: 0 | V151: 20050000 | W151: 2000000 | X151: 0
A152: ='Org structure'!E148 -> 14.3 - Information Technology | J152: 2400000 | K152: 2544000 | L152: 2696640 | Q152: 0 | U152: 0 | V152: 2400000 | W152: 2544000 | X152: 2696640
A153: ='Org structure'!E149 -> 0 | J153: 0 | K153: 0 | L153: 0 | Q153: 0 | U153: 0
A154: ='Org structure'!E150 -> 0 | J154: 0 | K154: 0 | L154: 0 | Q154: 0 | U154: 0
A155: ='Org structure'!E151 -> 0 | J155: 0 | K155: 0 | L155: 0 | Q155: 0 | U155: 0
A156: ='Org structure'!E152 -> 0 | J156: 0 | K156: 0 | L156: 0 | Q156: 0 | U156: 0
A157: ='Org structure'!E153 -> 0 | J157: 0 | K157: 0 | L157: 0 | Q157: 0 | U157: 0
A158: ='Org structure'!E154 -> 0 | J158: 0 | K158: 0 | L158: 0 | Q158: 0 | U158: 0
A159: ='Org structure'!E155 -> 0 | J159: 0 | K159: 0 | L159: 0 | Q159: 0 | U159: 0
A160: ='Org structure'!A16 -> Vote 15 - [NAME OF VOTE 15] | C160: =SUM(C161:C170) -> 0 | D160: 0 | E160: 0 | F160: 0 | G160: 0 | H160: 0 | I160: 0 | J160: 0 | K160: 0 | L160: 0 | N160: =SUM(N161:N170) -> 0 | O160: 0 | P160: 0 | Q160: 0 | R160: 0 | S160: 0 | T160: 0 | U160: 0 | V160: 0 | W160: 0 | X160: 0
A161: ='Org structure'!E157 -> 15.1 - [Name of sub-vote] | J161: =Q161+V161 -> 0 | K161: =U161+W161 -> 0 | L161: =X161 -> 0 | Q161: =SUM(N161:P161) -> 0 | U161: 0
A162: ='Org structure'!E158 -> 0 | J162: 0 | K162: 0 | L162: 0 | Q162: 0 | U162: 0
A163: ='Org structure'!E159 -> 0 | J163: 0 | K163: 0 | L163: 0 | Q163: 0 | U163: 0
A164: ='Org structure'!E160 -> 0 | J164: 0 | K164: 0 | L164: 0 | Q164: 0 | U164: 0
A165: ='Org structure'!E161 -> 0 | J165: 0 | K165: 0 | L165: 0 | Q165: 0 | U165: 0
A166: ='Org structure'!E162 -> 0 | J166: 0 | K166: 0 | L166: 0 | Q166: 0 | U166: 0
A167: ='Org structure'!E163 -> 0 | J167: 0 | K167: 0 | L167: 0 | Q167: 0 | U167: 0
A168: ='Org structure'!E164 -> 0 | J168: 0 | K168: 0 | L168: 0 | Q168: 0 | U168: 0
A169: ='Org structure'!E165 -> 0 | J169: 0 | K169: 0 | L169: 0 | Q169: 0 | U169: 0
A170: ='Org structure'!E166 -> 0 | J170: 0 | K170: 0 | L170: 0 | Q170: 0 | U170: 0
A171: Capital multi-year expenditure sub-total | C171: =C6+C17+C28+C39+C50+C61+C72+C83+C94+C105+C116+C127+C138+C149+C160 -> 61868228.69 | D171: =D6+D17+D28+D39+D50+D61+D72+D83+D94+D105+D116+D127+D138+D149+D160 -> 27374237.88 | E171: 99612987.01 | F171: 87249350 | G171: 69007078 | H171: 69007078 | I171: 69007078 | J171: 101370266 | K171: 85091088 | L171: 89545228 | N171: =N6+N17+N28+N39+N50+N61+N72+N83+N94+N105+N116+N127+N138+N149+N160 -> 0 | O171: 0 | P171: 0 | Q171: 0 | R171: 0 | S171: 0 | U171: 0 | V171: =V6+V17+V28+V39+V50+V61+V72+V83+V94+V105+V116+V127+V138+V149+V160 -> 101370266 | W171: =W6+W17+W28+W39+W50+W61+W72+W83+W94+W105+W116+W127+W138+W149+W160 -> 85091088 | X171: =X6+X17+X28+X39+X50+X61+X72+X83+X94+X105+X116+X127+X138+X149+X160 -> 89545228
A173: Capital expenditure - Municipal Vote
A174: Single-year expenditure appropriation | B174: 2
A175: =A6 -> Vote 1 - Energy sources | C175: =SUM(C176:C185) -> 1096710.53 | D175: 0 | E175: 0 | F175: 800000 | G175: 300000 | H175: =SUM(H176:H185) -> 300000 | I175: 300000 | J175: 300000 | K175: 400000 | L175: 500000
A176: =A7 -> 1.1 - Electricity | C176: =[6]A5A!$D$176 -> 1096710.53 | F176: =[8]B5B!$C$178 -> 800000 | G176: =[8]B5B!$D$178 -> 300000 | H176: =[8]B5B!$D$178 -> 300000 | I176: =[8]B5B!$D$178 -> 300000 | J176: 300000 | K176: 400000 | L176: 500000
A177: 1.2 - Street Lighting and Signal Systems
A178: 0
A179: 0
A180: 0
A181: 0
A182: 0
A183: 0
A184: 0
A185: 0
A186: Vote 2 - Community and social services | C186: =SUM(C187:C196) -> 0 | D186: 0 | E186: 0 | F186: 500000 | G186: 0 | H186: 0 | I186: 0 | J186: 0 | K186: 0 | L186: 0
A187: 2.1 - Animal Care and Diseases | F187: =[8]B5B!$C$189 -> 500000
A188: 2.2 - Community Halls and Facilities
A189: 2.3 - Libraries and Archives
A190: 2.4 - Cemeteries, Funeral Parlours and Crematoriums
A191: 2.5 - Libraries and Archives
A192: 2.6 - Disaster Management
A193: 0
A194: 0
A195: 0
A196: 0
A197: Vote 3 - Finance and administration | C197: =SUM(C198:C207) -> 342752.84 | D197: 3010099 | E197: 3646053 | F197: 3500000 | G197: 2200000 | H197: 2200000 | I197: 2200000 | J197: 2500000 | K197: 5000000 | L197: 0
A198: 3.1 - Fleet Management | C198: =[6]A5A!$D$198 -> 170620 | D198: =[6]A5A!$E$198 -> 3010099 | E198: 3646053 | F198: =[8]B5B!$C$200 -> 2200000 | G198: =[8]B5B!$C$200 -> 2200000 | H198: =[8]B5B!$C$200 -> 2200000 | I198: =[8]B5B!$C$200 -> 2200000 | J198: 2500000 | K198: 5000000 | L198: 0
A199: 3.2 - Budget and Treasury Office
A200: 3.3 - Finance
A201: 3.4 - Asset Management
... 140 more rows

Sheet A6-FinPos
A1: =muni&" - "&Approve6 -> LIM331 Greater Giyani - Table A6 Budgeted Financial Position
A2: =desc -> Description | B2: =head27 -> Ref | C2: =head1b -> 2015/16 | D2: =head1A -> 2016/17 | E2: =Head1 -> 2017/18 | F2: =Head2 -> Current Year 2018/19 | J2: =Head3 -> 2019/20 Medium Term Revenue & Expenditure Framework
A3: R thousand | C3: =Head5 -> Audited Outcome | D3: =Head5 -> Audited Outcome | E3: =Head5 -> Audited Outcome | F3: =Head6 -> Original Budget | G3: =Head7 -> Adjusted Budget | H3: =Head8 -> Full Year Forecast | I3: =Head5b -> Pre-audit outcome | J3: =Head9 -> Budget Year 2019/20 | K3: =Head10 -> Budget Year +1 2020/21 | L3: =Head11 -> Budget Year +2 2021/22
A4: ASSETS
A5: Current assets
A6: Cash | C6: 180005001 | D6: 166530477 | E6: 14639964 | F6: 9380089 | G6: 86011731 | H6: 86011731 | I6: 86011731 | J6: 31749594.56 | K6: 31560712.61 | L6: 35405622.42
A7: Call investment deposits | B7: 1 | C7: ='SA3'!C9 -> 0 | D7: ='SA3'!D9 -> 0 | E7: ='SA3'!E9 -> 0 | F7: ='SA3'!F9 -> 0 | G7: ='SA3'!G9 -> 0 | H7: ='SA3'!H9 -> 0 | I7: ='SA3'!I9 -> 0 | J7: ='SA3'!J9 -> 0 | K7: ='SA3'!K9 -> 0 | L7: ='SA3'!L9 -> 0
A8: Consumer debtors | B8: 1 | C8: ='SA3'!C14 -> 20196629 | D8: ='SA3'!D14 -> 10289260 | E8: ='SA3'!E14 -> 56453050 | F8: ='SA3'!F14 -> 0 | G8: ='SA3'!G14 -> 22524434 | H8: ='SA3'!H14 -> 22524434 | I8: ='SA3'!I14 -> 22524434 | J8: ='SA3'!J14 -> 38907075 | K8: ='SA3'!K14 -> 38907075 | L8: ='SA3'!L14 -> 38907075
A9: Other debtors | C9: 18491316 | D9: 56831267 | E9: 15875284 | G9: 9653329 | H9: 9653329 | I9: 9653329 | J9: 21187185.72 | K9: 21187185.72 | L9: 21187185.72
A10: Current portion of long-term receivables
A11: Inventory | B11: 2 | C11: 1436620 | D11: 1519040 | E11: 2841375 | G11: 5359844 | H11: 5359844 | I11: 5359844 | J11: 6991678.32 | K11: 6991678.32 | L11: 6991678.32
A12: Total current assets | C12: =SUM(C6:C11) -> 220129566 | D12: 235170044 | E12: 89809673 | F12: 9380089 | G12: 123549338 | H12: 123549338 | I12: 123549338 | J12: 98835533.6 | K12: 98646651.65 | L12: 102491561.5
A14: Non current assets
A15: Long-term receivables | C15: 0 | D15: 0
A16: Investments | C16: 0 | D16: 0
A17: Investment property | C17: 0 | D17: 26220000 | E17: 11196000 | G17: 11196000 | H17: 11196000 | I17: 11196000 | J17: 11196000 | K17: 11196000 | L17: 11196000
A18: Investment in Associate | C18: 0 | D18: 0
A19: Property, plant and equipment | B19: 3 | C19: ='SA3'!C26 -> 525422124.5 | D19: ='SA3'!D26 -> 558566680 | E19: ='SA3'!E26 -> 893673561 | F19: ='SA3'!F26 -> 0 | G19: ='SA3'!G26 -> 929027416 | H19: ='SA3'!H26 -> 929027416 | I19: ='SA3'!I26 -> 929027416 | J19: ='SA3'!J26 -> 927883084.9 | K19: ='SA3'!K26 -> 927883084.9 | L19: ='SA3'!L26 -> 927883084.9
A21: Biological | C21: 0 | D21: 171053 | J21: 0 | K21: 0 | L21: 0
A22: Intangible | C22: 0 | D22: 68458 | E22: 405379 | G22: 405379 | H22: 405379 | I22: 405379 | J22: 405379.42 | K22: 405379.42 | L22: 405379.42
A23: Other non-current assets | C23: 0 | D23: 0 | E23: 171053 | G23: 171053 | H23: 171053 | I23: 171053 | J23: 171052.63 | K23: 171052.63 | L23: 171052.63
A24: Total non current assets | C24: =SUM(C15:C19)+SUM(C21:C23) -> 525422124.5 | D24: =SUM(D15:D19)+SUM(D21:D23) -> 585026191 | E24: 905445993 | F24: 0 | G24: 940799848 | H24: 940799848 | I24: 940799848 | J24: 939655516.9 | K24: 939655516.9 | L24: 939655516.9
A25: TOTAL ASSETS | C25: =C12+C24 -> 745551690.5 | D25: =D12+D24 -> 820196235 | E25: =E12+E24 -> 995255666 | F25: =F12+F24 -> 9380089 | G25: 1064349186 | H25: 1064349186 | I25: 1064349186 | J25: 1038491051 | K25: 1038302169 | L25: 1042147078
A27: LIABILITIES
A28: Current liabilities
A29: Bank overdraft | B29: 1
A30: Borrowing | B30: 4 | C30: ='SA3'!C32 -> 0 | D30: ='SA3'!D32 -> 0 | E30: ='SA3'!E32 -> 0 | F30: ='SA3'!F32 -> 0 | G30: ='SA3'!G32 -> 0 | H30: ='SA3'!H32 -> 0 | I30: ='SA3'!I32 -> 0 | J30: ='SA3'!J32 -> 0 | K30: ='SA3'!K32 -> 0 | L30: ='SA3'!L32 -> 0
A31: Consumer deposits
A32: Trade and other payables | B32: 4 | C32: ='SA3'!C39 -> 62486713 | D32: ='SA3'!D39 -> 77173636 | E32: ='SA3'!E39 -> 78630063 | F32: ='SA3'!F39 -> 0 | G32: ='SA3'!G39 -> 75465566 | H32: ='SA3'!H39 -> 75465566 | I32: ='SA3'!I39 -> 75465566 | J32: ='SA3'!J39 -> 60000000 | K32: ='SA3'!K39 -> 60000000 | L32: ='SA3'!L39 -> 60000000
A33: Provisions | E33: 803446 | G33: 58369347 | H33: 58369347 | I33: 58369347 | J33: 58369347.06 | K33: 58369347.06 | L33: 58369347.06
A34: Total current liabilities | C34: =SUM(C29:C33) -> 62486713 | D34: 77173636 | E34: 79433509 | F34: 0 | G34: 133834913 | H34: 133834913 | I34: 133834913 | J34: 118369347.1 | K34: 118369347.1 | L34: 118369347.1
A36: Non current liabilities
A37: Borrowing | C37: ='SA3'!C44 -> 0 | D37: ='SA3'!D44 -> 0 | E37: ='SA3'!E44 -> 0 | F37: ='SA3'!F44 -> 0 | G37: ='SA3'!G44 -> 0 | H37: ='SA3'!H44 -> 0 | I37: ='SA3'!I44 -> 0 | J37: ='SA3'!J44 -> 0 | K37: ='SA3'!K44 -> 0 | L37: ='SA3'!L44 -> 0
A38: Provisions | C38: ='SA3'!C51 -> 36631023 | D38: ='SA3'!D51 -> 38545962 | E38: ='SA3'!E51 -> 37200353 | F38: ='SA3'!F51 -> 0 | G38: ='SA3'!G51 -> 0 | H38: ='SA3'!H51 -> 0 | I38: ='SA3'!I51 -> 0 | J38: ='SA3'!J51 -> 0 | K38: ='SA3'!K51 -> 0 | L38: ='SA3'!L51 -> 0
A39: Total non current liabilities | C39: =SUM(C37:C38) -> 36631023 | D39: =SUM(D37:D38) -> 38545962 | E39: =SUM(E37:E38) -> 37200353 | F39: =SUM(F37:F38) -> 0 | G39: 0 | H39: 0 | I39: 0 | J39: 0 | K39: =SUM(K37:K38) -> 0 | L39: 0
A40: TOTAL LIABILITIES | C40: =C34+C39 -> 99117736 | D40: =D34+D39 -> 115719598 | E40: =E34+E39 -> 116633862 | F40: =F34+F39 -> 0 | G40: 133834913 | H40: 133834913 | I40: 133834913 | J40: 118369347.1 | K40: =K34+K39 -> 118369347.1 | L40: 118369347.1
A42: NET ASSETS | B42: 5 | C42: =C25-C40 -> 646433954.5 | D42: 704476637 | E42: 878621804 | F42: 9380089 | G42: 930514273 | H42: 930514273 | I42: 930514273 | J42: 920121703.5 | K42: 919932821.5 | L42: 923777731.3
A44: COMMUNITY WEALTH/EQUITY
A45: Accumulated Surplus/(Deficit) | C45: 646433954.5 | D45: 704476637 | E45: 878621804 | F45: 9380089 | G45: 930514273 | H45: 930514273 | I45: 930514273 | J45: 920121703.5 | K45: 919932821.5 | L45: 923777731.3
A46: Reserves | B46: 4 | C46: ='SA3'!C70 -> 0 | D46: ='SA3'!D70 -> 0 | E46: ='SA3'!E70 -> 0 | F46: ='SA3'!F70 -> 0 | G46: ='SA3'!G70 -> 0 | H46: ='SA3'!H70 -> 0 | I46: ='SA3'!I70 -> 0 | J46: ='SA3'!J70 -> 0 | K46: ='SA3'!K70 -> 0 | L46: ='SA3'!L70 -> 0
A48: TOTAL COMMUNITY WEALTH/EQUITY | B48: 5 | C48: =SUM(C45:C46) -> 646433954.5 | D48: =SUM(D45:D46) -> 704476637 | E48: 878621804 | F48: 9380089 | G48: 930514273 | H48: 930514273 | I48: 930514273 | J48: 920121703.5 | K48: 919932821.5 | L48: 923777731.3
A49: =head27a -> References
A50: 1. Detail to be provided in Table SA3
A51: 2. Include completed low cost housing to be transferred to beneficiaries within 12 months
A52: 3. Include 'Construction-work-in-progress' (disclosed separately in annual financial statements)
A53: 4. Detail to be provided in Table SA3. Includes reserves to be funded by statute.
A54: 5. Net assets must balance with Total Community Wealth/Equity
A55: check balance | C55: =IF((C42-C48)=0,0,"Unbalanced") -> 0 | D55: =IF((D42-D48)=0,0,"Unbalanced") -> 0 | E55: 0 | F55: 0 | G55: 0 | H55: 0 | I55: 0 | J55: 0 | K55: 0 | L55: 0
A71: Test | C71: =IF(C25<>C40,"Unbalanced",0) -> Unbalanced | D71: =IF(D25<>D40,"Unbalanced",0) -> Unbalanced | E71: Unbalanced | F71: Unbalanced | G71: Unbalanced | H71: Unbalanced | I71: Unbalanced | J71: Unbalanced | K71: Unbalanced | L71: Unbalanced

Sheet A7-CFlow
A1: =muni&" - "&Approve7 -> LIM331 Greater Giyani - Table A7 Budgeted Cash Flows
A2: =desc -> Description | B2: =head27 -> Ref | C2: =head1b -> 2015/16 | D2: =head1A -> 2016/17 | E2: =Head1 -> 2017/18 | F2: =Head2 -> Current Year 2018/19 | J2: =Head3 -> 2019/20 Medium Term Revenue & Expenditure Framework
A3: R thousand | C3: =Head5 -> Audited Outcome | D3: =Head5 -> Audited Outcome | E3: =Head5 -> Audited Outcome | F3: =Head6 -> Original Budget | G3: =Head7 -> Adjusted Budget | H3: =Head8 -> Full Year Forecast | I3: =Head5b -> Pre-audit outcome | J3: =Head9 -> Budget Year 2019/20 | K3: =Head10 -> Budget Year +1 2020/21 | L3: =Head11 -> Budget Year +2 2021/22
A4: CASH FLOW FROM OPERATING ACTIVITIES
A5: Receipts
A6: Property rates | C6: 23607131 | D6: 27831943 | E6: =[9]Sheet1!$F$7 -> 41331219 | F6: 21000000 | G6: 22800000 | H6: 22800000 | I6: 22800000 | J6: ='SA30'!N5 -> 23985600 | K6: ='SA30'!O5 -> 25280824 | L6: ='SA30'!P5 -> 26645986
A7: Service charges | C7: 4552821 | D7: 0 | E7: 0 | F7: 2820000 | G7: 3180000 | H7: 3180000 | I7: 3180000 | J7: ='SA30'!N6+'SA30'!N7+'SA30'!N8+'SA30'!N9 -> 3240000 | K7: ='SA30'!O6+'SA30'!O7+'SA30'!O8+'SA30'!O9 -> 3270000 | L7: ='SA30'!P6+'SA30'!P7+'SA30'!P8+'SA30'!P9 -> 3270000
A8: Other revenue | C8: 13226367 | D8: 24220051 | E8: =[9]Sheet1!$F$22 -> 21022258 | F8: 31076330 | G8: 10287000 | H8: 10287000 | I8: 10287000 | J8: ='SA30'!N11+'SA30'!N15+'SA30'!N16+'SA30'!N17+'SA30'!N19 -> 18473000 | K8: ='SA30'!O11+'SA30'!O15+'SA30'!O16+'SA30'!O17+'SA30'!O19 -> 19689880 | L8: ='SA30'!P11+'SA30'!P15+'SA30'!P16+'SA30'!P17+'SA30'!P19 -> 19811248.12
A9: Government - operating | B9: 1 | C9: 224923272 | D9: 222487632.7 | E9: =[9]Sheet1!$F$21 -> 241968582 | F9: 270595000 | G9: 275930566 | H9: 275930566 | I9: 275930566 | J9: ='SA30'!N18 -> 303024000 | K9: ='SA30'!O18 -> 316807000 | L9: ='SA30'!P18 -> 345521000
A10: Government - capital | B10: 1 | C10: 105700629 | D10: 97901999 | E10: =[9]Sheet1!$F$25 -> 102650780 | F10: 59473000 | G10: 59473000 | H10: 59473000 | I10: 59473000 | J10: ='SA30'!N23 -> 60688000 | K10: ='SA30'!O23 -> 64049000 | L10: ='SA30'!P23 -> 68884000
A11: Interest | C11: 13400970 | D11: 15174630 | E11: =[9]Sheet1!$F$15 -> 11737571 | F11: 21200000 | G11: 6880000 | H11: 6880000 | I11: 6880000 | J11: ='SA30'!N12+'SA30'!N13 -> 8400000 | K11: ='SA30'!O12+'SA30'!O13 -> 8683600 | L11: ='SA30'!P12+'SA30'!P13 -> 8927133
A12: Dividends | D12: 0 | F12: 0 | J12: ='SA30'!N14 -> 0 | K12: ='SA30'!O14 -> 0 | L12: ='SA30'!P14 -> 0
A13: Payments
A14: Suppliers and employees | C14: -265162685.8 | D14: -368187472 | E14: -281983612 | F14: -311894982 | G14: -311813086 | H14: -311813086 | I14: -311813086 | J14: =-('SA30'!N35+'SA30'!N36+'SA30'!N38+'SA30'!N39+'SA30'!N40+'SA30'!N41+'SA30'!N44+'SA30'!N50) -> -326190739.4 | K14: =-('SA30'!O35+'SA30'!O36+'SA30'!O38+'SA30'!O39+'SA30'!O40+'SA30'!O41+'SA30'!O44+'SA30'!O50) -> -342210097.9 | L14: =-('SA30'!P35+'SA30'!P36+'SA30'!P38+'SA30'!P39+'SA30'!P40+'SA30'!P41+'SA30'!P44+'SA30'!P50) -> -375009107.3
A15: Finance charges | C15: -57409 | D15: 0 | J15: =-('SA30'!N37) -> 0 | K15: =-('SA30'!O37) -> 0 | L15: =-('SA30'!P37) -> 0
A16: Transfers and Grants | B16: 1 | C16: 0 | D16: 0 | J16: =-('SA30'!N42+'SA30'!N43) -> 0 | K16: =-('SA30'!O42+'SA30'!O43) -> 0 | L16: =-('SA30'!P42+'SA30'!P43) -> 0
A17: NET CASH FROM/(USED) OPERATING ACTIVITIES | C17: =SUM(C6:C12)+SUM(C14:C16) -> 120191095.2 | D17: 19428783.72 | E17: 136726798 | F17: 94269348 | G17: 66737480 | H17: 66737480 | I17: 66737480 | J17: 91619860.56 | K17: 95570206.05 | L17: 98050259.81
A19: CASH FLOWS FROM INVESTING ACTIVITIES
A20: Receipts
A21: Proceeds on disposal of PPE | J21: ='SA30'!N24+'SA30'!N25 -> 0 | K21: ='SA30'!O24+'SA30'!O25 -> 0 | L21: ='SA30'!P24+'SA30'!P25 -> 0
A22: Decrease (Increase) in non-current debtors | J22: ='SA30'!N29 -> 0 | K22: ='SA30'!O29 -> 0 | L22: ='SA30'!P29 -> 0
A23: Decrease (increase) other non-current receivables | J23: ='SA30'!N30 -> 0 | K23: ='SA30'!O30 -> 0 | L23: ='SA30'!P30 -> 0
A24: Decrease (increase) in non-current investments | J24: ='SA30'!N31 -> 0 | K24: ='SA30'!O31 -> 0 | L24: ='SA30'!P31 -> 0
A25: Payments
A26: Capital assets | C26: -63937443 | D26: -30525586 | E26: -153868829 | F26: -100149350 | G26: -74057078 | H26: -74057078 | I26: -74057078 | J26: =-('SA30'!N48) -> -109870266 | K26: =-('SA30'!O48) -> -95759088 | L26: =-('SA30'!P48) -> -94205350
A27: NET CASH FROM/(USED) INVESTING ACTIVITIES | C27: =SUM(C21:C24)+C26 -> -63937443 | D27: =SUM(D21:D24)+D26 -> -30525586 | E27: -153868829 | F27: -100149350 | G27: -74057078 | H27: -74057078 | I27: -74057078 | J27: -109870266 | K27: -95759088 | L27: -94205350
A29: CASH FLOWS FROM FINANCING ACTIVITIES
A30: Receipts
A31: Short term loans | J31: ='SA30'!N26 -> 0 | K31: ='SA30'!O26 -> 0 | L31: ='SA30'!P26 -> 0
A32: Borrowing long term/refinancing | J32: ='SA30'!N27 -> 0 | K32: ='SA30'!O27 -> 0 | L32: ='SA30'!P27 -> 0
A33: Increase (decrease) in consumer deposits | J33: ='SA30'!N28 -> 0 | K33: ='SA30'!O28 -> 0 | L33: ='SA30'!P28 -> 0
A34: Payments
A35: Repayment of borrowing | C35: -26557699 | D35: -3258622 | E35: -33311105 | J35: =-('SA30'!N49) -> 0 | K35: =-('SA30'!O49) -> 0 | L35: =-('SA30'!P49) -> 0
A36: NET CASH FROM/(USED) FINANCING ACTIVITIES | C36: =SUM(C31:C33)+C35 -> -26557699 | D36: =SUM(D31:D33)+D35 -> -3258622 | E36: -33311105 | F36: 0 | G36: 0 | H36: 0 | I36: 0 | J36: 0 | K36: 0 | L36: 0
A38: NET INCREASE/ (DECREASE) IN CASH HELD | C38: =C17+C27+C36 -> 29695953.18 | D38: =D17+D27+D36 -> -14355424.28 | E38: -50453136 | F38: -5880002 | G38: -7319598 | H38: -7319598 | I38: -7319598 | J38: -18250405.44 | K38: -188881.95 | L38: 3844909.81
A39: Cash/cash equivalents at the year begin: | B39: 2 | C39: 150309048 | D39: 180005001 | E39: 65093100 | F39: 14639964 | G39: 109413013 | H39: 109413013 | I39: 109413013 | J39: ='SA30'!N54 -> 50000000 | K39: =J40 -> 31749594.56 | L39: =K40 -> 31560712.61
A40: Cash/cash equivalents at the year end: | B40: 2 | C40: =C38+C39 -> 180005001.2 | D40: =D38+D39 -> 165649576.7 | E40: =E38+E39 -> 14639964 | F40: =F38+F39 -> 8759962 | G40: 102093415 | H40: 102093415 | I40: 102093415 | J40: 31749594.56 | K40: 31560712.61 | L40: 35405622.42
A41: =head27a -> References
A42: 1. Local/District municipalities to include transfers from/to District/Local Municipalities
A43: 2. Cash equivalents includes investments with maturities of 3 months or less
A44: 3. The MTREF is populated directly from SA30.
A45: Total receipts | C45: =SUM(C6:C12)+SUM(C21:C23) -> 385411190 | D45: 387616255.7 | E45: 418710410 | F45: 406164330 | G45: 378550566 | H45: 378550566 | I45: 378550566 | J45: 417810600 | K45: 437780304 | L45: 473059367.1
A46: Total payments | C46: =SUM(C14:C16)+C26 -> -329157537.8 | D46: =SUM(D14:D16)+D26 -> -398713058 | E46: -435852441 | F46: -412044332 | G46: -385870164 | H46: -385870164 | I46: -385870164 | J46: -436061005.4 | K46: -437969185.9 | L46: -469214457.3
C47: =C45+C46 -> 56253652.18 | D47: =D45+D46 -> -11096802.28 | E47: -17142031 | F47: -5880002 | G47: -7319598 | H47: -7319598 | I47: -7319598 | J47: -18250405.44 | K47: -188881.95 | L47: 3844909.81
A48: Borrowings & investments & c.deposits | C48: =C24+C32+C33 -> 0 | D48: =D24+D32+D33 -> 0 | E48: 0 | F48: 0 | G48: 0 | H48: 0 | I48: 0 | J48: 0 | K48: 0 | L48: 0
A49: =A35 -> Repayment of borrowing | C49: =C35 -> -26557699 | D49: =D35 -> -3258622 | E49: -33311105 | F49: 0 | G49: 0 | H49: 0 | I49: =I35 -> 0 | J49: 0 | K49: 0 | L49: 0
C50: =C47+C48+C49 -> 29695953.18 | D50: =D47+D48+D49 -> -14355424.28 | E50: -50453136 | F50: -5880002 | G50: -7319598 | H50: -7319598 | I50: -7319598 | J50: -18250405.44 | K50: -188881.95 | L50: 3844909.81
C51: =C38-C50 -> 0 | D51: 0 | E51: 0 | F51: 0 | G51: 0 | H51: 0 | I51: 0 | J51: 0 | K51: 0 | L51: 0

Sheet A8-ResRecon
A1: =muni&" - "&Approve8 -> LIM331 Greater Giyani - Table A8 Cash backed reserves/accumulated surplus reconciliation
A2: =desc -> Description | B2: =head27 -> Ref | C2: =head1b -> 2015/16 | D2: =head1A -> 2016/17 | E2: =Head1 -> 2017/18 | F2: =Head2 -> Current Year 2018/19 | J2: =Head3 -> 2019/20 Medium Term Revenue & Expenditure Framework
A3: R thousand | C3: =Head5 -> Audited Outcome | D3: =Head5 -> Audited Outcome | E3: =Head5 -> Audited Outcome | F3: =Head6 -> Original Budget | G3: =Head7 -> Adjusted Budget | H3: =Head8 -> Full Year Forecast | I3: =Head5b -> Pre-audit outcome | J3: =Head9 -> Budget Year 2019/20 | K3: =Head10 -> Budget Year +1 2020/21 | L3: =Head11 -> Budget Year +2 2021/22
A4: Cash and investments available
A5: =LEFT('A7-CFlow'!A40,37) -> Cash/cash equivalents at the year end | B5: 1 | C5: ='A7-CFlow'!C40 -> 180005001.2 | D5: ='A7-CFlow'!D40 -> 165649576.7 | E5: ='A7-CFlow'!E40 -> 14639964 | F5: ='A7-CFlow'!F40 -> 8759962 | G5: ='A7-CFlow'!G40 -> 102093415 | H5: ='A7-CFlow'!H40 -> 102093415 | I5: ='A7-CFlow'!I40 -> 102093415 | J5: ='A7-CFlow'!J40 -> 31749594.56 | K5: ='A7-CFlow'!K40 -> 31560712.61 | L5: ='A7-CFlow'!L40 -> 35405622.42
A6: Other current investments > 90 days | C6: ='A6-FinPos'!C6+'A6-FinPos'!C7-'A6-FinPos'!C29-'A8-ResRecon'!C5 -> -0.1800000072 | D6: ='A6-FinPos'!D6+'A6-FinPos'!D7-'A6-FinPos'!D29-'A8-ResRecon'!D5 -> 880900.28 | E6: ='A6-FinPos'!E6+'A6-FinPos'!E7-'A6-FinPos'!E29-'A8-ResRecon'!E5 -> 0 | F6: ='A6-FinPos'!F6+'A6-FinPos'!F7-'A6-FinPos'!F29-'A8-ResRecon'!F5 -> 620127 | G6: ='A6-FinPos'!G6+'A6-FinPos'!G7-'A6-FinPos'!G29-'A8-ResRecon'!G5 -> -16081684.05 | H6: ='A6-FinPos'!H6+'A6-FinPos'!H7-'A6-FinPos'!H29-'A8-ResRecon'!H5 -> -16081684.05 | I6: ='A6-FinPos'!I6+'A6-FinPos'!I7-'A6-FinPos'!I29-'A8-ResRecon'!I5 -> -16081684.05 | J6: ='A6-FinPos'!J6+'A6-FinPos'!J7-'A6-FinPos'!J29-'A8-ResRecon'!J5 -> 0 | K6: ='A6-FinPos'!K6+'A6-FinPos'!K7-'A6-FinPos'!K29-'A8-ResRecon'!K5 -> 0 | L6: ='A6-FinPos'!L6+'A6-FinPos'!L7-'A6-FinPos'!L29-'A8-ResRecon'!L5 -> 0
A7: ='A6-FinPos'!A14&" - "&'A6-FinPos'!A16 -> Non current assets - Investments | B7: 1 | C7: ='A6-FinPos'!C16 -> 0 | D7: ='A6-FinPos'!D16 -> 0 | E7: ='A6-FinPos'!E16 -> 0 | F7: ='A6-FinPos'!F16 -> 0 | G7: ='A6-FinPos'!G16 -> 0 | H7: ='A6-FinPos'!H16 -> 0 | I7: ='A6-FinPos'!I16 -> 0 | J7: ='A6-FinPos'!J16 -> 0 | K7: ='A6-FinPos'!K16 -> 0 | L7: ='A6-FinPos'!L16 -> 0
A8: Cash and investments available: | C8: =SUM(C5:C7) -> 180005001 | D8: =SUM(D5:D7) -> 166530477 | E8: 14639964 | F8: 9380089 | G8: 86011731 | H8: 86011731 | I8: 86011731 | J8: 31749594.56 | K8: 31560712.61 | L8: 35405622.42
A10: Application of cash and investments
A11: ='SA3'!A37 -> Unspent conditional transfers | C11: ='SA3'!C37 -> 4472278 | D11: ='SA3'!D37 -> 9374624 | E11: ='SA3'!E37 -> 5465566 | F11: ='SA3'!F37 -> 0 | G11: ='SA3'!G37 -> 5465566 | H11: ='SA3'!H37 -> 5465566 | I11: ='SA3'!I37 -> 5465566 | J11: ='SA3'!J37 -> 0 | K11: ='SA3'!K37 -> 0 | L11: ='SA3'!L37 -> 0
A12: Unspent borrowing | C12: ='SA17'!C67 -> 0 | D12: ='SA17'!D67 -> 0 | E12: ='SA17'!E67 -> 0 | F12: ='SA17'!F67 -> 0 | G12: ='SA17'!G67 -> 0 | H12: ='SA17'!H67 -> 0 | J12: ='SA17'!I67 -> 0 | K12: ='SA17'!J67 -> 0 | L12: ='SA17'!K67 -> 0
A13: Statutory requirements | B13: 2
A14: Other working capital requirements | B14: 3 | C14: =-C32 -> 26606435 | D14: =-D32 -> 588012 | E14: 4932497 | F14: =-F32 -> 0 | G14: 49006000 | H14: 49006000 | I14: 49006000 | J14: 19821000 | K14: 19744000 | L14: 19974000
A15: Other provisions
A16: Long term investments committed | B16: 4 | C16: =C52 -> 0 | D16: =D52 -> 0 | E16: 0 | F16: 0 | G16: 0 | H16: 0 | I16: 0 | J16: 0 | K16: 0 | L16: 0
A17: Reserves to be backed by cash/investments | B17: 5
A18: ="Total "&A10&":" -> Total Application of cash and investments: | C18: =SUM(C11:C17) -> 31078713 | D18: =SUM(D11:D17) -> 9962636 | E18: 10398063 | F18: 0 | G18: 54471566 | H18: 54471566 | I18: 54471566 | J18: 19821000 | K18: 19744000 | L18: 19974000
A19: Surplus(shortfall) | C19: =C8-C18 -> 148926288 | D19: =D8-D18 -> 156567841 | E19: 4241901 | F19: 9380089 | G19: 31540165 | H19: 31540165 | I19: 31540165 | J19: 11928594.56 | K19: 11816712.61 | L19: 15431622.42
A20: =head27a -> References
A21: 1. Must reconcile with Budgeted Cash Flows
A22: 2. For example: VAT, taxation
A23: 3. Council approval for policy required - include sufficient working capital (e.g. allowing for a % of current debtors > 90 days as uncollectable)
A24: 4. For example: sinking fund requirements for borrowing
A25: 5. Council approval required for each reserve created and basis of cash backing of reserves
A28: Other working capital requirements
A29: Debtors | C29: =IF(ISERROR(ROUND(C35*C36,-3)),0,(ROUND(C35*C36,-3))) -> 31408000 | D29: =IF(ISERROR(ROUND(D35*D36,-3)),0,(ROUND(D35*D36,-3))) -> 67211000 | E29: 68232000 | F29: 0 | G29: 20994000 | H29: 20994000 | I29: 20994000 | J29: 40179000 | K29: 40256000 | L29: 40026000
A31: Creditors due | C31: ='SA3'!C35+'SA3'!C36 -> 58014435 | D31: ='SA3'!D35+'SA3'!D36 -> 67799012 | E31: ='SA3'!E35+'SA3'!E36 -> 73164497 | F31: ='SA3'!F35+'SA3'!F36 -> 0 | G31: ='SA3'!G35+'SA3'!G36 -> 70000000 | H31: ='SA3'!H35+'SA3'!H36 -> 70000000 | I31: ='SA3'!I35+'SA3'!I36 -> 70000000 | J31: ='SA3'!J35+'SA3'!J36 -> 60000000 | K31: ='SA3'!K35+'SA3'!K36 -> 60000000 | L31: ='SA3'!L35+'SA3'!L36 -> 60000000
A32: Total | C32: =C29-C31 -> -26606435 | D32: =D29-D31 -> -588012 | E32: -4932497 | F32: 0 | G32: -49006000 | H32: -49006000 | I32: -49006000 | J32: -19821000 | K32: -19744000 | L32: -19974000
A34: Debtors collection assumptions
A35: Balance outstanding - debtors | C35: ='A6-FinPos'!C8+'A6-FinPos'!C9+'A6-FinPos'!C15 -> 38687945 | D35: ='A6-FinPos'!D8+'A6-FinPos'!D9+'A6-FinPos'!D15 -> 67120527 | E35: ='A6-FinPos'!E8+'A6-FinPos'!E9+'A6-FinPos'!E15 -> 72328334 | F35: ='A6-FinPos'!F8+'A6-FinPos'!F9+'A6-FinPos'!F15 -> 0 | G35: ='A6-FinPos'!G8+'A6-FinPos'!G9+'A6-FinPos'!G15 -> 32177763 | H35: ='A6-FinPos'!H8+'A6-FinPos'!H9+'A6-FinPos'!H15 -> 32177763 | I35: ='A6-FinPos'!I8+'A6-FinPos'!I9+'A6-FinPos'!I15 -> 32177763 | J35: ='A6-FinPos'!J8+'A6-FinPos'!J9+'A6-FinPos'!J15 -> 60094260.72 | K35: ='A6-FinPos'!K8+'A6-FinPos'!K9+'A6-FinPos'!K15 -> 60094260.72 | L35: ='A6-FinPos'!L8+'A6-FinPos'!L9+'A6-FinPos'!L15 -> 60094260.72
A36: Estimate of debtors collection rate | C36: =IF(ISERROR('SA10'!D10),0,('SA10'!D10)) -> 0.8118258923 | D36: =IF(ISERROR('SA10'!E10),0,('SA10'!E10)) -> 1.001347969 | E36: =IF(ISERROR('SA10'!F10),0,('SA10'!F10)) -> 0.9433669614 | F36: =IF(ISERROR('SA10'!G10),0,('SA10'!G10)) -> 0.7150163338 | G36: =IF(ISERROR('SA10'!H10),0,('SA10'!H10)) -> 0.6524414157 | H36: =IF(ISERROR('SA10'!I10),0,('SA10'!I10)) -> 0.6524414157 | I36: =IF(ISERROR('SA10'!J10),0,('SA10'!J10)) -> 0.6524414157 | J36: =IF(ISERROR('SA10'!K10),0,('SA10'!K10)) -> 0.6686067097 | K36: =IF(ISERROR('SA10'!L10),0,('SA10'!L10)) -> 0.6698870954 | L36: =IF(ISERROR('SA10'!M10),0,('SA10'!M10)) -> 0.6660540555
K39: `
A40: =A16 -> Long term investments committed
A41: Balance (Insert description; eg sinking fund)
C52: =SUM(C41:C51) -> 0 | D52: =SUM(D41:D51) -> 0 | E52: 0 | F52: 0 | G52: 0 | H52: 0 | I52: 0 | J52: 0 | K52: 0 | L52: 0
A53: =A17 -> Reserves to be backed by cash/investments
A54: ='SA3'!A65 -> Housing Development Fund | C54: ='SA3'!C65 -> 0 | D54: ='SA3'!D65 -> 0 | E54: ='SA3'!E65 -> 0 | F54: ='SA3'!F65 -> 0 | G54: ='SA3'!G65 -> 0 | H54: ='SA3'!H65 -> 0 | I54: ='SA3'!I65 -> 0 | J54: ='SA3'!J65 -> 0 | K54: ='SA3'!K65 -> 0 | L54: ='SA3'!L65 -> 0
A55: ='SA3'!A66 -> Capital replacement
A56: ='SA3'!A67 -> Self-insurance
A57: Other (list)
C67: =SUM(C54:C65) -> 0 | D67: 0 | E67: 0 | F67: 0 | G67: 0 | H67: 0 | I67: 0 | J67: 0 | K67: 0 | L67: 0

Sheet A9-Asset
A1: =muni&" - "&Approve9 -> LIM331 Greater Giyani - Table A9 Asset Management
A2: =desc -> Description | B2: =head27 -> Ref | C2: =head1b -> 2015/16 | D2: =head1A -> 2016/17 | E2: =Head1 -> 2017/18 | F2: =Head2 -> Current Year 2018/19 | I2: =Head3 -> 2019/20 Medium Term Revenue & Expenditure Framework
A3: R thousand | C3: =Head5 -> Audited Outcome | D3: =Head5 -> Audited Outcome | E3: =Head5 -> Audited Outcome | F3: =Head6 -> Original Budget | G3: =Head7 -> Adjusted Budget | H3: =Head8 -> Full Year Forecast | I3: =Head9 -> Budget Year 2019/20 | J3: =Head10 -> Budget Year +1 2020/21 | K3: =Head11 -> Budget Year +2 2021/22
A4: CAPITAL EXPENDITURE
A5: Total New Assets | B5: 1 | C5: =C15+C18+C19+C22+C25+C26+SUM(C29:C35) -> 32178179.16 | D5: =D15+D18+D19+D22+D25+D26+SUM(D29:D35) -> 5170020 | E5: 42745694.01 | F5: 99899350 | G5: 74057078 | H5: 74057078 | I5: 105320446 | J5: 93759088 | K5: 94205350
A6: Roads Infrastructure | C6: =SA34a!C7 -> 0 | D6: =SA34a!D7 -> 0 | E6: =SA34a!E7 -> 0 | F6: =SA34a!F7 -> 47816027 | G6: =SA34a!G7 -> 53897078 | H6: =SA34a!H7 -> 53897078 | I6: =SA34a!I7 -> 39403000 | J6: =SA34a!J7 -> 46842616 | K6: =SA34a!K7 -> 12242122
A7: Storm water Infrastructure | C7: =SA34a!C12 -> 0 | D7: =SA34a!D12 -> 0 | E7: =SA34a!E12 -> 0 | F7: =SA34a!F12 -> 0 | G7: =SA34a!G12 -> 0 | H7: =SA34a!H12 -> 0 | I7: =SA34a!I12 -> 0 | J7: =SA34a!J12 -> 0 | K7: =SA34a!K12 -> 0
A8: Electrical Infrastructure | C8: =SA34a!C16 -> 0 | D8: =SA34a!D16 -> 0 | E8: =SA34a!E16 -> 0 | F8: =SA34a!F16 -> 0 | G8: =SA34a!G16 -> 0 | H8: =SA34a!H16 -> 0 | I8: =SA34a!I16 -> 0 | J8: =SA34a!J16 -> 0 | K8: =SA34a!K16 -> 0
A9: Water Supply Infrastructure | C9: =SA34a!C26 -> 0 | D9: =SA34a!D26 -> 0 | E9: =SA34a!E26 -> 0 | F9: =SA34a!F26 -> 0 | G9: =SA34a!G26 -> 0 | H9: =SA34a!H26 -> 0 | I9: =SA34a!I26 -> 0 | J9: =SA34a!J26 -> 0 | K9: =SA34a!K26 -> 0
A10: Sanitation Infrastructure | C10: =SA34a!C37 -> 0 | D10: =SA34a!D37 -> 0 | E10: =SA34a!E37 -> 0 | F10: =SA34a!F37 -> 0 | G10: =SA34a!G37 -> 0 | H10: =SA34a!H37 -> 0 | I10: =SA34a!I37 -> 0 | J10: =SA34a!J37 -> 0 | K10: =SA34a!K37 -> 0
A11: Solid Waste Infrastructure | C11: =SA34a!C44 -> 3684803 | D11: =SA34a!D44 -> 0 | E11: =SA34a!E44 -> 13274995 | F11: =SA34a!F44 -> 18468083 | G11: =SA34a!G44 -> 1000000 | H11: =SA34a!H44 -> 1000000 | I11: =SA34a!I44 -> 12500000 | J11: =SA34a!J44 -> 31537806 | K11: =SA34a!K44 -> 7000000
A12: Rail Infrastructure | C12: =SA34a!C52 -> 0 | D12: =SA34a!D52 -> 0 | E12: =SA34a!E52 -> 0 | F12: =SA34a!F52 -> 0 | G12: =SA34a!G52 -> 0 | H12: =SA34a!H52 -> 0 | I12: =SA34a!I52 -> 0 | J12: =SA34a!J52 -> 0 | K12: =SA34a!K52 -> 0
A13: Coastal Infrastructure | C13: =SA34a!C62 -> 0 | D13: =SA34a!D62 -> 0 | E13: =SA34a!E62 -> 0 | F13: =SA34a!F62 -> 0 | G13: =SA34a!G62 -> 0 | H13: =SA34a!H62 -> 0 | I13: =SA34a!I62 -> 0 | J13: =SA34a!J62 -> 0 | K13: =SA34a!K62 -> 0
A14: Information and Communication Infrastructure | C14: =SA34a!C68 -> 0 | D14: =SA34a!D68 -> 0 | E14: =SA34a!E68 -> 0 | F14: =SA34a!F68 -> 0 | G14: =SA34a!G68 -> 0 | H14: =SA34a!H68 -> 0 | I14: =SA34a!I68 -> 2400000 | J14: =SA34a!J68 -> 2544000 | K14: =SA34a!K68 -> 2696640
A15: Infrastructure | C15: =SUM(C6:C14) -> 3684803 | D15: =SUM(D6:D14) -> 0 | E15: 13274995 | F15: 66284110 | G15: 54897078 | H15: 54897078 | I15: 54303000 | J15: 80924422 | K15: 21938762
A16: Community Facilities | C16: =SA34a!C75 -> 4179869.69 | D16: =SA34a!D75 -> 0 | E16: =SA34a!E75 -> 1066420.01 | F16: =SA34a!F75 -> 5000000 | G16: =SA34a!G75 -> 1000000 | H16: =SA34a!H75 -> 1000000 | I16: =SA34a!I75 -> 100000 | J16: =SA34a!J75 -> 0 | K16: =SA34a!K75 -> 50439800
A17: Sport and Recreation Facilities | C17: =SA34a!C98 -> 22244292 | D17: =SA34a!D98 -> 2020672 | E17: =SA34a!E98 -> 20024557 | F17: =SA34a!F98 -> 13365240 | G17: =SA34a!G98 -> 5110000 | H17: =SA34a!H98 -> 5110000 | I17: =SA34a!I98 -> 20750780 | J17: =SA34a!J98 -> 0 | K17: =SA34a!K98 -> 15000000
A18: Community Assets | C18: =SUM(C16:C17) -> 26424161.69 | D18: =SUM(D16:D17) -> 2020672 | E18: 21090977.01 | F18: 18365240 | G18: 6110000 | H18: 6110000 | I18: 20850780 | J18: 0 | K18: 65439800
A19: Heritage Assets | C19: =SA34a!C103 -> 0 | D19: =SA34a!D103 -> 0 | E19: =SA34a!E103 -> 0 | F19: =SA34a!F103 -> 0 | G19: =SA34a!G103 -> 0 | H19: =SA34a!H103 -> 0 | I19: =SA34a!I103 -> 0 | J19: =SA34a!J103 -> 0 | K19: =SA34a!K103 -> 0
A20: Revenue Generating | C20: =SA34a!C111 -> 0 | D20: =SA34a!D111 -> 0 | E20: =SA34a!E111 -> 0 | F20: =SA34a!F111 -> 0 | G20: =SA34a!G111 -> 0 | H20: =SA34a!H111 -> 0 | I20: =SA34a!I111 -> 0 | J20: =SA34a!J111 -> 0 | K20: =SA34a!K111 -> 0
A21: Non-revenue Generating | C21: =SA34a!C114 -> 0 | D21: =SA34a!D114 -> 0 | E21: =SA34a!E114 -> 0 | F21: =SA34a!F114 -> 0 | G21: =SA34a!G114 -> 0 | H21: =SA34a!H114 -> 0 | I21: =SA34a!I114 -> 0 | J21: =SA34a!J114 -> 0 | K21: =SA34a!K114 -> 0
A22: Investment properties | C22: =SUM(C20:C21) -> 0 | D22: =SUM(D20:D21) -> 0 | E22: 0 | F22: 0 | G22: 0 | H22: 0 | I22: 0 | J22: 0 | K22: 0
A23: Operational Buildings | C23: =SA34a!C119 -> 0 | D23: =SA34a!D119 -> 0 | E23: =SA34a!E119 -> 152842 | F23: =SA34a!F119 -> 4000000 | G23: =SA34a!G119 -> 8000000 | H23: =SA34a!H119 -> 8000000 | I23: =SA34a!I119 -> 20000000 | J23: =SA34a!J119 -> 0 | K23: =SA34a!K119 -> 0
A24: Housing | C24: =SA34a!C131 -> 0 | D24: =SA34a!D131 -> 0 | E24: =SA34a!E131 -> 0 | F24: =SA34a!F131 -> 0 | G24: =SA34a!G131 -> 0 | H24: =SA34a!H131 -> 0 | I24: =SA34a!I131 -> 0 | J24: =SA34a!J131 -> 0 | K24: =SA34a!K131 -> 0
A25: Other Assets | C25: =SUM(C23:C24) -> 0 | D25: =SUM(D23:D24) -> 0 | E25: 152842 | F25: 4000000 | G25: 8000000 | H25: 8000000 | I25: 20000000 | J25: 0 | K25: 0
A26: Biological or Cultivated Assets | C26: =SA34a!C136 -> 0 | D26: =SA34a!D136 -> 0 | E26: =SA34a!E136 -> 0 | F26: =SA34a!F136 -> 0 | G26: =SA34a!G136 -> 0 | H26: =SA34a!H136 -> 0 | I26: =SA34a!I136 -> 0 | J26: =SA34a!J136 -> 0 | K26: =SA34a!K136 -> 0
A27: Servitudes | C27: =SA34a!C140 -> 0 | D27: =SA34a!D140 -> 0 | E27: =SA34a!E140 -> 0 | F27: =SA34a!F140 -> 0 | G27: =SA34a!G140 -> 0 | H27: =SA34a!H140 -> 0 | I27: =SA34a!I140 -> 0 | J27: =SA34a!J140 -> 0 | K27: =SA34a!K140 -> 0
A28: Licences and Rights | C28: =SA34a!C141 -> 142085 | D28: =SA34a!D141 -> 0 | E28: =SA34a!E141 -> 1546384 | F28: =SA34a!F141 -> 1300000 | G28: =SA34a!G141 -> 0 | H28: =SA34a!H141 -> 0 | I28: =SA34a!I141 -> 1966666 | J28: =SA34a!J141 -> 2484666 | K28: =SA34a!K141 -> 2503748
A29: Intangible Assets | C29: =SUM(C27:C28) -> 142085 | D29: =SUM(D27:D28) -> 0 | E29: 1546384 | F29: 1300000 | G29: 0 | H29: 0 | I29: 1966666 | J29: 2484666 | K29: 2503748
A30: Computer Equipment | C30: =SA34a!C149 -> 349826.4 | D30: =SA34a!D149 -> 0 | E30: =SA34a!E149 -> 3034443 | F30: =SA34a!F149 -> 3500000 | G30: =SA34a!G149 -> 1850000 | H30: =SA34a!H149 -> 1850000 | I30: =SA34a!I149 -> 1200000 | J30: =SA34a!J149 -> 1200000 | K30: =SA34a!K149 -> 1573040
A31: Furniture and Office Equipment | C31: =SA34a!C152 -> 309972.54 | D31: =SA34a!D152 -> 139249 | E31: =SA34a!E152 -> 0 | F31: =SA34a!F152 -> 1850000 | G31: =SA34a!G152 -> 300000 | H31: =SA34a!H152 -> 300000 | I31: =SA34a!I152 -> 1300000 | J31: =SA34a!J152 -> 1400000 | K31: =SA34a!K152 -> 1800000
A32: Machinery and Equipment | C32: =SA34a!C155 -> 1267330.53 | D32: =SA34a!D155 -> 3010099 | E32: =SA34a!E155 -> 2743655 | F32: =SA34a!F155 -> 2400000 | G32: =SA34a!G155 -> 700000 | H32: =SA34a!H155 -> 700000 | I32: =SA34a!I155 -> 4200000 | J32: =SA34a!J155 -> 5250000 | K32: =SA34a!K155 -> 950000
A33: Transport Assets | C33: =SA34a!C158 -> 0 | D33: =SA34a!D158 -> 0 | E33: =SA34a!E158 -> 902398 | F33: =SA34a!F158 -> 2200000 | G33: =SA34a!G158 -> 2200000 | H33: =SA34a!H158 -> 2200000 | I33: =SA34a!I158 -> 1500000 | J33: =SA34a!J158 -> 2500000 | K33: =SA34a!K158 -> 0
A34: Land | C34: =SA34a!C161 -> 0 | D34: =SA34a!D161 -> 0 | E34: =SA34a!E161 -> 0 | F34: =SA34a!F161 -> 0 | G34: =SA34a!G161 -> 0 | H34: =SA34a!H161 -> 0 | I34: =SA34a!I161 -> 0 | J34: =SA34a!J161 -> 0 | K34: =SA34a!K161 -> 0
A35: Zoo's, Marine and Non-biological Animals | C35: =SA34a!C164 -> 0 | D35: =SA34a!D164 -> 0 | E35: =SA34a!E164 -> 0 | F35: =SA34a!F164 -> 0 | G35: =SA34a!G164 -> 0 | H35: =SA34a!H164 -> 0 | I35: =SA34a!I164 -> 0 | J35: =SA34a!J164 -> 0 | K35: =SA34a!K164 -> 0
A37: Total Renewal of Existing Assets | B37: 2 | C37: =C47+C50+C51+C54+C57+C58+SUM(C61:C67) -> 31759264 | D37: =D47+D50+D51+D54+D57+D58+SUM(D61:D67) -> 25353565.88 | E37: 65094173 | F37: 0 | G37: 0 | H37: 0 | I37: 4500000 | J37: 0 | K37: 0
A38: Roads Infrastructure | C38: =SA34b!C7 -> 31759264 | D38: =SA34b!D7 -> 25353565.88 | E38: =SA34b!E7 -> 65094173 | F38: =SA34b!F7 -> 0 | G38: =SA34b!G7 -> 0 | H38: =SA34b!H7 -> 0 | I38: =SA34b!I7 -> 0 | J38: =SA34b!J7 -> 0 | K38: =SA34b!K7 -> 0
A39: Storm water Infrastructure | C39: =SA34b!C12 -> 0 | D39: =SA34b!D12 -> 0 | E39: =SA34b!E12 -> 0 | F39: =SA34b!F12 -> 0 | G39: =SA34b!G12 -> 0 | H39: =SA34b!H12 -> 0 | I39: =SA34b!I12 -> 0 | J39: =SA34b!J12 -> 0 | K39: =SA34b!K12 -> 0
A40: Electrical Infrastructure | C40: =SA34b!C16 -> 0 | D40: =SA34b!D16 -> 0 | E40: =SA34b!E16 -> 0 | F40: =SA34b!F16 -> 0 | G40: =SA34b!G16 -> 0 | H40: =SA34b!H16 -> 0 | I40: =SA34b!I16 -> 0 | J40: =SA34b!J16 -> 0 | K40: =SA34b!K16 -> 0
A41: Water Supply Infrastructure | C41: =SA34b!C26 -> 0 | D41: =SA34b!D26 -> 0 | E41: =SA34b!E26 -> 0 | F41: =SA34b!F26 -> 0 | G41: =SA34b!G26 -> 0 | H41: =SA34b!H26 -> 0 | I41: =SA34b!I26 -> 0 | J41: =SA34b!J26 -> 0 | K41: =SA34b!K26 -> 0
A42: Sanitation Infrastructure | C42: =SA34b!C37 -> 0 | D42: =SA34b!D37 -> 0 | E42: =SA34b!E37 -> 0 | F42: =SA34b!F37 -> 0 | G42: =SA34b!G37 -> 0 | H42: =SA34b!H37 -> 0 | I42: =SA34b!I37 -> 0 | J42: =SA34b!J37 -> 0 | K42: =SA34b!K37 -> 0
A43: Solid Waste Infrastructure | C43: =SA34b!C44 -> 0 | D43: =SA34b!D44 -> 0 | E43: =SA34b!E44 -> 0 | F43: =SA34b!F44 -> 0 | G43: =SA34b!G44 -> 0 | H43: =SA34b!H44 -> 0 | I43: =SA34b!I44 -> 0 | J43: =SA34b!J44 -> 0 | K43: =SA34b!K44 -> 0
A44: Rail Infrastructure | C44: =SA34b!C52 -> 0 | D44: =SA34b!D52 -> 0 | E44: =SA34b!E52 -> 0 | F44: =SA34b!F52 -> 0 | G44: =SA34b!G52 -> 0 | H44: =SA34b!H52 -> 0 | I44: =SA34b!I52 -> 0 | J44: =SA34b!J52 -> 0 | K44: =SA34b!K52 -> 0
A45: Coastal Infrastructure | C45: =SA34b!C62 -> 0 | D45: =SA34b!D62 -> 0 | E45: =SA34b!E62 -> 0 | F45: =SA34b!F62 -> 0 | G45: =SA34b!G62 -> 0 | H45: =SA34b!H62 -> 0 | I45: =SA34b!I62 -> 0 | J45: =SA34b!J62 -> 0 | K45: =SA34b!K62 -> 0
A46: Information and Communication Infrastructure | C46: =SA34b!C68 -> 0 | D46: =SA34b!D68 -> 0 | E46: =SA34b!E68 -> 0 | F46: =SA34b!F68 -> 0 | G46: =SA34b!G68 -> 0 | H46: =SA34b!H68 -> 0 | I46: =SA34b!I68 -> 0 | J46: =SA34b!J68 -> 0 | K46: =SA34b!K68 -> 0
A47: Infrastructure | C47: =SUM(C38:C46) -> 31759264 | D47: =SUM(D38:D46) -> 25353565.88 | E47: 65094173 | F47: 0 | G47: 0 | H47: 0 | I47: 0 | J47: 0 | K47: 0
A48: Community Facilities | C48: =SA34b!C75 -> 0 | D48: =SA34b!D75 -> 0 | E48: =SA34b!E75 -> 0 | F48: =SA34b!F75 -> 0 | G48: =SA34b!G75 -> 0 | H48: =SA34b!H75 -> 0 | I48: =SA34b!I75 -> 0 | J48: =SA34b!J75 -> 0 | K48: =SA34b!K75 -> 0
A49: Sport and Recreation Facilities | C49: =SA34b!C98 -> 0 | D49: =SA34b!D98 -> 0 | E49: =SA34b!E98 -> 0 | F49: =SA34b!F98 -> 0 | G49: =SA34b!G98 -> 0 | H49: =SA34b!H98 -> 0 | I49: =SA34b!I98 -> 4500000 | J49: =SA34b!J98 -> 0 | K49: =SA34b!K98 -> 0
A50: Community Assets | C50: =SUM(C48:C49) -> 0 | D50: =SUM(D48:D49) -> 0 | E50: 0 | F50: 0 | G50: 0 | H50: 0 | I50: 4500000 | J50: 0 | K50: 0
A51: Heritage Assets | C51: =SA34b!C103 -> 0 | D51: =SA34b!D103 -> 0 | E51: =SA34b!E103 -> 0 | F51: =SA34b!F103 -> 0 | G51: =SA34b!G103 -> 0 | H51: =SA34b!H103 -> 0 | I51: =SA34b!I103 -> 0 | J51: =SA34b!J103 -> 0 | K51: =SA34b!K103 -> 0
A52: Revenue Generating | C52: =SA34b!C111 -> 0 | D52: =SA34b!D111 -> 0 | E52: =SA34b!E111 -> 0 | F52: =SA34b!F111 -> 0 | G52: =SA34b!G111 -> 0 | H52: =SA34b!H111 -> 0 | I52: =SA34b!I111 -> 0 | J52: =SA34b!J111 -> 0 | K52: =SA34b!K111 -> 0
A53: Non-revenue Generating | C53: =SA34b!C114 -> 0 | D53: =SA34b!D114 -> 0 | E53: =SA34b!E114 -> 0 | F53: =SA34b!F114 -> 0 | G53: =SA34b!G114 -> 0 | H53: =SA34b!H114 -> 0 | I53: =SA34b!I114 -> 0 | J53: =SA34b!J114 -> 0 | K53: =SA34b!K114 -> 0
A54: Investment properties | C54: =SUM(C52:C53) -> 0 | D54: =SUM(D52:D53) -> 0 | E54: 0 | F54: 0 | G54: 0 | H54: 0 | I54: 0 | J54: 0 | K54: 0
A55: Operational Buildings | C55: =SA34b!C119 -> 0 | D55: =SA34b!D119 -> 0 | E55: =SA34b!E119 -> 0 | F55: =SA34b!F119 -> 0 | G55: =SA34b!G119 -> 0 | H55: =SA34b!H119 -> 0 | I55: =SA34b!I119 -> 0 | J55: =SA34b!J119 -> 0 | K55: =SA34b!K119 -> 0
A56: Housing | C56: =SA34b!C131 -> 0 | D56: =SA34b!D131 -> 0 | E56: =SA34b!E131 -> 0 | F56: =SA34b!F131 -> 0 | G56: =SA34b!G131 -> 0 | H56: =SA34b!H131 -> 0 | I56: =SA34b!I131 -> 0 | J56: =SA34b!J131 -> 0 | K56: =SA34b!K131 -> 0
A57: Other Assets | C57: =SUM(C55:C56) -> 0 | D57: =SUM(D55:D56) -> 0 | E57: 0 | F57: 0 | G57: 0 | H57: 0 | I57: 0 | J57: 0 | K57: 0
A58: Biological or Cultivated Assets | C58: =SA34b!C136 -> 0 | D58: =SA34b!D136 -> 0 | E58: =SA34b!E136 -> 0 | F58: =SA34b!F136 -> 0 | G58: =SA34b!G136 -> 0 | H58: =SA34b!H136 -> 0 | I58: =SA34b!I136 -> 0 | J58: =SA34b!J136 -> 0 | K58: =SA34b!K136 -> 0
A59: Servitudes | C59: =SA34b!C140 -> 0 | D59: =SA34b!D140 -> 0 | E59: =SA34b!E140 -> 0 | F59: =SA34b!F140 -> 0 | G59: =SA34b!G140 -> 0 | H59: =SA34b!H140 -> 0 | I59: =SA34b!I140 -> 0 | J59: =SA34b!J140 -> 0 | K59: =SA34b!K140 -> 0
A60: Licences and Rights | C60: =SA34b!C141 -> 0 | D60: =SA34b!D141 -> 0 | E60: =SA34b!E141 -> 0 | F60: =SA34b!F141 -> 0 | G60: =SA34b!G141 -> 0 | H60: =SA34b!H141 -> 0 | I60: =SA34b!I141 -> 0 | J60: =SA34b!J141 -> 0 | K60: =SA34b!K141 -> 0
A61: Intangible Assets | C61: =SUM(C59:C60) -> 0 | D61: =SUM(D59:D60) -> 0 | E61: 0 | F61: 0 | G61: 0 | H61: 0 | I61: 0 | J61: 0 | K61: 0
A62: Computer Equipment | C62: =SA34b!C149 -> 0 | D62: =SA34b!D149 -> 0 | E62: =SA34b!E149 -> 0 | F62: =SA34b!F149 -> 0 | G62: =SA34b!G149 -> 0 | H62: =SA34b!H149 -> 0 | I62: =SA34b!I149 -> 0 | J62: =SA34b!J149 -> 0 | K62: =SA34b!K149 -> 0
A63: Furniture and Office Equipment | C63: =SA34b!C152 -> 0 | D63: =SA34b!D152 -> 0 | E63: =SA34b!E152 -> 0 | F63: =SA34b!F152 -> 0 | G63: =SA34b!G152 -> 0 | H63: =SA34b!H152 -> 0 | I63: =SA34b!I152 -> 0 | J63: =SA34b!J152 -> 0 | K63: =SA34b!K152 -> 0
A64: Machinery and Equipment | C64: =SA34b!C155 -> 0 | D64: =SA34b!D155 -> 0 | E64: =SA34b!E155 -> 0 | F64: =SA34b!F155 -> 0 | G64: =SA34b!G155 -> 0 | H64: =SA34b!H155 -> 0 | I64: =SA34b!I155 -> 0 | J64: =SA34b!J155 -> 0 | K64: =SA34b!K155 -> 0
A65: Transport Assets | C65: =SA34b!C158 -> 0 | D65: =SA34b!D158 -> 0 | E65: =SA34b!E158 -> 0 | F65: =SA34b!F158 -> 0 | G65: =SA34b!G158 -> 0 | H65: =SA34b!H158 -> 0 | I65: =SA34b!I158 -> 0 | J65: =SA34b!J158 -> 0 | K65: =SA34b!K158 -> 0
A66: Land | C66: =SA34b!C161 -> 0 | D66: =SA34b!D161 -> 0 | E66: =SA34b!E161 -> 0 | F66: =SA34b!F161 -> 0 | G66: =SA34b!G161 -> 0 | H66: =SA34b!H161 -> 0 | I66: =SA34b!I161 -> 0 | J66: =SA34b!J161 -> 0 | K66: =SA34b!K161 -> 0
A67: Zoo's, Marine and Non-biological Animals | C67: =SA34b!C164 -> 0 | D67: =SA34b!D164 -> 0 | E67: =SA34b!E164 -> 0 | F67: =SA34b!F164 -> 0 | G67: =SA34b!G164 -> 0 | H67: =SA34b!H164 -> 0 | I67: =SA34b!I164 -> 0 | J67: =SA34b!J164 -> 0 | K67: =SA34b!K164 -> 0
A69: Total Upgrading of Existing Assets | B69: 6 | C69: =C79+C82+C83+C86+C89+C90+SUM(C93:C99) -> 0 | D69: =D79+D82+D83+D86+D89+D90+SUM(D93:D99) -> 0 | E69: 0 | F69: 250000 | G69: 0 | H69: 0 | I69: 50000 | J69: 2000000 | K69: 0
A70: Roads Infrastructure | C70: =SA34e!C7 -> 0 | D70: =SA34e!D7 -> 0 | E70: =SA34e!E7 -> 0 | F70: =SA34e!F7 -> 0 | G70: =SA34e!G7 -> 0 | H70: =SA34e!H7 -> 0 | I70: =SA34e!I7 -> 0 | J70: =SA34e!J7 -> 0 | K70: =SA34e!K7 -> 0
A71: Storm water Infrastructure | C71: =SA34e!C12 -> 0 | D71: =SA34e!D12 -> 0 | E71: =SA34e!E12 -> 0 | F71: =SA34e!F12 -> 0 | G71: =SA34e!G12 -> 0 | H71: =SA34e!H12 -> 0 | I71: =SA34e!I12 -> 0 | J71: =SA34e!J12 -> 0 | K71: =SA34e!K12 -> 0
A72: Electrical Infrastructure | C72: =SA34e!C16 -> 0 | D72: =SA34e!D16 -> 0 | E72: =SA34e!E16 -> 0 | F72: =SA34e!F16 -> 0 | G72: =SA34e!G16 -> 0 | H72: =SA34e!H16 -> 0 | I72: =SA34e!I16 -> 0 | J72: =SA34e!J16 -> 0 | K72: =SA34e!K16 -> 0
A73: Water Supply Infrastructure | C73: =SA34e!C26 -> 0 | D73: =SA34e!D26 -> 0 | E73: =SA34e!E26 -> 0 | F73: =SA34e!F26 -> 0 | G73: =SA34e!G26 -> 0 | H73: =SA34e!H26 -> 0 | I73: =SA34e!I26 -> 0 | J73: =SA34e!J26 -> 0 | K73: =SA34e!K26 -> 0
A74: Sanitation Infrastructure | C74: =SA34e!C37 -> 0 | D74: =SA34e!D37 -> 0 | E74: =SA34e!E37 -> 0 | F74: =SA34e!F37 -> 0 | G74: =SA34e!G37 -> 0 | H74: =SA34e!H37 -> 0 | I74: =SA34e!I37 -> 0 | J74: =SA34e!J37 -> 0 | K74: =SA34e!K37 -> 0
A75: Solid Waste Infrastructure | C75: =SA34e!C44 -> 0 | D75: =SA34e!D44 -> 0 | E75: =SA34e!E44 -> 0 | F75: =SA34e!F44 -> 0 | G75: =SA34e!G44 -> 0 | H75: =SA34e!H44 -> 0 | I75: =SA34e!I44 -> 0 | J75: =SA34e!J44 -> 0 | K75: =SA34e!K44 -> 0
A76: Rail Infrastructure | C76: =SA34e!C52 -> 0 | D76: =SA34e!D52 -> 0 | E76: =SA34e!E52 -> 0 | F76: =SA34e!F52 -> 0 | G76: =SA34e!G52 -> 0 | H76: =SA34e!H52 -> 0 | I76: =SA34e!I52 -> 0 | J76: =SA34e!J52 -> 0 | K76: =SA34e!K52 -> 0
A77: Coastal Infrastructure | C77: =SA34e!C62 -> 0 | D77: =SA34e!D62 -> 0 | E77: =SA34e!E62 -> 0 | F77: =SA34e!F62 -> 0 | G77: =SA34e!G62 -> 0 | H77: =SA34e!H62 -> 0 | I77: =SA34e!I62 -> 0 | J77: =SA34e!J62 -> 0 | K77: =SA34e!K62 -> 0
A78: Information and Communication Infrastructure | C78: =SA34e!C68 -> 0 | D78: =SA34e!D68 -> 0 | E78: =SA34e!E68 -> 0 | F78: =SA34e!F68 -> 0 | G78: =SA34e!G68 -> 0 | H78: =SA34e!H68 -> 0 | I78: =SA34e!I68 -> 0 | J78: =SA34e!J68 -> 0 | K78: =SA34e!K68 -> 0
A79: Infrastructure | C79: =SUM(C70:C78) -> 0 | D79: 0 | E79: 0 | F79: 0 | G79: 0 | H79: 0 | I79: 0 | J79: 0 | K79: 0
A80: Community Facilities | C80: =SA34e!C75 -> 0 | D80: =SA34e!D75 -> 0 | E80: =SA34e!E75 -> 0 | F80: =SA34e!F75 -> 250000 | G80: =SA34e!G75 -> 0 | H80: =SA34e!H75 -> 0 | I80: =SA34e!I75 -> 0 | J80: =SA34e!J75 -> 0 | K80: =SA34e!K75 -> 0
A81: Sport and Recreation Facilities | C81: =SA34e!C98 -> 0 | D81: =SA34e!D98 -> 0 | E81: =SA34e!E98 -> 0 | F81: =SA34e!F98 -> 0 | G81: =SA34e!G98 -> 0 | H81: =SA34e!H98 -> 0 | I81: =SA34e!I98 -> 0 | J81: =SA34e!J98 -> 0 | K81: =SA34e!K98 -> 0
A82: Community Assets | C82: =SUM(C80:C81) -> 0 | D82: 0 | E82: 0 | F82: 250000 | G82: 0 | H82: 0 | I82: 0 | J82: 0 | K82: 0
A83: Heritage Assets | C83: =SA34e!C103 -> 0 | D83: =SA34e!D103 -> 0 | E83: =SA34e!E103 -> 0 | F83: =SA34e!F103 -> 0 | G83: =SA34e!G103 -> 0 | H83: =SA34e!H103 -> 0 | I83: =SA34e!I103 -> 0 | J83: =SA34e!J103 -> 0 | K83: =SA34e!K103 -> 0
A84: Revenue Generating | C84: =SA34e!C111 -> 0 | D84: =SA34e!D111 -> 0 | E84: =SA34e!E111 -> 0 | F84: =SA34e!F111 -> 0 | G84: =SA34e!G111 -> 0 | H84: =SA34e!H111 -> 0 | I84: =SA34e!I111 -> 0 | J84: =SA34e!J111 -> 0 | K84: =SA34e!K111 -> 0
A85: Non-revenue Generating | C85: =SA34e!C114 -> 0 | D85: =SA34e!D114 -> 0 | E85: =SA34e!E114 -> 0 | F85: =SA34e!F114 -> 0 | G85: =SA34e!G114 -> 0 | H85: =SA34e!H114 -> 0 | I85: =SA34e!I114 -> 0 | J85: =SA34e!J114 -> 0 | K85: =SA34e!K114 -> 0
A86: Investment properties | C86: =SUM(C84:C85) -> 0 | D86: 0 | E86: 0 | F86: 0 | G86: 0 | H86: 0 | I86: 0 | J86: 0 | K86: 0
A87: Operational Buildings | C87: =SA34e!C119 -> 0 | D87: =SA34e!D119 -> 0 | E87: =SA34e!E119 -> 0 | F87: =SA34e!F119 -> 0 | G87: =SA34e!G119 -> 0 | H87: =SA34e!H119 -> 0 | I87: =SA34e!I119 -> 50000 | J87: =SA34e!J119 -> 2000000 | K87: =SA34e!K119 -> 0
A88: Housing | C88: =SA34e!C131 -> 0 | D88: =SA34e!D131 -> 0 | E88: =SA34e!E131 -> 0 | F88: =SA34e!F131 -> 0 | G88: =SA34e!G131 -> 0 | H88: =SA34e!H131 -> 0 | I88: =SA34e!I131 -> 0 | J88: =SA34e!J131 -> 0 | K88: =SA34e!K131 -> 0
A89: Other Assets | C89: =SUM(C87:C88) -> 0 | D89: 0 | E89: 0 | F89: 0 | G89: 0 | H89: 0 | I89: 50000 | J89: 2000000 | K89: 0
A90: Biological or Cultivated Assets | C90: =SA34e!C136 -> 0 | D90: =SA34e!D136 -> 0 | E90: =SA34e!E136 -> 0 | F90: =SA34e!F136 -> 0 | G90: =SA34e!G136 -> 0 | H90: =SA34e!H136 -> 0 | I90: =SA34e!I136 -> 0 | J90: =SA34e!J136 -> 0 | K90: =SA34e!K136 -> 0
A91: Servitudes | C91: =SA34e!C140 -> 0 | D91: =SA34e!D140 -> 0 | E91: =SA34e!E140 -> 0 | F91: =SA34e!F140 -> 0 | G91: =SA34e!G140 -> 0 | H91: =SA34e!H140 -> 0 | I91: =SA34e!I140 -> 0 | J91: =SA34e!J140 -> 0 | K91: =SA34e!K140 -> 0
A92: Licences and Rights | C92: =SA34e!C141 -> 0 | D92: =SA34e!D141 -> 0 | E92: =SA34e!E141 -> 0 | F92: =SA34e!F141 -> 0 | G92: =SA34e!G141 -> 0 | H92: =SA34e!H141 -> 0 | I92: =SA34e!I141 -> 0 | J92: =SA34e!J141 -> 0 | K92: =SA34e!K141 -> 0
A93: Intangible Assets | C93: =SUM(C91:C92) -> 0 | D93: 0 | E93: 0 | F93: 0 | G93: 0 | H93: 0 | I93: 0 | J93: 0 | K93: 0
A94: Computer Equipment | C94: =SA34e!C149 -> 0 | D94: =SA34e!D149 -> 0 | E94: =SA34e!E149 -> 0 | F94: =SA34e!F149 -> 0 | G94: =SA34e!G149 -> 0 | H94: =SA34e!H149 -> 0 | I94: =SA34e!I149 -> 0 | J94: =SA34e!J149 -> 0 | K94: =SA34e!K149 -> 0
A95: Furniture and Office Equipment | C95: =SA34e!C152 -> 0 | D95: =SA34e!D152 -> 0 | E95: =SA34e!E152 -> 0 | F95: =SA34e!F152 -> 0 | G95: =SA34e!G152 -> 0 | H95: =SA34e!H152 -> 0 | I95: =SA34e!I152 -> 0 | J95: =SA34e!J152 -> 0 | K95: =SA34e!K152 -> 0
A96: Machinery and Equipment | C96: =SA34e!C155 -> 0 | D96: =SA34e!D155 -> 0 | E96: =SA34e!E155 -> 0 | F96: =SA34e!F155 -> 0 | G96: =SA34e!G155 -> 0 | H96: =SA34e!H155 -> 0 | I96: =SA34e!I155 -> 0 | J96: =SA34e!J155 -> 0 | K96: =SA34e!K155 -> 0
A97: Transport Assets | C97: =SA34e!C158 -> 0 | D97: =SA34e!D158 -> 0 | E97: =SA34e!E158 -> 0 | F97: =SA34e!F158 -> 0 | G97: =SA34e!G158 -> 0 | H97: =SA34e!H158 -> 0 | I97: =SA34e!I158 -> 0 | J97: =SA34e!J158 -> 0 | K97: =SA34e!K158 -> 0
A98: Land | C98: =SA34e!C161 -> 0 | D98: =SA34e!D161 -> 0 | E98: =SA34e!E161 -> 0 | F98: =SA34e!F161 -> 0 | G98: =SA34e!G161 -> 0 | H98: =SA34e!H161 -> 0 | I98: =SA34e!I161 -> 0 | J98: =SA34e!J161 -> 0 | K98: =SA34e!K161 -> 0
A99: Zoo's, Marine and Non-biological Animals | C99: =SA34e!C164 -> 0 | D99: =SA34e!D164 -> 0 | E99: =SA34e!E164 -> 0 | F99: =SA34e!F164 -> 0 | G99: =SA34e!G164 -> 0 | H99: =SA34e!H164 -> 0 | I99: =SA34e!I164 -> 0 | J99: =SA34e!J164 -> 0 | K99: =SA34e!K164 -> 0
A101: Total Capital Expenditure | B101: 4 | C101: =+C5+C37+C69 -> 63937443.16 | D101: =+D5+D37+D69 -> 30523585.88 | E101: 107839867 | F101: 100149350 | G101: 74057078 | H101: 74057078 | I101: 109870446 | J101: 95759088 | K101: 94205350
A102: Roads Infrastructure | C102: =+C6+C38+C70 -> 31759264 | D102: =+D6+D38+D70 -> 25353565.88 | E102: 65094173 | F102: 47816027 | G102: 53897078 | H102: 53897078 | I102: 39403000 | J102: 46842616 | K102: 12242122
A103: Storm water Infrastructure | C103: =+C7+C39+C71 -> 0 | D103: 0 | E103: 0 | F103: 0 | G103: 0 | H103: 0 | I103: 0 | J103: 0 | K103: 0
A104: Electrical Infrastructure | C104: 0 | D104: 0 | E104: 0 | F104: 0 | G104: 0 | H104: 0 | I104: 0 | J104: 0 | K104: 0
A105: Water Supply Infrastructure | C105: 0 | D105: 0 | E105: 0 | F105: 0 | G105: 0 | H105: 0 | I105: 0 | J105: 0 | K105: 0
A106: Sanitation Infrastructure | C106: 0 | D106: 0 | E106: 0 | F106: 0 | G106: 0 | H106: 0 | I106: 0 | J106: 0 | K106: 0
A107: Solid Waste Infrastructure | C107: 3684803 | D107: 0 | E107: 13274995 | F107: 18468083 | G107: 1000000 | H107: 1000000 | I107: 12500000 | J107: 31537806 | K107: 7000000
A108: Rail Infrastructure | C108: 0 | D108: 0 | E108: 0 | F108: 0 | G108: 0 | H108: 0 | I108: 0 | J108: 0 | K108: 0
A109: Coastal Infrastructure | C109: 0 | D109: 0 | E109: 0 | F109: 0 | G109: 0 | H109: 0 | I109: 0 | J109: 0 | K109: 0
A110: Information and Communication Infrastructure | C110: 0 | D110: 0 | E110: 0 | F110: 0 | G110: 0 | H110: 0 | I110: 2400000 | J110: 2544000 | K110: 2696640
A111: Infrastructure | C111: =SUM(C102:C110) -> 35444067 | D111: =SUM(D102:D110) -> 25353565.88 | E111: 78369168 | F111: 66284110 | G111: 54897078 | H111: 54897078 | I111: 54303000 | J111: 80924422 | K111: 21938762
A112: Community Facilities | C112: =+C16+C48+C80 -> 4179869.69 | D112: =+D16+D48+D80 -> 0 | E112: 1066420.01 | F112: 5250000 | G112: 1000000 | H112: 1000000 | I112: 100000 | J112: 0 | K112: 50439800
A113: Sport and Recreation Facilities | C113: =+C17+C49+C81 -> 22244292 | D113: =+D17+D49+D81 -> 2020672 | E113: 20024557 | F113: 13365240 | G113: 5110000 | H113: 5110000 | I113: 25250780 | J113: 0 | K113: 15000000
A114: Community Assets | C114: =SUM(C112:C113) -> 26424161.69 | D114: =SUM(D112:D113) -> 2020672 | E114: 21090977.01 | F114: 18615240 | G114: 6110000 | H114: 6110000 | I114: 25350780 | J114: 0 | K114: 65439800
A115: Heritage Assets | C115: =+C19+C51+C83 -> 0 | D115: =+D19+D51+D83 -> 0 | E115: 0 | F115: 0 | G115: 0 | H115: 0 | I115: 0 | J115: 0 | K115: 0
A116: Revenue Generating | C116: =+C20+C52+C84 -> 0 | D116: =+D20+D52+D84 -> 0 | E116: 0 | F116: 0 | G116: 0 | H116: 0 | I116: 0 | J116: 0 | K116: 0
A117: Non-revenue Generating | C117: =+C21+C53+C85 -> 0 | D117: =+D21+D53+D85 -> 0 | E117: 0 | F117: 0 | G117: 0 | H117: 0 | I117: 0 | J117: 0 | K117: 0
A118: Investment properties | C118: =SUM(C116:C117) -> 0 | D118: =SUM(D116:D117) -> 0 | E118: 0 | F118: 0 | G118: 0 | H118: 0 | I118: 0 | J118: 0 | K118: 0
A119: Operational Buildings | C119: =+C23+C55+C87 -> 0 | D119: =+D23+D55+D87 -> 0 | E119: 152842 | F119: 4000000 | G119: 8000000 | H119: 8000000 | I119: 20050000 | J119: 2000000 | K119: 0
A120: Housing | C120: =+C24+C56+C88 -> 0 | D120: =+D24+D56+D88 -> 0 | E120: 0 | F120: 0 | G120: 0 | H120: 0 | I120: 0 | J120: 0 | K120: 0
A121: Other Assets | C121: =SUM(C119:C120) -> 0 | D121: 0 | E121: 152842 | F121: 4000000 | G121: 8000000 | H121: 8000000 | I121: 20050000 | J121: 2000000 | K121: 0
A122: Biological or Cultivated Assets | C122: =+C26+C58+C90 -> 0 | D122: =+D26+D58+D90 -> 0 | E122: 0 | F122: 0 | G122: 0 | H122: 0 | I122: 0 | J122: 0 | K122: 0
A123: Servitudes | C123: =+C27+C59+C91 -> 0 | D123: =+D27+D59+D91 -> 0 | E123: 0 | F123: 0 | G123: 0 | H123: 0 | I123: 0 | J123: 0 | K123: 0
A124: Licences and Rights | C124: =+C28+C60+C92 -> 142085 | D124: =+D28+D60+D92 -> 0 | E124: 1546384 | F124: 1300000 | G124: 0 | H124: 0 | I124: 1966666 | J124: 2484666 | K124: 2503748
A125: Intangible Assets | C125: =SUM(C123:C124) -> 142085 | D125: =SUM(D123:D124) -> 0 | E125: 1546384 | F125: 1300000 | G125: 0 | H125: 0 | I125: 1966666 | J125: 2484666 | K125: 2503748
A126: Computer Equipment | C126: =+C30+C62+C94 -> 349826.4 | D126: =+D30+D62+D94 -> 0 | E126: 3034443 | F126: 3500000 | G126: 1850000 | H126: 1850000 | I126: 1200000 | J126: 1200000 | K126: 1573040
A127: Furniture and Office Equipment | C127: =+C31+C63+C95 -> 309972.54 | D127: 139249 | E127: 0 | F127: 1850000 | G127: 300000 | H127: 300000 | I127: 1300000 | J127: 1400000 | K127: 1800000
A128: Machinery and Equipment | C128: 1267330.53 | D128: 3010099 | E128: 2743655 | F128: 2400000 | G128: 700000 | H128: 700000 | I128: 4200000 | J128: 5250000 | K128: 950000
A129: Transport Assets | C129: 0 | D129: 0 | E129: 902398 | F129: 2200000 | G129: 2200000 | H129: 2200000 | I129: 1500000 | J129: 2500000 | K129: 0
A130: Land | C130: 0 | D130: 0 | E130: 0 | F130: 0 | G130: 0 | H130: 0 | I130: 0 | J130: 0 | K130: 0
A131: Zoo's, Marine and Non-biological Animals | C131: 0 | D131: 0 | E131: 0 | F131: 0 | G131: 0 | H131: 0 | I131: 0 | J131: 0 | K131: 0
A132: TOTAL CAPITAL EXPENDITURE - Asset class | C132: =+C5+C37+C69 -> 63937443.16 | D132: =+D5+D37+D69 -> 30523585.88 | E132: 107839867 | F132: 100149350 | G132: 74057078 | H132: 74057078 | I132: 109870446 | J132: 95759088 | K132: 94205350
A134: ASSET REGISTER SUMMARY - PPE (WDV) | B134: 5 | C134: =C144+C147+C148+C151+C154+C155+C158+C159+C160+C161+C162+C163+C164 -> 646433954.5 | D134: =D144+D147+D148+D151+D154+D155+D158+D159+D160+D161+D162+D163+D164 -> 704476637 | E134: 878621804 | F134: 9380089 | G134: 930514273 | H134: 930514273 | I134: 920121703.5 | J134: 919932821.5 | K134: 923777731.3
A135: Roads Infrastructure | C135: =364006959.76+64643.39 -> 364071603.1 | D135: 396761241.9 | E135: 494839800 | F135: 9380089 | G135: 524065638.6 | H135: 524065638.6 | I135: 518212543.4 | J135: 518106165.1 | K135: 520271618.3
A136: Storm water Infrastructure | I136: 0 | J136: 0 | K136: 0
A137: Electrical Infrastructure | I137: 0 | J137: 0 | K137: 0
A138: Water Supply Infrastructure | I138: 0 | J138: 0 | K138: 0
A139: Sanitation Infrastructure | I139: 0 | J139: 0 | K139: 0
A140: Solid Waste Infrastructure | I140: 0 | J140: 0 | K140: 0
A141: Rail Infrastructure | I141: 0 | J141: 0 | K141: 0
A142: Coastal Infrastructure | I142: 0 | J142: 0 | K142: 0
A143: Information and Communication Infrastructure | I143: 0 | J143: 0 | K143: 0
A144: Infrastructure | C144: =SUM(C135:C143) -> 364071603.1 | D144: =SUM(D135:D143) -> 396761241.9 | E144: 494839800 | F144: 9380089 | G144: 524065638.6 | H144: 524065638.6 | I144: 518212543.4 | J144: 518106165.1 | K144: 520271618.3
A147: Community Assets | C147: 64449465.26 | D147: 70236320.71 | E147: 87598593.86 | F147: 0 | G147: 92772273.02 | H147: 92772273.02 | I147: 91736133.84 | J147: 91717302.31 | K147: 92100639.81
A148: Heritage Assets | I148: 0 | J148: 0 | K148: 0
A151: Investment properties | I151: 0 | J151: 0 | K151: 0
A154: Other Assets | I154: 0 | J154: 0 | K154: 0
A155: Biological or Cultivated Assets | C155: 129286.79 | D155: 140895.33 | E155: 175724.36 | G155: 186102.85 | H155: 186102.85 | I155: 184024.34 | J155: 183986.56 | K155: 184755.55
A158: Intangible Assets | I158: 0 | J158: 0 | K158: 0
A159: Computer Equipment | I159: 0 | J159: 0 | K159: 0
A160: Furniture and Office Equipment | I160: 0 | J160: 0 | K160: 0
A161: Machinery and Equipment | C161: 217783599.3 | D161: 237338179 | E161: 296007685.8 | F161: 0 | G161: 313490258.6 | H161: 313490258.6 | I161: 309989001.9 | J161: 309925367.6 | K161: 311220717.7
A162: Transport Assets | I162: 0 | J162: 0 | K162: 0
A163: Land | I163: 0 | J163: 0 | K163: 0
A164: Zoo's, Marine and Non-biological Animals | I164: 0 | J164: 0 | K164: 0
A165: TOTAL ASSET REGISTER SUMMARY - PPE (WDV) | B165: 5 | C165: =C144+C147+C148+C151+C154+C155+C158+C159+C160+C161+C162+C163+C164 -> 646433954.5 | D165: =D144+D147+D148+D151+D154+D155+D158+D159+D160+D161+D162+D163+D164 -> 704476637 | E165: 878621804 | F165: 9380089 | G165: 930514273 | H165: 930514273 | I165: 920121703.5 | J165: 919932821.5 | K165: 923777731.3
A167: EXPENDITURE OTHER ITEMS | C167: =SUM(C168:C169) -> 46137978.68 | D167: =SUM(D168:D169) -> 54818421.06 | E167: 87487290.46 | F167: 48610000 | G167: 44310000 | H167: 44310000 | I167: 44635000 | J167: 50185000 | K167: 52846000
A168: Depreciation | B168: 7 | C168: =SA34d!C167 -> 20361463 | D168: =SA34d!D167 -> 38553421.06 | E168: =SA34d!E167 -> 84607998.46 | F168: =SA34d!F167 -> 30000000 | G168: =SA34d!G167 -> 30000000 | H168: =SA34d!H167 -> 30000000 | I168: =SA34d!I167 -> 30000000 | J168: =SA34d!J167 -> 30000000 | K168: =SA34d!K167 -> 30000000
A169: Repairs and Maintenance by Asset Class | B169: 3 | C169: =C179+C182+C183+C186+C189+C190+SUM(C193:C199) -> 25776515.68 | D169: =D179+D182+D183+D186+D189+D190+SUM(D193:D199) -> 16265000 | E169: 2879292 | F169: 18610000 | G169: 14310000 | H169: 14310000 | I169: 14635000 | J169: 20185000 | K169: 22846000
A170: Roads Infrastructure | C170: =SA34c!C7 -> 19638920.58 | D170: =SA34c!D7 -> 16265000 | E170: =SA34c!E7 -> 0 | F170: =SA34c!F7 -> 10000000 | G170: =SA34c!G7 -> 8880000 | H170: =SA34c!H7 -> 8880000 | I170: =SA34c!I7 -> 5000000 | J170: =SA34c!J7 -> 7500000 | K170: =SA34c!K7 -> 8500000
A171: Storm water Infrastructure | C171: =SA34c!C12 -> 0 | D171: =SA34c!D12 -> 0 | E171: =SA34c!E12 -> 0 | F171: =SA34c!F12 -> 0 | G171: =SA34c!G12 -> 0 | H171: =SA34c!H12 -> 0 | I171: =SA34c!I12 -> 0 | J171: =SA34c!J12 -> 0 | K171: =SA34c!K12 -> 0
A172: Electrical Infrastructure | C172: =SA34c!C16 -> 830018.81 | D172: =SA34c!D16 -> 0 | E172: =SA34c!E16 -> 0 | F172: =SA34c!F16 -> 0 | G172: =SA34c!G16 -> 750000 | H172: =SA34c!H16 -> 750000 | I172: =SA34c!I16 -> 2000000 | J172: =SA34c!J16 -> 4000000 | K172: =SA34c!K16 -> 4000000
A173: Water Supply Infrastructure | C173: =SA34c!C26 -> 1388425.43 | D173: =SA34c!D26 -> 0 | E173: =SA34c!E26 -> 0 | F173: =SA34c!F26 -> 0 | G173: =SA34c!G26 -> 0 | H173: =SA34c!H26 -> 0 | I173: =SA34c!I26 -> 0 | J173: =SA34c!J26 -> 0 | K173: =SA34c!K26 -> 0
A174: Sanitation Infrastructure | C174: =SA34c!C37 -> 0 | D174: =SA34c!D37 -> 0 | E174: =SA34c!E37 -> 0 | F174: =SA34c!F37 -> 0 | G174: =SA34c!G37 -> 0 | H174: =SA34c!H37 -> 0 | I174: =SA34c!I37 -> 0 | J174: =SA34c!J37 -> 0 | K174: =SA34c!K37 -> 0
A175: Solid Waste Infrastructure | C175: =SA34c!C44 -> 167100 | D175: =SA34c!D44 -> 0 | E175: =SA34c!E44 -> 0 | F175: =SA34c!F44 -> 500000 | G175: =SA34c!G44 -> 400000 | H175: =SA34c!H44 -> 400000 | I175: =SA34c!I44 -> 400000 | J175: =SA34c!J44 -> 450000 | K175: =SA34c!K44 -> 480000
A176: Rail Infrastructure | C176: =SA34c!C52 -> 0 | D176: =SA34c!D52 -> 0 | E176: =SA34c!E52 -> 0 | F176: =SA34c!F52 -> 0 | G176: =SA34c!G52 -> 0 | H176: =SA34c!H52 -> 0 | I176: =SA34c!I52 -> 0 | J176: =SA34c!J52 -> 0 | K176: =SA34c!K52 -> 0
A177: Coastal Infrastructure | C177: =SA34c!C62 -> 0 | D177: =SA34c!D62 -> 0 | E177: =SA34c!E62 -> 0 | F177: =SA34c!F62 -> 0 | G177: =SA34c!G62 -> 0 | H177: =SA34c!H62 -> 0 | I177: =SA34c!I62 -> 0 | J177: =SA34c!J62 -> 0 | K177: =SA34c!K62 -> 0
A178: Information and Communication Infrastructure | C178: =SA34c!C68 -> 0 | D178: =SA34c!D68 -> 0 | E178: =SA34c!E68 -> 0 | F178: =SA34c!F68 -> 0 | G178: =SA34c!G68 -> 0 | H178: =SA34c!H68 -> 0 | I178: =SA34c!I68 -> 0 | J178: =SA34c!J68 -> 0 | K178: =SA34c!K68 -> 0
A179: Infrastructure | C179: =SUM(C170:C178) -> 22024464.82 | D179: =SUM(D170:D178) -> 16265000 | E179: 0 | F179: 10500000 | G179: 10030000 | H179: 10030000 | I179: 7400000 | J179: 11950000 | K179: 12980000
A180: Community Facilities | C180: =SA34c!C75 -> 0 | D180: =SA34c!D75 -> 0 | E180: =SA34c!E75 -> 0 | F180: =SA34c!F75 -> 350000 | G180: =SA34c!G75 -> 100000 | H180: =SA34c!H75 -> 100000 | I180: =SA34c!I75 -> 100000 | J180: =SA34c!J75 -> 100000 | K180: =SA34c!K75 -> 200000
A181: Sport and Recreation Facilities | C181: =SA34c!C98 -> 0 | D181: =SA34c!D98 -> 0 | E181: =SA34c!E98 -> 0 | F181: =SA34c!F98 -> 0 | G181: =SA34c!G98 -> 0 | H181: =SA34c!H98 -> 0 | I181: =SA34c!I98 -> 0 | J181: =SA34c!J98 -> 0 | K181: =SA34c!K98 -> 0
A182: Community Assets | C182: =SUM(C180:C181) -> 0 | D182: 0 | E182: 0 | F182: 350000 | G182: 100000 | H182: 100000 | I182: 100000 | J182: 100000 | K182: 200000
A183: Heritage Assets | C183: =SA34c!C103 -> 0 | D183: =SA34c!D103 -> 0 | E183: =SA34c!E103 -> 0 | F183: =SA34c!F103 -> 0 | G183: =SA34c!G103 -> 0 | H183: =SA34c!H103 -> 0 | I183: =SA34c!I103 -> 0 | J183: =SA34c!J103 -> 0 | K183: =SA34c!K103 -> 0
A184: Revenue Generating | C184: =SA34c!C111 -> 0 | D184: =SA34c!D111 -> 0 | E184: =SA34c!E111 -> 0 | F184: =SA34c!F111 -> 0 | G184: =SA34c!G111 -> 0 | H184: =SA34c!H111 -> 0 | I184: =SA34c!I111 -> 0 | J184: =SA34c!J111 -> 0 | K184: =SA34c!K111 -> 0
A185: Non-revenue Generating | C185: =SA34c!C114 -> 0 | D185: =SA34c!D114 -> 0 | E185: =SA34c!E114 -> 0 | F185: =SA34c!F114 -> 0 | G185: =SA34c!G114 -> 0 | H185: =SA34c!H114 -> 0 | I185: =SA34c!I114 -> 0 | J185: =SA34c!J114 -> 0 | K185: =SA34c!K114 -> 0
A186: Investment properties | C186: =SUM(C184:C185) -> 0 | D186: 0 | E186: 0 | F186: 0 | G186: 0 | H186: 0 | I186: 0 | J186: 0 | K186: 0
A187: Operational Buildings | C187: =SA34c!C119 -> 1111831.76 | D187: =SA34c!D119 -> 0 | E187: =SA34c!E119 -> 0 | F187: =SA34c!F119 -> 4500000 | G187: =SA34c!G119 -> 1000000 | H187: =SA34c!H119 -> 1000000 | I187: =SA34c!I119 -> 3000000 | J187: =SA34c!J119 -> 4000000 | K187: =SA34c!K119 -> 5000000
A188: Housing | C188: =SA34c!C131 -> 0 | D188: =SA34c!D131 -> 0 | E188: =SA34c!E131 -> 0 | F188: =SA34c!F131 -> 0 | G188: =SA34c!G131 -> 0 | H188: =SA34c!H131 -> 0 | I188: =SA34c!I131 -> 0 | J188: =SA34c!J131 -> 0 | K188: =SA34c!K131 -> 0
A189: Other Assets | C189: =SUM(C187:C188) -> 1111831.76 | D189: 0 | E189: 0 | F189: 4500000 | G189: 1000000 | H189: 1000000 | I189: 3000000 | J189: 4000000 | K189: 5000000
A190: Biological or Cultivated Assets | C190: =SA34c!C136 -> 0 | D190: =SA34c!D136 -> 0 | E190: =SA34c!E136 -> 0 | F190: =SA34c!F136 -> 0 | G190: =SA34c!G136 -> 0 | H190: =SA34c!H136 -> 0 | I190: =SA34c!I136 -> 0 | J190: =SA34c!J136 -> 0 | K190: =SA34c!K136 -> 0
A191: Servitudes | C191: =SA34c!C140 -> 0 | D191: =SA34c!D140 -> 0 | E191: =SA34c!E140 -> 0 | F191: =SA34c!F140 -> 0 | G191: =SA34c!G140 -> 0 | H191: =SA34c!H140 -> 0 | I191: =SA34c!I140 -> 0 | J191: =SA34c!J140 -> 0 | K191: =SA34c!K140 -> 0
A192: Licences and Rights | C192: =SA34c!C141 -> 0 | D192: =SA34c!D141 -> 0 | E192: =SA34c!E141 -> 0 | F192: =SA34c!F141 -> 0 | G192: =SA34c!G141 -> 0 | H192: =SA34c!H141 -> 0 | I192: =SA34c!I141 -> 0 | J192: =SA34c!J141 -> 0 | K192: =SA34c!K141 -> 0
A193: Intangible Assets | C193: =SUM(C191:C192) -> 0 | D193: 0 | E193: 0 | F193: 0 | G193: 0 | H193: 0 | I193: 0 | J193: 0 | K193: 0
A194: Computer Equipment | C194: =SA34c!C149 -> 13190.35 | D194: =SA34c!D149 -> 0 | E194: =SA34c!E149 -> 543218 | F194: =SA34c!F149 -> 60000 | G194: =SA34c!G149 -> 60000 | H194: =SA34c!H149 -> 60000 | I194: =SA34c!I149 -> 50000 | J194: =SA34c!J149 -> 50000 | K194: =SA34c!K149 -> 60000
A195: Furniture and Office Equipment | C195: =SA34c!C152 -> 422913 | D195: =SA34c!D152 -> 0 | E195: =SA34c!E152 -> 0 | F195: =SA34c!F152 -> 200000 | G195: =SA34c!G152 -> 70000 | H195: =SA34c!H152 -> 70000 | I195: =SA34c!I152 -> 15000 | J195: =SA34c!J152 -> 15000 | K195: =SA34c!K152 -> 16000
A196: Machinery and Equipment | C196: =SA34c!C155 -> 2147200.75 | D196: =SA34c!D155 -> 0 | E196: =SA34c!E155 -> 140392 | F196: =SA34c!F155 -> 2000000 | G196: =SA34c!G155 -> 2750000 | H196: =SA34c!H155 -> 2750000 | I196: =SA34c!I155 -> 3070000 | J196: =SA34c!J155 -> 3070000 | K196: =SA34c!K155 -> 3090000
A197: Transport Assets | C197: =SA34c!C158 -> 56915 | D197: =SA34c!D158 -> 0 | E197: =SA34c!E158 -> 2195682 | F197: =SA34c!F158 -> 1000000 | G197: =SA34c!G158 -> 300000 | H197: =SA34c!H158 -> 300000 | I197: =SA34c!I158 -> 1000000 | J197: =SA34c!J158 -> 1000000 | K197: =SA34c!K158 -> 1500000
A198: Land | C198: =SA34c!C161 -> 0 | D198: =SA34c!D161 -> 0 | E198: =SA34c!E161 -> 0 | F198: =SA34c!F161 -> 0 | G198: =SA34c!G161 -> 0 | H198: =SA34c!H161 -> 0 | I198: =SA34c!I161 -> 0 | J198: =SA34c!J161 -> 0 | K198: =SA34c!K161 -> 0
A199: Zoo's, Marine and Non-biological Animals | C199: =SA34c!C164 -> 0 | D199: =SA34c!D164 -> 0 | E199: =SA34c!E164 -> 0 | F199: =SA34c!F164 -> 0 | G199: =SA34c!G164 -> 0 | H199: =SA34c!H164 -> 0 | I199: =SA34c!I164 -> 0 | J199: =SA34c!J164 -> 0 | K199: =SA34c!K164 -> 0
A201: TOTAL EXPENDITURE OTHER ITEMS | C201: =SUM(C168:C169) -> 46137978.68 | D201: 54818421.06 | E201: 87487290.46 | F201: 48610000 | G201: 44310000 | H201: 44310000 | I201: 44635000 | J201: 50185000 | K201: 52846000
A203: Renewal and upgrading of Existing Assets as % of total capex | C203: =IF(ISERROR((C37+C69)/C132),0,((C37+C69)/C132)) -> 0.4967240232 | D203: =IF(ISERROR((D37+D69)/D132),0,((D37+D69)/D132)) -> 0.8306221287 | E203: 0.6036188175 | F203: 0.002496271818 | G203: 0 | H203: 0 | I203: 0.04141241039 | J203: 0.02088574611 | K203: 0
A204: Renewal and upgrading of Existing Assets as % of deprecn | C204: =IF(ISERROR((C37+C69)/C168),0,((C37+C69)/C168)) -> 1.559773185 | D204: =IF(ISERROR((D37+D69)/D168),0,((D37+D69)/D168)) -> 0.6576216892 | E204: 0.7693619301 | F204: 0.008333333333 | G204: 0 | H204: 0 | I204: 0.1516666667 | J204: 0.06666666667 | K204: 0
A205: R&M as a % of PPE | C205: =IF(ISERROR(ROUND(C169/'A6-FinPos'!C19,3)),0,(ROUND(C169/'A6-FinPos'!C19,3))) -> 0.049 | D205: =IF(ISERROR(ROUND(D169/'A6-FinPos'!D19,3)),0,(ROUND(D169/'A6-FinPos'!D19,3))) -> 0.029 | E205: =IF(ISERROR(ROUND(E169/'A6-FinPos'!E19,3)),0,(ROUND(E169/'A6-FinPos'!E19,3))) -> 0.003 | F205: =IF(ISERROR(ROUND(F169/'A6-FinPos'!F19,3)),0,(ROUND(F169/'A6-FinPos'!F19,3))) -> 0 | G205: =IF(ISERROR(ROUND(G169/'A6-FinPos'!G19,3)),0,(ROUND(G169/'A6-FinPos'!G19,3))) -> 0.015 | H205: =IF(ISERROR(ROUND(H169/'A6-FinPos'!H19,3)),0,(ROUND(H169/'A6-FinPos'!H19,3))) -> 0.015 | I205: =IF(ISERROR(ROUND(I169/'A6-FinPos'!J19,3)),0,(ROUND(I169/'A6-FinPos'!J19,3))) -> 0.016 | J205: =IF(ISERROR(ROUND(J169/'A6-FinPos'!K19,3)),0,(ROUND(J169/'A6-FinPos'!K19,3))) -> 0.022 | K205: =IF(ISERROR(ROUND(K169/'A6-FinPos'!L19,3)),0,(ROUND(K169/'A6-FinPos'!L19,3))) -> 0.025
A206: Renewal and upgrading and R&M as a % of PPE | C206: =IF(ISERROR(ROUND((C37+C69+C169)/C165,2)),0,(ROUND((C37+C69+C169)/C165,2))) -> 0.09 | D206: =IF(ISERROR(ROUND((D37+D69+D169)/D165,2)),0,(ROUND((D37+D69+D169)/D165,2))) -> 0.06 | E206: 0.08 | F206: 2.01 | G206: 0.02 | H206: 0.02 | I206: 0.02 | J206: 0.02 | K206: 0.02
A208: =head27a -> References
A209: 1. Detail of new assets provided in Table SA34a
A210: 2. Detail of renewal of existing assets provided in Table SA34b
A211: 3. Detail of Repairs and Maintenance by Asset Class provided in Table SA34c
A212: 4. Must reconcile to total capital expenditure on Budgeted Capital Expenditure
A213: 5. Must reconcile to 'Budgeted Financial Position' (written down value)
A214: 6. Detail of upgrading of existing assets provided in Table SA34e
A215: 7. Detail of depreciation provided in Table SA34d
A217: Check balance to A6 | C217: =C165-'A6-FinPos'!D17-'A6-FinPos'!D19-'A6-FinPos'!D20-'A6-FinPos'!D21-'A6-FinPos'!D22-C148 -> 61407763.46 | D217: =D165-'A6-FinPos'!E17-'A6-FinPos'!E19-'A6-FinPos'!E20-'A6-FinPos'!E21-'A6-FinPos'!E22-D148 -> -200798303 | E217: =E165-'A6-FinPos'!F17-'A6-FinPos'!F19-'A6-FinPos'!F20-'A6-FinPos'!F21-'A6-FinPos'!F22-E148 -> 878621804 | F217: =F165-'A6-FinPos'!G17-'A6-FinPos'!G19-'A6-FinPos'!G20-'A6-FinPos'!G21-'A6-FinPos'!G22-F148 -> -931248706 | G217: =G165-'A6-FinPos'!H17-'A6-FinPos'!H19-'A6-FinPos'!H20-'A6-FinPos'!H21-'A6-FinPos'!H22-G148 -> -10114522.01 | H217: =H165-'A6-FinPos'!I17-'A6-FinPos'!I19-'A6-FinPos'!I20-'A6-FinPos'!I21-'A6-FinPos'!I22-H148 -> -10114522.01 | I217: =I165-'A6-FinPos'!J17-'A6-FinPos'!J19-'A6-FinPos'!J20-'A6-FinPos'!J21-'A6-FinPos'!J22-I148 -> -19362760.84 | J217: =J165-'A6-FinPos'!K17-'A6-FinPos'!K19-'A6-FinPos'!K20-'A6-FinPos'!K21-'A6-FinPos'!K22-J148 -> -19551642.78 | K217: =K165-'A6-FinPos'!L17-'A6-FinPos'!L19-'A6-FinPos'!L20-'A6-FinPos'!L21-'A6-FinPos'!L22-K148 -> -15706732.96

Sheet A10-SerDel
A1: =muni&" - "&Approve10 -> LIM331 Greater Giyani - Table A10 Basic service delivery measurement
A2: =desc -> Description | B2: =head27 -> Ref | C2: =head1b -> 2015/16 | D2: =head1A -> 2016/17 | E2: =Head1 -> 2017/18 | F2: =Head2 -> Current Year 2018/19 | I2: =Head3 -> 2019/20 Medium Term Revenue & Expenditure Framework
C3: =Head5A -> Outcome | D3: =Head5A -> Outcome | E3: =Head5A -> Outcome | F3: =Head6 -> Original Budget | G3: =Head7 -> Adjusted Budget | H3: =Head8 -> Full Year Forecast | I3: =Head9 -> Budget Year 2019/20 | J3: =Head10 -> Budget Year +1 2020/21 | K3: =Head11 -> Budget Year +2 2021/22
A4: Household service targets | B4: 1
A5: Water:
A6: Piped water inside dwelling | C6: ='SA9'!E67 -> 0 | D6: ='SA9'!F67 -> 0 | E6: ='SA9'!G67 -> 0 | F6: ='SA9'!H67 -> 0 | G6: ='SA9'!I67 -> 0 | H6: ='SA9'!J67 -> 0 | I6: ='SA9'!K67 -> 0 | J6: ='SA9'!L67 -> 0 | K6: ='SA9'!M67 -> 0
A7: Piped water inside yard (but not in dwelling) | C7: ='SA9'!E68 -> 0 | D7: ='SA9'!F68 -> 0 | E7: ='SA9'!G68 -> 0 | F7: ='SA9'!H68 -> 0 | G7: ='SA9'!I68 -> 0 | H7: ='SA9'!J68 -> 0 | I7: ='SA9'!K68 -> 0 | J7: ='SA9'!L68 -> 0 | K7: ='SA9'!M68 -> 0
A8: Using public tap (at least min.service level) | B8: 2 | C8: ='SA9'!E69 -> 0 | D8: ='SA9'!F69 -> 0 | E8: ='SA9'!G69 -> 0 | F8: ='SA9'!H69 -> 0 | G8: ='SA9'!I69 -> 0 | H8: ='SA9'!J69 -> 0 | I8: ='SA9'!K69 -> 0 | J8: ='SA9'!L69 -> 0 | K8: ='SA9'!M69 -> 0
A9: Other water supply (at least min.service level) | B9: 4 | C9: ='SA9'!E70 -> 0 | D9: ='SA9'!F70 -> 0 | E9: ='SA9'!G70 -> 0 | F9: ='SA9'!H70 -> 0 | G9: ='SA9'!I70 -> 0 | H9: ='SA9'!J70 -> 0 | I9: ='SA9'!K70 -> 0 | J9: ='SA9'!L70 -> 0 | K9: ='SA9'!M70 -> 0
A10: Minimum Service Level and Above sub-total | C10: =SUM(C6:C9) -> 0 | D10: =SUM(D6:D9) -> 0 | E10: 0 | F10: 0 | G10: 0 | H10: 0 | I10: 0 | J10: 0 | K10: 0
A11: Using public tap (< min.service level) | B11: 3 | C11: ='SA9'!E72 -> 0 | D11: ='SA9'!F72 -> 0 | E11: ='SA9'!G72 -> 0 | F11: ='SA9'!H72 -> 0 | G11: ='SA9'!I72 -> 0 | H11: ='SA9'!J72 -> 0 | I11: ='SA9'!K72 -> 0 | J11: ='SA9'!L72 -> 0 | K11: ='SA9'!M72 -> 0
A12: Other water supply (< min.service level) | B12: =B9 -> 4 | C12: ='SA9'!E73 -> 0 | D12: ='SA9'!F73 -> 0 | E12: ='SA9'!G73 -> 0 | F12: ='SA9'!H73 -> 0 | G12: ='SA9'!I73 -> 0 | H12: ='SA9'!J73 -> 0 | I12: ='SA9'!K73 -> 0 | J12: ='SA9'!L73 -> 0 | K12: ='SA9'!M73 -> 0
A13: No water supply | C13: ='SA9'!E74 -> 0 | D13: ='SA9'!F74 -> 0 | E13: ='SA9'!G74 -> 0 | F13: ='SA9'!H74 -> 0 | G13: ='SA9'!I74 -> 0 | H13: ='SA9'!J74 -> 0 | I13: ='SA9'!K74 -> 0 | J13: ='SA9'!L74 -> 0 | K13: ='SA9'!M74 -> 0
A14: Below Minimum Service Level sub-total | C14: =SUM(C11:C13) -> 0 | D14: =SUM(D11:D13) -> 0 | E14: 0 | F14: 0 | G14: 0 | H14: 0 | I14: 0 | J14: 0 | K14: 0
A15: Total number of households | B15: 5 | C15: =C10+C14 -> 0 | D15: =D10+D14 -> 0 | E15: 0 | F15: 0 | G15: 0 | H15: 0 | I15: 0 | J15: 0 | K15: 0
A16: Sanitation/sewerage:
A17: Flush toilet (connected to sewerage) | C17: ='SA9'!E78 -> 0 | D17: ='SA9'!F78 -> 0 | E17: ='SA9'!G78 -> 0 | F17: ='SA9'!H78 -> 0 | G17: ='SA9'!I78 -> 0 | H17: ='SA9'!J78 -> 0 | I17: ='SA9'!K78 -> 0 | J17: ='SA9'!L78 -> 0 | K17: ='SA9'!M78 -> 0
A18: Flush toilet (with septic tank) | C18: ='SA9'!E79 -> 0 | D18: ='SA9'!F79 -> 0 | E18: ='SA9'!G79 -> 0 | F18: ='SA9'!H79 -> 0 | G18: ='SA9'!I79 -> 0 | H18: ='SA9'!J79 -> 0 | I18: ='SA9'!K79 -> 0 | J18: ='SA9'!L79 -> 0 | K18: ='SA9'!M79 -> 0
A19: Chemical toilet | C19: ='SA9'!E80 -> 0 | D19: ='SA9'!F80 -> 0 | E19: ='SA9'!G80 -> 0 | F19: ='SA9'!H80 -> 0 | G19: ='SA9'!I80 -> 0 | H19: ='SA9'!J80 -> 0 | I19: ='SA9'!K80 -> 0 | J19: ='SA9'!L80 -> 0 | K19: ='SA9'!M80 -> 0
A20: Pit toilet (ventilated) | C20: ='SA9'!E81 -> 0 | D20: ='SA9'!F81 -> 0 | E20: ='SA9'!G81 -> 0 | F20: ='SA9'!H81 -> 0 | G20: ='SA9'!I81 -> 0 | H20: ='SA9'!J81 -> 0 | I20: ='SA9'!K81 -> 0 | J20: ='SA9'!L81 -> 0 | K20: ='SA9'!M81 -> 0
A21: Other toilet provisions (> min.service level) | C21: ='SA9'!E82 -> 0 | D21: ='SA9'!F82 -> 0 | E21: ='SA9'!G82 -> 0 | F21: ='SA9'!H82 -> 0 | G21: ='SA9'!I82 -> 0 | H21: ='SA9'!J82 -> 0 | I21: ='SA9'!K82 -> 0 | J21: ='SA9'!L82 -> 0 | K21: ='SA9'!M82 -> 0
A22: =$A$10 -> Minimum Service Level and Above sub-total | C22: =SUM(C17:C21) -> 0 | D22: =SUM(D17:D21) -> 0 | E22: 0 | F22: 0 | G22: 0 | H22: 0 | I22: 0 | J22: 0 | K22: 0
A23: Bucket toilet | C23: ='SA9'!E84 -> 0 | D23: ='SA9'!F84 -> 0 | E23: ='SA9'!G84 -> 0 | F23: ='SA9'!H84 -> 0 | G23: ='SA9'!I84 -> 0 | H23: ='SA9'!J84 -> 0 | I23: ='SA9'!K84 -> 0 | J23: ='SA9'!L84 -> 0 | K23: ='SA9'!M84 -> 0
A24: Other toilet provisions (< min.service level) | C24: ='SA9'!E85 -> 0 | D24: ='SA9'!F85 -> 0 | E24: ='SA9'!G85 -> 0 | F24: ='SA9'!H85 -> 0 | G24: ='SA9'!I85 -> 0 | H24: ='SA9'!J85 -> 0 | I24: ='SA9'!K85 -> 0 | J24: ='SA9'!L85 -> 0 | K24: ='SA9'!M85 -> 0
A25: No toilet provisions | C25: ='SA9'!E86 -> 0 | D25: ='SA9'!F86 -> 0 | E25: ='SA9'!G86 -> 0 | F25: ='SA9'!H86 -> 0 | G25: ='SA9'!I86 -> 0 | H25: ='SA9'!J86 -> 0 | I25: ='SA9'!K86 -> 0 | J25: ='SA9'!L86 -> 0 | K25: ='SA9'!M86 -> 0
A26: =$A$14 -> Below Minimum Service Level sub-total | C26: =SUM(C23:C25) -> 0 | D26: =SUM(D23:D25) -> 0 | E26: 0 | F26: 0 | G26: 0 | H26: 0 | I26: 0 | J26: 0 | K26: 0
A27: =$A$15 -> Total number of households | B27: =$B$15 -> 5 | C27: =C22+C26 -> 0 | D27: =D22+D26 -> 0 | E27: 0 | F27: 0 | G27: 0 | H27: 0 | I27: 0 | J27: 0 | K27: 0
A28: Energy:
A29: Electricity (at least min.service level) | C29: ='SA9'!E90 -> 0 | D29: ='SA9'!F90 -> 0 | E29: ='SA9'!G90 -> 0 | F29: ='SA9'!H90 -> 0 | G29: ='SA9'!I90 -> 0 | H29: ='SA9'!J90 -> 0 | I29: ='SA9'!K90 -> 0 | J29: ='SA9'!L90 -> 0 | K29: ='SA9'!M90 -> 0
A30: Electricity - prepaid (min.service level) | C30: ='SA9'!E91 -> 0 | D30: ='SA9'!F91 -> 0 | E30: ='SA9'!G91 -> 0 | F30: ='SA9'!H91 -> 0 | G30: ='SA9'!I91 -> 0 | H30: ='SA9'!J91 -> 0 | I30: ='SA9'!K91 -> 0 | J30: ='SA9'!L91 -> 0 | K30: ='SA9'!M91 -> 0
A31: =$A$10 -> Minimum Service Level and Above sub-total | C31: =SUM(C29:C30) -> 0 | D31: =SUM(D29:D30) -> 0 | E31: 0 | F31: 0 | G31: 0 | H31: 0 | I31: 0 | J31: 0 | K31: 0
A32: Electricity (< min.service level) | C32: ='SA9'!E93 -> 0 | D32: ='SA9'!F93 -> 0 | E32: ='SA9'!G93 -> 0 | F32: ='SA9'!H93 -> 0 | G32: ='SA9'!I93 -> 0 | H32: ='SA9'!J93 -> 0 | I32: ='SA9'!K93 -> 0 | J32: ='SA9'!L93 -> 0 | K32: ='SA9'!M93 -> 0
A33: Electricity - prepaid (< min. service level) | C33: ='SA9'!E94 -> 0 | D33: ='SA9'!F94 -> 0 | E33: ='SA9'!G94 -> 0 | F33: ='SA9'!H94 -> 0 | G33: ='SA9'!I94 -> 0 | H33: ='SA9'!J94 -> 0 | I33: ='SA9'!K94 -> 0 | J33: ='SA9'!L94 -> 0 | K33: ='SA9'!M94 -> 0
A34: Other energy sources | C34: ='SA9'!E95 -> 0 | D34: ='SA9'!F95 -> 0 | E34: ='SA9'!G95 -> 0 | F34: ='SA9'!H95 -> 0 | G34: ='SA9'!I95 -> 0 | H34: ='SA9'!J95 -> 0 | I34: ='SA9'!K95 -> 0 | J34: ='SA9'!L95 -> 0 | K34: ='SA9'!M95 -> 0
A35: =$A$14 -> Below Minimum Service Level sub-total | C35: =SUM(C32:C34) -> 0 | D35: =SUM(D32:D34) -> 0 | E35: 0 | F35: 0 | G35: 0 | H35: 0 | I35: 0 | J35: 0 | K35: 0
A36: =$A$15 -> Total number of households | B36: =$B$15 -> 5 | C36: =C31+C35 -> 0 | D36: =D31+D35 -> 0 | E36: 0 | F36: 0 | G36: 0 | H36: 0 | I36: 0 | J36: 0 | K36: 0
A37: Refuse:
A38: Removed at least once a week | C38: ='SA9'!E99 -> 6019 | D38: ='SA9'!F99 -> 6019 | E38: ='SA9'!G99 -> 6019 | F38: ='SA9'!H99 -> 6019 | G38: ='SA9'!I99 -> 6019 | H38: ='SA9'!J99 -> 6019 | I38: ='SA9'!K99 -> 6019 | J38: ='SA9'!L99 -> 6019 | K38: ='SA9'!M99 -> 6019
A39: =$A$10 -> Minimum Service Level and Above sub-total | C39: =SUM(C38) -> 6019 | D39: =SUM(D38) -> 6019 | E39: 6019 | F39: 6019 | G39: 6019 | H39: 6019 | I39: 6019 | J39: 6019 | K39: 6019
A40: Removed less frequently than once a week | C40: ='SA9'!E101 -> 0 | D40: ='SA9'!F101 -> 0 | E40: ='SA9'!G101 -> 0 | F40: ='SA9'!H101 -> 0 | G40: ='SA9'!I101 -> 0 | H40: ='SA9'!J101 -> 0 | I40: ='SA9'!K101 -> 0 | J40: ='SA9'!L101 -> 0 | K40: ='SA9'!M101 -> 0
A41: Using communal refuse dump | C41: ='SA9'!E102 -> 0 | D41: ='SA9'!F102 -> 0 | E41: ='SA9'!G102 -> 0 | F41: ='SA9'!H102 -> 0 | G41: ='SA9'!I102 -> 0 | H41: ='SA9'!J102 -> 0 | I41: ='SA9'!K102 -> 0 | J41: ='SA9'!L102 -> 0 | K41: ='SA9'!M102 -> 0
A42: Using own refuse dump | C42: ='SA9'!E103 -> 0 | D42: ='SA9'!F103 -> 0 | E42: ='SA9'!G103 -> 0 | F42: ='SA9'!H103 -> 0 | G42: ='SA9'!I103 -> 0 | H42: ='SA9'!J103 -> 0 | I42: ='SA9'!K103 -> 0 | J42: ='SA9'!L103 -> 0 | K42: ='SA9'!M103 -> 0
A43: Other rubbish disposal | C43: ='SA9'!E104 -> 0 | D43: ='SA9'!F104 -> 0 | E43: ='SA9'!G104 -> 0 | F43: ='SA9'!H104 -> 0 | G43: ='SA9'!I104 -> 0 | H43: ='SA9'!J104 -> 0 | I43: ='SA9'!K104 -> 0 | J43: ='SA9'!L104 -> 0 | K43: ='SA9'!M104 -> 0
A44: No rubbish disposal | C44: ='SA9'!E105 -> 0 | D44: ='SA9'!F105 -> 0 | E44: ='SA9'!G105 -> 0 | F44: ='SA9'!H105 -> 0 | G44: ='SA9'!I105 -> 0 | H44: ='SA9'!J105 -> 0 | I44: ='SA9'!K105 -> 0 | J44: ='SA9'!L105 -> 0 | K44: ='SA9'!M105 -> 0
A45: =$A$14 -> Below Minimum Service Level sub-total | C45: =SUM(C40:C44) -> 0 | D45: 0 | E45: 0 | F45: 0 | G45: 0 | H45: 0 | I45: 0 | J45: 0 | K45: 0
A46: =$A$15 -> Total number of households | B46: =$B$15 -> 5 | C46: =C39+C45 -> 6019 | D46: =D39+D45 -> 6019 | E46: 6019 | F46: 6019 | G46: 6019 | H46: 6019 | I46: 6019 | J46: 6019 | K46: 6019
A48: Households receiving Free Basic Service | B48: 7
A49: Water (6 kilolitres per household per month) | C49: ='SA9'!E263 -> 0 | D49: ='SA9'!F263 -> 0 | E49: ='SA9'!G263 -> 0 | F49: ='SA9'!H263 -> 0 | G49: ='SA9'!I263 -> 0 | H49: ='SA9'!J263 -> 0 | I49: ='SA9'!K263 -> 0 | J49: ='SA9'!L263 -> 0 | K49: ='SA9'!M263 -> 0
A50: Sanitation (free minimum level service) | C50: ='SA9'!E275 -> 0 | D50: ='SA9'!F275 -> 0 | E50: ='SA9'!G275 -> 0 | F50: ='SA9'!H275 -> 0 | G50: ='SA9'!I275 -> 0 | H50: ='SA9'!J275 -> 0 | I50: ='SA9'!K275 -> 0 | J50: ='SA9'!L275 -> 0 | K50: ='SA9'!M275 -> 0
A51: Electricity/other energy (50kwh per household per month) | C51: ='SA9'!E251 -> 0 | D51: ='SA9'!F251 -> 0 | E51: ='SA9'!G251 -> 0 | F51: ='SA9'!H251 -> 0 | G51: ='SA9'!I251 -> 0 | H51: ='SA9'!J251 -> 0 | I51: ='SA9'!K251 -> 0 | J51: ='SA9'!L251 -> 0 | K51: ='SA9'!M251 -> 0
A52: Refuse (removed at least once a week) | C52: ='SA9'!E287 -> 0 | D52: ='SA9'!F287 -> 0 | E52: ='SA9'!G287 -> 0 | F52: ='SA9'!H287 -> 0 | G52: ='SA9'!I287 -> 0 | H52: ='SA9'!J287 -> 0 | I52: ='SA9'!K287 -> 0 | J52: ='SA9'!L287 -> 0 | K52: ='SA9'!M287 -> 0
A54: Cost of Free Basic Services provided - Formal Settlements (R'000) | B54: 8
A55: Water (6 kilolitres per indigent household per month) | C55: ='SA1'!C20 -> 0 | D55: ='SA1'!D20 -> 0 | E55: ='SA1'!E20 -> 0 | F55: ='SA1'!F20 -> 0 | G55: ='SA1'!G20 -> 0 | H55: ='SA1'!H20 -> 0 | I55: ='SA1'!J20 -> 0 | J55: ='SA1'!K20 -> 0 | K55: ='SA1'!L20 -> 0
A56: Sanitation (free sanitation service to indigent households) | C56: ='SA1'!C26 -> 0 | D56: ='SA1'!D26 -> 0 | E56: ='SA1'!E26 -> 0 | F56: ='SA1'!F26 -> 0 | G56: ='SA1'!G26 -> 0 | H56: ='SA1'!H26 -> 0 | I56: ='SA1'!J26 -> 0 | J56: ='SA1'!K26 -> 0 | K56: ='SA1'!L26 -> 0
A57: Electricity/other energy (50kwh per indigent household per month) | C57: ='SA1'!C14 -> 0 | D57: ='SA1'!D14 -> 0 | E57: ='SA1'!E14 -> 0 | F57: ='SA1'!F14 -> 0 | G57: ='SA1'!G14 -> 0 | H57: ='SA1'!H14 -> 0 | I57: ='SA1'!J14 -> 0 | J57: ='SA1'!K14 -> 0 | K57: ='SA1'!L14 -> 0
A58: Refuse (removed once a week for indigent households) | C58: ='SA1'!C33 -> 0 | D58: ='SA1'!D33 -> 0 | E58: ='SA1'!E33 -> 0 | F58: ='SA1'!F33 -> 0 | G58: ='SA1'!G33 -> 0 | H58: ='SA1'!H33 -> 0 | I58: ='SA1'!J33 -> 0 | J58: ='SA1'!K33 -> 0 | K58: ='SA1'!L33 -> 0
A59: Cost of Free Basic Services provided - Informal Formal Settlements (R'000) | C59: ='SA9'!E260+'SA9'!E272+'SA9'!E284+'SA9'!E296 -> 0 | D59: ='SA9'!F260+'SA9'!F272+'SA9'!F284+'SA9'!F296 -> 0 | E59: ='SA9'!G260+'SA9'!G272+'SA9'!G284+'SA9'!G296 -> 0 | F59: ='SA9'!H260+'SA9'!H272+'SA9'!H284+'SA9'!H296 -> 0 | G59: ='SA9'!I260+'SA9'!I272+'SA9'!I284+'SA9'!I296 -> 0 | H59: ='SA9'!J260+'SA9'!J272+'SA9'!J284+'SA9'!J296 -> 0 | I59: ='SA9'!K260+'SA9'!K272+'SA9'!K284+'SA9'!K296 -> 0 | J59: ='SA9'!L260+'SA9'!L272+'SA9'!L284+'SA9'!L296 -> 0 | K59: ='SA9'!M260+'SA9'!M272+'SA9'!M284+'SA9'!M296 -> 0
A60: Total cost of FBS provided | C60: =SUM(C55:C59) -> 0 | D60: 0 | E60: 0 | F60: 0 | G60: 0 | H60: 0 | I60: 0 | J60: 0 | K60: 0
A62: Highest level of free service provided per household
A63: Property rates (R value threshold)
A64: Water (kilolitres per household per month)
A65: Sanitation (kilolitres per household per month)
A66: Sanitation (Rand per household per month)
A67: Electricity (kwh per household per month)
A68: Refuse (average litres per week)
A69: Revenue cost of subsidised services provided (R'000) | B69: 9
A70: Property rates (tariff adjustment) ( impermissable values per section 17 of MPRA)
A71: Property rates exemptions, reductions and rebates and impermissable values in excess of section 17 of MPRA) | C71: ='SA1'!C8 -> 0 | D71: ='SA1'!D8 -> 0 | E71: ='SA1'!E8 -> 0 | F71: ='SA1'!F8 -> 0 | G71: ='SA1'!G8 -> 0 | H71: ='SA1'!H8 -> 0 | I71: ='SA1'!J8 -> 1500000 | J71: ='SA1'!K8 -> 2000000 | K71: ='SA1'!L8 -> 2500000
A72: Water (in excess of 6 kilolitres per indigent household per month) | C72: ='SA1'!C19 -> 0 | D72: ='SA1'!D19 -> 0 | E72: ='SA1'!E19 -> 0 | F72: ='SA1'!F19 -> 0 | G72: ='SA1'!G19 -> 0 | H72: ='SA1'!H19 -> 0 | I72: ='SA1'!J19 -> 0 | J72: ='SA1'!K19 -> 0 | K72: ='SA1'!L19 -> 0
A73: Sanitation (in excess of free sanitation service to indigent households) | C73: ='SA1'!C25 -> 0 | D73: ='SA1'!D25 -> 0 | E73: ='SA1'!E25 -> 0 | F73: ='SA1'!F25 -> 0 | G73: ='SA1'!G25 -> 0 | H73: ='SA1'!H25 -> 0 | I73: ='SA1'!J25 -> 0 | J73: ='SA1'!K25 -> 0 | K73: ='SA1'!L25 -> 0
A74: Electricity/other energy (in excess of 50 kwh per indigent household per month) | C74: ='SA1'!C13 -> 0 | D74: ='SA1'!D13 -> 0 | E74: ='SA1'!E13 -> 0 | F74: ='SA1'!F13 -> 0 | G74: ='SA1'!G13 -> 0 | H74: ='SA1'!H13 -> 0 | I74: ='SA1'!J13 -> 0 | J74: ='SA1'!K13 -> 0 | K74: ='SA1'!L13 -> 0
A75: Refuse (in excess of one removal a week for indigent households) | C75: ='SA1'!C32 -> 0 | D75: ='SA1'!D32 -> 0 | E75: ='SA1'!E32 -> 0 | F75: ='SA1'!F32 -> 0 | G75: ='SA1'!G32 -> 0 | H75: ='SA1'!H32 -> 0 | I75: ='SA1'!J32 -> 0 | J75: ='SA1'!K32 -> 0 | K75: ='SA1'!L32 -> 0
A76: Municipal Housing - rental rebates
A77: Housing - top structure subsidies | B77: 6
A78: Other
A79: Total revenue cost of subsidised services provided | C79: =SUM(C70:C78) -> 0 | D79: =SUM(D70:D78) -> 0 | E79: 0 | F79: 0 | G79: 0 | H79: 0 | I79: 1500000 | J79: =SUM(J70:J78) -> 2000000 | K79: =SUM(K70:K78) -> 2500000
A80: =head27a -> References
A81: 1. Include services provided by another entity; e.g. Eskom
A82: 2. Stand distance <= 200m from dwelling
A83: 3. Stand distance > 200m from dwelling
A84: 4. Borehole, spring, rain-water tank etc.
A85: 5. Must agree to total number of households in municipal area (informal settlements receiving services must be included)
A86: 6. Include value of subsidy provided by municipality above provincial subsidy level
A87: 7. Show number of households receiving at least these levels of services completely free (informal settlements must be included)
A88: 8. Must reflect the cost to the municipality of providing the Free Basic Service
A89: 9. Reflect the cost to the municipality in terms of 'revenue foregone' of providing free services (note this will not equal 'Revenue Foregone' on SA1)

Sheet SA1
A1: =muni&" - "&TableA1 -> LIM331 Greater Giyani - Supporting Table SA1 Supportinging detail to 'Budgeted Financial Performance'
A2: =desc -> Description | B2: =head27 -> Ref | C2: =head1b -> 2015/16 | D2: =head1A -> 2016/17 | E2: =Head1 -> 2017/18 | F2: =Head2 -> Current Year 2018/19 | J2: =Head3 -> 2019/20 Medium Term Revenue & Expenditure Framework
C3: =Head5 -> Audited Outcome | D3: =Head5 -> Audited Outcome | E3: =Head5 -> Audited Outcome | F3: =Head6 -> Original Budget | G3: =Head7 -> Adjusted Budget | H3: =Head8 -> Full Year Forecast | I3: =Head5b -> Pre-audit outcome | J3: =Head9 -> Budget Year 2019/20 | K3: =Head10 -> Budget Year +1 2020/21 | L3: =Head11 -> Budget Year +2 2021/22
A4: R thousand
A5: REVENUE ITEMS:
A6: ='A4-FinPerf RE'!A5 -> Property rates | B6: 6
A7: Total Property Rates | C7: 30675862 | D7: 33865255 | E7: =[10]Sheet1!$H$3897 -> 35238339 | F7: 35000000 | G7: 38000000 | H7: 38000000 | I7: 38000000 | J7: 41476000 | K7: 44134706 | L7: 46909977
A8: less Revenue Foregone (exemptions, reductions and rebates and impermissable values in excess of section 17 of MPRA) | J8: 1500000 | K8: 2000000 | L8: 2500000
A9: Net Property Rates | C9: =C7-C8 -> 30675862 | D9: =D7-D8 -> 33865255 | E9: 35238339 | F9: 35000000 | G9: 38000000 | H9: 38000000 | I9: 38000000 | J9: 39976000 | K9: 42134706 | L9: 44409977
A11: ='A4-FinPerf RE'!A6 -> Service charges - electricity revenue | B11: 6
A12: ="Total "&A11 -> Total Service charges - electricity revenue
A13: less Revenue Foregone (in excess of 50 kwh per indigent household per month)
A14: less Cost of Free Basis Services (50 kwh per indigent household per month) | C14: ='SA9'!E250 -> 0 | D14: ='SA9'!F250 -> 0 | E14: ='SA9'!G250 -> 0 | F14: ='SA9'!H250 -> 0 | G14: ='SA9'!I250 -> 0 | H14: ='SA9'!J250 -> 0 | J14: ='SA9'!K250 -> 0 | K14: ='SA9'!L250 -> 0 | L14: ='SA9'!M250 -> 0
A15: ="Net "& A11 -> Net Service charges - electricity revenue | C15: =C12-C13-C14 -> 0 | D15: =D12-D13-D14 -> 0 | E15: 0 | F15: 0 | G15: 0 | H15: 0 | I15: 0 | J15: 0 | K15: 0 | L15: 0
A17: ='A4-FinPerf RE'!A7 -> Service charges - water revenue | B17: 6
A18: ="Total "&A17 -> Total Service charges - water revenue
A19: less Revenue Foregone (in excess of 6 kilolitres per indigent household per month)
A20: less Cost of Free Basis Services (6 kilolitres per indigent household per month) | C20: ='SA9'!E262 -> 0 | D20: ='SA9'!F262 -> 0 | E20: ='SA9'!G262 -> 0 | F20: ='SA9'!H262 -> 0 | G20: ='SA9'!I262 -> 0 | H20: ='SA9'!J262 -> 0 | J20: ='SA9'!K262 -> 0 | K20: ='SA9'!L262 -> 0 | L20: ='SA9'!M262 -> 0
A21: ="Net "& A17 -> Net Service charges - water revenue | C21: =C18-C19-C20 -> 0 | D21: =D18-D19-D20 -> 0 | E21: 0 | F21: 0 | G21: 0 | H21: 0 | I21: 0 | J21: 0 | K21: 0 | L21: 0
A23: ='A4-FinPerf RE'!A8 -> Service charges - sanitation revenue
A24: ="Total "&A23 -> Total Service charges - sanitation revenue
A25: less Revenue Foregone (in excess of free sanitation service to indigent households)
A26: less Cost of Free Basis Services (free sanitation service to indigent households) | C26: ='SA9'!E274 -> 0 | D26: ='SA9'!F274 -> 0 | E26: ='SA9'!G274 -> 0 | F26: ='SA9'!H274 -> 0 | G26: ='SA9'!I274 -> 0 | H26: ='SA9'!J274 -> 0 | J26: ='SA9'!K274 -> 0 | K26: ='SA9'!L274 -> 0 | L26: ='SA9'!M274 -> 0
A27: ="Net "& A23 -> Net Service charges - sanitation revenue | C27: =C24-C25-C26 -> 0 | D27: =D24-D25-D26 -> 0 | E27: 0 | F27: 0 | G27: 0 | H27: 0 | I27: 0 | J27: 0 | K27: 0 | L27: 0
A29: ='A4-FinPerf RE'!A9 -> Service charges - refuse revenue | B29: 6
A30: Total refuse removal revenue | C30: 4236874 | D30: 4472542 | E30: 4594593 | F30: 4700000 | G30: 5300000 | H30: 5300000 | I30: 5300000 | J30: 5400000 | K30: 5450000 | L30: 5450000
A31: Total landfill revenue
A32: less Revenue Foregone (in excess of one removal a week to indigent households)
A33: less Cost of Free Basis Services (removed once a week to indigent households) | C33: ='SA9'!E286 -> 0 | D33: ='SA9'!F286 -> 0 | E33: ='SA9'!G286 -> 0 | F33: ='SA9'!H286 -> 0 | G33: ='SA9'!I286 -> 0 | H33: ='SA9'!J286 -> 0 | J33: ='SA9'!K286 -> 0 | K33: ='SA9'!L286 -> 0 | L33: ='SA9'!M286 -> 0
A34: ="Net "& A29 -> Net Service charges - refuse revenue | C34: =SUM(C30:C31)-C32-C33 -> 4236874 | D34: =SUM(D30:D31)-D32-D33 -> 4472542 | E34: 4594593 | F34: 4700000 | G34: 5300000 | H34: 5300000 | I34: 5300000 | J34: 5400000 | K34: 5450000 | L34: 5450000
A36: Other Revenue by source
A37: Fuel Levy | F37: 0
A38: Administrative Handling Fees | F38: 75130 | G38: 100000 | H38: 100000 | I38: 100000 | J38: 100000 | K38: 105000 | L38: 111100
A39: Advertisements | F39: 122000 | G39: 216000 | H39: 216000 | I39: 216000 | J39: 230000 | K39: 242500 | L39: 255592
A40: Building Plan Approval | F40: 300000 | G40: 250000 | H40: 250000 | I40: 250000 | J40: 500000 | K40: 550000 | L40: 550000
A41: Cemetery and Burial | F41: 83000 | G41: 310000 | H41: 310000 | I41: 310000 | J41: 320000 | K41: 337280 | L41: 355492
A42: Clearance Certificates | F42: 10500 | G42: 16000 | H42: 16000 | I42: 16000 | J42: 30000 | K42: 31000 | L42: 32000
A43: Escort Fees | F43: 17000 | G43: 17000 | H43: 17000 | I43: 17000 | J43: 18000 | K43: 19000 | L43: 19000
A44: Photocopies and Faxes | F44: 2000 | G44: 0 | H44: 0 | I44: 0
A45: Valuation Services | F45: 2100 | G45: 0 | H45: 0 | I45: 0
A46: Surcharges and Taxes:Taxes | F46: 20996000 | G46: 0 | H46: 0 | I46: 0
A47: Sales of Goods and Rendering of Services | C47: 1161563.05 | D47: 1841546 | E47: =[10]Sheet1!$H$3909 -> 1579116 | F47: 1348600 | G47: 1083000 | H47: 1083000 | I47: 1083000 | J47: 1150000 | K47: 1214800 | L47: 1278641
A48: Library Fees:Membership | B48: 3 | F48: 0 | G48: 2600 | H48: 2600 | I48: 2600 | J48: 3000 | K48: 3200 | L48: 3300
A49: Total 'Other' Revenue | B49: 1 | C49: =SUM(C37:C48) -> 1161563.05 | D49: =SUM(D37:D48) -> 1841546 | E49: 1579116 | F49: 22956330 | G49: 1994600 | H49: 1994600 | I49: 1994600 | J49: 2351000 | K49: 2502780 | L49: 2605125
A51: EXPENDITURE ITEMS:
A52: ='A4-FinPerf RE'!A24 -> Employee related costs
A53: Basic Salaries and Wages | B53: 2 | C53: 67318209.38 | D53: 77593985 | E53: =82161678+147315 -> 82308993 | F53: 97069974 | G53: 89752120 | H53: 89752120 | I53: 89752120 | J53: 110513096 | K53: 118183417 | L53: 127510613
A54: Pension and UIF Contributions | C54: 14315932 | D54: 14733009 | E54: 15458280 | F54: 20914256 | G54: 17563197 | H54: 17563197 | I54: 17563197 | J54: 21711431.71 | K54: 23155241.9 | L54: 24695065.51
A55: Medical Aid Contributions | C55: 2838127 | D55: 3106567 | E55: 3467547 | F55: 3762327 | G55: 4028038 | H55: 4028038 | I55: 4028038 | J55: 4202312.64 | K55: 4481766.43 | L55: 4779803.89
A56: Overtime | C56: 3748836 | D56: 4310186 | E56: 5419190 | F56: 4644824 | G56: 5880079 | H56: 5880079 | I56: 5880079 | J56: 3962359 | K56: 4650871.87 | L56: 5134447.11
A57: Performance Bonus | D57: 0 | E57: 0 | F57: 100000 | G57: 0 | H57: 0 | I57: 0 | J57: 0 | K57: 0 | L57: 0
A58: Motor Vehicle Allowance | C58: 7908749 | D58: 8679957 | E58: 9503077 | F58: 12662722 | G58: 10622481 | H58: 10622481 | I58: 10622481 | J58: 13191569.33 | K58: 14068808.71 | L58: 15004384.07
A59: Cellphone Allowance | D59: 0 | E59: 0 | F59: 568640 | G59: 564455 | H59: 564455 | I59: 564455 | J59: 897952 | K59: 957665.78 | L59: 1021350.56
A60: Housing Allowances | C60: 275125 | D60: 281614 | E60: 458810 | F60: 330440 | G60: 272821 | H60: 272821 | I60: 272821 | J60: 283224.24 | K60: 302058.64 | L60: 322145.52
A61: Other benefits and allowances | C61: 5090613.22 | D61: 8052668 | E61: 7817857 | F61: 8246642 | G61: 7647969 | H61: 7647969 | I61: 7647969 | J61: 9511692.19 | K61: 13928603.95 | L61: 14581208.7
A62: Payments in lieu of leave | D62: 2356173 | E62: 421520 | F62: 0 | G62: 625521 | H62: 625521 | I62: 625521 | J62: 0 | K62: 0 | L62: 0
A63: Long service awards | C63: 2690342 | D63: 411220 | E63: 458611 | F63: 2797247 | G63: 2698358 | H63: 2698358 | I63: 2698358 | J63: 263657.14 | K63: 281190.34 | L63: 299889.49
A64: Post-retirement benefit obligations | B64: 4 | C64: 3871501.18 | D64: 0 | F64: 0 | J64: 13727.73 | K64: 14640.62 | L64: 15614.23
A65: sub-total | B65: 5 | C65: =SUM(C53:C64) -> 108057434.8 | D65: =SUM(D53:D64) -> 119525379 | E65: 125313885 | F65: 151097072 | G65: 139655039 | H65: 139655039 | I65: 139655039 | J65: 164551022 | K65: 180024265.2 | L65: 193364522.1
A66: Less: Employees costs capitalised to PPE
A67: ="Total "&A52 -> Total Employee related costs | B67: 1 | C67: =C65-C66 -> 108057434.8 | D67: =D65-D66 -> 119525379 | E67: 125313885 | F67: 151097072 | G67: 139655039 | H67: 139655039 | I67: 139655039 | J67: 164551022 | K67: 180024265.2 | L67: 193364522.1
A69: Contributions recognised - capital
A70: List contributions by contract
A76: ="Total "&A69 -> Total Contributions recognised - capital | C76: =SUM(C70:C75) -> 0 | D76: 0 | E76: 0 | F76: 0 | G76: 0 | H76: 0 | I76: 0 | J76: 0 | K76: 0 | L76: 0
A78: ='A4-FinPerf RE'!A27 -> Depreciation & asset impairment
A79: Depreciation of Property, Plant & Equipment | C79: 20361720 | D79: 38553790 | E79: 84607767 | F79: 30000000 | G79: 30000000 | H79: 30000000 | I79: 30000000 | J79: 30000000 | K79: 30000000 | L79: 30000000
A80: Lease amortisation
A81: Capital asset impairment
A82: Depreciation resulting from revaluation of PPE | B82: 10
A83: ="Total "&LEFT(A78,35) -> Total Depreciation & asset impairment | B83: 1 | C83: =SUM(C79:C81)-C82 -> 20361720 | D83: =SUM(D79:D81)-D82 -> 38553790 | E83: 84607767 | F83: 30000000 | G83: 30000000 | H83: 30000000 | I83: 30000000 | J83: =SUM(J79:J81)-J82 -> 30000000 | K83: 30000000 | L83: 30000000
A85: ='A4-FinPerf RE'!A29 -> Bulk purchases
A86: Electricity Bulk Purchases
A87: Water Bulk Purchases
A88: Total bulk purchases | B88: 1 | C88: =SUM(C86:C87) -> 0 | D88: =SUM(D86:D87) -> 0 | E88: 0 | F88: 0 | G88: 0 | H88: 0 | I88: 0 | J88: 0 | K88: 0 | L88: 0
A90: Transfers and grants
A91: Cash transfers and grants | C91: ='SA21'!C32 -> 0 | D91: ='SA21'!D32 -> 0 | E91: ='SA21'!E32 -> 0 | F91: ='SA21'!F32 -> 0 | G91: ='SA21'!G32 -> 0 | H91: ='SA21'!H32 -> 0 | I91: ='SA21'!I32 -> 0 | J91: ='SA21'!J32 -> 0 | K91: ='SA21'!K32 -> 0 | L91: ='SA21'!L32 -> 0
A92: Non-cash transfers and grants | C92: ='SA21'!C63 -> 0 | D92: ='SA21'!D63 -> 0 | E92: ='SA21'!E63 -> 0 | F92: ='SA21'!F63 -> 0 | G92: ='SA21'!G63 -> 0 | H92: ='SA21'!H63 -> 0 | I92: ='SA21'!I63 -> 0 | J92: ='SA21'!J63 -> 0 | K92: ='SA21'!K63 -> 0 | L92: ='SA21'!L63 -> 0
A93: Total transfers and grants | B93: 1 | C93: =SUM(C91:C92) -> 0 | D93: =SUM(D91:D92) -> 0 | E93: 0 | F93: 0 | G93: 0 | H93: 0 | I93: 0 | J93: 0 | K93: 0 | L93: 0
A95: ='A4-FinPerf RE'!A31 -> Contracted services
A96: List services provided by contract | C96: 0 | D96: 0 | E96: 0 | F96: 0 | G96: 0 | H96: 0 | I96: 0 | J96: 0 | K96: 0 | L96: 0
A97: Vehicle Licensing & Testing- Maintenance | C97: 0 | E97: 2242150.964 | F97: 3054763.514 | G97: 3877110.184 | H97: 3877110.184 | I97: 3877110.184 | J97: 3070000 | K97: 6113000 | L97: 5810000
A98: Assets Management- Asset Verification | C98: 0 | D98: 0 | E98: 4610656.994 | F98: 6281676.385 | G98: 7972712.576 | H98: 7972712.576 | I98: 7972712.576 | J98: 6313008 | K98: 8309681 | L98: 8257908
